{"text_format":"1","workbook":"xlsx","n_sheets":66,"sheets":["DATOS","MRA_6o_P18","RETRO","ÍNDICE_1","ÍNDICE_2","ENTIDAD","SELECCION_ZONA","NIV_ZONA","NIV_ESC_ZONA_LYC","NIV_ESC_ZONA_MAT","SELECCION ESCUELA","UD EXTRAC","UD DESAR","UD ANÁLIS","UD CONVEN","UD REFLEX","UD_MAT_FyC","UD_MAT_MEDIDA","UD_MAT_NÚMEROS","UD_MAT_ADITIVOS","UD_MAT_MULTIPLIC","UD_MAT_PROPORCION","UD_MAT_UBIC-ESP","REACT_LyC","INDICE_REACT_LyC","P1_3","P4_5_6","P7_8_9_10","P11_12_13","P14_15","P16_17_18_19","P20_21","P22","P23_24_25","P_26_27_28","P_29","P31_33_34_35","P_36_37_38","P39_40_41_42","P43_44_45_46_47","P_49_50","REAC_MAT","ÍNDICE_REACT_MAT","MAT_P1","MAT_P2_3_4","MAT_P_5","MAT_P6_7","MAT_P8_9","MAT_P10_11_12","MAT_P13_14_15","MAT_P16_17_18","MAT_P19_20_21_22","MAT_P_23_24_25","MAT_P26_27_28","MAT_P29_30","MAT_31_32","MAT_P33_34","MAT_P35_36","MAT_P37","MAT_P38_39_40_41","MAT_42_43_44","MAT_P45_46_47_48","MAT_P49_50","PLANEACIÓN","AGRADECIMIENTO","DIRECTORIO"],"not_rendered":{"charts":18,"images":263,"macros":1,"external_links":0,"defined_names":7,"comments":0,"pivot_tables":18},"unopened":[],"bounds":{"document_bytes":16777216,"sheet_cells":100000,"rows_first":2000,"rows_last":500,"rows_between":2000,"halvings":0,"cell_chars":16384,"cell_head_chars":4096},"cells_cut":0,"cells_raw":0,"read":"whole","date_system":"1900"}

{"sheet":"DATOS","index":0,"n_rows":1003,"n_cols":34,"rows_kept":1003,"cut":false,"hidden":true,"merged":[]}
[null,null,null,null,null,null,null,null,null,null,null,null,null,null,null,null,null,null,null,null,null,null,null,null,null,null,null,null,null,null,null,null,null,"Datos devueltos para M%IV, CHIAPAS (primeras 1000 filas)."]
[]
["[$PEB2018].[ENT]","[$PEB2018].[ENTIDAD]","[$PEB2018].[ESCUELA]","[$PEB2018].[CCT]","[$PEB2018].[TURNO]","[$PEB2018].[MUNICIPIO]","[$PEB2018].[LOCALIDAD]","[$PEB2018].[TIPO DE ESCUELA]","[$PEB2018].[MARGINACIÓN]","[$PEB2018].[AL-PROGRAMADOS]","[$PEB2018].[AL-EVAL-LYC]","[$PEB2018].[ALUMNOS EVALUADOS MATEMÁTICAS]","[$PEB2018].[PORCENTAJE AL-EVAL LEGUAJE Y COMUNICACIÓN]","[$PEB2018].[PORCENTAJE AL-EVAL MATEMÁTICAS]","[$PEB2018].[REPRES-LEGUAJE Y COMUNICACIÓN]","[$PEB2018].[REPRES - MATEMÁTICAS]","[$PEB2018].[ESCUELAS PARECIDAS PARA COMPARACIÓN]","[$PEB2018].[LI]","[$PEB2018].[LII]","[$PEB2018].[LIII]","[$PEB2018].[LIV]","[$PEB2018].[L%I]","[$PEB2018].[L%II]","[$PEB2018].[L%III]","[$PEB2018].[L%IV]","[$PEB2018].[MI]","[$PEB2018].[MII]","[$PEB2018].[MIII]","[$PEB2018].[MIV]","[$PEB2018].[M%I]","[$PEB2018].[M%II]","[$PEB2018].[M%III]","[$PEB2018].[M%IV]"]
["07","CHIAPAS","SAN ANDRES","07KPB0012D","MATUTINO","SIMOJOVEL","SAN ANDRES","Comunitaria","Muy Alta y Alta","1","1","1","100","100","SI","SI","Comunitarias en el país en localidades de muy alta y alta marginación","1","0","0","0","100","0","0","0","1","0","0","0","100","0","0","0"]
["07","CHIAPAS","ARGENTINA DOS","07KPB0034P","MATUTINO","EL BOSQUE","SANTA TERESA","Comunitaria","Muy Alta y Alta","1","1","1","100","100","SI","SI","Comunitarias en el país en localidades de muy alta y alta marginación","1","0","0","0","100","0","0","0","1","0","0","0","100","0","0","0"]
["07","CHIAPAS","EL TRIUNFO","07KPB0106S","MATUTINO","PUEBLO NUEVO SOLISTAHUACAN","EL TRIUNFO","Comunitaria","Muy Alta y Alta","1","1","1","100","100","SI","SI","Comunitarias en el país en localidades de muy alta y alta marginación","1","0","0","0","100","0","0","0","1","0","0","0","100","0","0","0"]
["07","CHIAPAS","MATASANO","07KPB0120L","MATUTINO","SAN CRISTOBAL DE LAS CASAS","MATASANO","Comunitaria","Muy Alta y Alta","1","1","1","100","100","SI","SI","Comunitarias en el país en localidades de muy alta y alta marginación","1","0","0","0","100","0","0","0","1","0","0","0","100","0","0","0"]
["07","CHIAPAS","SANTA CRUZ BUENA VISTA","07KPB0198Z","MATUTINO","BOCHIL","SANTA CRUZ BUENAVISTA","Comunitaria","Muy Alta y Alta","1","1","1","100","100","SI","SI","Comunitarias en el país en localidades de muy alta y alta marginación","1","0","0","0","100","0","0","0","1","0","0","0","100","0","0","0"]
["07","CHIAPAS","SAQUILCHEN","07KPB0210D","MATUTINO","CHANAL","SAQUILCHEN","Comunitaria","Muy Alta y Alta","1","1","1","100","100","SI","SI","Comunitarias en el país en localidades de muy alta y alta marginación","1","0","0","0","100","0","0","0","1","0","0","0","100","0","0","0"]
["07","CHIAPAS","CHA'COJTON","07KPB0223H","MATUTINO","CHENALHO","CHA'COJTON","Comunitaria","Muy Alta y Alta","1","1","1","100","100","SI","SI","Comunitarias en el país en localidades de muy alta y alta marginación","1","0","0","0","100","0","0","0","1","0","0","0","100","0","0","0"]
["07","CHIAPAS","AGUA VERDE","07KPB0251D","MATUTINO","CHILON","AGUA VERDE","Comunitaria","Muy Alta y Alta","1","1","1","100","100","SI","SI","Comunitarias en el país en localidades de muy alta y alta marginación","1","0","0","0","100","0","0","0","1","0","0","0","100","0","0","0"]
["07","CHIAPAS","NINTETIC","07KPB0267E","MATUTINO","LARRAINZAR","NINTETIC","Comunitaria","Muy Alta y Alta","1","1","1","100","100","SI","SI","Comunitarias en el país en localidades de muy alta y alta marginación","1","0","0","0","100","0","0","0","1","0","0","0","100","0","0","0"]
["07","CHIAPAS","PORVENIR","07KPB0294B","MATUTINO","OXCHUC","PORVENIR","Comunitaria","Muy Alta y Alta","1","1","1","100","100","SI","SI","Comunitarias en el país en localidades de muy alta y alta marginación","1","0","0","0","100","0","0","0","1","0","0","0","100","0","0","0"]
["07","CHIAPAS","CHIJTAL","07KPB0304S","MATUTINO","OXCHUC","CHIJTAL","Comunitaria","Muy Alta y Alta","1","1","1","100","100","SI","SI","Comunitarias en el país en localidades de muy alta y alta marginación","1","0","0","0","100","0","0","0","1","0","0","0","100","0","0","0"]
["07","CHIAPAS","SAN MARCOS BAJA (2DA. BAJAD)","07KPB0355Z","MATUTINO","CHILON","SAN MARCOS BAJA","Comunitaria","Muy Alta y Alta","1","1","1","100","100","SI","SI","Comunitarias en el país en localidades de muy alta y alta marginación","1","0","0","0","100","0","0","0","1","0","0","0","100","0","0","0"]
["07","CHIAPAS","BAHUKUM","07KPB0391D","MATUTINO","CHAMULA","BAHUKUM","Comunitaria","Muy Alta y Alta","1","1","1","100","100","SI","SI","Comunitarias en el país en localidades de muy alta y alta marginación","1","0","0","0","100","0","0","0","1","0","0","0","100","0","0","0"]
["07","CHIAPAS","CANDELARIA","07KPB0445R","MATUTINO","FRANCISCO LEON","CANDELARIA","Comunitaria","Muy Alta y Alta","1","1","1","100","100","SI","SI","Comunitarias en el país en localidades de muy alta y alta marginación","1","0","0","0","100","0","0","0","1","0","0","0","100","0","0","0"]
["07","CHIAPAS","EL HORIZONTE","07KPB0450C","MATUTINO","SIMOJOVEL","EL HORIZONTE","Comunitaria","Muy Alta y Alta","1","1","1","100","100","SI","SI","Comunitarias en el país en localidades de muy alta y alta marginación","1","0","0","0","100","0","0","0","1","0","0","0","100","0","0","0"]
["07","CHIAPAS","LA FRONTERA","07KPB0499V","MATUTINO","PUEBLO NUEVO SOLISTAHUACAN","LA FRONTERA","Comunitaria","Muy Alta y Alta","1","1","1","100","100","SI","SI","Comunitarias en el país en localidades de muy alta y alta marginación","1","0","0","0","100","0","0","0","1","0","0","0","100","0","0","0"]
["07","CHIAPAS","LA VENTANA","07KPB0514X","MATUTINO","HUIXTAN","LA VENTANA","Comunitaria","Muy Alta y Alta","1","1","1","100","100","SI","SI","Comunitarias en el país en localidades de muy alta y alta marginación","1","0","0","0","100","0","0","0","1","0","0","0","100","0","0","0"]
["07","CHIAPAS","SAQUEJA","07KPB0531N","MATUTINO","TILA","JOLSIBAQUIL","Comunitaria","Muy Alta y Alta","1","1","1","100","100","SI","SI","Comunitarias en el país en localidades de muy alta y alta marginación","1","0","0","0","100","0","0","0","1","0","0","0","100","0","0","0"]
["07","CHIAPAS","LIMONAL","07KPB0597W","MATUTINO","CHILON","LIMONAL","Comunitaria","Muy Alta y Alta","1","1","1","100","100","SI","SI","Comunitarias en el país en localidades de muy alta y alta marginación","1","0","0","0","100","0","0","0","1","0","0","0","100","0","0","0"]
["07","CHIAPAS","PALMA REAL","07KPB0607M","MATUTINO","BOCHIL","PALMA REAL","Comunitaria","Muy Alta y Alta","1","1","1","100","100","SI","SI","Comunitarias en el país en localidades de muy alta y alta marginación","1","0","0","0","100","0","0","0","1","0","0","0","100","0","0","0"]
["07","CHIAPAS","CHENULICH","07KPB0626A","MATUTINO","OXCHUC","NUEVA BETANIA","Comunitaria","Muy Alta y Alta","1","1","1","100","100","SI","SI","Comunitarias en el país en localidades de muy alta y alta marginación","1","0","0","0","100","0","0","0","1","0","0","0","100","0","0","0"]
["07","CHIAPAS","CANTELA","07KPB0706M","MATUTINO","CHILON","CANTELA","Comunitaria","Muy Alta y Alta","1","1","1","100","100","SI","SI","Comunitarias en el país en localidades de muy alta y alta marginación","1","0","0","0","100","0","0","0","1","0","0","0","100","0","0","0"]
["07","CHIAPAS","SEGUNDA PALMA","07KPB0716T","MATUTINO","CHILON","SEGUNDA PALMA","Comunitaria","Muy Alta y Alta","1","1","1","100","100","SI","SI","Comunitarias en el país en localidades de muy alta y alta marginación","1","0","0","0","100","0","0","0","1","0","0","0","100","0","0","0"]
["07","CHIAPAS","JOSE LOPEZ PORTILLO","07KPB0873J","MATUTINO","TENEJAPA","JOSE LOPEZ PORTILLO","Comunitaria","Muy Alta y Alta","1","1","1","100","100","SI","SI","Comunitarias en el país en localidades de muy alta y alta marginación","1","0","0","0","100","0","0","0","1","0","0","0","100","0","0","0"]
["07","CHIAPAS","CARMEN 1RA. SECCION","07KPB0914T","MATUTINO","TILA","CARMEN 1RA. SECCION","Comunitaria","Muy Alta y Alta","1","1","1","100","100","SI","SI","Comunitarias en el país en localidades de muy alta y alta marginación","1","0","0","0","100","0","0","0","1","0","0","0","100","0","0","0"]
["07","CHIAPAS","KULAK`TE","07KPB0959P","MATUTINO","OXCHUC","KULAK'TE","Comunitaria","Muy Alta y Alta","1","1","1","100","100","SI","SI","Comunitarias en el país en localidades de muy alta y alta marginación","1","0","0","0","100","0","0","0","1","0","0","0","100","0","0","0"]
["07","CHIAPAS","SAN ANTONIO LA LAGUNITA","07KPB0979C","MATUTINO","SAN CRISTOBAL DE LAS CASAS","SAN ANTONIO LA LAGUNITA","Comunitaria","Muy Alta y Alta","1","1","1","100","100","SI","SI","Comunitarias en el país en localidades de muy alta y alta marginación","1","0","0","0","100","0","0","0","1","0","0","0","100","0","0","0"]
["07","CHIAPAS","MEBATON","07KPB1071Z","MATUTINO","CHILON","MEBATON","Comunitaria","Muy Alta y Alta","1","1","1","100","100","SI","SI","Comunitarias en el país en localidades de muy alta y alta marginación","1","0","0","0","100","0","0","0","1","0","0","0","100","0","0","0"]
["07","CHIAPAS","TONTIC","07KPB1086B","MATUTINO","SAN CRISTOBAL DE LAS CASAS","TONTIC","Comunitaria","Muy Alta y Alta","1","1","1","100","100","SI","SI","Comunitarias en el país en localidades de muy alta y alta marginación","1","0","0","0","100","0","0","0","1","0","0","0","100","0","0","0"]
["07","CHIAPAS","PALO NEGRO","07KPB1089Z","MATUTINO","TILA","PALO NEGRO","Comunitaria","Muy Alta y Alta","1","1","1","100","100","SI","SI","Comunitarias en el país en localidades de muy alta y alta marginación","1","0","0","0","100","0","0","0","1","0","0","0","100","0","0","0"]
["07","CHIAPAS","EL CASTAÑO","07KPB1154I","MATUTINO","TILA","EL CASTAÑO","Comunitaria","Muy Alta y Alta","1","1","1","100","100","SI","SI","Comunitarias en el país en localidades de muy alta y alta marginación","1","0","0","0","100","0","0","0","1","0","0","0","100","0","0","0"]
["07","CHIAPAS","CHEN HUCH MAJACIL SEGUNDA SECCION","07KPB1166N","MATUTINO","CHILON","CHEN'HUCH MAJASIL","Comunitaria","Muy Alta y Alta","1","1","1","100","100","SI","SI","Comunitarias en el país en localidades de muy alta y alta marginación","1","0","0","0","100","0","0","0","1","0","0","0","100","0","0","0"]
["07","CHIAPAS","TZUIB","07KPB1205Z","MATUTINO","OXCHUC","YOSHIB","Comunitaria","Muy Alta y Alta","1","1","1","100","100","SI","SI","Comunitarias en el país en localidades de muy alta y alta marginación","1","0","0","0","100","0","0","0","1","0","0","0","100","0","0","0"]
["07","CHIAPAS","VILLA HERMOSA","07KPB1208W","MATUTINO","SAN CRISTOBAL DE LAS CASAS","VILLA HERMOSA","Comunitaria","Muy Alta y Alta","1","1","1","100","100","SI","SI","Comunitarias en el país en localidades de muy alta y alta marginación","1","0","0","0","100","0","0","0","1","0","0","0","100","0","0","0"]
["07","CHIAPAS","LAS NUBES","07KPB1226L","MATUTINO","PUEBLO NUEVO SOLISTAHUACAN","CERRO LAS NUBES","Comunitaria","Muy Alta y Alta","1","1","1","100","100","SI","SI","Comunitarias en el país en localidades de muy alta y alta marginación","1","0","0","0","100","0","0","0","1","0","0","0","100","0","0","0"]
["07","CHIAPAS","FRANCISCO VILLA DOS","07KPB1243B","MATUTINO","OCOSINGO","FRANCISCO VILLA [LOTE 5]","Comunitaria","Muy Alta y Alta","1","1","1","100","100","SI","SI","Comunitarias en el país en localidades de muy alta y alta marginación","1","0","0","0","100","0","0","0","1","0","0","0","100","0","0","0"]
["07","CHIAPAS","BARRIO JIJTYEOL","07KPB1257E","MATUTINO","TILA","UNION JUAREZ","Comunitaria","Muy Alta y Alta","1","1","1","100","100","SI","SI","Comunitarias en el país en localidades de muy alta y alta marginación","1","0","0","0","100","0","0","0","1","0","0","0","100","0","0","0"]
["07","CHIAPAS","LA REVANCHA","07KPB1274V","MATUTINO","TUMBALA","LA REVANCHA","Comunitaria","Muy Alta y Alta","1","1","1","100","100","SI","SI","Comunitarias en el país en localidades de muy alta y alta marginación","1","0","0","0","100","0","0","0","1","0","0","0","100","0","0","0"]
["07","CHIAPAS","ARROYO ABHAN","07KPB1275U","MATUTINO","TUMBALA","ARROYO ABAN","Comunitaria","Muy Alta y Alta","1","1","1","100","100","SI","SI","Comunitarias en el país en localidades de muy alta y alta marginación","1","0","0","0","100","0","0","0","1","0","0","0","100","0","0","0"]
["07","CHIAPAS","JITETIC","07KPB1281E","MATUTINO","CHILON","JITETIC","Comunitaria","Muy Alta y Alta","1","1","1","100","100","SI","SI","Comunitarias en el país en localidades de muy alta y alta marginación","1","0","0","0","100","0","0","0","1","0","0","0","100","0","0","0"]
["07","CHIAPAS","GUALEJACIL","07KPB1332V","MATUTINO","CHILON","GUALEJACIL","Comunitaria","Muy Alta y Alta","1","1","1","100","100","SI","SI","Comunitarias en el país en localidades de muy alta y alta marginación","1","0","0","0","100","0","0","0","1","0","0","0","100","0","0","0"]
["07","CHIAPAS","NUEVO TILA","07KPB1345Z","MATUTINO","CHILON","NUEVO TILA","Comunitaria","Muy Alta y Alta","1","1","1","100","100","SI","SI","Comunitarias en el país en localidades de muy alta y alta marginación","1","0","0","0","100","0","0","0","1","0","0","0","100","0","0","0"]
["07","CHIAPAS","VILLA LOS PINOS","07KPB1352I","MATUTINO","OCOSINGO","VILLA LOS PINOS","Comunitaria","Muy Alta y Alta","1","1","1","100","100","SI","SI","Comunitarias en el país en localidades de muy alta y alta marginación","1","0","0","0","100","0","0","0","1","0","0","0","100","0","0","0"]
["07","CHIAPAS","LA TEJONERA","07KPB1371X","MATUTINO","AMATENANGO DEL VALLE","LA TEJONERA","Comunitaria","Muy Alta y Alta","1","1","1","100","100","SI","SI","Comunitarias en el país en localidades de muy alta y alta marginación","1","0","0","0","100","0","0","0","1","0","0","0","100","0","0","0"]
["07","CHIAPAS","PIQUINTEEL SAN ANTONIO","07KPB1375T","MATUTINO","CHILON","PIQUINTEEL SAN ANTONIO","Comunitaria","Muy Alta y Alta","1","1","1","100","100","SI","SI","Comunitarias en el país en localidades de muy alta y alta marginación","1","0","0","0","100","0","0","0","1","0","0","0","100","0","0","0"]
["07","CHIAPAS","SAN JOSE","07KPB1377R","MATUTINO","HUIXTAN","SAN JOSE","Comunitaria","Muy Alta y Alta","1","1","1","100","100","SI","SI","Comunitarias en el país en localidades de muy alta y alta marginación","1","0","0","0","100","0","0","0","1","0","0","0","100","0","0","0"]
["07","CHIAPAS","YAB'MUC'TANA","07KPB1384A","MATUTINO","PANTELHO","YAB MUCTANA","Comunitaria","Muy Alta y Alta","1","1","1","100","100","SI","SI","Comunitarias en el país en localidades de muy alta y alta marginación","1","0","0","0","100","0","0","0","1","0","0","0","100","0","0","0"]
["07","CHIAPAS","RIO OSUMACINTA","07KPB1404Y","MATUTINO","PALENQUE","RIO OSUMACINTA","Comunitaria","Muy Alta y Alta","1","1","1","100","100","SI","SI","Comunitarias en el país en localidades de muy alta y alta marginación","1","0","0","0","100","0","0","0","1","0","0","0","100","0","0","0"]
["07","CHIAPAS","SAN JOAQUIN REFORMA","07KPB1411H","MATUTINO","SAN CRISTOBAL DE LAS CASAS","SAN JOAQUIN REFORMA","Comunitaria","Muy Alta y Alta","1","1","1","100","100","SI","SI","Comunitarias en el país en localidades de muy alta y alta marginación","1","0","0","0","100","0","0","0","1","0","0","0","100","0","0","0"]
["07","CHIAPAS","SAN JACINTO","07KPB1426J","MATUTINO","CHILON","SAN JACINTO","Comunitaria","Muy Alta y Alta","1","1","1","100","100","SI","SI","Comunitarias en el país en localidades de muy alta y alta marginación","1","0","0","0","100","0","0","0","1","0","0","0","100","0","0","0"]
["07","CHIAPAS","SAN AGUSTIN","07KPB1465L","MATUTINO","TAPALAPA","SAN AGUSTIN","Comunitaria","Muy Alta y Alta","1","1","1","100","100","SI","SI","Comunitarias en el país en localidades de muy alta y alta marginación","1","0","0","0","100","0","0","0","1","0","0","0","100","0","0","0"]
["07","CHIAPAS","ARARAT","07KPB1477Q","MATUTINO","OXCHUC","ARARAT","Comunitaria","Muy Alta y Alta","1","1","1","100","100","SI","SI","Comunitarias en el país en localidades de muy alta y alta marginación","1","0","0","0","100","0","0","0","1","0","0","0","100","0","0","0"]
["07","CHIAPAS","BRETAÑA","07KPB1499B","MATUTINO","CHILON","BRETAÑA","Comunitaria","Muy Alta y Alta","1","1","1","100","100","SI","SI","Comunitarias en el país en localidades de muy alta y alta marginación","1","0","0","0","100","0","0","0","1","0","0","0","100","0","0","0"]
["07","CHIAPAS","TZAJALUCUM","07KPB1513E","MATUTINO","OCOSINGO","TZAJALUCUM","Comunitaria","Muy Alta y Alta","1","1","1","100","100","SI","SI","Comunitarias en el país en localidades de muy alta y alta marginación","1","0","0","0","100","0","0","0","1","0","0","0","100","0","0","0"]
["07","CHIAPAS","EL CHAPAYAL","07KPB1514D","MATUTINO","OCOSINGO","CHAPAYAL","Comunitaria","Muy Alta y Alta","1","1","1","100","100","SI","SI","Comunitarias en el país en localidades de muy alta y alta marginación","1","0","0","0","100","0","0","0","1","0","0","0","100","0","0","0"]
["07","CHIAPAS","EL  OCOTAL","07KPB1544Y","MATUTINO","SIMOJOVEL","EL OCOTAL","Comunitaria","Muy Alta y Alta","1","1","1","100","100","SI","SI","Comunitarias en el país en localidades de muy alta y alta marginación","1","0","0","0","100","0","0","0","1","0","0","0","100","0","0","0"]
["07","CHIAPAS","BARRIO DE GUADALUPE","07KPB1559Z","MATUTINO","TENEJAPA","GUADALUPE","Comunitaria","Muy Alta y Alta","1","1","1","100","100","SI","SI","Comunitarias en el país en localidades de muy alta y alta marginación","1","0","0","0","100","0","0","0","1","0","0","0","100","0","0","0"]
["07","CHIAPAS","EL RETIRO","07KPB1572U","MATUTINO","OCOSINGO","EL RETIRO","Comunitaria","Muy Alta y Alta","1","1","1","100","100","SI","SI","Comunitarias en el país en localidades de muy alta y alta marginación","1","0","0","0","100","0","0","0","1","0","0","0","100","0","0","0"]
["07","CHIAPAS","SAN JUAN BAUTISTA","07KPB1613D","MATUTINO","SAN CRISTOBAL DE LAS CASAS","SAN JUAN BAUTISTA","Comunitaria","Muy Alta y Alta","1","1","1","100","100","SI","SI","Comunitarias en el país en localidades de muy alta y alta marginación","1","0","0","0","100","0","0","0","1","0","0","0","100","0","0","0"]
["07","CHIAPAS","RAYA OJO DE AGUA","07KPB1619Y","MATUTINO","CHILON","RAYA OJO DE AGUA","Comunitaria","Muy Alta y Alta","1","1","1","100","100","SI","SI","Comunitarias en el país en localidades de muy alta y alta marginación","1","0","0","0","100","0","0","0","1","0","0","0","100","0","0","0"]
["07","CHIAPAS","TZITEEL","07KPB1652F","MATUTINO","CHILON","TZITEEL","Comunitaria","Muy Alta y Alta","1","1","1","100","100","SI","SI","Comunitarias en el país en localidades de muy alta y alta marginación","1","0","0","0","100","0","0","0","1","0","0","0","100","0","0","0"]
["07","CHIAPAS","EL PALMAR (SAN MIGUEL)","07KPB1686W","MATUTINO","SAN ANDRES DURAZNAL","EL PALMAR (SAN MIGUEL)","Comunitaria","Muy Alta y Alta","1","1","1","100","100","SI","SI","Comunitarias en el país en localidades de muy alta y alta marginación","1","0","0","0","100","0","0","0","1","0","0","0","100","0","0","0"]
["07","CHIAPAS","POMARROSA (LOS CHORROS)","07KPB1726G","MATUTINO","OCOSINGO","LA POMARROSA EL CHORRO","Comunitaria","Muy Alta y Alta","1","1","1","100","100","SI","SI","Comunitarias en el país en localidades de muy alta y alta marginación","1","0","0","0","100","0","0","0","1","0","0","0","100","0","0","0"]
["07","CHIAPAS","PANTS' AJK","07KPB1727F","MATUTINO","TILA","PANTS'AJK","Comunitaria","Muy Alta y Alta","1","1","1","100","100","SI","SI","Comunitarias en el país en localidades de muy alta y alta marginación","1","0","0","0","100","0","0","0","1","0","0","0","100","0","0","0"]
["07","CHIAPAS","PACH'EN","07KPB1730T","MATUTINO","TENEJAPA","PATCH'EN","Comunitaria","Muy Alta y Alta","1","1","1","100","100","SI","SI","Comunitarias en el país en localidades de muy alta y alta marginación","1","0","0","0","100","0","0","0","1","0","0","0","100","0","0","0"]
["07","CHIAPAS","NUEVO JOAQUIN MIGUEL GUTIERREZ","07KPB1740Z","MATUTINO","ALTAMIRANO","NUEVO JOAQUIN MIGUEL GUTIERREZ","Comunitaria","Muy Alta y Alta","1","1","1","100","100","SI","SI","Comunitarias en el país en localidades de muy alta y alta marginación","1","0","0","0","100","0","0","0","1","0","0","0","100","0","0","0"]
["07","CHIAPAS","EL TZAC","07KPB1742Y","MATUTINO","CHENALHO","EL TZAC","Comunitaria","Muy Alta y Alta","1","1","1","100","100","SI","SI","Comunitarias en el país en localidades de muy alta y alta marginación","1","0","0","0","100","0","0","0","1","0","0","0","100","0","0","0"]
["07","CHIAPAS","EL CONEJITO","07KPB1745V","MATUTINO","ALTAMIRANO","EL CONEJITO","Comunitaria","Muy Alta y Alta","1","1","1","100","100","SI","SI","Comunitarias en el país en localidades de muy alta y alta marginación","1","0","0","0","100","0","0","0","1","0","0","0","100","0","0","0"]
["07","CHIAPAS","EL CARMEN","07KPB1752E","MATUTINO","OCOSINGO","EL CARMEN","Comunitaria","Muy Alta y Alta","1","1","1","100","100","SI","SI","Comunitarias en el país en localidades de muy alta y alta marginación","1","0","0","0","100","0","0","0","1","0","0","0","100","0","0","0"]
["07","CHIAPAS","EL CIPRES","07KPB1755B","MATUTINO","SAN CRISTOBAL DE LAS CASAS","EL CIPRES","Comunitaria","Muy Alta y Alta","1","1","1","100","100","SI","SI","Comunitarias en el país en localidades de muy alta y alta marginación","1","0","0","0","100","0","0","0","1","0","0","0","100","0","0","0"]
["07","CHIAPAS","LA ESMERALDA","07KPB1763K","MATUTINO","PANTELHO","LA ESMERALDA","Comunitaria","Muy Alta y Alta","1","1","1","100","100","SI","SI","Comunitarias en el país en localidades de muy alta y alta marginación","1","0","0","0","100","0","0","0","1","0","0","0","100","0","0","0"]
["07","CHIAPAS","EL PEDREGAL","07KPB1770U","MATUTINO","YAJALON","EL PEDREGAL","Comunitaria","Muy Alta y Alta","1","1","1","100","100","SI","SI","Comunitarias en el país en localidades de muy alta y alta marginación","1","0","0","0","100","0","0","0","1","0","0","0","100","0","0","0"]
["07","CHIAPAS","CRUZTANAJ","07KPB1777N","MATUTINO","CHANAL","CRUZTANAJ","Comunitaria","Muy Alta y Alta","1","1","1","100","100","SI","SI","Comunitarias en el país en localidades de muy alta y alta marginación","1","0","0","0","100","0","0","0","1","0","0","0","100","0","0","0"]
["07","CHIAPAS","KAOMTEALUKUM DOS","07KPB1780A","MATUTINO","LARRAINZAR","CAMTEALHUCUM II","Comunitaria","Muy Alta y Alta","1","1","1","100","100","SI","SI","Comunitarias en el país en localidades de muy alta y alta marginación","1","0","0","0","100","0","0","0","1","0","0","0","100","0","0","0"]
["07","CHIAPAS","LIMONAL","07KPB1803V","MATUTINO","OCOSINGO","LIMONAL","Comunitaria","Muy Alta y Alta","1","1","1","100","100","SI","SI","Comunitarias en el país en localidades de muy alta y alta marginación","1","0","0","0","100","0","0","0","1","0","0","0","100","0","0","0"]
["07","CHIAPAS","PLATANARCITO","07KPB1809P","MATUTINO","HUITIUPAN","PLATANARCITO","Comunitaria","Muy Alta y Alta","1","1","1","100","100","SI","SI","Comunitarias en el país en localidades de muy alta y alta marginación","1","0","0","0","100","0","0","0","1","0","0","0","100","0","0","0"]
["07","CHIAPAS","RANCHO BUENA VISTA EL PORVENIR","07KPB1826F","MATUTINO","TAPALAPA","BUENAVISTA","Comunitaria","Muy Alta y Alta","1","1","1","100","100","SI","SI","Comunitarias en el país en localidades de muy alta y alta marginación","1","0","0","0","100","0","0","0","1","0","0","0","100","0","0","0"]
["07","CHIAPAS","TABILHUCUM","07KPB1831R","MATUTINO","ALDAMA","TABILHUCUM","Comunitaria","Muy Alta y Alta","1","1","1","100","100","SI","SI","Comunitarias en el país en localidades de muy alta y alta marginación","1","0","0","0","100","0","0","0","1","0","0","0","100","0","0","0"]
["07","CHIAPAS","LA MERCED","07KPB1845U","MATUTINO","SITALA","LA MERCED","Comunitaria","Muy Alta y Alta","1","1","1","100","100","SI","SI","Comunitarias en el país en localidades de muy alta y alta marginación","1","0","0","0","100","0","0","0","1","0","0","0","100","0","0","0"]
["07","CHIAPAS","NUEVO VILLAFLORES","07KPB1854B","MATUTINO","CHILON","NUEVO VILLAFLORES","Comunitaria","Muy Alta y Alta","1","1","1","100","100","SI","SI","Comunitarias en el país en localidades de muy alta y alta marginación","1","0","0","0","100","0","0","0","1","0","0","0","100","0","0","0"]
["07","CHIAPAS","TZAJALOCOCH","07KPB1863J","MATUTINO","OXCHUC","TZAJALOCOCH","Comunitaria","Muy Alta y Alta","1","1","1","100","100","SI","SI","Comunitarias en el país en localidades de muy alta y alta marginación","1","0","0","0","100","0","0","0","1","0","0","0","100","0","0","0"]
["07","CHIAPAS","SAN PEDRO LAS FLORES","07KPB1885V","MATUTINO","AMATENANGO DEL VALLE","SAN PEDRO LAS FLORES","Comunitaria","Muy Alta y Alta","1","1","1","100","100","SI","SI","Comunitarias en el país en localidades de muy alta y alta marginación","1","0","0","0","100","0","0","0","1","0","0","0","100","0","0","0"]
["07","CHIAPAS","EL PALMAR","07KPB1907Q","MATUTINO","EL BOSQUE","EL PALMAR","Comunitaria","Muy Alta y Alta","1","1","1","100","100","SI","SI","Comunitarias en el país en localidades de muy alta y alta marginación","1","0","0","0","100","0","0","0","1","0","0","0","100","0","0","0"]
["07","CHIAPAS","LA VIEJA LIBERTAD","07KPR0001Z","MATUTINO","ACACOYAGUA","LA VIEJA LIBERTAD","Comunitaria","Muy Alta y Alta","1","1","1","100","100","SI","SI","Comunitarias en el país en localidades de muy alta y alta marginación","1","0","0","0","100","0","0","0","1","0","0","0","100","0","0","0"]
["07","CHIAPAS","SAN MARCOS","07KPR0006U","MATUTINO","CHICOMUSELO","SAN MARCOS","Comunitaria","Muy Alta y Alta","1","1","1","100","100","SI","SI","Comunitarias en el país en localidades de muy alta y alta marginación","1","0","0","0","100","0","0","0","1","0","0","0","100","0","0","0"]
["07","CHIAPAS","LA ALIANZA","07KPR0035P","MATUTINO","LA INDEPENDENCIA","LA ALIANZA","Comunitaria","Muy Alta y Alta","1","1","1","100","100","SI","SI","Comunitarias en el país en localidades de muy alta y alta marginación","1","0","0","0","100","0","0","0","1","0","0","0","100","0","0","0"]
["07","CHIAPAS","SANTA RITA UNINAJAB","07KPR0063L","MATUTINO","COMITAN DE DOMINGUEZ","SANTA RITA UNINAJAB","Comunitaria","Muy Alta y Alta","1","1","1","100","100","SI","SI","Comunitarias en el país en localidades de muy alta y alta marginación","1","0","0","0","100","0","0","0","1","0","0","0","100","0","0","0"]
["07","CHIAPAS","TUILA","07KPR0066I","MATUTINO","COMITAN DE DOMINGUEZ","TUILA EL GRANDE","Comunitaria","Muy Alta y Alta","1","1","1","100","100","SI","SI","Comunitarias en el país en localidades de muy alta y alta marginación","1","0","0","0","100","0","0","0","1","0","0","0","100","0","0","0"]
["07","CHIAPAS","LA CRUZ BLANCA","07KPR0074R","MATUTINO","LA CONCORDIA","LA CRUZ BLANCA","Comunitaria","Muy Alta y Alta","1","1","1","100","100","SI","SI","Comunitarias en el país en localidades de muy alta y alta marginación","1","0","0","0","100","0","0","0","1","0","0","0","100","0","0","0"]
["07","CHIAPAS","EL VERGEL","07KPR0129D","MATUTINO","OCOZOCOAUTLA DE ESPINOSA","EL VERGEL","Comunitaria","Muy Alta y Alta","1","1","1","100","100","SI","SI","Comunitarias en el país en localidades de muy alta y alta marginación","1","0","0","0","100","0","0","0","1","0","0","0","100","0","0","0"]
["07","CHIAPAS","BUENAVISTA","07KPR0137M","MATUTINO","ESCUINTLA","BUENAVISTA","Comunitaria","Muy Alta y Alta","1","1","1","100","100","SI","SI","Comunitarias en el país en localidades de muy alta y alta marginación","1","0","0","0","100","0","0","0","1","0","0","0","100","0","0","0"]
["07","CHIAPAS","SAN MIGUEL (ANEXO OJO DE AGUA)","07KPR0164J","MATUTINO","LA INDEPENDENCIA","SAN MIGUEL (ANEXO OJO DE AGUA)","Comunitaria","Muy Alta y Alta","1","1","1","100","100","SI","SI","Comunitarias en el país en localidades de muy alta y alta marginación","1","0","0","0","100","0","0","0","1","0","0","0","100","0","0","0"]
["07","CHIAPAS","IGNACIO ALLENDE","07KPR0197A","MATUTINO","TONALA","IGNACIO ALLENDE","Comunitaria","Muy Alta y Alta","1","1","1","100","100","SI","SI","Comunitarias en el país en localidades de muy alta y alta marginación","1","0","0","0","100","0","0","0","1","0","0","0","100","0","0","0"]
["07","CHIAPAS","CIMARRON","07KPR0210E","MATUTINO","LAS MARGARITAS","CIMARRON","Comunitaria","Muy Alta y Alta","1","1","1","100","100","SI","SI","Comunitarias en el país en localidades de muy alta y alta marginación","1","0","0","0","100","0","0","0","1","0","0","0","100","0","0","0"]
["07","CHIAPAS","1 DE DICIEMBRE","07KPR0227E","MATUTINO","HUIXTLA","PRIMERO DE DICIEMBRE","Comunitaria","Muy Alta y Alta","1","1","1","100","100","SI","SI","Comunitarias en el país en localidades de muy alta y alta marginación","1","0","0","0","100","0","0","0","1","0","0","0","100","0","0","0"]
["07","CHIAPAS","RIO BLANCO","07KPR0232Q","MATUTINO","BERRIOZABAL","RIO BLANCO","Comunitaria","Muy Alta y Alta","1","1","1","100","100","SI","SI","Comunitarias en el país en localidades de muy alta y alta marginación","1","0","0","0","100","0","0","0","1","0","0","0","100","0","0","0"]
["07","CHIAPAS","SAN LUCAS","07KPR0267F","MATUTINO","MOTOZINTLA","SAN LUCAS","Comunitaria","Muy Alta y Alta","1","1","1","100","100","SI","SI","Comunitarias en el país en localidades de muy alta y alta marginación","1","0","0","0","100","0","0","0","1","0","0","0","100","0","0","0"]
["07","CHIAPAS","RINCON DEL BOSQUE","07KPR0283X","MATUTINO","PIJIJIAPAN","RINCON DEL BOSQUE","Comunitaria","Muy Alta y Alta","1","1","1","100","100","SI","SI","Comunitarias en el país en localidades de muy alta y alta marginación","1","0","0","0","100","0","0","0","1","0","0","0","100","0","0","0"]
["07","CHIAPAS","EL GUANALITO","07KPR0307Q","MATUTINO","SALTO DE AGUA","EL GUANALITO","Comunitaria","Muy Alta y Alta","1","1","1","100","100","SI","SI","Comunitarias en el país en localidades de muy alta y alta marginación","1","0","0","0","100","0","0","0","1","0","0","0","100","0","0","0"]
["07","CHIAPAS","EL NARANJO","07KPR0321J","MATUTINO","SOLOSUCHIAPA","EL NARANJO","Comunitaria","Muy Alta y Alta","1","1","1","100","100","SI","SI","Comunitarias en el país en localidades de muy alta y alta marginación","1","0","0","0","100","0","0","0","1","0","0","0","100","0","0","0"]
["07","CHIAPAS","RIO BLANCO","07KPR0339I","MATUTINO","TECPATAN","RIO BLANCO","Comunitaria","Muy Alta y Alta","1","1","1","100","100","SI","SI","Comunitarias en el país en localidades de muy alta y alta marginación","1","0","0","0","100","0","0","0","1","0","0","0","100","0","0","0"]
["07","CHIAPAS","CHICULMATIC","07KPR0376M","MATUTINO","LA TRINITARIA","TZICUMALTIC","Comunitaria","Muy Alta y Alta","1","1","1","100","100","SI","SI","Comunitarias en el país en localidades de muy alta y alta marginación","1","0","0","0","100","0","0","0","1","0","0","0","100","0","0","0"]
["07","CHIAPAS","LA LAGUNA","07KPR0515X","MATUTINO","BELLA VISTA","LA LAGUNA","Comunitaria","Muy Alta y Alta","1","1","1","100","100","SI","SI","Comunitarias en el país en localidades de muy alta y alta marginación","1","0","0","0","100","0","0","0","1","0","0","0","100","0","0","0"]
["07","CHIAPAS","BRASIL","07KPR0549N","MATUTINO","LA INDEPENDENCIA","BRASIL","Comunitaria","Muy Alta y Alta","1","1","1","100","100","SI","SI","Comunitarias en el país en localidades de muy alta y alta marginación","1","0","0","0","100","0","0","0","1","0","0","0","100","0","0","0"]
["07","CHIAPAS","SANTA ROSA","07KPR0550C","MATUTINO","LA INDEPENDENCIA","SANTA ROSA","Comunitaria","Muy Alta y Alta","1","1","1","100","100","SI","SI","Comunitarias en el país en localidades de muy alta y alta marginación","1","0","0","0","100","0","0","0","1","0","0","0","100","0","0","0"]
["07","CHIAPAS","LA NUEVA ESPERANZA","07KPR0552A","MATUTINO","LA INDEPENDENCIA","LA NUEVA ESPERANZA","Comunitaria","Muy Alta y Alta","1","1","1","100","100","SI","SI","Comunitarias en el país en localidades de muy alta y alta marginación","1","0","0","0","100","0","0","0","1","0","0","0","100","0","0","0"]
["07","CHIAPAS","LIBERTAD SEGUNDA SECCION","07KPR0557W","MATUTINO","JUAREZ","LIBERTAD 2DA. SECCION","Comunitaria","Muy Alta y Alta","1","1","1","100","100","SI","SI","Comunitarias en el país en localidades de muy alta y alta marginación","1","0","0","0","100","0","0","0","1","0","0","0","100","0","0","0"]
["07","CHIAPAS","LAS PALMAS","07KPR0725B","MATUTINO","LA GRANDEZA","LAS PALMAS","Comunitaria","Muy Alta y Alta","1","1","1","100","100","SI","SI","Comunitarias en el país en localidades de muy alta y alta marginación","1","0","0","0","100","0","0","0","1","0","0","0","100","0","0","0"]
["07","CHIAPAS","MUNDO NUEVO ABAJO","07KPR0727Z","MATUTINO","JUAREZ","MUNDO NUEVO ABAJO","Comunitaria","Muy Alta y Alta","1","1","1","100","100","SI","SI","Comunitarias en el país en localidades de muy alta y alta marginación","1","0","0","0","100","0","0","0","1","0","0","0","100","0","0","0"]
["07","CHIAPAS","MUSPAC","07KPR0731M","MATUTINO","OSTUACAN","MUSPAC","Comunitaria","Muy Alta y Alta","1","1","1","100","100","SI","SI","Comunitarias en el país en localidades de muy alta y alta marginación","1","0","0","0","100","0","0","0","1","0","0","0","100","0","0","0"]
["07","CHIAPAS","BUENOS AIRES","07KPR0781U","MATUTINO","FRONTERA COMALAPA","BUENOS AIRES","Comunitaria","Muy Alta y Alta","1","1","1","100","100","SI","SI","Comunitarias en el país en localidades de muy alta y alta marginación","1","0","0","0","100","0","0","0","1","0","0","0","100","0","0","0"]
["07","CHIAPAS","SAN ANTONIO PORVENIR","07KPR0782T","MATUTINO","LA INDEPENDENCIA","SAN ANTONIO PORVENIR","Comunitaria","Muy Alta y Alta","1","1","1","100","100","SI","SI","Comunitarias en el país en localidades de muy alta y alta marginación","1","0","0","0","100","0","0","0","1","0","0","0","100","0","0","0"]
["07","CHIAPAS","MARIANO MATAMOROS 1RA. SECCION","07KPR0903O","MATUTINO","PICHUCALCO","MARIANO MATAMOROS 1RA. SECCION A","Comunitaria","Muy Alta y Alta","1","1","1","100","100","SI","SI","Comunitarias en el país en localidades de muy alta y alta marginación","1","0","0","0","100","0","0","0","1","0","0","0","100","0","0","0"]
["07","CHIAPAS","PASO LIMON","07KPR1261S","MATUTINO","BELLA VISTA","PASO LIMON","Comunitaria","Muy Alta y Alta","1","1","1","100","100","SI","SI","Comunitarias en el país en localidades de muy alta y alta marginación","1","0","0","0","100","0","0","0","1","0","0","0","100","0","0","0"]
["07","CHIAPAS","LA REALIDAD","07KPR1298F","MATUTINO","IXTACOMITAN","LA REALIDAD","Comunitaria","Muy Alta y Alta","1","1","1","100","100","SI","SI","Comunitarias en el país en localidades de muy alta y alta marginación","1","0","0","0","100","0","0","0","1","0","0","0","100","0","0","0"]
["07","CHIAPAS","SAN JORGE","07KPR1328J","MATUTINO","OCOZOCOAUTLA DE ESPINOSA","SAN JORGE (EL DIECIOCHO)","Comunitaria","Muy Alta y Alta","1","1","1","100","100","SI","SI","Comunitarias en el país en localidades de muy alta y alta marginación","1","0","0","0","100","0","0","0","1","0","0","0","100","0","0","0"]
["07","CHIAPAS","RINCON ESTRELLA","07KPR1395H","MATUTINO","SILTEPEC","RINCON ESTRELLA","Comunitaria","Muy Alta y Alta","1","1","1","100","100","SI","SI","Comunitarias en el país en localidades de muy alta y alta marginación","1","0","0","0","100","0","0","0","1","0","0","0","100","0","0","0"]
["07","CHIAPAS","PRIMARIA CONAFE","07KPR1446Y","MATUTINO","COMITAN DE DOMINGUEZ","SAN ANTONIO LAS MINAS","Comunitaria","Muy Alta y Alta","1","1","1","100","100","SI","SI","Comunitarias en el país en localidades de muy alta y alta marginación","1","0","0","0","100","0","0","0","1","0","0","0","100","0","0","0"]
["07","CHIAPAS","LAS MANZANAS","07KPR1458C","MATUTINO","TONALA","LAS MANZANAS","Comunitaria","Muy Alta y Alta","1","1","1","100","100","SI","SI","Comunitarias en el país en localidades de muy alta y alta marginación","1","0","0","0","100","0","0","0","1","0","0","0","100","0","0","0"]
["07","CHIAPAS","JUAN DEL GRIJALVA (PLAYA LARGA 2DA. SECCION)","07KPR1478Q","MATUTINO","OSTUACAN","JUAN DEL GRIJALVA","Comunitaria","Muy Alta y Alta","1","1","1","100","100","SI","SI","Comunitarias en el país en localidades de muy alta y alta marginación","1","0","0","0","100","0","0","0","1","0","0","0","100","0","0","0"]
["07","CHIAPAS","SANTO DOMINGO","07KPR1718Z","MATUTINO","FRANCISCO LEON","SANTO DOMINGO","Comunitaria","Muy Alta y Alta","1","1","1","100","100","SI","SI","Comunitarias en el país en localidades de muy alta y alta marginación","1","0","0","0","100","0","0","0","1","0","0","0","100","0","0","0"]
["07","CHIAPAS","VEINTICUATRO DE FEBRERO","07KPR1891G","MATUTINO","MOTOZINTLA","VEINTICUATRO DE FEBRERO","Comunitaria","Muy Alta y Alta","1","1","1","100","100","SI","SI","Comunitarias en el país en localidades de muy alta y alta marginación","1","0","0","0","100","0","0","0","1","0","0","0","100","0","0","0"]
["07","CHIAPAS","CUATRO CAMINOS SEGUNDA SECCION","07KPR1918X","MATUTINO","MAZATAN","CUATRO CAMINOS","Comunitaria","Muy Alta y Alta","1","1","1","100","100","SI","SI","Comunitarias en el país en localidades de muy alta y alta marginación","1","0","0","0","100","0","0","0","1","0","0","0","100","0","0","0"]
["07","CHIAPAS","PROGRESO AZAPAC","07KPR1927E","MATUTINO","TECPATAN","LOS LIRIOS","Comunitaria","Muy Alta y Alta","1","1","1","100","100","SI","SI","Comunitarias en el país en localidades de muy alta y alta marginación","1","0","0","0","100","0","0","0","1","0","0","0","100","0","0","0"]
["07","CHIAPAS","SANTA LUCIA","07KPR1939J","MATUTINO","COMITAN DE DOMINGUEZ","SANTA LUCIA","Comunitaria","Muy Alta y Alta","1","1","1","100","100","SI","SI","Comunitarias en el país en localidades de muy alta y alta marginación","1","0","0","0","100","0","0","0","1","0","0","0","100","0","0","0"]
["07","CHIAPAS","SAN JOSE","07KPR2001M","MATUTINO","SAN FERNANDO","SAN JOSE","Comunitaria","Muy Alta y Alta","1","1","1","100","100","SI","SI","Comunitarias en el país en localidades de muy alta y alta marginación","1","0","0","0","100","0","0","0","1","0","0","0","100","0","0","0"]
["07","CHIAPAS","JICALANGO","07KPR2120Z","MATUTINO","CATAZAJA","JICALANGO","Comunitaria","Muy Alta y Alta","1","1","1","100","100","SI","SI","Comunitarias en el país en localidades de muy alta y alta marginación","1","0","0","0","100","0","0","0","1","0","0","0","100","0","0","0"]
["07","CHIAPAS","LOS COCOS","07KPR2168T","MATUTINO","OCOZOCOAUTLA DE ESPINOSA","LOS COCOS","Comunitaria","Muy Alta y Alta","1","1","1","100","100","SI","SI","Comunitarias en el país en localidades de muy alta y alta marginación","1","0","0","0","100","0","0","0","1","0","0","0","100","0","0","0"]
["07","CHIAPAS","JANA 1RA. SECCION","07KPR2212Q","MATUTINO","IXTAPANGAJOYA","JANA 1RA. SECCION","Comunitaria","Muy Alta y Alta","1","1","1","100","100","SI","SI","Comunitarias en el país en localidades de muy alta y alta marginación","1","0","0","0","100","0","0","0","1","0","0","0","100","0","0","0"]
["07","CHIAPAS","EL SAUZ","07KPR2221Y","MATUTINO","PUEBLO NUEVO SOLISTAHUACAN","EL SAUZ","Comunitaria","Muy Alta y Alta","1","1","1","100","100","SI","SI","Comunitarias en el país en localidades de muy alta y alta marginación","1","0","0","0","100","0","0","0","1","0","0","0","100","0","0","0"]
["07","CHIAPAS","LA CRUZ","07KPR2227S","MATUTINO","ESCUINTLA","LA CRUZ","Comunitaria","Muy Alta y Alta","1","1","1","100","100","SI","SI","Comunitarias en el país en localidades de muy alta y alta marginación","1","0","0","0","100","0","0","0","1","0","0","0","100","0","0","0"]
["07","CHIAPAS","VILLAHERMOSA DOS","07KPR2235A","MATUTINO","MOTOZINTLA","VILLAHERMOSA DOS","Comunitaria","Muy Alta y Alta","1","1","1","100","100","SI","SI","Comunitarias en el país en localidades de muy alta y alta marginación","1","0","0","0","100","0","0","0","1","0","0","0","100","0","0","0"]
["07","CHIAPAS","EL PATASTE","07KPR2246G","MATUTINO","ACAPETAHUA","EL PATASTE","Comunitaria","Muy Alta y Alta","1","1","1","100","100","SI","SI","Comunitarias en el país en localidades de muy alta y alta marginación","1","0","0","0","100","0","0","0","1","0","0","0","100","0","0","0"]
["07","CHIAPAS","BUENAVISTA","07KPR2285I","MATUTINO","LA CONCORDIA","BUENAVISTA","Comunitaria","Muy Alta y Alta","1","1","1","100","100","SI","SI","Comunitarias en el país en localidades de muy alta y alta marginación","1","0","0","0","100","0","0","0","1","0","0","0","100","0","0","0"]
["07","CHIAPAS","EL ZAPOTE","07KPR2319I","MATUTINO","OCOZOCOAUTLA DE ESPINOSA","EL ZAPOTE","Comunitaria","Muy Alta y Alta","1","1","1","100","100","SI","SI","Comunitarias en el país en localidades de muy alta y alta marginación","1","0","0","0","100","0","0","0","1","0","0","0","100","0","0","0"]
["07","CHIAPAS","BENITO JUAREZ","07KPR2335Z","MATUTINO","SILTEPEC","BENITO JUAREZ","Comunitaria","Muy Alta y Alta","1","1","1","100","100","SI","SI","Comunitarias en el país en localidades de muy alta y alta marginación","1","0","0","0","100","0","0","0","1","0","0","0","100","0","0","0"]
["07","CHIAPAS","EL RECUERDO DOS","07KPR2373C","MATUTINO","VILLAFLORES","EL RECUERDO DOS","Comunitaria","Muy Alta y Alta","1","1","1","100","100","SI","SI","Comunitarias en el país en localidades de muy alta y alta marginación","1","0","0","0","100","0","0","0","1","0","0","0","100","0","0","0"]
["07","CHIAPAS","LA GLORIA","07KPR2438W","MATUTINO","LAS MARGARITAS","LA GLORIA","Comunitaria","Muy Alta y Alta","1","1","1","100","100","SI","SI","Comunitarias en el país en localidades de muy alta y alta marginación","1","0","0","0","100","0","0","0","1","0","0","0","100","0","0","0"]
["07","CHIAPAS","LAGUNA FLORECILLA","07KPR2462W","MATUTINO","COMITAN DE DOMINGUEZ","LAGUNA FLORECILLA","Comunitaria","Muy Alta y Alta","1","1","1","100","100","SI","SI","Comunitarias en el país en localidades de muy alta y alta marginación","1","0","0","0","100","0","0","0","1","0","0","0","100","0","0","0"]
["07","CHIAPAS","TIERRA BLANCA BUENA VISTA","07KPR2468Q","MATUTINO","SOCOLTENANGO","TIERRA BLANCA","Comunitaria","Muy Alta y Alta","1","1","1","100","100","SI","SI","Comunitarias en el país en localidades de muy alta y alta marginación","1","0","0","0","100","0","0","0","1","0","0","0","100","0","0","0"]
["07","CHIAPAS","EL VERGEL LA RINCONADA","07KPR2491R","MATUTINO","BELLA VISTA","EL VERGEL LA RINCONADA","Comunitaria","Muy Alta y Alta","1","1","1","100","100","SI","SI","Comunitarias en el país en localidades de muy alta y alta marginación","1","0","0","0","100","0","0","0","1","0","0","0","100","0","0","0"]
["07","CHIAPAS","CHASCHAHUAL","07KPR2496M","MATUTINO","CHICOMUSELO","CHASCHAHUAL","Comunitaria","Muy Alta y Alta","1","1","1","100","100","SI","SI","Comunitarias en el país en localidades de muy alta y alta marginación","1","0","0","0","100","0","0","0","1","0","0","0","100","0","0","0"]
["07","CHIAPAS","SAN JOSE SIVALCHEM 2DA. SECCION","07KPR2532A","MATUTINO","SALTO DE AGUA","SAN JOSE SIVALCHEN","Comunitaria","Muy Alta y Alta","1","1","1","100","100","SI","SI","Comunitarias en el país en localidades de muy alta y alta marginación","1","0","0","0","100","0","0","0","1","0","0","0","100","0","0","0"]
["07","CHIAPAS","LA NUEVA UNION","07KPR2556K","MATUTINO","PANTEPEC","LA NUEVA UNION","Comunitaria","Muy Alta y Alta","1","1","1","100","100","SI","SI","Comunitarias en el país en localidades de muy alta y alta marginación","1","0","0","0","100","0","0","0","1","0","0","0","100","0","0","0"]
["07","CHIAPAS","LA FLORIDA","07KPR2557J","MATUTINO","PICHUCALCO","PLATANAR ARRIBA 1RA. SECCION B (LA FLORIDA)","Comunitaria","Muy Alta y Alta","1","1","1","100","100","SI","SI","Comunitarias en el país en localidades de muy alta y alta marginación","1","0","0","0","100","0","0","0","1","0","0","0","100","0","0","0"]
["07","CHIAPAS","PRIMARIA CONAFE","07KPR2571C","MATUTINO","TAPILULA","EL CHORRO","Comunitaria","Muy Alta y Alta","1","1","1","100","100","SI","SI","Comunitarias en el país en localidades de muy alta y alta marginación","1","0","0","0","100","0","0","0","1","0","0","0","100","0","0","0"]
["07","CHIAPAS","EL LIMON (EL JOBO)","07KPR2589B","MATUTINO","BERRIOZABAL","EL LIMON","Comunitaria","Muy Alta y Alta","1","1","1","100","100","SI","SI","Comunitarias en el país en localidades de muy alta y alta marginación","1","0","0","0","100","0","0","0","1","0","0","0","100","0","0","0"]
["07","CHIAPAS","EL AMPARO OJO DE AGUA","07KPR2650P","MATUTINO","LA TRINITARIA","EL AMPARO OJO DE AGUA","Comunitaria","Muy Alta y Alta","1","1","1","100","100","SI","SI","Comunitarias en el país en localidades de muy alta y alta marginación","1","0","0","0","100","0","0","0","1","0","0","0","100","0","0","0"]
["07","CHIAPAS","VIVA CHIAPAS","07KPR2681I","MATUTINO","VILLAFLORES","VIVA CHIAPAS","Comunitaria","Muy Alta y Alta","1","1","1","100","100","SI","SI","Comunitarias en el país en localidades de muy alta y alta marginación","1","0","0","0","100","0","0","0","1","0","0","0","100","0","0","0"]
["07","CHIAPAS","PIEDRAS NEGRAS (MATASANO)","07KPR2693N","MATUTINO","VILLA CORZO","PIEDRAS NEGRAS (MATASANO)","Comunitaria","Muy Alta y Alta","1","1","1","100","100","SI","SI","Comunitarias en el país en localidades de muy alta y alta marginación","1","0","0","0","100","0","0","0","1","0","0","0","100","0","0","0"]
["07","CHIAPAS","PALMAR CHIQUITO","07KPR2731Z","MATUTINO","BEJUCAL DE OCAMPO","PALMAR CHIQUITO","Comunitaria","Muy Alta y Alta","1","1","1","100","100","SI","SI","Comunitarias en el país en localidades de muy alta y alta marginación","1","0","0","0","100","0","0","0","1","0","0","0","100","0","0","0"]
["07","CHIAPAS","EL ARROYON","07KPR2771A","MATUTINO","LA CONCORDIA","EL ARROYON","Comunitaria","Muy Alta y Alta","1","1","1","100","100","SI","SI","Comunitarias en el país en localidades de muy alta y alta marginación","1","0","0","0","100","0","0","0","1","0","0","0","100","0","0","0"]
["07","CHIAPAS","EL REPARO","07KPR2787B","MATUTINO","CHICOMUSELO","EL REPARO","Comunitaria","Muy Alta y Alta","1","1","1","100","100","SI","SI","Comunitarias en el país en localidades de muy alta y alta marginación","1","0","0","0","100","0","0","0","1","0","0","0","100","0","0","0"]
["07","CHIAPAS","LUCINDA","07KPR2853K","MATUTINO","PALENQUE","SAN FRANCISCO LAS RUINAS","Comunitaria","Muy Alta y Alta","1","1","1","100","100","SI","SI","Comunitarias en el país en localidades de muy alta y alta marginación","1","0","0","0","100","0","0","0","1","0","0","0","100","0","0","0"]
["07","CHIAPAS","VICTORIA CAMPESINA I","07KPR2861T","MATUTINO","PALENQUE","VICTORIA CAMPESINA I","Comunitaria","Muy Alta y Alta","1","1","1","100","100","SI","SI","Comunitarias en el país en localidades de muy alta y alta marginación","1","0","0","0","100","0","0","0","1","0","0","0","100","0","0","0"]
["07","CHIAPAS","SACRAMENTO","07KPR2891N","MATUTINO","JITOTOL","SACRAMENTO","Comunitaria","Muy Alta y Alta","1","1","1","100","100","SI","SI","Comunitarias en el país en localidades de muy alta y alta marginación","1","0","0","0","100","0","0","0","1","0","0","0","100","0","0","0"]
["07","CHIAPAS","NUEVA REFORMA","07KPR2925N","MATUTINO","SILTEPEC","NUEVA REFORMA","Comunitaria","Muy Alta y Alta","1","1","1","100","100","SI","SI","Comunitarias en el país en localidades de muy alta y alta marginación","1","0","0","0","100","0","0","0","1","0","0","0","100","0","0","0"]
["07","CHIAPAS","LA BODEGA","07KPR2957F","MATUTINO","TOTOLAPA","LA BODEGA","Comunitaria","Muy Alta y Alta","1","1","1","100","100","SI","SI","Comunitarias en el país en localidades de muy alta y alta marginación","1","0","0","0","100","0","0","0","1","0","0","0","100","0","0","0"]
["07","CHIAPAS","LAS MARAVILLAS","07KPR3006O","MATUTINO","FRONTERA COMALAPA","LAS MARAVILLAS","Comunitaria","Muy Alta y Alta","1","1","1","100","100","SI","SI","Comunitarias en el país en localidades de muy alta y alta marginación","1","0","0","0","100","0","0","0","1","0","0","0","100","0","0","0"]
["07","CHIAPAS","LINDA VISTA","07KPR3011Z","MATUTINO","LAS MARGARITAS","LINDAVISTA","Comunitaria","Muy Alta y Alta","1","1","1","100","100","SI","SI","Comunitarias en el país en localidades de muy alta y alta marginación","1","0","0","0","100","0","0","0","1","0","0","0","100","0","0","0"]
["07","CHIAPAS","ALVARO OBREGON","07KPR3059T","MATUTINO","LA TRINITARIA","ALVARO OBREGON","Comunitaria","Muy Alta y Alta","1","1","1","100","100","SI","SI","Comunitarias en el país en localidades de muy alta y alta marginación","1","0","0","0","100","0","0","0","1","0","0","0","100","0","0","0"]
["07","CHIAPAS","LAS NUBES","07KPR3079G","MATUTINO","ESCUINTLA","LAS NUBES","Comunitaria","Muy Alta y Alta","1","1","1","100","100","SI","SI","Comunitarias en el país en localidades de muy alta y alta marginación","1","0","0","0","100","0","0","0","1","0","0","0","100","0","0","0"]
["07","CHIAPAS","LA GUADALUPE","07KPR3132L","MATUTINO","PIJIJIAPAN","LAS GUADALUPES","Comunitaria","Muy Alta y Alta","1","1","1","100","100","SI","SI","Comunitarias en el país en localidades de muy alta y alta marginación","1","0","0","0","100","0","0","0","1","0","0","0","100","0","0","0"]
["07","CHIAPAS","SAN JOSE","07KPR3218R","MATUTINO","PANTEPEC","EL AVELLANO","Comunitaria","Muy Alta y Alta","1","1","1","100","100","SI","SI","Comunitarias en el país en localidades de muy alta y alta marginación","1","0","0","0","100","0","0","0","1","0","0","0","100","0","0","0"]
["07","CHIAPAS","LOS LAURELES","07KPR3262E","MATUTINO","CHICOMUSELO","LOS LAURELES","Comunitaria","Muy Alta y Alta","1","1","1","100","100","SI","SI","Comunitarias en el país en localidades de muy alta y alta marginación","1","0","0","0","100","0","0","0","1","0","0","0","100","0","0","0"]
["07","CHIAPAS","CATEDRAL 2DA. SECCION","07KPR3298T","MATUTINO","OSTUACAN","CATEDRAL 2DA. SECCION","Comunitaria","Muy Alta y Alta","1","1","1","100","100","SI","SI","Comunitarias en el país en localidades de muy alta y alta marginación","1","0","0","0","100","0","0","0","1","0","0","0","100","0","0","0"]
["07","CHIAPAS","VADO REAL","07KPR3381S","MATUTINO","AMATENANGO DE LA FRONTERA","VADO REAL","Comunitaria","Muy Alta y Alta","1","1","1","100","100","SI","SI","Comunitarias en el país en localidades de muy alta y alta marginación","1","0","0","0","100","0","0","0","1","0","0","0","100","0","0","0"]
["07","CHIAPAS","OJO DE AGUA EL SABINO","07KPR3382R","MATUTINO","AMATENANGO DE LA FRONTERA","OJO DE AGUA EL SABINO","Comunitaria","Muy Alta y Alta","1","1","1","100","100","SI","SI","Comunitarias en el país en localidades de muy alta y alta marginación","1","0","0","0","100","0","0","0","1","0","0","0","100","0","0","0"]
["07","CHIAPAS","ALPES (EL TESORO)","07KPR3385O","MATUTINO","MAPASTEPEC","ALPES (EL TESORO)","Comunitaria","Muy Alta y Alta","1","1","1","100","100","SI","SI","Comunitarias en el país en localidades de muy alta y alta marginación","1","0","0","0","100","0","0","0","1","0","0","0","100","0","0","0"]
["07","CHIAPAS","EL TRIUNFO","07KPR3460E","MATUTINO","OSTUACAN","EL TRIUNFO","Comunitaria","Muy Alta y Alta","1","1","1","100","100","SI","SI","Comunitarias en el país en localidades de muy alta y alta marginación","1","0","0","0","100","0","0","0","1","0","0","0","100","0","0","0"]
["07","CHIAPAS","SAL SI PUEDES","07KPR3475G","MATUTINO","TECPATAN","SAL SI PUEDES","Comunitaria","Muy Alta y Alta","1","1","1","100","100","SI","SI","Comunitarias en el país en localidades de muy alta y alta marginación","1","0","0","0","100","0","0","0","1","0","0","0","100","0","0","0"]
["07","CHIAPAS","NUEVA BETANIA","07KPR3510W","MATUTINO","OCOZOCOAUTLA DE ESPINOSA","NUEVA BETANIA (NUEVO SIVACAL)","Comunitaria","Muy Alta y Alta","1","1","1","100","100","SI","SI","Comunitarias en el país en localidades de muy alta y alta marginación","1","0","0","0","100","0","0","0","1","0","0","0","100","0","0","0"]
["07","CHIAPAS","CUMBRE DE MANZANILLO","07KPR3515R","MATUTINO","RAYON","CUMBRE DE MANZANILLO","Comunitaria","Muy Alta y Alta","1","1","1","100","100","SI","SI","Comunitarias en el país en localidades de muy alta y alta marginación","1","0","0","0","100","0","0","0","1","0","0","0","100","0","0","0"]
["07","CHIAPAS","EL OTATE","07KPR3519N","MATUTINO","TONALA","EL OTATE","Comunitaria","Muy Alta y Alta","1","1","1","100","100","SI","SI","Comunitarias en el país en localidades de muy alta y alta marginación","1","0","0","0","100","0","0","0","1","0","0","0","100","0","0","0"]
["07","CHIAPAS","SIMBAK II","07KPR3532H","MATUTINO","TECPATAN","SIMBAK","Comunitaria","Muy Alta y Alta","1","1","1","100","100","SI","SI","Comunitarias en el país en localidades de muy alta y alta marginación","1","0","0","0","100","0","0","0","1","0","0","0","100","0","0","0"]
["07","CHIAPAS","EL HIGUITO LA CASCADA","07KPR3562B","MATUTINO","BERRIOZABAL","EL HIGUITO","Comunitaria","Muy Alta y Alta","1","1","1","100","100","SI","SI","Comunitarias en el país en localidades de muy alta y alta marginación","1","0","0","0","100","0","0","0","1","0","0","0","100","0","0","0"]
["07","CHIAPAS","AZUFRE SEGUNDA SECCION (EL CARMITO)","07KPR3570K","MATUTINO","PICHUCALCO","EL AZUFRE 2DA. SECCION","Comunitaria","Muy Alta y Alta","1","1","1","100","100","SI","SI","Comunitarias en el país en localidades de muy alta y alta marginación","1","0","0","0","100","0","0","0","1","0","0","0","100","0","0","0"]
["07","CHIAPAS","JITONTIC BAWITZ","07KPR3599P","MATUTINO","CHILON","JITONTIC BAWITZ","Comunitaria","Muy Alta y Alta","1","1","1","100","100","SI","SI","Comunitarias en el país en localidades de muy alta y alta marginación","1","0","0","0","100","0","0","0","1","0","0","0","100","0","0","0"]
["07","CHIAPAS","SANTA CECILIA","07KPR3616P","MATUTINO","LAS MARGARITAS","SANTA CECILIA","Comunitaria","Muy Alta y Alta","1","1","1","100","100","SI","SI","Comunitarias en el país en localidades de muy alta y alta marginación","1","0","0","0","100","0","0","0","1","0","0","0","100","0","0","0"]
["07","CHIAPAS","SANTA TERESA TERCERA SECCION","07KPR3628U","MATUTINO","JUAREZ","SANTA TERESA 3RA. SECCION","Comunitaria","Muy Alta y Alta","1","1","1","100","100","SI","SI","Comunitarias en el país en localidades de muy alta y alta marginación","1","0","0","0","100","0","0","0","1","0","0","0","100","0","0","0"]
["07","CHIAPAS","NUEVO EMILIANO ZAPATA","07KPR3656Q","MATUTINO","SALTO DE AGUA","NUEVO EMILIANO ZAPATA","Comunitaria","Muy Alta y Alta","1","1","1","100","100","SI","SI","Comunitarias en el país en localidades de muy alta y alta marginación","1","0","0","0","100","0","0","0","1","0","0","0","100","0","0","0"]
["07","CHIAPAS","BENITO JUAREZ (NUEVO MILENIO)","07KPR3659N","MATUTINO","TONALA","BENITO JUAREZ (NUEVO MILENIO)","Comunitaria","Muy Alta y Alta","1","1","1","100","100","SI","SI","Comunitarias en el país en localidades de muy alta y alta marginación","1","0","0","0","100","0","0","0","1","0","0","0","100","0","0","0"]
["07","CHIAPAS","TOQUIN","07KPR3667W","MATUTINO","MAZAPA DE MADERO","TOQUIN","Comunitaria","Muy Alta y Alta","1","1","1","100","100","SI","SI","Comunitarias en el país en localidades de muy alta y alta marginación","1","0","0","0","100","0","0","0","1","0","0","0","100","0","0","0"]
["07","CHIAPAS","LA GRANJA","07KPR3677C","MATUTINO","SALTO DE AGUA","LA GRANJA","Comunitaria","Muy Alta y Alta","1","1","1","100","100","SI","SI","Comunitarias en el país en localidades de muy alta y alta marginación","1","0","0","0","100","0","0","0","1","0","0","0","100","0","0","0"]
["07","CHIAPAS","YALTACHE BUENAVISTA","07KPR3687J","MATUTINO","COMITAN DE DOMINGUEZ","YALTACHE BUENAVISTA","Comunitaria","Muy Alta y Alta","1","1","1","100","100","SI","SI","Comunitarias en el país en localidades de muy alta y alta marginación","1","0","0","0","100","0","0","0","1","0","0","0","100","0","0","0"]
["07","CHIAPAS","CRESTON DEL GALLO","07KPR3696R","MATUTINO","BEJUCAL DE OCAMPO","CRESTON DEL GALLO","Comunitaria","Muy Alta y Alta","1","1","1","100","100","SI","SI","Comunitarias en el país en localidades de muy alta y alta marginación","1","0","0","0","100","0","0","0","1","0","0","0","100","0","0","0"]
["07","CHIAPAS","NUEVO ACAPULCO","07KPR3702L","MATUTINO","AMATAN","NUEVO ACAPULCO","Comunitaria","Muy Alta y Alta","1","1","1","100","100","SI","SI","Comunitarias en el país en localidades de muy alta y alta marginación","1","0","0","0","100","0","0","0","1","0","0","0","100","0","0","0"]
["07","CHIAPAS","SAN RAFAEL EL ARCO","07KPR3714Q","MATUTINO","LA TRINITARIA","SAN RAFAEL EL ARCO","Comunitaria","Muy Alta y Alta","1","1","1","100","100","SI","SI","Comunitarias en el país en localidades de muy alta y alta marginación","1","0","0","0","100","0","0","0","1","0","0","0","100","0","0","0"]
["07","CHIAPAS","6 DE ABRIL","07KPR3732F","MATUTINO","HUEHUETAN","6 DE ABRIL","Comunitaria","Muy Alta y Alta","1","1","1","100","100","SI","SI","Comunitarias en el país en localidades de muy alta y alta marginación","1","0","0","0","100","0","0","0","1","0","0","0","100","0","0","0"]
["07","CHIAPAS","LOS CERRILLOS","07KPR3769T","MATUTINO","PALENQUE","LOS CERRILLOS","Comunitaria","Muy Alta y Alta","1","1","1","100","100","SI","SI","Comunitarias en el país en localidades de muy alta y alta marginación","1","0","0","0","100","0","0","0","1","0","0","0","100","0","0","0"]
["07","CHIAPAS","EL CARRIZAL","07KPR3803J","MATUTINO","OCOZOCOAUTLA DE ESPINOSA","EL CARRIZAL","Comunitaria","Muy Alta y Alta","1","1","1","100","100","SI","SI","Comunitarias en el país en localidades de muy alta y alta marginación","1","0","0","0","100","0","0","0","1","0","0","0","100","0","0","0"]
["07","CHIAPAS","EL RESCATE","07KPR3808E","MATUTINO","VILLA CORZO","EL RESCATE","Comunitaria","Muy Alta y Alta","1","1","1","100","100","SI","SI","Comunitarias en el país en localidades de muy alta y alta marginación","1","0","0","0","100","0","0","0","1","0","0","0","100","0","0","0"]
["07","CHIAPAS","NUEVA LOMA LINDA","07KPR3827T","MATUTINO","LA TRINITARIA","NUEVA LOMA LINDA","Comunitaria","Muy Alta y Alta","1","1","1","100","100","SI","SI","Comunitarias en el país en localidades de muy alta y alta marginación","1","0","0","0","100","0","0","0","1","0","0","0","100","0","0","0"]
["07","CHIAPAS","SAN LORENZO","07KPR3861Z","MATUTINO","VILLAFLORES","CHAMPERICO","Comunitaria","Muy Alta y Alta","1","1","1","100","100","SI","SI","Comunitarias en el país en localidades de muy alta y alta marginación","1","0","0","0","100","0","0","0","1","0","0","0","100","0","0","0"]
["07","CHIAPAS","SAN SEBASTIAN","07KPR3870H","MATUTINO","IXTACOMITAN","SAN SEBASTIAN","Comunitaria","Muy Alta y Alta","1","1","1","100","100","SI","SI","Comunitarias en el país en localidades de muy alta y alta marginación","1","0","0","0","100","0","0","0","1","0","0","0","100","0","0","0"]
["07","CHIAPAS","LOMA BONITA","07KPR4085Y","MATUTINO","CHIAPA DE CORZO","LOMA BONITA","Comunitaria","Muy Alta y Alta","1","1","1","100","100","SI","SI","Comunitarias en el país en localidades de muy alta y alta marginación","1","0","0","0","100","0","0","0","1","0","0","0","100","0","0","0"]
["07","CHIAPAS","LA ESPERANZA","07KPR4087W","MATUTINO","SAN FERNANDO","LA ESPERANZA","Comunitaria","Muy Alta y Alta","1","1","1","100","100","SI","SI","Comunitarias en el país en localidades de muy alta y alta marginación","1","0","0","0","100","0","0","0","1","0","0","0","100","0","0","0"]
["07","CHIAPAS","SANTO TOMAS","07KPR4095E","MATUTINO","LA INDEPENDENCIA","SANTO DOMINGO","Comunitaria","Muy Alta y Alta","1","1","1","100","100","SI","SI","Comunitarias en el país en localidades de muy alta y alta marginación","1","0","0","0","100","0","0","0","1","0","0","0","100","0","0","0"]
["07","CHIAPAS","EL JARDIN 2","07KPR4137N","MATUTINO","VILLAFLORES","EL JARDIN","Comunitaria","Muy Alta y Alta","1","1","1","100","100","SI","SI","Comunitarias en el país en localidades de muy alta y alta marginación","1","0","0","0","100","0","0","0","1","0","0","0","100","0","0","0"]
["07","CHIAPAS","LA ESPERANZA DE LOS POBRES","07KPR4176P","MATUTINO","LAS MARGARITAS","LA ESPERANZA DE LOS POBRES","Comunitaria","Muy Alta y Alta","1","1","1","100","100","SI","SI","Comunitarias en el país en localidades de muy alta y alta marginación","1","0","0","0","100","0","0","0","1","0","0","0","100","0","0","0"]
["07","CHIAPAS","NUEVO JERUSALEN","07KPR4178N","MATUTINO","LAS MARGARITAS","NUEVO JERUSALEN","Comunitaria","Muy Alta y Alta","1","1","1","100","100","SI","SI","Comunitarias en el país en localidades de muy alta y alta marginación","1","0","0","0","100","0","0","0","1","0","0","0","100","0","0","0"]
["07","CHIAPAS","LA CURVITA","07KPR4181A","MATUTINO","FRONTERA COMALAPA","VILLA NUEVA (LA CURVITA)","Comunitaria","Muy Alta y Alta","1","1","1","100","100","SI","SI","Comunitarias en el país en localidades de muy alta y alta marginación","1","0","0","0","100","0","0","0","1","0","0","0","100","0","0","0"]
["07","CHIAPAS","SAN JOSE","07KPR4196C","MATUTINO","SUNUAPA","EL CUCAYO 1RA. SECCION","Comunitaria","Muy Alta y Alta","1","1","1","100","100","SI","SI","Comunitarias en el país en localidades de muy alta y alta marginación","1","0","0","0","100","0","0","0","1","0","0","0","100","0","0","0"]
["07","CHIAPAS","VILLA DE SANTA FE","07KPR4219X","MATUTINO","SOLOSUCHIAPA","VILLA SANTA FE","Comunitaria","Muy Alta y Alta","1","1","1","100","100","SI","SI","Comunitarias en el país en localidades de muy alta y alta marginación","1","0","0","0","100","0","0","0","1","0","0","0","100","0","0","0"]
["07","CHIAPAS","RIZO DE ORO","07KPR4410D","MATUTINO","OCOZOCOAUTLA DE ESPINOSA","RIZO DE ORO","Comunitaria","Muy Alta y Alta","1","1","1","100","100","SI","SI","Comunitarias en el país en localidades de muy alta y alta marginación","1","0","0","0","100","0","0","0","1","0","0","0","100","0","0","0"]
["07","CHIAPAS","RANCHO LA CEIBA","07KPR4415Z","MATUTINO","PICHUCALCO","CAMOAPITA 2DA. SECCION A (CENTRO)","Comunitaria","Muy Alta y Alta","1","1","1","100","100","SI","SI","Comunitarias en el país en localidades de muy alta y alta marginación","1","0","0","0","100","0","0","0","1","0","0","0","100","0","0","0"]
["07","CHIAPAS","CALES DE CHIAPAS","07KPR4438J","MATUTINO","PIJIJIAPAN","CALES DE CHIAPAS","Comunitaria","Muy Alta y Alta","1","1","1","100","100","SI","SI","Comunitarias en el país en localidades de muy alta y alta marginación","1","0","0","0","100","0","0","0","1","0","0","0","100","0","0","0"]
["07","CHIAPAS","ANDRES GOMEZ","07KPR4463I","MATUTINO","CINTALAPA","ANDRES GOMEZ","Comunitaria","Muy Alta y Alta","1","1","1","100","100","SI","SI","Comunitarias en el país en localidades de muy alta y alta marginación","1","0","0","0","100","0","0","0","1","0","0","0","100","0","0","0"]
["07","CHIAPAS","RANCHERIA PEÑITA EL MICO DIQUE","07KPR4481Y","MATUTINO","OSTUACAN","PEÑITAS EL MICO","Comunitaria","Muy Alta y Alta","1","1","1","100","100","SI","SI","Comunitarias en el país en localidades de muy alta y alta marginación","1","0","0","0","100","0","0","0","1","0","0","0","100","0","0","0"]
["07","CHIAPAS","EL HORIZONTE","07KPR4512A","MATUTINO","LAS MARGARITAS","EL HORIZONTE","Comunitaria","Muy Alta y Alta","1","1","1","100","100","SI","SI","Comunitarias en el país en localidades de muy alta y alta marginación","1","0","0","0","100","0","0","0","1","0","0","0","100","0","0","0"]
["07","CHIAPAS","LINDAVISTA SEGUNDA FRACCION (EL RETIRO)","07KPR4542V","MATUTINO","SAN ANDRES DURAZNAL","LINDAVISTA 2DA. FRACCION (EL RETIRO)","Comunitaria","Muy Alta y Alta","1","1","1","100","100","SI","SI","Comunitarias en el país en localidades de muy alta y alta marginación","1","0","0","0","100","0","0","0","1","0","0","0","100","0","0","0"]
["07","CHIAPAS","ARROYO ENCANTO II","07KPR4561J","MATUTINO","PALENQUE","ARROYO ENCANTO II","Comunitaria","Muy Alta y Alta","1","1","1","100","100","SI","SI","Comunitarias en el país en localidades de muy alta y alta marginación","1","0","0","0","100","0","0","0","1","0","0","0","100","0","0","0"]
["07","CHIAPAS","SAN FRANCISCO","07KPR5032Z","MATUTINO","BELLA VISTA","SAN FRANCISCO","Comunitaria","Muy Alta y Alta","1","1","1","100","100","SI","SI","Comunitarias en el país en localidades de muy alta y alta marginación","1","0","0","0","100","0","0","0","1","0","0","0","100","0","0","0"]
["07","CHIAPAS","BUENAVISTA","07KPR5053M","MATUTINO","SILTEPEC","UNION VILLA NUEVA","Comunitaria","Muy Alta y Alta","1","1","1","100","100","SI","SI","Comunitarias en el país en localidades de muy alta y alta marginación","1","0","0","0","100","0","0","0","1","0","0","0","100","0","0","0"]
["07","CHIAPAS","SAN PEDRO EL PORVENIR","07KPR5060W","MATUTINO","LA TRINITARIA","SAN PEDRO EL PORVENIR","Comunitaria","Muy Alta y Alta","1","1","1","100","100","SI","SI","Comunitarias en el país en localidades de muy alta y alta marginación","1","0","0","0","100","0","0","0","1","0","0","0","100","0","0","0"]
["07","CHIAPAS","PLATANAR ARRIBA","07KPR5175X","MATUTINO","PICHUCALCO","PLATANAR ARRIBA 1RA. SECCION B (LA FLORIDA)","Comunitaria","Muy Alta y Alta","1","1","1","100","100","SI","SI","Comunitarias en el país en localidades de muy alta y alta marginación","1","0","0","0","100","0","0","0","1","0","0","0","100","0","0","0"]
["07","CHIAPAS","LUIS ALFREDO","07KPR5195K","MATUTINO","PALENQUE","LUIS ALFREDO","Comunitaria","Muy Alta y Alta","1","1","1","100","100","SI","SI","Comunitarias en el país en localidades de muy alta y alta marginación","1","0","0","0","100","0","0","0","1","0","0","0","100","0","0","0"]
["07","CHIAPAS","OMOHA","07KPR5203C","MATUTINO","TUXTLA CHICO","OMOHA","Comunitaria","Muy Alta y Alta","1","1","1","100","100","SI","SI","Comunitarias en el país en localidades de muy alta y alta marginación","1","0","0","0","100","0","0","0","1","0","0","0","100","0","0","0"]
["07","CHIAPAS","FRANCISCO INDALECIO MADERO 2DA. SECCION","07KPR5213J","MATUTINO","IXTAPANGAJOYA","FRANCISCO I. MADERO 2DA. SECCION","Comunitaria","Muy Alta y Alta","1","1","1","100","100","SI","SI","Comunitarias en el país en localidades de muy alta y alta marginación","1","0","0","0","100","0","0","0","1","0","0","0","100","0","0","0"]
["07","CHIAPAS","CANOAS","07KPR5217F","MATUTINO","MOTOZINTLA","CANOAS","Comunitaria","Muy Alta y Alta","1","1","1","100","100","SI","SI","Comunitarias en el país en localidades de muy alta y alta marginación","1","0","0","0","100","0","0","0","1","0","0","0","100","0","0","0"]
["07","CHIAPAS","LAS ALMENDRAS","07KPR5277U","MATUTINO","TECPATAN","LAS ALMENDRAS","Comunitaria","Muy Alta y Alta","1","1","1","100","100","SI","SI","Comunitarias en el país en localidades de muy alta y alta marginación","1","0","0","0","100","0","0","0","1","0","0","0","100","0","0","0"]
["07","CHIAPAS","SAN LUIS","07KPR5298G","MATUTINO","TECPATAN","SAN LUIS","Comunitaria","Muy Alta y Alta","1","1","1","100","100","SI","SI","Comunitarias en el país en localidades de muy alta y alta marginación","1","0","0","0","100","0","0","0","1","0","0","0","100","0","0","0"]
["07","CHIAPAS","SAN ANTONIO KILOMETRO 40","07KPR5305Z","MATUTINO","OCOZOCOAUTLA DE ESPINOSA","SAN ANTONIO MAGUEYAL","Comunitaria","Muy Alta y Alta","1","1","1","100","100","SI","SI","Comunitarias en el país en localidades de muy alta y alta marginación","1","0","0","0","100","0","0","0","1","0","0","0","100","0","0","0"]
["07","CHIAPAS","BUENOS AIRES","07KPR5344B","MATUTINO","AMATENANGO DE LA FRONTERA","BUENOS AIRES","Comunitaria","Muy Alta y Alta","1","1","1","100","100","SI","SI","Comunitarias en el país en localidades de muy alta y alta marginación","1","0","0","0","100","0","0","0","1","0","0","0","100","0","0","0"]
["07","CHIAPAS","LAS DELICIAS","07KPR5392L","MATUTINO","PALENQUE","LAS DELICIAS 2DA. SECCION","Comunitaria","Muy Alta y Alta","1","1","1","100","100","SI","SI","Comunitarias en el país en localidades de muy alta y alta marginación","1","0","0","0","100","0","0","0","1","0","0","0","100","0","0","0"]
["07","CHIAPAS","LIBERTAD 1RA. SECCION","07KPR5418C","MATUTINO","JUAREZ","LIBERTAD 1RA. SECCION","Comunitaria","Muy Alta y Alta","1","1","1","100","100","SI","SI","Comunitarias en el país en localidades de muy alta y alta marginación","1","0","0","0","100","0","0","0","1","0","0","0","100","0","0","0"]
["07","CHIAPAS","ALDAMA 2DA. SECCION","07KPR5426L","MATUTINO","JUAREZ","ALDAMA 2DA. SECCION","Comunitaria","Muy Alta y Alta","1","1","1","100","100","SI","SI","Comunitarias en el país en localidades de muy alta y alta marginación","1","0","0","0","100","0","0","0","1","0","0","0","100","0","0","0"]
["07","CHIAPAS","AZUFRE PRIMERA SECCION II","07KPR5466M","MATUTINO","PICHUCALCO","EL AZUFRE 1RA. SECCION","Comunitaria","Muy Alta y Alta","1","1","1","100","100","SI","SI","Comunitarias en el país en localidades de muy alta y alta marginación","1","0","0","0","100","0","0","0","1","0","0","0","100","0","0","0"]
["07","CHIAPAS","NUEVO PROGRESO","07KPR5485A","MATUTINO","MOTOZINTLA","NUEVO PROGRESO","Comunitaria","Muy Alta y Alta","1","1","1","100","100","SI","SI","Comunitarias en el país en localidades de muy alta y alta marginación","1","0","0","0","100","0","0","0","1","0","0","0","100","0","0","0"]
["07","CHIAPAS","NAZARETH","07KPR5495H","MATUTINO","SILTEPEC","NAZARETH","Comunitaria","Muy Alta y Alta","1","1","1","100","100","SI","SI","Comunitarias en el país en localidades de muy alta y alta marginación","1","0","0","0","100","0","0","0","1","0","0","0","100","0","0","0"]
["07","CHIAPAS","NUEVO MONTERREY ANEXO LA REVANCHA","07KPR5616C","MATUTINO","LAS MARGARITAS","NUEVO MONTERREY ANEXO LA REVANCHA","Comunitaria","Muy Alta y Alta","1","1","1","100","100","SI","SI","Comunitarias en el país en localidades de muy alta y alta marginación","1","0","0","0","100","0","0","0","1","0","0","0","100","0","0","0"]
["07","CHIAPAS","LAGARTERO","07KPR5675S","MATUTINO","ACALA","LAGARTERO","Comunitaria","Muy Alta y Alta","1","1","1","100","100","SI","SI","Comunitarias en el país en localidades de muy alta y alta marginación","1","0","0","0","100","0","0","0","1","0","0","0","100","0","0","0"]
["07","CHIAPAS","ALBORES DE ZAPATA DOS","07KPR5693H","MATUTINO","LA TRINITARIA","ALBORES DE ZAPATA 2","Comunitaria","Muy Alta y Alta","1","1","1","100","100","SI","SI","Comunitarias en el país en localidades de muy alta y alta marginación","1","0","0","0","100","0","0","0","1","0","0","0","100","0","0","0"]
["07","CHIAPAS","PACAYALITO","07KPR5706V","MATUTINO","MOTOZINTLA","PACAYALITO","Comunitaria","Muy Alta y Alta","1","1","1","100","100","SI","SI","Comunitarias en el país en localidades de muy alta y alta marginación","1","0","0","0","100","0","0","0","1","0","0","0","100","0","0","0"]
["07","CHIAPAS","LA LAGUNA","07KPR5744Y","MATUTINO","MOTOZINTLA","LA LAGUNA","Comunitaria","Muy Alta y Alta","1","1","1","100","100","SI","SI","Comunitarias en el país en localidades de muy alta y alta marginación","1","0","0","0","100","0","0","0","1","0","0","0","100","0","0","0"]
["07","CHIAPAS","YALINCUN","07KPR5770W","MATUTINO","BEJUCAL DE OCAMPO","YALINCUN","Comunitaria","Muy Alta y Alta","1","1","1","100","100","SI","SI","Comunitarias en el país en localidades de muy alta y alta marginación","1","0","0","0","100","0","0","0","1","0","0","0","100","0","0","0"]
["07","CHIAPAS","VEINTITRES DE ENERO EL PAJAL DOS","07KPR5777P","MATUTINO","LA TRINITARIA","23 DE ENERO PAJAL II","Comunitaria","Muy Alta y Alta","1","1","1","100","100","SI","SI","Comunitarias en el país en localidades de muy alta y alta marginación","1","0","0","0","100","0","0","0","1","0","0","0","100","0","0","0"]
["07","CHIAPAS","EL RECUERDO","07KPR5860O","MATUTINO","LA TRINITARIA","EL RECUERDO","Comunitaria","Muy Alta y Alta","1","1","1","100","100","SI","SI","Comunitarias en el país en localidades de muy alta y alta marginación","1","0","0","0","100","0","0","0","1","0","0","0","100","0","0","0"]
["07","CHIAPAS","EL DIVISADERO","07KPR5940Z","MATUTINO","BERRIOZABAL","EL DIVISADERO","Comunitaria","Muy Alta y Alta","1","1","1","100","100","SI","SI","Comunitarias en el país en localidades de muy alta y alta marginación","1","0","0","0","100","0","0","0","1","0","0","0","100","0","0","0"]
["07","CHIAPAS","LAS GAVIOTAS DOS","07KPR5943X","MATUTINO","OCOZOCOAUTLA DE ESPINOSA","LAS GAVIOTAS","Comunitaria","Muy Alta y Alta","1","1","1","100","100","SI","SI","Comunitarias en el país en localidades de muy alta y alta marginación","1","0","0","0","100","0","0","0","1","0","0","0","100","0","0","0"]
["07","CHIAPAS","UNION BUENAVISTA III","07KPR5993E","MATUTINO","ESCUINTLA","BUENAVISTA III","Comunitaria","Muy Alta y Alta","1","1","1","100","100","SI","SI","Comunitarias en el país en localidades de muy alta y alta marginación","1","0","0","0","100","0","0","0","1","0","0","0","100","0","0","0"]
["07","CHIAPAS","JUAN DE GRIJALVA (JUAN DE GRIJALVA PASO)","07KPR6026W","MATUTINO","OSTUACAN","JUAN DEL GRIJALVA","Comunitaria","Muy Alta y Alta","1","1","1","100","100","SI","SI","Comunitarias en el país en localidades de muy alta y alta marginación","1","0","0","0","100","0","0","0","1","0","0","0","100","0","0","0"]
["07","CHIAPAS","LIQUILWITZ","07KPB0094D","MATUTINO","CHILON","LIQUILWITZ","Comunitaria","Muy Alta y Alta","2","2","2","100","100","SI","SI","Comunitarias en el país en localidades de muy alta y alta marginación","2","0","0","0","100","0","0","0","2","0","0","0","100","0","0","0"]
["07","CHIAPAS","LA LAGUNA","07KPB0165H","MATUTINO","LARRAINZAR","LINDA VISTA","Comunitaria","Muy Alta y Alta","2","2","2","100","100","SI","SI","Comunitarias en el país en localidades de muy alta y alta marginación","2","0","0","0","100","0","0","0","2","0","0","0","100","0","0","0"]
["07","CHIAPAS","SAN PEDRO ZAPOTAL","07KPB0249P","MATUTINO","CHILON","SAN PEDRO ZAPOTAL","Comunitaria","Muy Alta y Alta","2","2","2","100","100","SI","SI","Comunitarias en el país en localidades de muy alta y alta marginación","2","0","0","0","100","0","0","0","2","0","0","0","100","0","0","0"]
["07","CHIAPAS","NATOC","07KPB0264H","MATUTINO","LARRAINZAR","NATOC","Comunitaria","Muy Alta y Alta","2","2","2","100","100","SI","SI","Comunitarias en el país en localidades de muy alta y alta marginación","2","0","0","0","100","0","0","0","2","0","0","0","100","0","0","0"]
["07","CHIAPAS","MUK'UL WITZ II","07KPB0307P","MATUTINO","OXCHUC","MUK'UL WITZ II","Comunitaria","Muy Alta y Alta","2","2","2","100","100","SI","SI","Comunitarias en el país en localidades de muy alta y alta marginación","2","0","0","0","100","0","0","0","2","0","0","0","100","0","0","0"]
["07","CHIAPAS","EL JARDIN","07KPB0312A","MATUTINO","PUEBLO NUEVO SOLISTAHUACAN","EL JARDIN","Comunitaria","Muy Alta y Alta","2","2","2","100","100","SI","SI","Comunitarias en el país en localidades de muy alta y alta marginación","2","0","0","0","100","0","0","0","2","0","0","0","100","0","0","0"]
["07","CHIAPAS","INDEPENDENCIA","07KPB0373O","MATUTINO","OCOSINGO","LA INDEPENDENCIA","Comunitaria","Muy Alta y Alta","2","2","2","100","100","SI","SI","Comunitarias en el país en localidades de muy alta y alta marginación","2","0","0","0","100","0","0","0","2","0","0","0","100","0","0","0"]
["07","CHIAPAS","EL ACHIOTE ARRIBA","07KPB0446Q","MATUTINO","TECPATAN","ACHIOTE","Comunitaria","Muy Alta y Alta","2","2","2","100","100","SI","SI","Comunitarias en el país en localidades de muy alta y alta marginación","2","0","0","0","100","0","0","0","2","0","0","0","100","0","0","0"]
["07","CHIAPAS","PLAN DE AYALA","07KPB0491C","MATUTINO","BOCHIL","PLAN DE AYALA","Comunitaria","Muy Alta y Alta","2","2","2","100","100","SI","SI","Comunitarias en el país en localidades de muy alta y alta marginación","2","0","0","0","100","0","0","0","2","0","0","0","100","0","0","0"]
["07","CHIAPAS","PATRIA NUEVA","07KPB0536I","MATUTINO","OXCHUC","PATRIA NUEVA","Comunitaria","Muy Alta y Alta","2","2","2","100","100","SI","SI","Comunitarias en el país en localidades de muy alta y alta marginación","2","0","0","0","100","0","0","0","2","0","0","0","100","0","0","0"]
["07","CHIAPAS","EL MASH","07KPB0549M","MATUTINO","OXCHUC","EL MASH","Comunitaria","Muy Alta y Alta","2","2","2","100","100","SI","SI","Comunitarias en el país en localidades de muy alta y alta marginación","2","0","0","0","100","0","0","0","2","0","0","0","100","0","0","0"]
["07","CHIAPAS","SAN FRANCISCO","07KPB0600T","MATUTINO","PANTELHO","SAN FRANCISCO","Comunitaria","Muy Alta y Alta","2","2","2","100","100","SI","SI","Comunitarias en el país en localidades de muy alta y alta marginación","2","0","0","0","100","0","0","0","2","0","0","0","100","0","0","0"]
["07","CHIAPAS","NAT`ILTON","07KPB0623D","MATUTINO","OXCHUC","NAT'ILTON","Comunitaria","Muy Alta y Alta","2","2","2","100","100","SI","SI","Comunitarias en el país en localidades de muy alta y alta marginación","2","0","0","0","100","0","0","0","2","0","0","0","100","0","0","0"]
["07","CHIAPAS","NUEVO PARAISO","07KPB0682T","MATUTINO","VENUSTIANO CARRANZA","NUEVO PARAISO","Comunitaria","Muy Alta y Alta","2","2","2","100","100","SI","SI","Comunitarias en el país en localidades de muy alta y alta marginación","2","0","0","0","100","0","0","0","2","0","0","0","100","0","0","0"]
["07","CHIAPAS","EL TRIUNFO LA LAGUNA","07KPB0700S","MATUTINO","SIMOJOVEL","EL TRIUNFO LA LAGUNA","Comunitaria","Muy Alta y Alta","2","2","2","100","100","SI","SI","Comunitarias en el país en localidades de muy alta y alta marginación","2","0","0","0","100","0","0","0","2","0","0","0","100","0","0","0"]
["07","CHIAPAS","NUEVA LAS TACITAS","07KPB0763D","MATUTINO","OCOSINGO","NUEVA LAS TACITAS","Comunitaria","Muy Alta y Alta","2","2","2","100","100","SI","SI","Comunitarias en el país en localidades de muy alta y alta marginación","2","0","0","0","100","0","0","0","2","0","0","0","100","0","0","0"]
["07","CHIAPAS","SAN FRANCISCO","07KPB0782S","MATUTINO","OCOSINGO","SAN FRANCISCO","Comunitaria","Muy Alta y Alta","2","2","2","100","100","SI","SI","Comunitarias en el país en localidades de muy alta y alta marginación","2","0","0","0","100","0","0","0","2","0","0","0","100","0","0","0"]
["07","CHIAPAS","CORRALITO PEDERNAL (ZAQUILA)","07KPB0866Z","MATUTINO","PANTELHO","CORRALITO PEDERNAL (ZAQUILA)","Comunitaria","Muy Alta y Alta","2","2","2","100","100","SI","SI","Comunitarias en el país en localidades de muy alta y alta marginación","2","0","0","0","100","0","0","0","2","0","0","0","100","0","0","0"]
["07","CHIAPAS","SAN JOSE","07KPB0945M","MATUTINO","JITOTOL","SAN JOSE","Comunitaria","Muy Alta y Alta","2","2","2","100","100","SI","SI","Comunitarias en el país en localidades de muy alta y alta marginación","2","0","0","0","100","0","0","0","2","0","0","0","100","0","0","0"]
["07","CHIAPAS","BAWITZ SAMARIA","07KPB1007Z","MATUTINO","CHILON","BAWITZ SAMARIA","Comunitaria","Muy Alta y Alta","2","2","2","100","100","SI","SI","Comunitarias en el país en localidades de muy alta y alta marginación","2","0","0","0","100","0","0","0","2","0","0","0","100","0","0","0"]
["07","CHIAPAS","BA-MOBALTE","07KPB1028L","MATUTINO","CHILON","MOBALTE","Comunitaria","Muy Alta y Alta","2","2","2","100","100","SI","SI","Comunitarias en el país en localidades de muy alta y alta marginación","2","0","0","0","100","0","0","0","2","0","0","0","100","0","0","0"]
["07","CHIAPAS","LA SOLEDAD","07KPB1085C","MATUTINO","SAN CRISTOBAL DE LAS CASAS","LA SOLEDAD LOS CERESOS SECCION UNO","Comunitaria","Muy Alta y Alta","2","2","2","100","100","SI","SI","Comunitarias en el país en localidades de muy alta y alta marginación","2","0","0","0","100","0","0","0","2","0","0","0","100","0","0","0"]
["07","CHIAPAS","LA MERCED","07KPB1090O","MATUTINO","TOTOLAPA","LA MERCED","Comunitaria","Muy Alta y Alta","2","2","2","100","100","SI","SI","Comunitarias en el país en localidades de muy alta y alta marginación","2","0","0","0","100","0","0","0","2","0","0","0","100","0","0","0"]
["07","CHIAPAS","LA PALMA UNO","07KPB1092M","MATUTINO","SAN JUAN CANCUC","PALMA PAJAL UNO","Comunitaria","Muy Alta y Alta","2","2","2","100","100","SI","SI","Comunitarias en el país en localidades de muy alta y alta marginación","2","0","0","0","100","0","0","0","2","0","0","0","100","0","0","0"]
["07","CHIAPAS","EL VIOLIN","07KPB1095J","MATUTINO","TILA","EL VIOLIN","Comunitaria","Muy Alta y Alta","2","2","2","100","100","SI","SI","Comunitarias en el país en localidades de muy alta y alta marginación","2","0","0","0","100","0","0","0","2","0","0","0","100","0","0","0"]
["07","CHIAPAS","CALLEJON LORENA SHASHIJA","07KPB1223O","MATUTINO","YAJALON","CALLEJON LORENA SHASHIJA","Comunitaria","Muy Alta y Alta","2","2","2","100","100","SI","SI","Comunitarias en el país en localidades de muy alta y alta marginación","2","0","0","0","100","0","0","0","2","0","0","0","100","0","0","0"]
["07","CHIAPAS","TILIL CENTRO","07KPB1331W","MATUTINO","CHAMULA","TILIL CENTRO","Comunitaria","Muy Alta y Alta","2","2","2","100","100","SI","SI","Comunitarias en el país en localidades de muy alta y alta marginación","2","0","0","0","100","0","0","0","2","0","0","0","100","0","0","0"]
["07","CHIAPAS","TZAJALA","07KPB1373V","MATUTINO","CHILON","TZAJALA","Comunitaria","Muy Alta y Alta","2","2","2","100","100","SI","SI","Comunitarias en el país en localidades de muy alta y alta marginación","2","0","0","0","100","0","0","0","2","0","0","0","100","0","0","0"]
["07","CHIAPAS","ICO","07KPB1399C","MATUTINO","ALDAMA","ICO","Comunitaria","Muy Alta y Alta","2","2","2","100","100","SI","SI","Comunitarias en el país en localidades de muy alta y alta marginación","2","0","0","0","100","0","0","0","2","0","0","0","100","0","0","0"]
["07","CHIAPAS","BEREA BUENAVISTA","07KPB1421O","MATUTINO","CHILON","BEREA BUENAVISTA","Comunitaria","Muy Alta y Alta","2","2","2","100","100","SI","SI","Comunitarias en el país en localidades de muy alta y alta marginación","2","0","0","0","100","0","0","0","2","0","0","0","100","0","0","0"]
["07","CHIAPAS","NUEVA JERUSALEN 1RA. SECCION","07KPB1443Z","MATUTINO","YAJALON","NUEVA JERUSALEN 1RA. SECCION","Comunitaria","Muy Alta y Alta","2","2","2","100","100","SI","SI","Comunitarias en el país en localidades de muy alta y alta marginación","2","0","0","0","100","0","0","0","2","0","0","0","100","0","0","0"]
["07","CHIAPAS","BAYULUMAX SINAI","07KPB1445Y","MATUTINO","CHILON","BAYULUMAX SINAI","Comunitaria","Muy Alta y Alta","2","2","2","100","100","SI","SI","Comunitarias en el país en localidades de muy alta y alta marginación","2","0","0","0","100","0","0","0","2","0","0","0","100","0","0","0"]
["07","CHIAPAS","EMILIANO ZAPATA","07KPB1446X","MATUTINO","CHILON","EMILIANO ZAPATA","Comunitaria","Muy Alta y Alta","2","2","2","100","100","SI","SI","Comunitarias en el país en localidades de muy alta y alta marginación","2","0","0","0","100","0","0","0","2","0","0","0","100","0","0","0"]
["07","CHIAPAS","GUADALUPE CATARRAYA","07KPB1447W","MATUTINO","CHILON","GUADALUPE CATARRAYA","Comunitaria","Muy Alta y Alta","2","2","2","100","100","SI","SI","Comunitarias en el país en localidades de muy alta y alta marginación","2","0","0","0","100","0","0","0","2","0","0","0","100","0","0","0"]
["07","CHIAPAS","LA ILUSION","07KPB1461P","MATUTINO","LA INDEPENDENCIA","LA VICTORIA","Comunitaria","Muy Alta y Alta","2","2","2","100","100","SI","SI","Comunitarias en el país en localidades de muy alta y alta marginación","2","0","0","0","100","0","0","0","2","0","0","0","100","0","0","0"]
["07","CHIAPAS","TRES FLORES","07KPB1469H","MATUTINO","CHAMULA","TRES FLORES","Comunitaria","Muy Alta y Alta","2","2","2","100","100","SI","SI","Comunitarias en el país en localidades de muy alta y alta marginación","2","0","0","0","100","0","0","0","2","0","0","0","100","0","0","0"]
["07","CHIAPAS","POBLADO LAS LIMAS","07KPB1472V","MATUTINO","BOCHIL","LAS LIMAS","Comunitaria","Muy Alta y Alta","2","2","2","100","100","SI","SI","Comunitarias en el país en localidades de muy alta y alta marginación","2","0","0","0","100","0","0","0","2","0","0","0","100","0","0","0"]
["07","CHIAPAS","SAKILCH´EN","07KPB1478P","MATUTINO","OXCHUC","SAK'IICH'EN","Comunitaria","Muy Alta y Alta","2","2","2","100","100","SI","SI","Comunitarias en el país en localidades de muy alta y alta marginación","2","0","0","0","100","0","0","0","2","0","0","0","100","0","0","0"]
["07","CHIAPAS","TAJALTIK","07KPB1479O","MATUTINO","OXCHUC","TAJALTIK","Comunitaria","Muy Alta y Alta","2","2","2","100","100","SI","SI","Comunitarias en el país en localidades de muy alta y alta marginación","2","0","0","0","100","0","0","0","2","0","0","0","100","0","0","0"]
["07","CHIAPAS","SAN JOSE DOLORES","07KPB1485Z","MATUTINO","HUITIUPAN","SAN JOSE DOLORES","Comunitaria","Muy Alta y Alta","2","2","2","100","100","SI","SI","Comunitarias en el país en localidades de muy alta y alta marginación","2","0","0","0","100","0","0","0","2","0","0","0","100","0","0","0"]
["07","CHIAPAS","GUADALUPE CATARRAYA YETALTAJALTIC","07KPB1502Z","MATUTINO","CHILON","GUADALUPE CATARRAYA YETALTAJALTIC","Comunitaria","Muy Alta y Alta","2","2","2","100","100","SI","SI","Comunitarias en el país en localidades de muy alta y alta marginación","2","0","0","0","100","0","0","0","2","0","0","0","100","0","0","0"]
["07","CHIAPAS","LOQUIBJA CACATEEL","07KPB1505W","MATUTINO","CHILON","LOQU'IB-JA","Comunitaria","Muy Alta y Alta","2","2","2","100","100","SI","SI","Comunitarias en el país en localidades de muy alta y alta marginación","2","0","0","0","100","0","0","0","2","0","0","0","100","0","0","0"]
["07","CHIAPAS","NUEVO POBLADO CHUCHILTON","07KPB1555D","MATUTINO","BOCHIL","NUEVO CHUCHILTON","Comunitaria","Muy Alta y Alta","2","2","2","100","100","SI","SI","Comunitarias en el país en localidades de muy alta y alta marginación","2","0","0","0","100","0","0","0","2","0","0","0","100","0","0","0"]
["07","CHIAPAS","RANCHO ALEGRE","07KPB1562N","MATUTINO","AMATENANGO DEL VALLE","RANCHO ALEGRE","Comunitaria","Muy Alta y Alta","2","2","2","100","100","SI","SI","Comunitarias en el país en localidades de muy alta y alta marginación","2","0","0","0","100","0","0","0","2","0","0","0","100","0","0","0"]
["07","CHIAPAS","PRIMARIA CONAFE INDIGENA","07KPB1578O","MATUTINO","TUMBALA","BUENAVISTA","Comunitaria","Muy Alta y Alta","2","2","2","100","100","SI","SI","Comunitarias en el país en localidades de muy alta y alta marginación","2","0","0","0","100","0","0","0","2","0","0","0","100","0","0","0"]
["07","CHIAPAS","FRANCISCO INDALECIO MADERO","07KPB1586X","MATUTINO","TILA","FRANCISCO I. MADERO","Comunitaria","Muy Alta y Alta","2","2","2","100","100","SI","SI","Comunitarias en el país en localidades de muy alta y alta marginación","2","0","0","0","100","0","0","0","2","0","0","0","100","0","0","0"]
["07","CHIAPAS","LINDAVISTA LAS LAMINAS","07KPB1602Y","MATUTINO","HUITIUPAN","LINDAVISTA LAS LAMINAS","Comunitaria","Muy Alta y Alta","2","2","2","100","100","SI","SI","Comunitarias en el país en localidades de muy alta y alta marginación","2","0","0","0","100","0","0","0","2","0","0","0","100","0","0","0"]
["07","CHIAPAS","YAXCHEN","07KPB1631T","MATUTINO","SAN JUAN CANCUC","YANCH'EN","Comunitaria","Muy Alta y Alta","2","2","2","100","100","SI","SI","Comunitarias en el país en localidades de muy alta y alta marginación","2","0","0","0","100","0","0","0","2","0","0","0","100","0","0","0"]
["07","CHIAPAS","MONTE VERDE","07KPB1635P","MATUTINO","BOCHIL","MONTE VERDE","Comunitaria","Muy Alta y Alta","2","2","2","100","100","SI","SI","Comunitarias en el país en localidades de muy alta y alta marginación","2","0","0","0","100","0","0","0","2","0","0","0","100","0","0","0"]
["07","CHIAPAS","MONTE SINAI","07KPB1642Z","MATUTINO","LAS MARGARITAS","MONTE SINAI","Comunitaria","Muy Alta y Alta","2","2","2","100","100","SI","SI","Comunitarias en el país en localidades de muy alta y alta marginación","2","0","0","0","100","0","0","0","2","0","0","0","100","0","0","0"]
["07","CHIAPAS","EL CARMEN DURAZNAL","07KPB1644X","MATUTINO","PANTELHO","EL CARMEN DURAZNAL","Comunitaria","Muy Alta y Alta","2","2","2","100","100","SI","SI","Comunitarias en el país en localidades de muy alta y alta marginación","2","0","0","0","100","0","0","0","2","0","0","0","100","0","0","0"]
["07","CHIAPAS","PITAL VILLA LUZ (ALMENDRO VIEJO)","07KPB1653E","MATUTINO","HUITIUPAN","PITAL VILLA LUZ (ALMANDRO VIEJO)","Comunitaria","Muy Alta y Alta","2","2","2","100","100","SI","SI","Comunitarias en el país en localidades de muy alta y alta marginación","2","0","0","0","100","0","0","0","2","0","0","0","100","0","0","0"]
["07","CHIAPAS","EL TRIUNFO DE ALFREDO DIAZ","07KPB1659Z","MATUTINO","OCOSINGO","EL TRIUNFO DE ALFREDO DIAZ","Comunitaria","Muy Alta y Alta","2","2","2","100","100","SI","SI","Comunitarias en el país en localidades de muy alta y alta marginación","2","0","0","0","100","0","0","0","2","0","0","0","100","0","0","0"]
["07","CHIAPAS","LOS ANGELES","07KPB1696C","MATUTINO","LARRAINZAR","LOS ANGELES","Comunitaria","Muy Alta y Alta","2","2","2","100","100","SI","SI","Comunitarias en el país en localidades de muy alta y alta marginación","2","0","0","0","100","0","0","0","2","0","0","0","100","0","0","0"]
["07","CHIAPAS","EL TRIUNFO","07KPB1706T","MATUTINO","TOTOLAPA","EL TRIUNFO","Comunitaria","Muy Alta y Alta","2","2","2","100","100","SI","SI","Comunitarias en el país en localidades de muy alta y alta marginación","2","0","0","0","100","0","0","0","2","0","0","0","100","0","0","0"]
["07","CHIAPAS","SAN JOSE UNO","07KPB1725H","MATUTINO","OCOSINGO","SAN JOSE UNO","Comunitaria","Muy Alta y Alta","2","2","2","100","100","SI","SI","Comunitarias en el país en localidades de muy alta y alta marginación","2","0","0","0","100","0","0","0","2","0","0","0","100","0","0","0"]
["07","CHIAPAS","CONLUM","07KPB1731S","MATUTINO","ZINACANTAN","CONLUM","Comunitaria","Muy Alta y Alta","2","2","2","100","100","SI","SI","Comunitarias en el país en localidades de muy alta y alta marginación","2","0","0","0","100","0","0","0","2","0","0","0","100","0","0","0"]
["07","CHIAPAS","BUENA VISTA SAN SEBASTIAN","07KPB1776O","MATUTINO","CHILON","BUENAVISTA SAN SEBASTIAN","Comunitaria","Muy Alta y Alta","2","2","2","100","100","SI","SI","Comunitarias en el país en localidades de muy alta y alta marginación","2","0","0","0","100","0","0","0","2","0","0","0","100","0","0","0"]
["07","CHIAPAS","LA FLORIDA","07KPB1779L","MATUTINO","HUITIUPAN","LA FLORIDA","Comunitaria","Muy Alta y Alta","2","2","2","100","100","SI","SI","Comunitarias en el país en localidades de muy alta y alta marginación","2","0","0","0","100","0","0","0","2","0","0","0","100","0","0","0"]
["07","CHIAPAS","LOMAS DEL ORIENTE","07KPB1785W","MATUTINO","OCOSINGO","LOMAS DEL ORIENTE","Comunitaria","Muy Alta y Alta","2","2","2","100","100","SI","SI","Comunitarias en el país en localidades de muy alta y alta marginación","2","0","0","0","100","0","0","0","2","0","0","0","100","0","0","0"]
["07","CHIAPAS","PATSANUL","07KPB1793E","MATUTINO","CHAMULA","PATSANUL","Comunitaria","Muy Alta y Alta","2","2","2","100","100","SI","SI","Comunitarias en el país en localidades de muy alta y alta marginación","2","0","0","0","100","0","0","0","2","0","0","0","100","0","0","0"]
["07","CHIAPAS","SACUN SAN MIGUEL","07KPB1819W","MATUTINO","CHILON","SACUN SAN MIGUEL","Comunitaria","Muy Alta y Alta","2","2","2","100","100","SI","SI","Comunitarias en el país en localidades de muy alta y alta marginación","2","0","0","0","100","0","0","0","2","0","0","0","100","0","0","0"]
["07","CHIAPAS","RIO BLANCO","07KPB1825G","MATUTINO","SIMOJOVEL","RIO BLANCO","Comunitaria","Muy Alta y Alta","2","2","2","100","100","SI","SI","Comunitarias en el país en localidades de muy alta y alta marginación","2","0","0","0","100","0","0","0","2","0","0","0","100","0","0","0"]
["07","CHIAPAS","LA GUACAMAYA","07KPB1833P","MATUTINO","LARRAINZAR","GUACAMAYA","Comunitaria","Muy Alta y Alta","2","2","2","100","100","SI","SI","Comunitarias en el país en localidades de muy alta y alta marginación","2","0","0","0","100","0","0","0","2","0","0","0","100","0","0","0"]
["07","CHIAPAS","YOCTONTIC","07KPB1834O","MATUTINO","ALDAMA","YOCTONTIC","Comunitaria","Muy Alta y Alta","2","2","2","100","100","SI","SI","Comunitarias en el país en localidades de muy alta y alta marginación","2","0","0","0","100","0","0","0","2","0","0","0","100","0","0","0"]
["07","CHIAPAS","LAS NUBES","07KPB1866G","MATUTINO","ALTAMIRANO","LAS NUBES","Comunitaria","Muy Alta y Alta","2","2","2","100","100","SI","SI","Comunitarias en el país en localidades de muy alta y alta marginación","2","0","0","0","100","0","0","0","2","0","0","0","100","0","0","0"]
["07","CHIAPAS","LOS MEZCALES","07KPR0012E","MATUTINO","AMATENANGO DE LA FRONTERA","LOS MEZCALES","Comunitaria","Muy Alta y Alta","2","2","2","100","100","SI","SI","Comunitarias en el país en localidades de muy alta y alta marginación","2","0","0","0","100","0","0","0","2","0","0","0","100","0","0","0"]
["07","CHIAPAS","CANTON NUEVA ESPERANZA","07KPR0107S","MATUTINO","TAPACHULA","NUEVA ESPERANZA","Comunitaria","Muy Alta y Alta","2","2","2","100","100","SI","SI","Comunitarias en el país en localidades de muy alta y alta marginación","2","0","0","0","100","0","0","0","2","0","0","0","100","0","0","0"]
["07","CHIAPAS","EL VERGEL","07KPR0134P","MATUTINO","ESCUINTLA","EL VERGEL","Comunitaria","Muy Alta y Alta","2","2","2","100","100","SI","SI","Comunitarias en el país en localidades de muy alta y alta marginación","2","0","0","0","100","0","0","0","2","0","0","0","100","0","0","0"]
["07","CHIAPAS","MONTAGUA","07KPR0136N","MATUTINO","ESCUINTLA","MONTAGUA","Comunitaria","Muy Alta y Alta","2","2","2","100","100","SI","SI","Comunitarias en el país en localidades de muy alta y alta marginación","2","0","0","0","100","0","0","0","2","0","0","0","100","0","0","0"]
["07","CHIAPAS","EL CACATE","07KPR0171T","MATUTINO","IXHUATAN","EL CACATE","Comunitaria","Muy Alta y Alta","2","2","2","100","100","SI","SI","Comunitarias en el país en localidades de muy alta y alta marginación","2","0","0","0","100","0","0","0","2","0","0","0","100","0","0","0"]
["07","CHIAPAS","SANTA TERESA","07KPR0203V","MATUTINO","LAS MARGARITAS","SANTA TERESA","Comunitaria","Muy Alta y Alta","2","2","2","100","100","SI","SI","Comunitarias en el país en localidades de muy alta y alta marginación","2","0","0","0","100","0","0","0","2","0","0","0","100","0","0","0"]
["07","CHIAPAS","NUEVO VERGEL","07KPR0218X","MATUTINO","MAZAPA DE MADERO","NUEVO VERGEL","Comunitaria","Muy Alta y Alta","2","2","2","100","100","SI","SI","Comunitarias en el país en localidades de muy alta y alta marginación","2","0","0","0","100","0","0","0","2","0","0","0","100","0","0","0"]
["07","CHIAPAS","TZINTUL","07KPR0219W","MATUTINO","LA TRINITARIA","TZINTUL","Comunitaria","Muy Alta y Alta","2","2","2","100","100","SI","SI","Comunitarias en el país en localidades de muy alta y alta marginación","2","0","0","0","100","0","0","0","2","0","0","0","100","0","0","0"]
["07","CHIAPAS","CANTON EL PROGRESO","07KPR0236M","MATUTINO","HUEHUETAN","CANTON EL PROGRESO","Comunitaria","Muy Alta y Alta","2","2","2","100","100","SI","SI","Comunitarias en el país en localidades de muy alta y alta marginación","2","0","0","0","100","0","0","0","2","0","0","0","100","0","0","0"]
["07","CHIAPAS","NUEVA ESPAÑA","07KPR0273Q","MATUTINO","VILLA CORZO","NUEVA ESPAÑA","Comunitaria","Muy Alta y Alta","2","2","2","100","100","SI","SI","Comunitarias en el país en localidades de muy alta y alta marginación","2","0","0","0","100","0","0","0","2","0","0","0","100","0","0","0"]
["07","CHIAPAS","JUAN SABINES GUTIERREZ","07KPR0314Z","MATUTINO","SILTEPEC","JUAN SABINES","Comunitaria","Muy Alta y Alta","2","2","2","100","100","SI","SI","Comunitarias en el país en localidades de muy alta y alta marginación","2","0","0","0","100","0","0","0","2","0","0","0","100","0","0","0"]
["07","CHIAPAS","LA COLMENA","07KPR0694Z","MATUTINO","OCOZOCOAUTLA DE ESPINOSA","LA COLMENA","Comunitaria","Muy Alta y Alta","2","2","2","100","100","SI","SI","Comunitarias en el país en localidades de muy alta y alta marginación","2","0","0","0","100","0","0","0","2","0","0","0","100","0","0","0"]
["07","CHIAPAS","CORAZON DE JESUS","07KPR0721F","MATUTINO","LA CONCORDIA","CORAZON DE JESUS","Comunitaria","Muy Alta y Alta","2","2","2","100","100","SI","SI","Comunitarias en el país en localidades de muy alta y alta marginación","2","0","0","0","100","0","0","0","2","0","0","0","100","0","0","0"]
["07","CHIAPAS","ARGENTINA","07KPR0774K","MATUTINO","CHICOMUSELO","ARGENTINA","Comunitaria","Muy Alta y Alta","2","2","2","100","100","SI","SI","Comunitarias en el país en localidades de muy alta y alta marginación","2","0","0","0","100","0","0","0","2","0","0","0","100","0","0","0"]
["07","CHIAPAS","LAS MARAVILLAS","07KPR0794Y","MATUTINO","LAS MARGARITAS","LAS MARAVILLAS","Comunitaria","Muy Alta y Alta","2","2","2","100","100","SI","SI","Comunitarias en el país en localidades de muy alta y alta marginación","2","0","0","0","100","0","0","0","2","0","0","0","100","0","0","0"]
["07","CHIAPAS","SAN FRANCISCO EL NARANJO","07KPR0796W","MATUTINO","LAS MARGARITAS","SAN FRANCISCO EL NARANJO","Comunitaria","Muy Alta y Alta","2","2","2","100","100","SI","SI","Comunitarias en el país en localidades de muy alta y alta marginación","2","0","0","0","100","0","0","0","2","0","0","0","100","0","0","0"]
["07","CHIAPAS","EL MIRADOR","07KPR0825A","MATUTINO","LA INDEPENDENCIA","EL MIRADOR","Comunitaria","Muy Alta y Alta","2","2","2","100","100","SI","SI","Comunitarias en el país en localidades de muy alta y alta marginación","2","0","0","0","100","0","0","0","2","0","0","0","100","0","0","0"]
["07","CHIAPAS","EL NARANJO","07KPR0833J","MATUTINO","PICHUCALCO","MARIANO MATAMOROS SEGUNDA SECCION","Comunitaria","Muy Alta y Alta","2","2","2","100","100","SI","SI","Comunitarias en el país en localidades de muy alta y alta marginación","2","0","0","0","100","0","0","0","2","0","0","0","100","0","0","0"]
["07","CHIAPAS","NUEVO OCOTAL (OCOTAL BUENAVISTA)","07KPR0839D","MATUTINO","PUEBLO NUEVO SOLISTAHUACAN","NUEVO OCOTAL (BUENAVISTA)","Comunitaria","Muy Alta y Alta","2","2","2","100","100","SI","SI","Comunitarias en el país en localidades de muy alta y alta marginación","2","0","0","0","100","0","0","0","2","0","0","0","100","0","0","0"]
["07","CHIAPAS","CRUZ VERDE","07KPR0905M","MATUTINO","RAYON","CRUZ VERDE","Comunitaria","Muy Alta y Alta","2","2","2","100","100","SI","SI","Comunitarias en el país en localidades de muy alta y alta marginación","2","0","0","0","100","0","0","0","2","0","0","0","100","0","0","0"]
["07","CHIAPAS","LA LUCHA","07KPR0993X","MATUTINO","VILLA CORZO","LA LUCHA","Comunitaria","Muy Alta y Alta","2","2","2","100","100","SI","SI","Comunitarias en el país en localidades de muy alta y alta marginación","2","0","0","0","100","0","0","0","2","0","0","0","100","0","0","0"]
["07","CHIAPAS","NUEVO SAN CARLOS","07KPR1075X","MATUTINO","PICHUCALCO","NUEVO SAN CARLOS","Comunitaria","Muy Alta y Alta","2","2","2","100","100","SI","SI","Comunitarias en el país en localidades de muy alta y alta marginación","2","0","0","0","100","0","0","0","2","0","0","0","100","0","0","0"]
["07","CHIAPAS","CANTON LOS ANGELES","07KPR1095K","MATUTINO","TUZANTAN","CANTON LOS ANGELES","Comunitaria","Muy Alta y Alta","2","2","2","100","100","SI","SI","Comunitarias en el país en localidades de muy alta y alta marginación","2","0","0","0","100","0","0","0","2","0","0","0","100","0","0","0"]
["07","CHIAPAS","CACATAL RAMIREZ","07KPR1102D","MATUTINO","IXTAPANGAJOYA","CACATAL","Comunitaria","Muy Alta y Alta","2","2","2","100","100","SI","SI","Comunitarias en el país en localidades de muy alta y alta marginación","2","0","0","0","100","0","0","0","2","0","0","0","100","0","0","0"]
["07","CHIAPAS","LA SELVA DOS","07KPR1251L","MATUTINO","VILLA CORZO","LA SELVA DOS","Comunitaria","Muy Alta y Alta","2","2","2","100","100","SI","SI","Comunitarias en el país en localidades de muy alta y alta marginación","2","0","0","0","100","0","0","0","2","0","0","0","100","0","0","0"]
["07","CHIAPAS","SAN PEDRO 2","07KPR1304Z","MATUTINO","LA CONCORDIA","SANTA ANITA","Comunitaria","Muy Alta y Alta","2","2","2","100","100","SI","SI","Comunitarias en el país en localidades de muy alta y alta marginación","2","0","0","0","100","0","0","0","2","0","0","0","100","0","0","0"]
["07","CHIAPAS","LOMA BONITA","07KPR1334U","MATUTINO","HUIXTLA","LOMA BONITA","Comunitaria","Muy Alta y Alta","2","2","2","100","100","SI","SI","Comunitarias en el país en localidades de muy alta y alta marginación","2","0","0","0","100","0","0","0","2","0","0","0","100","0","0","0"]
["07","CHIAPAS","SAN JUAN BAUTISTA","07KPR1338Q","MATUTINO","LAS MARGARITAS","SAN JUAN BAUTISTA","Comunitaria","Muy Alta y Alta","2","2","2","100","100","SI","SI","Comunitarias en el país en localidades de muy alta y alta marginación","2","0","0","0","100","0","0","0","2","0","0","0","100","0","0","0"]
["07","CHIAPAS","NUEVO COPAL","07KPR1382D","MATUTINO","LA CONCORDIA","NUEVO COPAL","Comunitaria","Muy Alta y Alta","2","2","2","100","100","SI","SI","Comunitarias en el país en localidades de muy alta y alta marginación","2","0","0","0","100","0","0","0","2","0","0","0","100","0","0","0"]
["07","CHIAPAS","DOMINIO, EL","07KPR1386Z","MATUTINO","OCOZOCOAUTLA DE ESPINOSA","EL DOMINIO","Comunitaria","Muy Alta y Alta","2","2","2","100","100","SI","SI","Comunitarias en el país en localidades de muy alta y alta marginación","2","0","0","0","100","0","0","0","2","0","0","0","100","0","0","0"]
["07","CHIAPAS","LOMA BONITA (EL GANADERO)","07KPR1400C","MATUTINO","TAPACHULA","LOMA BONITA (EL GANADERO)","Comunitaria","Muy Alta y Alta","2","2","2","100","100","SI","SI","Comunitarias en el país en localidades de muy alta y alta marginación","2","0","0","0","100","0","0","0","2","0","0","0","100","0","0","0"]
["07","CHIAPAS","NUEVA ESTRELLA","07KPR1401B","MATUTINO","BELLA VISTA","NUEVA ESTRELLA","Comunitaria","Muy Alta y Alta","2","2","2","100","100","SI","SI","Comunitarias en el país en localidades de muy alta y alta marginación","2","0","0","0","100","0","0","0","2","0","0","0","100","0","0","0"]
["07","CHIAPAS","HUANAL","07KPR1408V","MATUTINO","SALTO DE AGUA","HUANAL","Comunitaria","Muy Alta y Alta","2","2","2","100","100","SI","SI","Comunitarias en el país en localidades de muy alta y alta marginación","2","0","0","0","100","0","0","0","2","0","0","0","100","0","0","0"]
["07","CHIAPAS","COPANO 2DA. SECCION","07KPR1474U","MATUTINO","OSTUACAN","COPANO 2DA. SECCION","Comunitaria","Muy Alta y Alta","2","2","2","100","100","SI","SI","Comunitarias en el país en localidades de muy alta y alta marginación","2","0","0","0","100","0","0","0","2","0","0","0","100","0","0","0"]
["07","CHIAPAS","LA PERLA","07KPR1617A","MATUTINO","LA CONCORDIA","LA PERLA","Comunitaria","Muy Alta y Alta","2","2","2","100","100","SI","SI","Comunitarias en el país en localidades de muy alta y alta marginación","2","0","0","0","100","0","0","0","2","0","0","0","100","0","0","0"]
["07","CHIAPAS","SAN JOSE LOS POZOS","07KPR1713D","MATUTINO","AMATENANGO DE LA FRONTERA","SAN JOSE DE LOS POZOS","Comunitaria","Muy Alta y Alta","2","2","2","100","100","SI","SI","Comunitarias en el país en localidades de muy alta y alta marginación","2","0","0","0","100","0","0","0","2","0","0","0","100","0","0","0"]
["07","CHIAPAS","EL TRIUNFO","07KPR1741Z","MATUTINO","OSTUACAN","EL TRIUNFO","Comunitaria","Muy Alta y Alta","2","2","2","100","100","SI","SI","Comunitarias en el país en localidades de muy alta y alta marginación","2","0","0","0","100","0","0","0","2","0","0","0","100","0","0","0"]
["07","CHIAPAS","GUAYABAL","07KPR1955A","MATUTINO","SILTEPEC","NUEVO GUAYABAL","Comunitaria","Muy Alta y Alta","2","2","2","100","100","SI","SI","Comunitarias en el país en localidades de muy alta y alta marginación","2","0","0","0","100","0","0","0","2","0","0","0","100","0","0","0"]
["07","CHIAPAS","EL LIMON","07KPR1958Y","MATUTINO","TECPATAN","EL LIMON","Comunitaria","Muy Alta y Alta","2","2","2","100","100","SI","SI","Comunitarias en el país en localidades de muy alta y alta marginación","2","0","0","0","100","0","0","0","2","0","0","0","100","0","0","0"]
["07","CHIAPAS","VILLAHERMOSA 1","07KPR1968E","MATUTINO","VILLAFLORES","VILLAHERMOSA","Comunitaria","Muy Alta y Alta","2","2","2","100","100","SI","SI","Comunitarias en el país en localidades de muy alta y alta marginación","2","0","0","0","100","0","0","0","2","0","0","0","100","0","0","0"]
["07","CHIAPAS","LIQUIDAMBAR","07KPR2022Z","MATUTINO","PANTEPEC","LIQUIDAMBAR","Comunitaria","Muy Alta y Alta","2","2","2","100","100","SI","SI","Comunitarias en el país en localidades de muy alta y alta marginación","2","0","0","0","100","0","0","0","2","0","0","0","100","0","0","0"]
["07","CHIAPAS","SAN ANTONIO CANELAR","07KPR2126U","MATUTINO","RAYON","SAN ANTONIO CANELAR","Comunitaria","Muy Alta y Alta","2","2","2","100","100","SI","SI","Comunitarias en el país en localidades de muy alta y alta marginación","2","0","0","0","100","0","0","0","2","0","0","0","100","0","0","0"]
["07","CHIAPAS","SANTO DOMINGO","07KPR2138Z","MATUTINO","LA INDEPENDENCIA","SANTO DOMINGO","Comunitaria","Muy Alta y Alta","2","2","2","100","100","SI","SI","Comunitarias en el país en localidades de muy alta y alta marginación","2","0","0","0","100","0","0","0","2","0","0","0","100","0","0","0"]
["07","CHIAPAS","EL TRIUNFO","07KPR2199M","MATUTINO","VILLAFLORES","EL TRIUNFO","Comunitaria","Muy Alta y Alta","2","2","2","100","100","SI","SI","Comunitarias en el país en localidades de muy alta y alta marginación","2","0","0","0","100","0","0","0","2","0","0","0","100","0","0","0"]
["07","CHIAPAS","SANTA ANA","07KPR2240M","MATUTINO","SILTEPEC","SANTA ANA","Comunitaria","Muy Alta y Alta","2","2","2","100","100","SI","SI","Comunitarias en el país en localidades de muy alta y alta marginación","2","0","0","0","100","0","0","0","2","0","0","0","100","0","0","0"]
["07","CHIAPAS","LA VIOLETA","07KPR2244I","MATUTINO","ACACOYAGUA","LA VIOLETA","Comunitaria","Muy Alta y Alta","2","2","2","100","100","SI","SI","Comunitarias en el país en localidades de muy alta y alta marginación","2","0","0","0","100","0","0","0","2","0","0","0","100","0","0","0"]
["07","CHIAPAS","LA ESPERANZA","07KPR2413N","MATUTINO","COPAINALA","LA ESPERANZA","Comunitaria","Muy Alta y Alta","2","2","2","100","100","SI","SI","Comunitarias en el país en localidades de muy alta y alta marginación","2","0","0","0","100","0","0","0","2","0","0","0","100","0","0","0"]
["07","CHIAPAS","SANTO TON","07KPR2604D","MATUTINO","CHILON","SANTO TON","Comunitaria","Muy Alta y Alta","2","2","2","100","100","SI","SI","Comunitarias en el país en localidades de muy alta y alta marginación","2","0","0","0","100","0","0","0","2","0","0","0","100","0","0","0"]
["07","CHIAPAS","SAN PEDRO LA GRANDEZA","07KPR2680J","MATUTINO","PUEBLO NUEVO SOLISTAHUACAN","SAN PEDRO LA GRANDEZA","Comunitaria","Muy Alta y Alta","2","2","2","100","100","SI","SI","Comunitarias en el país en localidades de muy alta y alta marginación","2","0","0","0","100","0","0","0","2","0","0","0","100","0","0","0"]
["07","CHIAPAS","CANDELARIA","07KPR2682H","MATUTINO","OSUMACINTA","CANDELARIA","Comunitaria","Muy Alta y Alta","2","2","2","100","100","SI","SI","Comunitarias en el país en localidades de muy alta y alta marginación","2","0","0","0","100","0","0","0","2","0","0","0","100","0","0","0"]
["07","CHIAPAS","EL NANCITO","07KPR2725P","MATUTINO","AMATENANGO DE LA FRONTERA","EL NANCITO","Comunitaria","Muy Alta y Alta","2","2","2","100","100","SI","SI","Comunitarias en el país en localidades de muy alta y alta marginación","2","0","0","0","100","0","0","0","2","0","0","0","100","0","0","0"]
["07","CHIAPAS","DOCTOR RAFAEL PASCACIO GAMBOA","07KPR2809X","MATUTINO","IXTAPANGAJOYA","DOCTOR RAFAEL PASCACIO GAMBOA","Comunitaria","Muy Alta y Alta","2","2","2","100","100","SI","SI","Comunitarias en el país en localidades de muy alta y alta marginación","2","0","0","0","100","0","0","0","2","0","0","0","100","0","0","0"]
["07","CHIAPAS","NUEVO TOLOMITA","07KPR2887A","MATUTINO","PIJIJIAPAN","NUEVO TOLOMITA","Comunitaria","Muy Alta y Alta","2","2","2","100","100","SI","SI","Comunitarias en el país en localidades de muy alta y alta marginación","2","0","0","0","100","0","0","0","2","0","0","0","100","0","0","0"]
["07","CHIAPAS","LA VEGA UNO","07KPR2928K","MATUTINO","SILTEPEC","LA VEGA UNO","Comunitaria","Muy Alta y Alta","2","2","2","100","100","SI","SI","Comunitarias en el país en localidades de muy alta y alta marginación","2","0","0","0","100","0","0","0","2","0","0","0","100","0","0","0"]
["07","CHIAPAS","SANTA TERESA (SAN ANTONIO EL TERRERO)","07KPR2964P","MATUTINO","LA TRINITARIA","SANTA TERESA (SAN ANTONIO EL TERRERO)","Comunitaria","Muy Alta y Alta","2","2","2","100","100","SI","SI","Comunitarias en el país en localidades de muy alta y alta marginación","2","0","0","0","100","0","0","0","2","0","0","0","100","0","0","0"]
["07","CHIAPAS","OJOS AZULES","07KPR3038G","MATUTINO","VENUSTIANO CARRANZA","OJOS AZULES","Comunitaria","Muy Alta y Alta","2","2","2","100","100","SI","SI","Comunitarias en el país en localidades de muy alta y alta marginación","2","0","0","0","100","0","0","0","2","0","0","0","100","0","0","0"]
["07","CHIAPAS","BELEN","07KPR3313V","MATUTINO","ESCUINTLA","BELEN","Comunitaria","Muy Alta y Alta","2","2","2","100","100","SI","SI","Comunitarias en el país en localidades de muy alta y alta marginación","2","0","0","0","100","0","0","0","2","0","0","0","100","0","0","0"]
["07","CHIAPAS","NUEVO PARAISO","07KPR3325Z","MATUTINO","FRANCISCO LEON","NUEVO PARAISO","Comunitaria","Muy Alta y Alta","2","2","2","100","100","SI","SI","Comunitarias en el país en localidades de muy alta y alta marginación","2","0","0","0","100","0","0","0","2","0","0","0","100","0","0","0"]
["07","CHIAPAS","DISTRITO FEDERAL","07KPR3342Q","MATUTINO","VILLAFLORES","DISTRITO FEDERAL","Comunitaria","Muy Alta y Alta","2","2","2","100","100","SI","SI","Comunitarias en el país en localidades de muy alta y alta marginación","2","0","0","0","100","0","0","0","2","0","0","0","100","0","0","0"]
["07","CHIAPAS","RIO AMERICA","07KPR3448J","MATUTINO","LAS MARGARITAS","RIO AMERICA","Comunitaria","Muy Alta y Alta","2","2","2","100","100","SI","SI","Comunitarias en el país en localidades de muy alta y alta marginación","2","0","0","0","100","0","0","0","2","0","0","0","100","0","0","0"]
["07","CHIAPAS","LA CAÑADA","07KPR3621A","MATUTINO","BELLA VISTA","LA CAÑADA","Comunitaria","Muy Alta y Alta","2","2","2","100","100","SI","SI","Comunitarias en el país en localidades de muy alta y alta marginación","2","0","0","0","100","0","0","0","2","0","0","0","100","0","0","0"]
["07","CHIAPAS","PRIMARIA CONAFE","07KPR3649G","MATUTINO","LA CONCORDIA","SAN ANTONIO","Comunitaria","Muy Alta y Alta","2","2","2","100","100","SI","SI","Comunitarias en el país en localidades de muy alta y alta marginación","2","0","0","0","100","0","0","0","2","0","0","0","100","0","0","0"]
["07","CHIAPAS","ACH'LUM TULIJA","07KPR3676D","MATUTINO","SALTO DE AGUA","ACH'LUM TULIJA","Comunitaria","Muy Alta y Alta","2","2","2","100","100","SI","SI","Comunitarias en el país en localidades de muy alta y alta marginación","2","0","0","0","100","0","0","0","2","0","0","0","100","0","0","0"]
["07","CHIAPAS","EL MICHOL","07KPR3749F","MATUTINO","SALTO DE AGUA","EL MICHOL","Comunitaria","Muy Alta y Alta","2","2","2","100","100","SI","SI","Comunitarias en el país en localidades de muy alta y alta marginación","2","0","0","0","100","0","0","0","2","0","0","0","100","0","0","0"]
["07","CHIAPAS","SAN MARCOS","07KPR3854Q","MATUTINO","LA CONCORDIA","SAN MARCOS","Comunitaria","Muy Alta y Alta","2","2","2","100","100","SI","SI","Comunitarias en el país en localidades de muy alta y alta marginación","2","0","0","0","100","0","0","0","2","0","0","0","100","0","0","0"]
["07","CHIAPAS","NUEVO MUNDO","07KPR3863Y","MATUTINO","VILLAFLORES","NUEVO MUNDO","Comunitaria","Muy Alta y Alta","2","2","2","100","100","SI","SI","Comunitarias en el país en localidades de muy alta y alta marginación","2","0","0","0","100","0","0","0","2","0","0","0","100","0","0","0"]
["07","CHIAPAS","CAMPAMENTO GENERAL EMILIANO ZAPATA","07KPR3864X","MATUTINO","TECPATAN","CAMPAMENTO GENERAL EMILIANO ZAPATA","Comunitaria","Muy Alta y Alta","2","2","2","100","100","SI","SI","Comunitarias en el país en localidades de muy alta y alta marginación","2","0","0","0","100","0","0","0","2","0","0","0","100","0","0","0"]
["07","CHIAPAS","HECTOR ALVARADO","07KPR3886I","MATUTINO","ESCUINTLA","HECTOR ALVARADO HERRERA","Comunitaria","Muy Alta y Alta","2","2","2","100","100","SI","SI","Comunitarias en el país en localidades de muy alta y alta marginación","2","0","0","0","100","0","0","0","2","0","0","0","100","0","0","0"]
["07","CHIAPAS","NUEVO PORVENIR","07KPR4195D","MATUTINO","PICHUCALCO","MARIANO MATAMOROS 1RA. SECCION A","Comunitaria","Muy Alta y Alta","2","2","2","100","100","SI","SI","Comunitarias en el país en localidades de muy alta y alta marginación","2","0","0","0","100","0","0","0","2","0","0","0","100","0","0","0"]
["07","CHIAPAS","NUEVA LIBERTAD","07KPR4227F","MATUTINO","VILLA CORZO","LA LIBERTAD","Comunitaria","Muy Alta y Alta","2","2","2","100","100","SI","SI","Comunitarias en el país en localidades de muy alta y alta marginación","2","0","0","0","100","0","0","0","2","0","0","0","100","0","0","0"]
["07","CHIAPAS","SAN FRANCISCO UNINAJAB (LOS BAÑOS)","07KPR4351E","MATUTINO","COMITAN DE DOMINGUEZ","SAN FRANCISCO UNINAJAB","Comunitaria","Muy Alta y Alta","2","2","2","100","100","SI","SI","Comunitarias en el país en localidades de muy alta y alta marginación","2","0","0","0","100","0","0","0","2","0","0","0","100","0","0","0"]
["07","CHIAPAS","LA ESTRELLA","07KPR4452C","MATUTINO","MONTECRISTO DE GUERRERO","MONTE VIRGEN CANDELARIA","Comunitaria","Muy Alta y Alta","2","2","2","100","100","SI","SI","Comunitarias en el país en localidades de muy alta y alta marginación","2","0","0","0","100","0","0","0","2","0","0","0","100","0","0","0"]
["07","CHIAPAS","BRISAS LINDA VISTA","07KPR4490F","MATUTINO","VILLA CORZO","LAS BRISAS","Comunitaria","Muy Alta y Alta","2","2","2","100","100","SI","SI","Comunitarias en el país en localidades de muy alta y alta marginación","2","0","0","0","100","0","0","0","2","0","0","0","100","0","0","0"]
["07","CHIAPAS","ZAPOTE VENTANAS","07KPR4500W","MATUTINO","CHICOMUSELO","ZAPOTE VENTANAS","Comunitaria","Muy Alta y Alta","2","2","2","100","100","SI","SI","Comunitarias en el país en localidades de muy alta y alta marginación","2","0","0","0","100","0","0","0","2","0","0","0","100","0","0","0"]
["07","CHIAPAS","NUEVA REFORMA AGRARIA","07KPR4514Z","MATUTINO","MOTOZINTLA","NUEVA REFORMA AGRARIA","Comunitaria","Muy Alta y Alta","2","2","2","100","100","SI","SI","Comunitarias en el país en localidades de muy alta y alta marginación","2","0","0","0","100","0","0","0","2","0","0","0","100","0","0","0"]
["07","CHIAPAS","LA NUEVA ESPERANZA","07KPR4586S","MATUTINO","SOCOLTENANGO","NUEVA ESPERANZA","Comunitaria","Muy Alta y Alta","2","2","2","100","100","SI","SI","Comunitarias en el país en localidades de muy alta y alta marginación","2","0","0","0","100","0","0","0","2","0","0","0","100","0","0","0"]
["07","CHIAPAS","SAN JOSE OBRERO","07KPR4753Z","MATUTINO","SILTEPEC","SAN JOSE OBRERO","Comunitaria","Muy Alta y Alta","2","2","2","100","100","SI","SI","Comunitarias en el país en localidades de muy alta y alta marginación","2","0","0","0","100","0","0","0","2","0","0","0","100","0","0","0"]
["07","CHIAPAS","MACAYO QUINTA SECCION (RANCHO EL PROGRESO)","07KPR5057I","MATUTINO","REFORMA","MACAYO 5TA. SECCION","Comunitaria","Muy Alta y Alta","2","2","2","100","100","SI","SI","Comunitarias en el país en localidades de muy alta y alta marginación","2","0","0","0","100","0","0","0","2","0","0","0","100","0","0","0"]
["07","CHIAPAS","SANTO DOMINGO (LA ESPERANCITA)","07KPR5072A","MATUTINO","HUEHUETAN","CANTON ESPERANCITA","Comunitaria","Muy Alta y Alta","2","2","2","100","100","SI","SI","Comunitarias en el país en localidades de muy alta y alta marginación","2","0","0","0","100","0","0","0","2","0","0","0","100","0","0","0"]
["07","CHIAPAS","TALQUIAN VIEJO","07KPR5074Z","MATUTINO","UNION JUAREZ","TALQUIAN VIEJO","Comunitaria","Muy Alta y Alta","2","2","2","100","100","SI","SI","Comunitarias en el país en localidades de muy alta y alta marginación","2","0","0","0","100","0","0","0","2","0","0","0","100","0","0","0"]
["07","CHIAPAS","NOPALITO","07KPR5123R","MATUTINO","RAYON","NOPALITO","Comunitaria","Muy Alta y Alta","2","2","2","100","100","SI","SI","Comunitarias en el país en localidades de muy alta y alta marginación","2","0","0","0","100","0","0","0","2","0","0","0","100","0","0","0"]
["07","CHIAPAS","LA ILUSION","07KPR5150O","MATUTINO","OCOZOCOAUTLA DE ESPINOSA","LA ILUSION","Comunitaria","Muy Alta y Alta","2","2","2","100","100","SI","SI","Comunitarias en el país en localidades de muy alta y alta marginación","2","0","0","0","100","0","0","0","2","0","0","0","100","0","0","0"]
["07","CHIAPAS","OJO DE AGUA","07KPR5201E","MATUTINO","ESCUINTLA","OJO DE AGUA II","Comunitaria","Muy Alta y Alta","2","2","2","100","100","SI","SI","Comunitarias en el país en localidades de muy alta y alta marginación","2","0","0","0","100","0","0","0","2","0","0","0","100","0","0","0"]
["07","CHIAPAS","TOMAS GARRIDO CANAVAL (SAN MARCOS)","07KPR5253K","MATUTINO","TONALA","TOMAS GARRIDO CANAVAL (SAN MARCOS)","Comunitaria","Muy Alta y Alta","2","2","2","100","100","SI","SI","Comunitarias en el país en localidades de muy alta y alta marginación","2","0","0","0","100","0","0","0","2","0","0","0","100","0","0","0"]
["07","CHIAPAS","LOMA BONITA","07KPR5440E","MATUTINO","LA GRANDEZA","LOMA BONITA","Comunitaria","Muy Alta y Alta","2","2","2","100","100","SI","SI","Comunitarias en el país en localidades de muy alta y alta marginación","2","0","0","0","100","0","0","0","2","0","0","0","100","0","0","0"]
["07","CHIAPAS","PRIMARIA COMUNITARIA","07KPR5441D","MATUTINO","IXHUATAN","EL MAJAGUAL","Comunitaria","Muy Alta y Alta","2","2","2","100","100","SI","SI","Comunitarias en el país en localidades de muy alta y alta marginación","2","0","0","0","100","0","0","0","2","0","0","0","100","0","0","0"]
["07","CHIAPAS","EL BELEN","07KPR5474V","MATUTINO","AMATAN","EL BELEN","Comunitaria","Muy Alta y Alta","2","2","2","100","100","SI","SI","Comunitarias en el país en localidades de muy alta y alta marginación","2","0","0","0","100","0","0","0","2","0","0","0","100","0","0","0"]
["07","CHIAPAS","LAS TRES CRUCES","07KPR5489X","MATUTINO","LAS MARGARITAS","LAS CRUCES","Comunitaria","Muy Alta y Alta","2","2","2","100","100","SI","SI","Comunitarias en el país en localidades de muy alta y alta marginación","2","0","0","0","100","0","0","0","2","0","0","0","100","0","0","0"]
["07","CHIAPAS","SANTA FE","07KPR5490M","MATUTINO","LAS MARGARITAS","SANTA FE","Comunitaria","Muy Alta y Alta","2","2","2","100","100","SI","SI","Comunitarias en el país en localidades de muy alta y alta marginación","2","0","0","0","100","0","0","0","2","0","0","0","100","0","0","0"]
["07","CHIAPAS","SAN GUILLERMO","07KPR5551J","MATUTINO","VILLAFLORES","SAN GUILLERMO","Comunitaria","Muy Alta y Alta","2","2","2","100","100","SI","SI","Comunitarias en el país en localidades de muy alta y alta marginación","2","0","0","0","100","0","0","0","2","0","0","0","100","0","0","0"]
["07","CHIAPAS","NUEVO CENTRO DE POBLACION JOSE CASTILLO TIELMANS","07KPR5584A","MATUTINO","CINTALAPA","NUEVO AMANECER TENEJAPA","Comunitaria","Muy Alta y Alta","2","2","2","100","100","SI","SI","Comunitarias en el país en localidades de muy alta y alta marginación","2","0","0","0","100","0","0","0","2","0","0","0","100","0","0","0"]
["07","CHIAPAS","CABENA","07KPR5603Z","MATUTINO","LA INDEPENDENCIA","CABENA","Comunitaria","Muy Alta y Alta","2","2","2","100","100","SI","SI","Comunitarias en el país en localidades de muy alta y alta marginación","2","0","0","0","100","0","0","0","2","0","0","0","100","0","0","0"]
["07","CHIAPAS","SANTA ANA","07KPR5652H","MATUTINO","LA TRINITARIA","SANTA ANA","Comunitaria","Muy Alta y Alta","2","2","2","100","100","SI","SI","Comunitarias en el país en localidades de muy alta y alta marginación","2","0","0","0","100","0","0","0","2","0","0","0","100","0","0","0"]
["07","CHIAPAS","EL CHILAR","07KPR5658B","MATUTINO","VILLA CORZO","EL CHILAR","Comunitaria","Muy Alta y Alta","2","2","2","100","100","SI","SI","Comunitarias en el país en localidades de muy alta y alta marginación","2","0","0","0","100","0","0","0","2","0","0","0","100","0","0","0"]
["07","CHIAPAS","CERRO MATASANO","07KPR5709S","MATUTINO","BOCHIL","CERRO MATASANO","Comunitaria","Muy Alta y Alta","2","2","2","100","100","SI","SI","Comunitarias en el país en localidades de muy alta y alta marginación","2","0","0","0","100","0","0","0","2","0","0","0","100","0","0","0"]
["07","CHIAPAS","LAS PILAS","07KPR5720O","MATUTINO","SILTEPEC","LAS PILAS","Comunitaria","Muy Alta y Alta","2","2","2","100","100","SI","SI","Comunitarias en el país en localidades de muy alta y alta marginación","2","0","0","0","100","0","0","0","2","0","0","0","100","0","0","0"]
["07","CHIAPAS","NUEVO SUCLUMPA","07KPR5802Y","MATUTINO","PALENQUE","NUEVO SUCLUMPA","Comunitaria","Muy Alta y Alta","2","2","2","100","100","SI","SI","Comunitarias en el país en localidades de muy alta y alta marginación","2","0","0","0","100","0","0","0","2","0","0","0","100","0","0","0"]
["07","CHIAPAS","LA CAÑADA","07KPR5863L","MATUTINO","MARAVILLA TENEJAPA","LA CAÑADA","Comunitaria","Muy Alta y Alta","2","2","2","100","100","SI","SI","Comunitarias en el país en localidades de muy alta y alta marginación","2","0","0","0","100","0","0","0","2","0","0","0","100","0","0","0"]
["07","CHIAPAS","SAN JOAQUIN","07KPR5873S","MATUTINO","OCOZOCOAUTLA DE ESPINOSA","SAN JOAQUIN EL ROSARIO","Comunitaria","Muy Alta y Alta","2","2","2","100","100","SI","SI","Comunitarias en el país en localidades de muy alta y alta marginación","2","0","0","0","100","0","0","0","2","0","0","0","100","0","0","0"]
["07","CHIAPAS","EL TABLON CHIQUITO","07KPR5926G","MATUTINO","AMATENANGO DE LA FRONTERA","EL TABLON CHIQUITO (DESVIO LOS RAMIREZ)","Comunitaria","Muy Alta y Alta","2","2","2","100","100","SI","SI","Comunitarias en el país en localidades de muy alta y alta marginación","2","0","0","0","100","0","0","0","2","0","0","0","100","0","0","0"]
["07","CHIAPAS","SIN NOMBRE (SEBASTIAN PEREZ NUÑEZ) (LA LIBERTAD)","07KPR5956A","MATUTINO","RAYON","SEBASTIAN PEREZ NUÑEZ","Comunitaria","Muy Alta y Alta","2","2","2","100","100","SI","SI","Comunitarias en el país en localidades de muy alta y alta marginación","2","0","0","0","100","0","0","0","2","0","0","0","100","0","0","0"]
["07","CHIAPAS","SAN ISIDRO","07KPR6042N","MATUTINO","PUEBLO NUEVO SOLISTAHUACAN","SAN ISIDRO","Comunitaria","Muy Alta y Alta","2","2","2","100","100","SI","SI","Comunitarias en el país en localidades de muy alta y alta marginación","2","0","0","0","100","0","0","0","2","0","0","0","100","0","0","0"]
["07","CHIAPAS","LIQUILWITZ","07KPB0039K","MATUTINO","CHILON","EL NARANJO LIQUILWITZ","Comunitaria","Muy Alta y Alta","3","3","3","100","100","SI","SI","Comunitarias en el país en localidades de muy alta y alta marginación","3","0","0","0","100","0","0","0","3","0","0","0","100","0","0","0"]
["07","CHIAPAS","LA PITAHAYA","07KPB0115Z","MATUTINO","BOCHIL","LA PITAHAYA","Comunitaria","Muy Alta y Alta","3","3","3","100","100","SI","SI","Comunitarias en el país en localidades de muy alta y alta marginación","3","0","0","0","100","0","0","0","3","0","0","0","100","0","0","0"]
["07","CHIAPAS","DOLORES PETAQUIL","07KPB0122J","MATUTINO","PANTELHO","DOLORES PETAQUIL","Comunitaria","Muy Alta y Alta","3","3","3","100","100","SI","SI","Comunitarias en el país en localidades de muy alta y alta marginación","3","0","0","0","100","0","0","0","3","0","0","0","100","0","0","0"]
["07","CHIAPAS","SAN JOSE CHACTU","07KPB0133P","MATUTINO","PANTELHO","SAN JOSE CHACTU","Comunitaria","Muy Alta y Alta","3","3","3","100","100","SI","SI","Comunitarias en el país en localidades de muy alta y alta marginación","3","0","0","0","100","0","0","0","3","0","0","0","100","0","0","0"]
["07","CHIAPAS","QUESHTIC","07KPB0139J","MATUTINO","CHENALHO","QUESHTIC","Comunitaria","Muy Alta y Alta","3","3","3","100","100","SI","SI","Comunitarias en el país en localidades de muy alta y alta marginación","3","0","0","0","100","0","0","0","3","0","0","0","100","0","0","0"]
["07","CHIAPAS","JOL PACUTE","07KPB0170T","MATUTINO","OCOSINGO","JOL PACUTE","Comunitaria","Muy Alta y Alta","3","3","3","100","100","SI","SI","Comunitarias en el país en localidades de muy alta y alta marginación","3","0","0","0","100","0","0","0","3","0","0","0","100","0","0","0"]
["07","CHIAPAS","LA PIEDRECITA","07KPB0229B","MATUTINO","CHILON","LA PIEDRECITA","Comunitaria","Muy Alta y Alta","3","3","3","100","100","SI","SI","Comunitarias en el país en localidades de muy alta y alta marginación","3","0","0","0","100","0","0","0","3","0","0","0","100","0","0","0"]
["07","CHIAPAS","XANIL II SECCION","07KPB0236L","MATUTINO","CHILON","XANIL II SECCION","Comunitaria","Muy Alta y Alta","3","3","3","100","100","SI","SI","Comunitarias en el país en localidades de muy alta y alta marginación","3","0","0","0","100","0","0","0","3","0","0","0","100","0","0","0"]
["07","CHIAPAS","BATZITETIC","07KPB0268D","MATUTINO","LARRAINZAR","BATZITETIC","Comunitaria","Muy Alta y Alta","3","3","3","100","100","SI","SI","Comunitarias en el país en localidades de muy alta y alta marginación","3","0","0","0","100","0","0","0","3","0","0","0","100","0","0","0"]
["07","CHIAPAS","AJTETIC BAJO UNO","07KPB0343U","MATUTINO","ZINACANTAN","AJTETIC BAJO I","Comunitaria","Muy Alta y Alta","3","3","3","100","100","SI","SI","Comunitarias en el país en localidades de muy alta y alta marginación","3","0","0","0","100","0","0","0","3","0","0","0","100","0","0","0"]
["07","CHIAPAS","LA ISLA","07KPB0416W","MATUTINO","YAJALON","LA ISLA","Comunitaria","Muy Alta y Alta","3","3","3","100","100","SI","SI","Comunitarias en el país en localidades de muy alta y alta marginación","3","0","0","0","100","0","0","0","3","0","0","0","100","0","0","0"]
["07","CHIAPAS","MAZAM","07KPB0421H","MATUTINO","ZINACANTAN","MAZAM","Comunitaria","Muy Alta y Alta","3","3","3","100","100","SI","SI","Comunitarias en el país en localidades de muy alta y alta marginación","3","0","0","0","100","0","0","0","3","0","0","0","100","0","0","0"]
["07","CHIAPAS","SAN ANTONIO MONTERREY","07KPB0433M","MATUTINO","ALTAMIRANO","SAN ANTONIO MONTERREY","Comunitaria","Muy Alta y Alta","3","3","3","100","100","SI","SI","Comunitarias en el país en localidades de muy alta y alta marginación","3","0","0","0","100","0","0","0","3","0","0","0","100","0","0","0"]
["07","CHIAPAS","LA PAZ","07KPB0500U","MATUTINO","SIMOJOVEL","LA PAZ","Comunitaria","Muy Alta y Alta","3","3","3","100","100","SI","SI","Comunitarias en el país en localidades de muy alta y alta marginación","3","0","0","0","100","0","0","0","3","0","0","0","100","0","0","0"]
["07","CHIAPAS","EL LIMONAL","07KPB0555X","MATUTINO","ALTAMIRANO","EL LIMONAL","Comunitaria","Muy Alta y Alta","3","3","3","100","100","SI","SI","Comunitarias en el país en localidades de muy alta y alta marginación","3","0","0","0","100","0","0","0","3","0","0","0","100","0","0","0"]
["07","CHIAPAS","PEÑA BLANCA","07KPB0603Q","MATUTINO","LARRAINZAR","PEÑA BLANCA","Comunitaria","Muy Alta y Alta","3","3","3","100","100","SI","SI","Comunitarias en el país en localidades de muy alta y alta marginación","3","0","0","0","100","0","0","0","3","0","0","0","100","0","0","0"]
["07","CHIAPAS","SAN JOSE CHACTE","07KPB0966Z","MATUTINO","SAN JUAN CANCUC","SAN JOSE CHACTE","Comunitaria","Muy Alta y Alta","3","3","3","100","100","SI","SI","Comunitarias en el país en localidades de muy alta y alta marginación","3","0","0","0","100","0","0","0","3","0","0","0","100","0","0","0"]
["07","CHIAPAS","GUAPACAL ANEXO TIUTZOL","07KPB1152K","MATUTINO","TILA","GUAPACAL","Comunitaria","Muy Alta y Alta","3","3","3","100","100","SI","SI","Comunitarias en el país en localidades de muy alta y alta marginación","3","0","0","0","100","0","0","0","3","0","0","0","100","0","0","0"]
["07","CHIAPAS","SAQUILJA","07KPB1382C","MATUTINO","OCOSINGO","SAQUILJA","Comunitaria","Muy Alta y Alta","3","3","3","100","100","SI","SI","Comunitarias en el país en localidades de muy alta y alta marginación","3","0","0","0","100","0","0","0","3","0","0","0","100","0","0","0"]
["07","CHIAPAS","PRIMARIA CONAFE INDIGENA","07KPB1386Z","MATUTINO","SIMOJOVEL","LOS ARRAYANES","Comunitaria","Muy Alta y Alta","3","3","3","100","100","SI","SI","Comunitarias en el país en localidades de muy alta y alta marginación","3","0","0","0","100","0","0","0","3","0","0","0","100","0","0","0"]
["07","CHIAPAS","BA-NAVIL","07KPB1496E","MATUTINO","CHILON","BA-NABIL","Comunitaria","Muy Alta y Alta","3","3","3","100","100","SI","SI","Comunitarias en el país en localidades de muy alta y alta marginación","3","0","0","0","100","0","0","0","3","0","0","0","100","0","0","0"]
["07","CHIAPAS","SAN MIGUEL JOCOTAQUIN","07KPB1569G","MATUTINO","CHILON","SAN MIGUEL JOCOTAQUIN","Comunitaria","Muy Alta y Alta","3","3","3","100","100","SI","SI","Comunitarias en el país en localidades de muy alta y alta marginación","3","0","0","0","100","0","0","0","3","0","0","0","100","0","0","0"]
["07","CHIAPAS","JABALTOJTIC","07KPB1630U","MATUTINO","SAN CRISTOBAL DE LAS CASAS","JABALTOJTIC","Comunitaria","Muy Alta y Alta","3","3","3","100","100","SI","SI","Comunitarias en el país en localidades de muy alta y alta marginación","3","0","0","0","100","0","0","0","3","0","0","0","100","0","0","0"]
["07","CHIAPAS","YUTOSIL II","07KPB1669F","MATUTINO","CHAMULA","YUT OSIL DOS","Comunitaria","Muy Alta y Alta","3","3","3","100","100","SI","SI","Comunitarias en el país en localidades de muy alta y alta marginación","3","0","0","0","100","0","0","0","3","0","0","0","100","0","0","0"]
["07","CHIAPAS","ANEXO BENITO JUAREZ","07KPB1709Q","MATUTINO","SABANILLA","BENITO JUAREZ","Comunitaria","Muy Alta y Alta","3","3","3","100","100","SI","SI","Comunitarias en el país en localidades de muy alta y alta marginación","3","0","0","0","100","0","0","0","3","0","0","0","100","0","0","0"]
["07","CHIAPAS","ECH'TIK","07KPB1743X","MATUTINO","LARRAINZAR","ECH'TIK","Comunitaria","Muy Alta y Alta","3","3","3","100","100","SI","SI","Comunitarias en el país en localidades de muy alta y alta marginación","3","0","0","0","100","0","0","0","3","0","0","0","100","0","0","0"]
["07","CHIAPAS","PRIMARIA CONAFE INDIGENA","07KPB1747T","MATUTINO","LARRAINZAR","TAJLEBILHO","Comunitaria","Muy Alta y Alta","3","3","3","100","100","SI","SI","Comunitarias en el país en localidades de muy alta y alta marginación","3","0","0","0","100","0","0","0","3","0","0","0","100","0","0","0"]
["07","CHIAPAS","CHILILJA","07KPB1800Y","MATUTINO","YAJALON","CHILILJA","Comunitaria","Muy Alta y Alta","3","3","3","100","100","SI","SI","Comunitarias en el país en localidades de muy alta y alta marginación","3","0","0","0","100","0","0","0","3","0","0","0","100","0","0","0"]
["07","CHIAPAS","VEINTE DE NOVIEMBRE","07KPB1813B","MATUTINO","TILA","VEINTE DE NOVIEMBRE","Comunitaria","Muy Alta y Alta","3","3","3","100","100","SI","SI","Comunitarias en el país en localidades de muy alta y alta marginación","3","0","0","0","100","0","0","0","3","0","0","0","100","0","0","0"]
["07","CHIAPAS","GENERAL CASTELLANOS DOMINGUEZ","07KPB1841Y","MATUTINO","SABANILLA","GENERAL CASTELLANOS DOMINGUEZ","Comunitaria","Muy Alta y Alta","3","3","3","100","100","SI","SI","Comunitarias en el país en localidades de muy alta y alta marginación","3","0","0","0","100","0","0","0","3","0","0","0","100","0","0","0"]
["07","CHIAPAS","JOL AQUIL 1A SECCION","07KPB1853C","MATUTINO","CHILON","JOL AQUIL 1RA. SECCION","Comunitaria","Muy Alta y Alta","3","3","3","100","100","SI","SI","Comunitarias en el país en localidades de muy alta y alta marginación","3","0","0","0","100","0","0","0","3","0","0","0","100","0","0","0"]
["07","CHIAPAS","BATZITETIC","07KPB1874P","MATUTINO","LARRAINZAR","BATZITETIC","Comunitaria","Muy Alta y Alta","3","3","3","100","100","SI","SI","Comunitarias en el país en localidades de muy alta y alta marginación","3","0","0","0","100","0","0","0","3","0","0","0","100","0","0","0"]
["07","CHIAPAS","ANEXO MUCTAHUITZ","07KPB1893D","MATUTINO","LARRAINZAR","ANEXO MUCTAHUITZ","Comunitaria","Muy Alta y Alta","3","3","3","100","100","SI","SI","Comunitarias en el país en localidades de muy alta y alta marginación","3","0","0","0","100","0","0","0","3","0","0","0","100","0","0","0"]
["07","CHIAPAS","SUSUCLUMIL","07KPB1905S","MATUTINO","TILA","SUSUCLUMIL","Comunitaria","Muy Alta y Alta","3","3","3","100","100","SI","SI","Comunitarias en el país en localidades de muy alta y alta marginación","3","0","0","0","100","0","0","0","3","0","0","0","100","0","0","0"]
["07","CHIAPAS","SANTA ROSA","07KPR0133Q","MATUTINO","ESCUINTLA","SANTA ROSA","Comunitaria","Muy Alta y Alta","3","3","3","100","100","SI","SI","Comunitarias en el país en localidades de muy alta y alta marginación","3","0","0","0","100","0","0","0","3","0","0","0","100","0","0","0"]
["07","CHIAPAS","PRIMARIA CONAFE","07KPR0290G","MATUTINO","VILLA CORZO","PATRIA CHICA","Comunitaria","Muy Alta y Alta","3","3","3","100","100","SI","SI","Comunitarias en el país en localidades de muy alta y alta marginación","3","0","0","0","100","0","0","0","3","0","0","0","100","0","0","0"]
["07","CHIAPAS","EL PEDERNAL","07KPR0389Q","MATUTINO","LA TRINITARIA","EL PEDERNAL","Comunitaria","Muy Alta y Alta","3","3","3","100","100","SI","SI","Comunitarias en el país en localidades de muy alta y alta marginación","3","0","0","0","100","0","0","0","3","0","0","0","100","0","0","0"]
["07","CHIAPAS","EL POTRERILLO","07KPR0401V","MATUTINO","LA TRINITARIA","EL POTRERILLO","Comunitaria","Muy Alta y Alta","3","3","3","100","100","SI","SI","Comunitarias en el país en localidades de muy alta y alta marginación","3","0","0","0","100","0","0","0","3","0","0","0","100","0","0","0"]
["07","CHIAPAS","VILLALEN","07KPR0453A","MATUTINO","VILLA CORZO","VILLALEN","Comunitaria","Muy Alta y Alta","3","3","3","100","100","SI","SI","Comunitarias en el país en localidades de muy alta y alta marginación","3","0","0","0","100","0","0","0","3","0","0","0","100","0","0","0"]
["07","CHIAPAS","EL CUCAYO SEGUNDA SECCION","07KPR0594Z","MATUTINO","SUNUAPA","EL CUCAYO 2DA. SECCION","Comunitaria","Muy Alta y Alta","3","3","3","100","100","SI","SI","Comunitarias en el país en localidades de muy alta y alta marginación","3","0","0","0","100","0","0","0","3","0","0","0","100","0","0","0"]
["07","CHIAPAS","PLANADA BUENAVISTA","07KPR0850Z","MATUTINO","SIMOJOVEL","PLANADA BUENAVISTA","Comunitaria","Muy Alta y Alta","3","3","3","100","100","SI","SI","Comunitarias en el país en localidades de muy alta y alta marginación","3","0","0","0","100","0","0","0","3","0","0","0","100","0","0","0"]
["07","CHIAPAS","PINADA PIEDRA VENTANA","07KPR0907K","MATUTINO","SILTEPEC","PINADA PIEDRA VENTANA","Comunitaria","Muy Alta y Alta","3","3","3","100","100","SI","SI","Comunitarias en el país en localidades de muy alta y alta marginación","3","0","0","0","100","0","0","0","3","0","0","0","100","0","0","0"]
["07","CHIAPAS","LAS MARGARITAS","07KPR1402A","MATUTINO","CHICOMUSELO","LAS MARGARITAS","Comunitaria","Muy Alta y Alta","3","3","3","100","100","SI","SI","Comunitarias en el país en localidades de muy alta y alta marginación","3","0","0","0","100","0","0","0","3","0","0","0","100","0","0","0"]
["07","CHIAPAS","SAN JOSE GUADALUPE","07KPR1457D","MATUTINO","LA TRINITARIA","SAN JOSE GUADALUPE","Comunitaria","Muy Alta y Alta","3","3","3","100","100","SI","SI","Comunitarias en el país en localidades de muy alta y alta marginación","3","0","0","0","100","0","0","0","3","0","0","0","100","0","0","0"]
["07","CHIAPAS","VADO ANCHO","07KPR1629F","MATUTINO","CHICOMUSELO","VADO ANCHO","Comunitaria","Muy Alta y Alta","3","3","3","100","100","SI","SI","Comunitarias en el país en localidades de muy alta y alta marginación","3","0","0","0","100","0","0","0","3","0","0","0","100","0","0","0"]
["07","CHIAPAS","SANTA JULIA","07KPR1688V","MATUTINO","LA TRINITARIA","SANTA JULIA","Comunitaria","Muy Alta y Alta","3","3","3","100","100","SI","SI","Comunitarias en el país en localidades de muy alta y alta marginación","3","0","0","0","100","0","0","0","3","0","0","0","100","0","0","0"]
["07","CHIAPAS","PRIMARIA CONAFE","07KPR1736O","MATUTINO","OSTUACAN","LAGUNA ARRIBA","Comunitaria","Muy Alta y Alta","3","3","3","100","100","SI","SI","Comunitarias en el país en localidades de muy alta y alta marginación","3","0","0","0","100","0","0","0","3","0","0","0","100","0","0","0"]
["07","CHIAPAS","CACATE","07KPR2100M","MATUTINO","RAYON","CACATE","Comunitaria","Muy Alta y Alta","3","3","3","100","100","SI","SI","Comunitarias en el país en localidades de muy alta y alta marginación","3","0","0","0","100","0","0","0","3","0","0","0","100","0","0","0"]
["07","CHIAPAS","PUEBLO NUEVO DE LA NUEVA CONSTITUCION","07KPR2101L","MATUTINO","AMATAN","PUEBLO NUEVO DE LA NUEVA CONSTITUCION","Comunitaria","Muy Alta y Alta","3","3","3","100","100","SI","SI","Comunitarias en el país en localidades de muy alta y alta marginación","3","0","0","0","100","0","0","0","3","0","0","0","100","0","0","0"]
["07","CHIAPAS","LAS FLORES (LOMA BONITA)","07KPR2119K","MATUTINO","SILTEPEC","LAS FLORES (LOMA BONITA)","Comunitaria","Muy Alta y Alta","3","3","3","100","100","SI","SI","Comunitarias en el país en localidades de muy alta y alta marginación","3","0","0","0","100","0","0","0","3","0","0","0","100","0","0","0"]
["07","CHIAPAS","RINCON VARITAS","07KPR2332C","MATUTINO","SILTEPEC","RINCON VARITAS","Comunitaria","Muy Alta y Alta","3","3","3","100","100","SI","SI","Comunitarias en el país en localidades de muy alta y alta marginación","3","0","0","0","100","0","0","0","3","0","0","0","100","0","0","0"]
["07","CHIAPAS","MONTEBELLO (PACAYALITO)","07KPR2334A","MATUTINO","SILTEPEC","MONTEBELLO (PACAYALITO)","Comunitaria","Muy Alta y Alta","3","3","3","100","100","SI","SI","Comunitarias en el país en localidades de muy alta y alta marginación","3","0","0","0","100","0","0","0","3","0","0","0","100","0","0","0"]
["07","CHIAPAS","MORELOS","07KPR2500I","MATUTINO","CHICOMUSELO","MORELOS","Comunitaria","Muy Alta y Alta","3","3","3","100","100","SI","SI","Comunitarias en el país en localidades de muy alta y alta marginación","3","0","0","0","100","0","0","0","3","0","0","0","100","0","0","0"]
["07","CHIAPAS","PRIMERO DE MAYO","07KPR2503F","MATUTINO","CHICOMUSELO","1RO. DE MAYO","Comunitaria","Muy Alta y Alta","3","3","3","100","100","SI","SI","Comunitarias en el país en localidades de muy alta y alta marginación","3","0","0","0","100","0","0","0","3","0","0","0","100","0","0","0"]
["07","CHIAPAS","GUADALUPE PACAYAL","07KPR2732Z","MATUTINO","BELLA VISTA","GUADALUPE","Comunitaria","Muy Alta y Alta","3","3","3","100","100","SI","SI","Comunitarias en el país en localidades de muy alta y alta marginación","3","0","0","0","100","0","0","0","3","0","0","0","100","0","0","0"]
["07","CHIAPAS","BENITO JUAREZ PRIMERA SECCION","07KPR2816G","MATUTINO","LA LIBERTAD","BENITO JUAREZ 1RA. SECCION","Comunitaria","Muy Alta y Alta","3","3","3","100","100","SI","SI","Comunitarias en el país en localidades de muy alta y alta marginación","3","0","0","0","100","0","0","0","3","0","0","0","100","0","0","0"]
["07","CHIAPAS","PLAYA LARGA PRIMERA SECCION RANCHO LAS CRUCES","07KPR2841F","MATUTINO","OSTUACAN","PLAYA LARGA 1RA. SECCION","Comunitaria","Muy Alta y Alta","3","3","3","100","100","SI","SI","Comunitarias en el país en localidades de muy alta y alta marginación","3","0","0","0","100","0","0","0","3","0","0","0","100","0","0","0"]
["07","CHIAPAS","UNION ALTAMIRA","07KPR2926M","MATUTINO","SILTEPEC","UNION ALTAMIRA","Comunitaria","Muy Alta y Alta","3","3","3","100","100","SI","SI","Comunitarias en el país en localidades de muy alta y alta marginación","3","0","0","0","100","0","0","0","3","0","0","0","100","0","0","0"]
["07","CHIAPAS","GENERAL EMILIANO ZAPATA","07KPR2948Y","MATUTINO","TAPILULA","SAN VICENTE AGUA CLARA","Comunitaria","Muy Alta y Alta","3","3","3","100","100","SI","SI","Comunitarias en el país en localidades de muy alta y alta marginación","3","0","0","0","100","0","0","0","3","0","0","0","100","0","0","0"]
["07","CHIAPAS","SANTA ROSA","07KPR3140U","MATUTINO","SILTEPEC","SANTA ROSA","Comunitaria","Muy Alta y Alta","3","3","3","100","100","SI","SI","Comunitarias en el país en localidades de muy alta y alta marginación","3","0","0","0","100","0","0","0","3","0","0","0","100","0","0","0"]
["07","CHIAPAS","NUEVA REVOLUCION","07KPR3466Z","MATUTINO","TECPATAN","RAUDALES MALPASO","Comunitaria","Muy Alta y Alta","3","3","3","100","100","SI","SI","Comunitarias en el país en localidades de muy alta y alta marginación","3","0","0","0","100","0","0","0","3","0","0","0","100","0","0","0"]
["07","CHIAPAS","SANTA CRUZ EL MANANTIAL","07KPR3483P","MATUTINO","LAS MARGARITAS","SANTA CRUZ EL MANANTIAL","Comunitaria","Muy Alta y Alta","3","3","3","100","100","SI","SI","Comunitarias en el país en localidades de muy alta y alta marginación","3","0","0","0","100","0","0","0","3","0","0","0","100","0","0","0"]
["07","CHIAPAS","LA POLKITA","07KPR3520C","MATUTINO","TONALA","LA POLKITA","Comunitaria","Muy Alta y Alta","3","3","3","100","100","SI","SI","Comunitarias en el país en localidades de muy alta y alta marginación","3","0","0","0","100","0","0","0","3","0","0","0","100","0","0","0"]
["07","CHIAPAS","EL ESPEJO","07KPR3590Y","MATUTINO","PALENQUE","EL ESPEJO","Comunitaria","Muy Alta y Alta","3","3","3","100","100","SI","SI","Comunitarias en el país en localidades de muy alta y alta marginación","3","0","0","0","100","0","0","0","3","0","0","0","100","0","0","0"]
["07","CHIAPAS","LA CANDELARIA","07KPR3615Q","MATUTINO","LA TRINITARIA","LA CANDELARIA","Comunitaria","Muy Alta y Alta","3","3","3","100","100","SI","SI","Comunitarias en el país en localidades de muy alta y alta marginación","3","0","0","0","100","0","0","0","3","0","0","0","100","0","0","0"]
["07","CHIAPAS","SAN ANTONIO AZAPAC","07KPR3618N","MATUTINO","TECPATAN","SAN ANTONIO AZAPAC","Comunitaria","Muy Alta y Alta","3","3","3","100","100","SI","SI","Comunitarias en el país en localidades de muy alta y alta marginación","3","0","0","0","100","0","0","0","3","0","0","0","100","0","0","0"]
["07","CHIAPAS","JOSE LOPEZ PORTILLO","07KPR3640P","MATUTINO","MARQUES DE COMILLAS","JOSE LOPEZ PORTILLO","Comunitaria","Muy Alta y Alta","3","3","3","100","100","SI","SI","Comunitarias en el país en localidades de muy alta y alta marginación","3","0","0","0","100","0","0","0","3","0","0","0","100","0","0","0"]
["07","CHIAPAS","TRANSITO DOS","07KPR3655R","MATUTINO","JITOTOL","TRANSITO DOS","Comunitaria","Muy Alta y Alta","3","3","3","100","100","SI","SI","Comunitarias en el país en localidades de muy alta y alta marginación","3","0","0","0","100","0","0","0","3","0","0","0","100","0","0","0"]
["07","CHIAPAS","EL CHILAR","07KPR3697Q","MATUTINO","BELLA VISTA","EL CHILAR","Comunitaria","Muy Alta y Alta","3","3","3","100","100","SI","SI","Comunitarias en el país en localidades de muy alta y alta marginación","3","0","0","0","100","0","0","0","3","0","0","0","100","0","0","0"]
["07","CHIAPAS","EL PINO","07KPR3698P","MATUTINO","LA GRANDEZA","EL PINO","Comunitaria","Muy Alta y Alta","3","3","3","100","100","SI","SI","Comunitarias en el país en localidades de muy alta y alta marginación","3","0","0","0","100","0","0","0","3","0","0","0","100","0","0","0"]
["07","CHIAPAS","SAN CRISTOBAL BUENOS AIRES","07KPR3797P","MATUTINO","LAS MARGARITAS","SAN CRISTOBAL BUENOS AIRES","Comunitaria","Muy Alta y Alta","3","3","3","100","100","SI","SI","Comunitarias en el país en localidades de muy alta y alta marginación","3","0","0","0","100","0","0","0","3","0","0","0","100","0","0","0"]
["07","CHIAPAS","EL COQUITO","07KPR3804I","MATUTINO","OCOZOCOAUTLA DE ESPINOSA","EL COQUITO","Comunitaria","Muy Alta y Alta","3","3","3","100","100","SI","SI","Comunitarias en el país en localidades de muy alta y alta marginación","3","0","0","0","100","0","0","0","3","0","0","0","100","0","0","0"]
["07","CHIAPAS","EL VALLE","07KPR3840N","MATUTINO","CINTALAPA","SAN ANTONIO DEL VALLE","Comunitaria","Muy Alta y Alta","3","3","3","100","100","SI","SI","Comunitarias en el país en localidades de muy alta y alta marginación","3","0","0","0","100","0","0","0","3","0","0","0","100","0","0","0"]
["07","CHIAPAS","LOS POCITOS","07KPR3887H","MATUTINO","BELLA VISTA","LOS POCITOS","Comunitaria","Muy Alta y Alta","3","3","3","100","100","SI","SI","Comunitarias en el país en localidades de muy alta y alta marginación","3","0","0","0","100","0","0","0","3","0","0","0","100","0","0","0"]
["07","CHIAPAS","CRUZ DE PIEDRA","07KPR4519U","MATUTINO","SILTEPEC","CRUZ DE PIEDRA","Comunitaria","Muy Alta y Alta","3","3","3","100","100","SI","SI","Comunitarias en el país en localidades de muy alta y alta marginación","3","0","0","0","100","0","0","0","3","0","0","0","100","0","0","0"]
["07","CHIAPAS","SANTA ANITA","07KPR4577K","MATUTINO","LA CONCORDIA","SANTA ANITA","Comunitaria","Muy Alta y Alta","3","3","3","100","100","SI","SI","Comunitarias en el país en localidades de muy alta y alta marginación","3","0","0","0","100","0","0","0","3","0","0","0","100","0","0","0"]
["07","CHIAPAS","SANTO DOMINGO","07KPR5228L","MATUTINO","CHICOMUSELO","SANTO DOMINGO","Comunitaria","Muy Alta y Alta","3","3","3","100","100","SI","SI","Comunitarias en el país en localidades de muy alta y alta marginación","3","0","0","0","100","0","0","0","3","0","0","0","100","0","0","0"]
["07","CHIAPAS","20 DE NOVIEMBRE","07KPR5506X","MATUTINO","VILLA CORZO","20 DE NOVIEMBRE","Comunitaria","Muy Alta y Alta","3","3","3","100","100","SI","SI","Comunitarias en el país en localidades de muy alta y alta marginación","3","0","0","0","100","0","0","0","3","0","0","0","100","0","0","0"]
["07","CHIAPAS","PRIMARIA CONAFE","07KPR5639N","MATUTINO","SAN FERNANDO","CANDELARIA","Comunitaria","Muy Alta y Alta","3","3","3","100","100","SI","SI","Comunitarias en el país en localidades de muy alta y alta marginación","3","0","0","0","100","0","0","0","3","0","0","0","100","0","0","0"]
["07","CHIAPAS","SAN RAMON","07KPR5748U","MATUTINO","COMITAN DE DOMINGUEZ","SAN RAMON","Comunitaria","Muy Alta y Alta","3","3","3","100","100","SI","SI","Comunitarias en el país en localidades de muy alta y alta marginación","3","0","0","0","100","0","0","0","3","0","0","0","100","0","0","0"]
["07","CHIAPAS","PLAN DE AYALA","07KPR5803X","MATUTINO","SALTO DE AGUA","PLAN DE AYALA","Comunitaria","Muy Alta y Alta","3","3","3","100","100","SI","SI","Comunitarias en el país en localidades de muy alta y alta marginación","3","0","0","0","100","0","0","0","3","0","0","0","100","0","0","0"]
["07","CHIAPAS","EL CANACAL (TOCANAQUE)","07KPR5932R","MATUTINO","SILTEPEC","EL CANACAL (TOCANAQUE)","Comunitaria","Muy Alta y Alta","3","3","3","100","100","SI","SI","Comunitarias en el país en localidades de muy alta y alta marginación","3","0","0","0","100","0","0","0","3","0","0","0","100","0","0","0"]
["07","CHIAPAS","BUENAVISTA","07KPR5989S","MATUTINO","ACACOYAGUA","BUENAVISTA","Comunitaria","Muy Alta y Alta","3","3","3","100","100","SI","SI","Comunitarias en el país en localidades de muy alta y alta marginación","3","0","0","0","100","0","0","0","3","0","0","0","100","0","0","0"]
["07","CHIAPAS","EL BARRIAL (BARRIO ALTO)","07KPR5992F","MATUTINO","ESCUINTLA","EL BARRIAL","Comunitaria","Muy Alta y Alta","3","3","3","100","100","SI","SI","Comunitarias en el país en localidades de muy alta y alta marginación","3","0","0","0","100","0","0","0","3","0","0","0","100","0","0","0"]
["07","CHIAPAS","VILLA DEL RIO","07KPR6014R","MATUTINO","CINTALAPA","VILLA DEL RIO","Comunitaria","Muy Alta y Alta","3","3","3","100","100","SI","SI","Comunitarias en el país en localidades de muy alta y alta marginación","3","0","0","0","100","0","0","0","3","0","0","0","100","0","0","0"]
["07","CHIAPAS","BERLIN","07KPB0001Y","MATUTINO","AMATAN","BERLIN","Comunitaria","Muy Alta y Alta","4","4","4","100","100","SI","SI","Comunitarias en el país en localidades de muy alta y alta marginación","4","0","0","0","100","0","0","0","4","0","0","0","100","0","0","0"]
["07","CHIAPAS","ARROYO SECO","07KPB0006T","MATUTINO","AMATAN","ARROYO SECO","Comunitaria","Muy Alta y Alta","4","4","4","100","100","SI","SI","Comunitarias en el país en localidades de muy alta y alta marginación","4","0","0","0","100","0","0","0","4","0","0","0","100","0","0","0"]
["07","CHIAPAS","PRIMARIA CONAFE INDIGENA","07KPB0419T","MATUTINO","AMATENANGO DEL VALLE","SAN CARALAMPIO","Comunitaria","Muy Alta y Alta","4","4","4","100","100","SI","SI","Comunitarias en el país en localidades de muy alta y alta marginación","4","0","0","0","100","0","0","0","4","0","0","0","100","0","0","0"]
["07","CHIAPAS","PECHTON II","07KPB0601S","MATUTINO","LARRAINZAR","PECHTON II","Comunitaria","Muy Alta y Alta","4","4","4","100","100","SI","SI","Comunitarias en el país en localidades de muy alta y alta marginación","4","0","0","0","100","0","0","0","4","0","0","0","100","0","0","0"]
["07","CHIAPAS","JOCOTAL CATISHTIC","07KPB0604P","MATUTINO","ZINACANTAN","JOCOTAL","Comunitaria","Muy Alta y Alta","4","4","4","100","100","SI","SI","Comunitarias en el país en localidades de muy alta y alta marginación","4","0","0","0","100","0","0","0","4","0","0","0","100","0","0","0"]
["07","CHIAPAS","BENITO JUAREZ SEGUNDA SECCION","07KPB1010M","MATUTINO","SABANILLA","BENITO JUAREZ 2DA. SECCION","Comunitaria","Muy Alta y Alta","4","4","4","100","100","SI","SI","Comunitarias en el país en localidades de muy alta y alta marginación","4","0","0","0","100","0","0","0","4","0","0","0","100","0","0","0"]
["07","CHIAPAS","SANTA ROSA","07KPB1084D","MATUTINO","SAN CRISTOBAL DE LAS CASAS","SANTA ROSA","Comunitaria","Muy Alta y Alta","4","4","4","100","100","SI","SI","Comunitarias en el país en localidades de muy alta y alta marginación","4","0","0","0","100","0","0","0","4","0","0","0","100","0","0","0"]
["07","CHIAPAS","SAMARIA K'ANTAJAL","07KPB1187Z","MATUTINO","CHILON","SAMARIA K'ANTAJAL","Comunitaria","Muy Alta y Alta","4","4","4","100","100","SI","SI","Comunitarias en el país en localidades de muy alta y alta marginación","4","0","0","0","100","0","0","0","4","0","0","0","100","0","0","0"]
["07","CHIAPAS","EL REMOLINO","07KPB1419Z","MATUTINO","HUITIUPAN","EL REMOLINO","Comunitaria","Muy Alta y Alta","4","4","4","100","100","SI","SI","Comunitarias en el país en localidades de muy alta y alta marginación","4","0","0","0","100","0","0","0","4","0","0","0","100","0","0","0"]
["07","CHIAPAS","SAN JOSE EL ORIENTE","07KPB1420P","MATUTINO","ALTAMIRANO","SAN JOSE EL ORIENTE","Comunitaria","Muy Alta y Alta","4","4","4","100","100","SI","SI","Comunitarias en el país en localidades de muy alta y alta marginación","4","0","0","0","100","0","0","0","4","0","0","0","100","0","0","0"]
["07","CHIAPAS","BAWITS SAMARIA 2A. SECCION","07KPB1498C","MATUTINO","CHILON","BAWITZ SAMARIA 2DA. SECCION","Comunitaria","Muy Alta y Alta","4","4","4","100","100","SI","SI","Comunitarias en el país en localidades de muy alta y alta marginación","4","0","0","0","100","0","0","0","4","0","0","0","100","0","0","0"]
["07","CHIAPAS","LA MARIPOSA","07KPB1654D","MATUTINO","HUITIUPAN","LA MARIPOSA","Comunitaria","Muy Alta y Alta","4","4","4","100","100","SI","SI","Comunitarias en el país en localidades de muy alta y alta marginación","4","0","0","0","100","0","0","0","4","0","0","0","100","0","0","0"]
["07","CHIAPAS","TOJTIQUILWITZ","07KPB1694E","MATUTINO","LARRAINZAR","TOJTIKILVITZ","Comunitaria","Muy Alta y Alta","4","4","4","100","100","SI","SI","Comunitarias en el país en localidades de muy alta y alta marginación","4","0","0","0","100","0","0","0","4","0","0","0","100","0","0","0"]
["07","CHIAPAS","RIO COLORADO (LA LAGUNA)","07KPB1701Y","MATUTINO","PUEBLO NUEVO SOLISTAHUACAN","RIO COLORADO (LA LAGUNA)","Comunitaria","Muy Alta y Alta","4","4","4","100","100","SI","SI","Comunitarias en el país en localidades de muy alta y alta marginación","4","0","0","0","100","0","0","0","4","0","0","0","100","0","0","0"]
["07","CHIAPAS","SANTA ROSALIA (EL MANGUITO)","07KPB1704V","MATUTINO","TEOPISCA","SANTA ROSALIA (EL MANGUITO)","Comunitaria","Muy Alta y Alta","4","4","4","100","100","SI","SI","Comunitarias en el país en localidades de muy alta y alta marginación","4","0","0","0","100","0","0","0","4","0","0","0","100","0","0","0"]
["07","CHIAPAS","PALMILLA","07KPB1883X","MATUTINO","CHAMULA","PALMILLA","Comunitaria","Muy Alta y Alta","4","4","4","100","100","SI","SI","Comunitarias en el país en localidades de muy alta y alta marginación","4","0","0","0","100","0","0","0","4","0","0","0","100","0","0","0"]
["07","CHIAPAS","RANCHO BONITO","07KPR0185W","MATUTINO","SILTEPEC","RANCHO BONITO","Comunitaria","Muy Alta y Alta","4","4","4","100","100","SI","SI","Comunitarias en el país en localidades de muy alta y alta marginación","4","0","0","0","100","0","0","0","4","0","0","0","100","0","0","0"]
["07","CHIAPAS","NUEVO ZAPALUTA","07KPR0373P","MATUTINO","LA TRINITARIA","NUEVO ZAPALUTA","Comunitaria","Muy Alta y Alta","4","4","4","100","100","SI","SI","Comunitarias en el país en localidades de muy alta y alta marginación","4","0","0","0","100","0","0","0","4","0","0","0","100","0","0","0"]
["07","CHIAPAS","ANDULIO GALVEZ VELAZQUEZ","07KPR0695Y","MATUTINO","OCOZOCOAUTLA DE ESPINOSA","ANDULIO GALVEZ VELAZQUEZ","Comunitaria","Muy Alta y Alta","4","4","4","100","100","SI","SI","Comunitarias en el país en localidades de muy alta y alta marginación","4","0","0","0","100","0","0","0","4","0","0","0","100","0","0","0"]
["07","CHIAPAS","BARRA SAN SIMON VALNEARIO SAN SIMON","07KPR0802Q","MATUTINO","MAZATAN","BARRA DE SAN SIMON","Comunitaria","Muy Alta y Alta","4","4","4","100","100","SI","SI","Comunitarias en el país en localidades de muy alta y alta marginación","4","0","0","0","100","0","0","0","4","0","0","0","100","0","0","0"]
["07","CHIAPAS","PLAN GRANDE","07KPR1632T","MATUTINO","CHICOMUSELO","PLAN GRANDE","Comunitaria","Muy Alta y Alta","4","4","4","100","100","SI","SI","Comunitarias en el país en localidades de muy alta y alta marginación","4","0","0","0","100","0","0","0","4","0","0","0","100","0","0","0"]
["07","CHIAPAS","PORTES GIL","07KPR1678O","MATUTINO","TECPATAN","PORTES GIL","Comunitaria","Muy Alta y Alta","4","4","4","100","100","SI","SI","Comunitarias en el país en localidades de muy alta y alta marginación","4","0","0","0","100","0","0","0","4","0","0","0","100","0","0","0"]
["07","CHIAPAS","LOMA BONITA","07KPR1924H","MATUTINO","SILTEPEC","LOMA BONITA","Comunitaria","Muy Alta y Alta","4","4","4","100","100","SI","SI","Comunitarias en el país en localidades de muy alta y alta marginación","4","0","0","0","100","0","0","0","4","0","0","0","100","0","0","0"]
["07","CHIAPAS","SAN FELIPE BUENAVISTA","07KPR2007G","MATUTINO","OCOZOCOAUTLA DE ESPINOSA","SAN FELIPE BUENAVISTA","Comunitaria","Muy Alta y Alta","4","4","4","100","100","SI","SI","Comunitarias en el país en localidades de muy alta y alta marginación","4","0","0","0","100","0","0","0","4","0","0","0","100","0","0","0"]
["07","CHIAPAS","BUENOS AIRES","07KPR2783F","MATUTINO","CHICOMUSELO","BUENOS AIRES","Comunitaria","Muy Alta y Alta","4","4","4","100","100","SI","SI","Comunitarias en el país en localidades de muy alta y alta marginación","4","0","0","0","100","0","0","0","4","0","0","0","100","0","0","0"]
["07","CHIAPAS","LAS DELICIAS DOS","07KPR2900E","MATUTINO","SALTO DE AGUA","DELICIAS LAS FLORES 2DA. SECCION","Comunitaria","Muy Alta y Alta","4","4","4","100","100","SI","SI","Comunitarias en el país en localidades de muy alta y alta marginación","4","0","0","0","100","0","0","0","4","0","0","0","100","0","0","0"]
["07","CHIAPAS","SANTA CRUZ DE LUMIJA","07KPR2901D","MATUTINO","SALTO DE AGUA","SANTA CRUZ DE LUMIJA","Comunitaria","Muy Alta y Alta","4","4","4","100","100","SI","SI","Comunitarias en el país en localidades de muy alta y alta marginación","4","0","0","0","100","0","0","0","4","0","0","0","100","0","0","0"]
["07","CHIAPAS","LA SOLEDAD PARTE BAJA","07KPR3357S","MATUTINO","PANTEPEC","LA SOLEDAD","Comunitaria","Muy Alta y Alta","4","4","4","100","100","SI","SI","Comunitarias en el país en localidades de muy alta y alta marginación","4","0","0","0","100","0","0","0","4","0","0","0","100","0","0","0"]
["07","CHIAPAS","NUEVO RIO NEGRO","07KPR3763Z","MATUTINO","MONTECRISTO DE GUERRERO","NUEVO RIO NEGRO","Comunitaria","Muy Alta y Alta","4","4","4","100","100","SI","SI","Comunitarias en el país en localidades de muy alta y alta marginación","4","0","0","0","100","0","0","0","4","0","0","0","100","0","0","0"]
["07","CHIAPAS","BUENOS AIRES COSTA RICA","07KPR3875C","MATUTINO","ACACOYAGUA","BUENOS AIRES","Comunitaria","Muy Alta y Alta","4","4","4","100","100","SI","SI","Comunitarias en el país en localidades de muy alta y alta marginación","4","0","0","0","100","0","0","0","4","0","0","0","100","0","0","0"]
["07","CHIAPAS","ROSARIO BUENA VISTA DOS","07KPR4177O","MATUTINO","LAS MARGARITAS","ROSARIO BUENAVISTA","Comunitaria","Muy Alta y Alta","4","4","4","100","100","SI","SI","Comunitarias en el país en localidades de muy alta y alta marginación","4","0","0","0","100","0","0","0","4","0","0","0","100","0","0","0"]
["07","CHIAPAS","CHICHONAL","07KPR4420K","MATUTINO","TILA","CHICHONAL","Comunitaria","Muy Alta y Alta","4","4","4","100","100","SI","SI","Comunitarias en el país en localidades de muy alta y alta marginación","4","0","0","0","100","0","0","0","4","0","0","0","100","0","0","0"]
["07","CHIAPAS","NUEVE ABRIL","07KPR4567D","MATUTINO","VENUSTIANO CARRANZA","NUEVE DE ABRIL","Comunitaria","Muy Alta y Alta","4","4","4","100","100","SI","SI","Comunitarias en el país en localidades de muy alta y alta marginación","4","0","0","0","100","0","0","0","4","0","0","0","100","0","0","0"]
["07","CHIAPAS","EL CIPRES","07KPR4750B","MATUTINO","BELLA VISTA","EL CIPRES","Comunitaria","Muy Alta y Alta","4","4","4","100","100","SI","SI","Comunitarias en el país en localidades de muy alta y alta marginación","4","0","0","0","100","0","0","0","4","0","0","0","100","0","0","0"]
["07","CHIAPAS","EL CIMIENTO","07KPR5068O","MATUTINO","ESCUINTLA","EL CIMIENTO","Comunitaria","Muy Alta y Alta","4","4","4","100","100","SI","SI","Comunitarias en el país en localidades de muy alta y alta marginación","4","0","0","0","100","0","0","0","4","0","0","0","100","0","0","0"]
["07","CHIAPAS","BOJONCITO","07KPR5257G","MATUTINO","TAPACHULA","BOJONCITO","Comunitaria","Muy Alta y Alta","4","4","4","100","100","SI","SI","Comunitarias en el país en localidades de muy alta y alta marginación","4","0","0","0","100","0","0","0","4","0","0","0","100","0","0","0"]
["07","CHIAPAS","PRIMARIA COMUNITARIA","07KPR5319C","MATUTINO","PUEBLO NUEVO SOLISTAHUACAN","EL PROGRESO (NUEVO HORIZONTE)","Comunitaria","Muy Alta y Alta","4","4","4","100","100","SI","SI","Comunitarias en el país en localidades de muy alta y alta marginación","4","0","0","0","100","0","0","0","4","0","0","0","100","0","0","0"]
["07","CHIAPAS","EL PEDREGAL","07KPR5399E","MATUTINO","SOYALO","EL PEDREGAL","Comunitaria","Muy Alta y Alta","4","4","4","100","100","SI","SI","Comunitarias en el país en localidades de muy alta y alta marginación","4","0","0","0","100","0","0","0","4","0","0","0","100","0","0","0"]
["07","CHIAPAS","PRIMERO DE ENERO","07KPR5686Y","MATUTINO","CHICOMUSELO","1RO. DE ENERO","Comunitaria","Muy Alta y Alta","4","4","4","100","100","SI","SI","Comunitarias en el país en localidades de muy alta y alta marginación","4","0","0","0","100","0","0","0","4","0","0","0","100","0","0","0"]
["07","CHIAPAS","EMILIANO ZAPATA","07KPR5896C","MATUTINO","LA CONCORDIA","EMILIANO ZAPATA","Comunitaria","Muy Alta y Alta","4","4","4","100","100","SI","SI","Comunitarias en el país en localidades de muy alta y alta marginación","4","0","0","0","100","0","0","0","4","0","0","0","100","0","0","0"]
["07","CHIAPAS","AMO","07KPR5915A","MATUTINO","TEOPISCA","AMO","Comunitaria","Muy Alta y Alta","4","4","4","100","100","SI","SI","Comunitarias en el país en localidades de muy alta y alta marginación","4","0","0","0","100","0","0","0","4","0","0","0","100","0","0","0"]
["07","CHIAPAS","LA GUADALUPANA","07KPB0360K","MATUTINO","CHILON","LA GUADALUPANA","Comunitaria","Muy Alta y Alta","5","5","5","100","100","SI","SI","Comunitarias en el país en localidades de muy alta y alta marginación","5","0","0","0","100","0","0","0","5","0","0","0","100","0","0","0"]
["07","CHIAPAS","NA XOCH II","07KPB1162R","MATUTINO","LARRAINZAR","NA XOCH II","Comunitaria","Muy Alta y Alta","6","6","6","100","100","SI","SI","Comunitarias en el país en localidades de muy alta y alta marginación","6","0","0","0","100","0","0","0","6","0","0","0","100","0","0","0"]
["07","CHIAPAS","ANEXO LAS MARGARITAS (SAN MARTIN)","07KPB1249W","MATUTINO","AMATAN","ANEXO LAS MARGARITAS (SAN MARTIN)","Comunitaria","Muy Alta y Alta","5","5","5","100","100","SI","SI","Comunitarias en el país en localidades de muy alta y alta marginación","5","0","0","0","100","0","0","0","5","0","0","0","100","0","0","0"]
["07","CHIAPAS","SAN FRANCISCO JIMBAL","07KPB1354G","MATUTINO","TILA","SAN FRANCISCO JIMBAL","Comunitaria","Muy Alta y Alta","7","7","7","100","100","SI","SI","Comunitarias en el país en localidades de muy alta y alta marginación","7","0","0","0","100","0","0","0","7","0","0","0","100","0","0","0"]
["07","CHIAPAS","ANEXO RINCONCITO","07KPB1365M","MATUTINO","PUEBLO NUEVO SOLISTAHUACAN","EL RINCONCITO","Comunitaria","Muy Alta y Alta","5","5","5","100","100","SI","SI","Comunitarias en el país en localidades de muy alta y alta marginación","5","0","0","0","100","0","0","0","5","0","0","0","100","0","0","0"]
["07","CHIAPAS","ESPERANZA OCOTAL","07KPB1433T","MATUTINO","TILA","ESPERANZA OCOTAL","Comunitaria","Muy Alta y Alta","6","6","6","100","100","SI","SI","Comunitarias en el país en localidades de muy alta y alta marginación","6","0","0","0","100","0","0","0","6","0","0","0","100","0","0","0"]
["07","CHIAPAS","JI´TON","07KPB1476R","MATUTINO","OXCHUC","JITON","Comunitaria","Muy Alta y Alta","5","5","5","100","100","SI","SI","Comunitarias en el país en localidades de muy alta y alta marginación","5","0","0","0","100","0","0","0","5","0","0","0","100","0","0","0"]
["07","CHIAPAS","CAMPAMENTO","07KPB1579N","MATUTINO","TUMBALA","CAMPAMENTO","Comunitaria","Muy Alta y Alta","5","5","5","100","100","SI","SI","Comunitarias en el país en localidades de muy alta y alta marginación","5","0","0","0","100","0","0","0","5","0","0","0","100","0","0","0"]
["07","CHIAPAS","MONTE TABOR","07KPB1615B","MATUTINO","SIMOJOVEL","MONTE TABOR","Comunitaria","Muy Alta y Alta","7","7","7","100","100","SI","SI","Comunitarias en el país en localidades de muy alta y alta marginación","7","0","0","0","100","0","0","0","7","0","0","0","100","0","0","0"]
["07","CHIAPAS","SALTO DEL TIGRE","07KPB1774Q","MATUTINO","CHILON","SALTO DEL TIGRE","Comunitaria","Muy Alta y Alta","6","6","6","100","100","SI","SI","Comunitarias en el país en localidades de muy alta y alta marginación","6","0","0","0","100","0","0","0","6","0","0","0","100","0","0","0"]
["07","CHIAPAS","LINDAVISTA","07KPR0199Z","MATUTINO","LAS MARGARITAS","LINDAVISTA","Comunitaria","Muy Alta y Alta","6","6","6","100","100","SI","SI","Comunitarias en el país en localidades de muy alta y alta marginación","6","0","0","0","100","0","0","0","6","0","0","0","100","0","0","0"]
["07","CHIAPAS","INDEPENDENCIA II","07KPR0248R","MATUTINO","ESCUINTLA","INDEPENDENCIA II","Comunitaria","Muy Alta y Alta","8","8","8","100","100","SI","SI","Comunitarias en el país en localidades de muy alta y alta marginación","8","0","0","0","100","0","0","0","8","0","0","0","100","0","0","0"]
["07","CHIAPAS","CACATEEL","07KPR0325F","MATUTINO","SALTO DE AGUA","CACATEEL","Comunitaria","Muy Alta y Alta","5","5","5","100","100","SI","SI","Comunitarias en el país en localidades de muy alta y alta marginación","5","0","0","0","100","0","0","0","5","0","0","0","100","0","0","0"]
["07","CHIAPAS","SALTILLO","07KPR0375N","MATUTINO","LAS MARGARITAS","SALTILLO","Comunitaria","Muy Alta y Alta","6","6","6","100","100","SI","SI","Comunitarias en el país en localidades de muy alta y alta marginación","6","0","0","0","100","0","0","0","6","0","0","0","100","0","0","0"]
["07","CHIAPAS","PRIMARIA CONAFE","07KPR0517V","MATUTINO","BERRIOZABAL","BUENAVISTA","Comunitaria","Muy Alta y Alta","6","6","6","100","100","SI","SI","Comunitarias en el país en localidades de muy alta y alta marginación","6","0","0","0","100","0","0","0","6","0","0","0","100","0","0","0"]
["07","CHIAPAS","LA CHIRIPA","07KPR0978E","MATUTINO","TAPACHULA","LA CHIRIPA","Comunitaria","Muy Alta y Alta","6","6","6","100","100","SI","SI","Comunitarias en el país en localidades de muy alta y alta marginación","6","0","0","0","100","0","0","0","6","0","0","0","100","0","0","0"]
["07","CHIAPAS","NUEVO PORTAL","07KPR1397F","MATUTINO","CHICOMUSELO","NUEVO PORTAL","Comunitaria","Muy Alta y Alta","5","5","5","100","100","SI","SI","Comunitarias en el país en localidades de muy alta y alta marginación","5","0","0","0","100","0","0","0","5","0","0","0","100","0","0","0"]
["07","CHIAPAS","EL PARAISO","07KPR1937L","MATUTINO","BELLA VISTA","EL PARAISO","Comunitaria","Muy Alta y Alta","6","6","6","100","100","SI","SI","Comunitarias en el país en localidades de muy alta y alta marginación","6","0","0","0","100","0","0","0","6","0","0","0","100","0","0","0"]
["07","CHIAPAS","CINCO DE NOVIEMBRE","07KPR2339W","MATUTINO","SILTEPEC","CINCO DE NOVIEMBRE","Comunitaria","Muy Alta y Alta","5","5","5","100","100","SI","SI","Comunitarias en el país en localidades de muy alta y alta marginación","5","0","0","0","100","0","0","0","5","0","0","0","100","0","0","0"]
["07","CHIAPAS","SIMON BOLIVAR","07KPR3159S","MATUTINO","CINTALAPA","SIMON BOLIVAR (EL TRANSVAL)","Comunitaria","Muy Alta y Alta","6","6","6","100","100","SI","SI","Comunitarias en el país en localidades de muy alta y alta marginación","6","0","0","0","100","0","0","0","6","0","0","0","100","0","0","0"]
["07","CHIAPAS","PRIMARIA CONAFE","07KPR3715P","MATUTINO","PALENQUE","LOS ANGELES","Comunitaria","Muy Alta y Alta","9","9","9","100","100","SI","SI","Comunitarias en el país en localidades de muy alta y alta marginación","9","0","0","0","100","0","0","0","9","0","0","0","100","0","0","0"]
["07","CHIAPAS","GALILEA","07KPR3784L","MATUTINO","BENEMERITO DE LAS AMERICAS","GALILEA","Comunitaria","Muy Alta y Alta","5","5","5","100","100","SI","SI","Comunitarias en el país en localidades de muy alta y alta marginación","5","0","0","0","100","0","0","0","5","0","0","0","100","0","0","0"]
["07","CHIAPAS","PRIMARIA CONAFE","07KPR3795R","MATUTINO","LAS MARGARITAS","SANTA ROSA","Comunitaria","Muy Alta y Alta","5","5","5","100","100","SI","SI","Comunitarias en el país en localidades de muy alta y alta marginación","5","0","0","0","100","0","0","0","5","0","0","0","100","0","0","0"]
["07","CHIAPAS","LA NUEVA ESPERANZA","07KPR4055D","MATUTINO","BERRIOZABAL","LA NUEVA ESPERANZA","Comunitaria","Muy Alta y Alta","5","5","5","100","100","SI","SI","Comunitarias en el país en localidades de muy alta y alta marginación","5","0","0","0","100","0","0","0","5","0","0","0","100","0","0","0"]
["07","CHIAPAS","MONTE DE OREB","07KPR4546R","MATUTINO","CINTALAPA","MONTE OREB","Comunitaria","Muy Alta y Alta","8","8","8","100","100","SI","SI","Comunitarias en el país en localidades de muy alta y alta marginación","8","0","0","0","100","0","0","0","8","0","0","0","100","0","0","0"]
["07","CHIAPAS","SAN JOSE MANGAL","07KPR5394J","MATUTINO","PALENQUE","SAN JOSE CHANCALA PRIMERA SECCION","Comunitaria","Muy Alta y Alta","5","5","5","100","100","SI","SI","Comunitarias en el país en localidades de muy alta y alta marginación","5","0","0","0","100","0","0","0","5","0","0","0","100","0","0","0"]
["07","CHIAPAS","CIPRES","07KPR5483C","MATUTINO","MOTOZINTLA","CIPRES","Comunitaria","Muy Alta y Alta","5","5","5","100","100","SI","SI","Comunitarias en el país en localidades de muy alta y alta marginación","5","0","0","0","100","0","0","0","5","0","0","0","100","0","0","0"]
["07","CHIAPAS","HOJAS BLANCAS","07KPR5527J","MATUTINO","VILLA CORZO","HOJA BLANCA","Comunitaria","Muy Alta y Alta","5","5","5","100","100","SI","SI","Comunitarias en el país en localidades de muy alta y alta marginación","5","0","0","0","100","0","0","0","5","0","0","0","100","0","0","0"]
["07","CHIAPAS","CONGREGACION LAS PILAS","07KPR5848T","MATUTINO","IXTAPA","CONGREGACION LAS PILAS","Comunitaria","Muy Alta y Alta","5","5","5","100","100","SI","SI","Comunitarias en el país en localidades de muy alta y alta marginación","5","0","0","0","100","0","0","0","5","0","0","0","100","0","0","0"]
["07","CHIAPAS","SAN SEBASTIAN","07KPR5911E","MATUTINO","LAS MARGARITAS","SAN SEBASTIAN","Comunitaria","Muy Alta y Alta","7","7","7","100","100","SI","SI","Comunitarias en el país en localidades de muy alta y alta marginación","7","0","0","0","100","0","0","0","7","0","0","0","100","0","0","0"]
["07","CHIAPAS","VENUSTIANO CARRANZA","07DPB0604F","COMPLEMENTARIO","CHILON","BISPUILJA","Indígena","Muy Alta y Alta","9","9","9","100","100","SI","SI","Indígenas en el país en los tres niveles de marginación","9","0","0","0","100","0","0","0","9","0","0","0","100","0","0","0"]
["07","CHIAPAS","ADOLFO LOPEZ MATEOS","07DPB0743G","COMPLEMENTARIO","CHILON","SAN GABRIEL","Indígena","Muy Alta y Alta","2","2","2","100","100","SI","SI","Indígenas en el país en los tres niveles de marginación","2","0","0","0","100","0","0","0","2","0","0","0","100","0","0","0"]
["07","CHIAPAS","LEONA VICARIO","07DPB0788C","COMPLEMENTARIO","MOTOZINTLA","TOQUIAN CUAUHTEMOC","Indígena","Muy Alta y Alta","9","9","9","100","100","SI","SI","Indígenas en el país en los tres niveles de marginación","9","0","0","0","100","0","0","0","9","0","0","0","100","0","0","0"]
["07","CHIAPAS","ANGEL ALBINO CORZO","07DPB1202S","COMPLEMENTARIO","CHILON","SAN FELIPE","Indígena","Muy Alta y Alta","6","6","6","100","100","SI","SI","Indígenas en el país en los tres niveles de marginación","6","0","0","0","100","0","0","0","6","0","0","0","100","0","0","0"]
["07","CHIAPAS","JOSE MARIA MORELOS Y PAVON","07DPB1528X","COMPLEMENTARIO","LA TRINITARIA","NUEVO RECUERDO","Indígena","Muy Alta y Alta","4","4","4","100","100","SI","SI","Indígenas en el país en los tres niveles de marginación","4","0","0","0","100","0","0","0","4","0","0","0","100","0","0","0"]
["07","CHIAPAS","LA LIBERTAD","07DPB1757Q","COMPLEMENTARIO","SALTO DE AGUA","SAN MIGUEL TULIJA","Indígena","Muy Alta y Alta","6","6","6","100","100","SI","SI","Indígenas en el país en los tres niveles de marginación","6","0","0","0","100","0","0","0","6","0","0","0","100","0","0","0"]
["07","CHIAPAS","MIGUEL DOMINGUEZ","07DPB1927U","COMPLEMENTARIO","CHILON","TZAJALCHEN 1RA. SECCION","Indígena","Muy Alta y Alta","10","10","10","100","100","SI","SI","Indígenas en el país en los tres niveles de marginación","10","0","0","0","100","0","0","0","10","0","0","0","100","0","0","0"]
["07","CHIAPAS","VICENTE GUERRERO","07DPB2024M","COMPLEMENTARIO","YAJALON","EL PRADO","Indígena","Muy Alta y Alta","2","2","2","100","100","SI","SI","Indígenas en el país en los tres niveles de marginación","2","0","0","0","100","0","0","0","2","0","0","0","100","0","0","0"]
["07","CHIAPAS","JOSE MARIA MORELOS Y PAVON","07DPB2123M","COMPLEMENTARIO","CHILON","CAQUEMTE'EL (K'AQUEMTEEL 1","Indígena","Muy Alta y Alta","2","2","2","100","100","SI","SI","Indígenas en el país en los tres niveles de marginación","2","0","0","0","100","0","0","0","2","0","0","0","100","0","0","0"]
["07","CHIAPAS","MOCTEZUMA XOCOYOTZIN","07DPB2124L","COMPLEMENTARIO","YAJALON","TIERRA COLORADA","Indígena","Muy Alta y Alta","4","4","4","100","100","SI","SI","Indígenas en el país en los tres niveles de marginación","4","0","0","0","100","0","0","0","4","0","0","0","100","0","0","0"]
["07","CHIAPAS","JUAN ALDAMA","07DPB2158B","COMPLEMENTARIO","CHILON","EL SITIM","Indígena","Muy Alta y Alta","7","7","7","100","100","SI","SI","Indígenas en el país en los tres niveles de marginación","7","0","0","0","100","0","0","0","7","0","0","0","100","0","0","0"]
["07","CHIAPAS","JAIME NUNO","07DPB2237O","COMPLEMENTARIO","TAPACHULA","EL EDEN","Indígena","Muy Alta y Alta","3","3","3","100","100","SI","SI","Indígenas en el país en los tres niveles de marginación","3","0","0","0","100","0","0","0","3","0","0","0","100","0","0","0"]
["07","CHIAPAS","VALENTIN GOMEZ FARIAS","07DPB2391H","COMPLEMENTARIO","OCOTEPEC","SANTO DOMINGO","Indígena","Muy Alta y Alta","8","8","8","100","100","SI","SI","Indígenas en el país en los tres niveles de marginación","8","0","0","0","100","0","0","0","8","0","0","0","100","0","0","0"]
["07","CHIAPAS","BELISARIO DOMINGUEZ PALENCIA","07DPB2554B","COMPLEMENTARIO","HUITIUPAN","SAN FRANCISCO DOS","Indígena","Muy Alta y Alta","1","1","1","100","100","SI","SI","Indígenas en el país en los tres niveles de marginación","1","0","0","0","100","0","0","0","1","0","0","0","100","0","0","0"]
["07","CHIAPAS","FRANCISCO GONZALEZ BOCANEGRA","07DPB2555A","COMPLEMENTARIO","HUITIUPAN","NUEVA REFORMA","Indígena","Muy Alta y Alta","2","2","2","100","100","SI","SI","Indígenas en el país en los tres niveles de marginación","2","0","0","0","100","0","0","0","2","0","0","0","100","0","0","0"]
["07","CHIAPAS","RICARDO FLORES MAGON","07DPB2812Z","COMPLEMENTARIO","PALENQUE","CUAUHTEMOC CARDENAS","Indígena","Muy Alta y Alta","4","4","4","100","100","SI","SI","Indígenas en el país en los tres niveles de marginación","4","0","0","0","100","0","0","0","4","0","0","0","100","0","0","0"]
["07","CHIAPAS","EMILIANO ZAPATA SALAZAR","07DPB2906O","COMPLEMENTARIO","ZINACANTAN","SAN ANTONIO","Indígena","Muy Alta y Alta","1","1","1","100","100","SI","SI","Indígenas en el país en los tres niveles de marginación","1","0","0","0","100","0","0","0","1","0","0","0","100","0","0","0"]
["07","CHIAPAS","ACAMAPICHTLI","07DPB2990C","COMPLEMENTARIO","OCOZOCOAUTLA DE ESPINOSA","NUEVO JERUSALEN","Indígena","Muy Alta y Alta","6","6","6","100","100","SI","SI","Indígenas en el país en los tres niveles de marginación","6","0","0","0","100","0","0","0","6","0","0","0","100","0","0","0"]
["07","CHIAPAS","16 DE SEPTIEMBRE","07DPB3255K","COMPLEMENTARIO","CHILON","CHEWAL CACATEEL 1RA. SECCI","Indígena","Muy Alta y Alta","4","4","4","100","100","SI","SI","Indígenas en el país en los tres niveles de marginación","4","0","0","0","100","0","0","0","4","0","0","0","100","0","0","0"]
["07","CHIAPAS","PRIMARIA COMUNITARIA REPUBLICA DEL SALVADOR","07EPB0029T","COMPLEMENTARIO","CHILON","LA ESTANCIA","Indígena","Muy Alta y Alta","4","4","4","100","100","SI","SI","Indígenas en el país en los tres niveles de marginación","4","0","0","0","100","0","0","0","4","0","0","0","100","0","0","0"]
["07","CHIAPAS","PRIMARIA COMUNITARIA PASCUAL OROSCO","07EPB0115P","COMPLEMENTARIO","YAJALON","MAJASIL","Indígena","Muy Alta y Alta","3","3","3","100","100","SI","SI","Indígenas en el país en los tres niveles de marginación","3","0","0","0","100","0","0","0","3","0","0","0","100","0","0","0"]
["07","CHIAPAS","PRIMARIA COMUNITARIA ESTADO DE CAMPECHE","07EPB0122Z","COMPLEMENTARIO","CHILON","SAN MATEO NAHTIL CRUZ LAS","Indígena","Muy Alta y Alta","2","2","2","100","100","SI","SI","Indígenas en el país en los tres niveles de marginación","2","0","0","0","100","0","0","0","2","0","0","0","100","0","0","0"]
["07","CHIAPAS","PRIMARIA COMUNITARIA ESTADO DE NAYARIT","07EPB0126V","COMPLEMENTARIO","CHILON","LEMLAJANTON","Indígena","Muy Alta y Alta","1","1","1","100","100","SI","SI","Indígenas en el país en los tres niveles de marginación","1","0","0","0","100","0","0","0","1","0","0","0","100","0","0","0"]
["07","CHIAPAS","PRIMARIA COMUNITARIA EL PIPILA","07EPB0150V","COMPLEMENTARIO","OCOTEPEC","OCOTEPEC","Indígena","Muy Alta y Alta","8","8","8","100","100","SI","SI","Indígenas en el país en los tres niveles de marginación","8","0","0","0","100","0","0","0","8","0","0","0","100","0","0","0"]
["07","CHIAPAS","PRIMARIA COMUNITARIA JUAN ESCUTIA","07EPB0160B","COMPLEMENTARIO","OCOTEPEC","SAN ANTONIO DEL MONTE","Indígena","Muy Alta y Alta","3","3","3","100","100","SI","SI","Indígenas en el país en los tres niveles de marginación","3","0","0","0","100","0","0","0","3","0","0","0","100","0","0","0"]
["07","CHIAPAS","PRIMARIA COMUNITARIA CONSTITUCION 1917","07EPB0161A","COMPLEMENTARIO","OCOTEPEC","BENITO JUAREZ","Indígena","Muy Alta y Alta","4","4","4","100","100","SI","SI","Indígenas en el país en los tres niveles de marginación","4","0","0","0","100","0","0","0","4","0","0","0","100","0","0","0"]
["07","CHIAPAS","PRIMARIA COMUNITARIA 20 DE NOVIEMBRE","07EPB0168U","COMPLEMENTARIO","PALENQUE","LA REVOLUCION","Indígena","Muy Alta y Alta","2","2","2","100","100","SI","SI","Indígenas en el país en los tres niveles de marginación","2","0","0","0","100","0","0","0","2","0","0","0","100","0","0","0"]
["07","CHIAPAS","PRIMARIA COMUNITARIA SIMON BOLIVAR","07EPB0191V","COMPLEMENTARIO","SALTO DE AGUA","LINDAVISTA","Indígena","Muy Alta y Alta","3","3","3","100","100","SI","SI","Indígenas en el país en los tres niveles de marginación","3","0","0","0","100","0","0","0","3","0","0","0","100","0","0","0"]
["07","CHIAPAS","PRIMARIA COMUNITARIA 15 DE MAYO","07EPB0197P","COMPLEMENTARIO","SITALA","SAN ANTONIO EL ROSARIO","Indígena","Muy Alta y Alta","4","4","4","100","100","SI","SI","Indígenas en el país en los tres niveles de marginación","4","0","0","0","100","0","0","0","4","0","0","0","100","0","0","0"]
["07","CHIAPAS","PRIMARIA COMUNITARIA 5 DE MAYO","07EPB0202K","COMPLEMENTARIO","SITALA","SITALA","Indígena","Muy Alta y Alta","1","1","1","100","100","SI","SI","Indígenas en el país en los tres niveles de marginación","1","0","0","0","100","0","0","0","1","0","0","0","100","0","0","0"]
["07","CHIAPAS","PRIMARIA COMUNITARIA 18 DE MARZO","07EPB0203J","COMPLEMENTARIO","SITALA","LA TRINITARIA","Indígena","Muy Alta y Alta","3","3","3","100","100","SI","SI","Indígenas en el país en los tres niveles de marginación","3","0","0","0","100","0","0","0","3","0","0","0","100","0","0","0"]
["07","CHIAPAS","PRIMARIA COMUNITARIA ESTADO DE VERACRUZ","07EPB0286I","COMPLEMENTARIO","EL BOSQUE","MERCEDES LA ILUSION","Indígena","Muy Alta y Alta","12","12","12","100","100","SI","SI","Indígenas en el país en los tres niveles de marginación","12","0","0","0","100","0","0","0","12","0","0","0","100","0","0","0"]
["07","CHIAPAS","PRIMARIA COMUNITARIA REPUBLICA DEL BRASIL","07EPB0298N","COMPLEMENTARIO","CHILON","TAKINUKUM","Indígena","Muy Alta y Alta","2","2","2","100","100","SI","SI","Indígenas en el país en los tres niveles de marginación","2","0","0","0","100","0","0","0","2","0","0","0","100","0","0","0"]
["07","CHIAPAS","PRIMARIA COMUNITARIA ARTICULO TERCERO","07EPB0309C","COMPLEMENTARIO","CHILON","BAPAXILA","Indígena","Muy Alta y Alta","3","3","3","100","100","SI","SI","Indígenas en el país en los tres niveles de marginación","3","0","0","0","100","0","0","0","3","0","0","0","100","0","0","0"]
["07","CHIAPAS","PRIMARIA COMUNITARIA ESTADO DE PUEBLA","07EPB0315N","COMPLEMENTARIO","CHILON","REFORMA K'ANAKIL","Indígena","Muy Alta y Alta","1","1","1","100","100","SI","SI","Indígenas en el país en los tres niveles de marginación","1","0","0","0","100","0","0","0","1","0","0","0","100","0","0","0"]
["07","CHIAPAS","PRIMARIA COMUNITARIA EMILIO RABASA ESTEBANELL","07EPB0332D","COMPLEMENTARIO","TUMBALA","EL PARAISO","Indígena","Muy Alta y Alta","6","6","6","100","100","SI","SI","Indígenas en el país en los tres niveles de marginación","6","0","0","0","100","0","0","0","6","0","0","0","100","0","0","0"]
["07","CHIAPAS","PRIMARIA COMUNITARIA OTILIO MONTAÑO","07EPB0371F","COMPLEMENTARIO","OCOTEPEC","OCOTEPEC","Indígena","Muy Alta y Alta","8","8","8","100","100","SI","SI","Indígenas en el país en los tres niveles de marginación","8","0","0","0","100","0","0","0","8","0","0","0","100","0","0","0"]
["07","CHIAPAS","PRIMARIA COMUNITARIA JUAN LUIS DE ALARCON","07EPB0390U","COMPLEMENTARIO","LA INDEPENDENCIA","LOS ESPINOS","Indígena","Muy Alta y Alta","5","5","5","100","100","SI","SI","Indígenas en el país en los tres niveles de marginación","5","0","0","0","100","0","0","0","5","0","0","0","100","0","0","0"]
["07","CHIAPAS","PRIMARIA COMUNITARIA OCTAVIO PAZ LOZANO","07EPB0407D","COMPLEMENTARIO","HUITIUPAN","SAN MARTIN BUENAVISTA","Indígena","Muy Alta y Alta","2","2","2","100","100","SI","SI","Indígenas en el país en los tres niveles de marginación","2","0","0","0","100","0","0","0","2","0","0","0","100","0","0","0"]
["07","CHIAPAS","PRIMARIA COMUNITARIA TEOTIHUACAN","07EPB0413O","COMPLEMENTARIO","HUITIUPAN","CAMPO ALEGRE","Indígena","Muy Alta y Alta","3","3","3","100","100","SI","SI","Indígenas en el país en los tres niveles de marginación","3","0","0","0","100","0","0","0","3","0","0","0","100","0","0","0"]
["07","CHIAPAS","PRIMARIA COMUNITARIA VASCO DE QUIROGA","07EPB0520X","COMPLEMENTARIO","CHILON","NUEVA JERUSALEN","Indígena","Muy Alta y Alta","1","1","1","100","100","SI","SI","Indígenas en el país en los tres niveles de marginación","1","0","0","0","100","0","0","0","1","0","0","0","100","0","0","0"]
["07","CHIAPAS","ESCUELA PRIMARIA COMUNITARIA SALVADOR DIAZ MIRON","07EPB0645E","COMPLEMENTARIO","OCOTEPEC","SAN PEDRO","Indígena","Muy Alta y Alta","4","4","4","100","100","SI","SI","Indígenas en el país en los tres niveles de marginación","4","0","0","0","100","0","0","0","4","0","0","0","100","0","0","0"]
["07","CHIAPAS","PRIMARIA COMUNITARIA MIGUEL ALVAREZ DEL TORO","07EPB0858G","COMPLEMENTARIO","SALTO DE AGUA","CHAPAYAL","Indígena","Muy Alta y Alta","6","6","6","100","100","SI","SI","Indígenas en el país en los tres niveles de marginación","6","0","0","0","100","0","0","0","6","0","0","0","100","0","0","0"]
["07","CHIAPAS","PRIMARIA COMUNITARIA AMADO NERVO","07EPB0861U","COMPLEMENTARIO","OCOSINGO","SAN MARCOS","Indígena","Muy Alta y Alta","6","6","6","100","100","SI","SI","Indígenas en el país en los tres niveles de marginación","6","0","0","0","100","0","0","0","6","0","0","0","100","0","0","0"]
["07","CHIAPAS","PROFRA. ESTHER COUTIÑO OCHOA","07DPR0030K","COMPLEMENTARIO","CHIAPA DE CORZO","LA CANDELARIA","General Pública","Muy Alta y Alta","1","1","1","100","100","SI","SI","Generales públicas en el país en localidades de muy alta y alta marginación","1","0","0","0","100","0","0","0","1","0","0","0","100","0","0","0"]
["07","CHIAPAS","20 DE NOVIEMBRE","07DPR0923S","COMPLEMENTARIO","ESCUINTLA","BELISARIO DOMINGUEZ","General Pública","Muy Alta y Alta","5","5","5","100","100","SI","SI","Generales públicas en el país en localidades de muy alta y alta marginación","5","0","0","0","100","0","0","0","5","0","0","0","100","0","0","0"]
["07","CHIAPAS","FRANCISCO INDALECIO MADERO","07DPR1273N","COMPLEMENTARIO","CHIAPA DE CORZO","EMILIANO ZAPATA UNO","General Pública","Muy Alta y Alta","11","11","11","100","100","SI","SI","Generales públicas en el país en localidades de muy alta y alta marginación","11","0","0","0","100","0","0","0","11","0","0","0","100","0","0","0"]
["07","CHIAPAS","HERMENEGILDO GALEANA","07DPR2060S","COMPLEMENTARIO","CHAMULA","TZAJALCHEN TRES","General Pública","Muy Alta y Alta","14","14","14","100","100","SI","SI","Generales públicas en el país en localidades de muy alta y alta marginación","14","0","0","0","100","0","0","0","14","0","0","0","100","0","0","0"]
["07","CHIAPAS","VICENTE GUERRERO","07DPR3493M","COMPLEMENTARIO","TECPATAN","PLAN DE AYALA","General Pública","Muy Alta y Alta","10","10","10","100","100","SI","SI","Generales públicas en el país en localidades de muy alta y alta marginación","10","0","0","0","100","0","0","0","10","0","0","0","100","0","0","0"]
["07","CHIAPAS","LEONA VICARIO","07DPR4300O","COMPLEMENTARIO","ZINACANTAN","AJTETIC ALTO","General Pública","Muy Alta y Alta","3","3","3","100","100","SI","SI","Generales públicas en el país en localidades de muy alta y alta marginación","3","0","0","0","100","0","0","0","3","0","0","0","100","0","0","0"]
["07","CHIAPAS","14 DE SEPTIEMBRE","07DPR4789D","COMPLEMENTARIO","COMITAN DE DOMINGUEZ","EL DURAZNO","General Pública","Muy Alta y Alta","1","1","1","100","100","SI","SI","Generales públicas en el país en localidades de muy alta y alta marginación","1","0","0","0","100","0","0","0","1","0","0","0","100","0","0","0"]
["07","CHIAPAS","JOAQUIN MIGUEL GUTIERREZ","07EPR0061C","VESPERTINO","JUAREZ","JUAREZ","General Pública","Muy Alta y Alta","8","8","8","100","100","SI","SI","Generales públicas en el país en localidades de muy alta y alta marginación","8","0","0","0","100","0","0","0","8","0","0","0","100","0","0","0"]
["07","CHIAPAS","LIC. JOSE VASCONCELOS CALDERON","07EPR0296Q","COMPLEMENTARIO","TAPACHULA","LOS LLANOS","General Pública","Muy Alta y Alta","9","9","9","100","100","SI","SI","Generales públicas en el país en localidades de muy alta y alta marginación","9","0","0","0","100","0","0","0","9","0","0","0","100","0","0","0"]
["07","CHIAPAS","ANGEL ALBINO CORZO","07EPR0344J","COMPLEMENTARIO","CATAZAJA","VICTORICO R. GRAJALES","General Pública","Muy Alta y Alta","4","4","4","100","100","SI","SI","Generales públicas en el país en localidades de muy alta y alta marginación","4","0","0","0","100","0","0","0","4","0","0","0","100","0","0","0"]
["07","CHIAPAS","RODULFO FIGUEROA ESQUINCA","07EPR0425U","COMPLEMENTARIO","PALENQUE","LUIS I. CABRERA (TEPEZCUIN","General Pública","Muy Alta y Alta","1","1","1","100","100","SI","SI","Generales públicas en el país en localidades de muy alta y alta marginación","1","0","0","0","100","0","0","0","1","0","0","0","100","0","0","0"]
["07","CHIAPAS","NICOLAS BRAVO","07EPR0533B","COMPLEMENTARIO","MOTOZINTLA","EL MOLINO","General Pública","Muy Alta y Alta","5","5","5","100","100","SI","SI","Generales públicas en el país en localidades de muy alta y alta marginación","5","0","0","0","100","0","0","0","5","0","0","0","100","0","0","0"]
["07","CHIAPAS","CIRO GORDILLO OCHOA","07EPR0616K","COMPLEMENTARIO","LAS MARGARITAS","NUEVA NICARAGUA","General Pública","Muy Alta y Alta","1","1","1","100","100","SI","SI","Generales públicas en el país en localidades de muy alta y alta marginación","1","0","0","0","100","0","0","0","1","0","0","0","100","0","0","0"]
["07","CHIAPAS","CRUSILJA","07KPB1356E","MATUTINO","OXCHUC","CRUZILJA (MEDIA LUNA)","Comunitaria","No identificada","6","6","6","100","100","SI","SI","Comunitarias en el país en los tres niveles de marginación","6","0","0","0","100","0","0","0","6","0","0","0","100","0","0","0"]
["07","CHIAPAS","BELEN","07KPR3859L","MATUTINO","VILLAFLORES","BELEN","Comunitaria","No identificada","6","6","6","100","100","SI","SI","Comunitarias en el país en los tres niveles de marginación","6","0","0","0","100","0","0","0","6","0","0","0","100","0","0","0"]
["07","CHIAPAS","WUY PAJ ' CHUL","07KPB1899Y","MATUTINO","SAN JUAN CANCUC","WUY PAJCH'UL","Comunitaria","No identificada","7","7","7","100","100","SI","SI","Comunitarias en el país en los tres niveles de marginación","7","0","0","0","100","0","0","0","7","0","0","0","100","0","0","0"]
["07","CHIAPAS","EMILIANO ZAPATA SALAZAR","07DPR0867Q","MATUTINO","ESCUINTLA","SAN ANTONIO MIRAMAR","General Pública","Muy Alta y Alta","15","15","15","100","100","SI","SI","Generales públicas en el país en localidades de muy alta y alta marginación","15","0","0","0","100","0","0","0","15","0","0","0","100","0","0","0"]
["07","CHIAPAS","AMERICA LIBRE","07EPR0324W","MATUTINO","CHILON","MAQUINCHAB","General Pública","Muy Alta y Alta","8","8","8","100","100","SI","SI","Generales públicas en el país en localidades de muy alta y alta marginación","8","0","0","0","100","0","0","0","8","0","0","0","100","0","0","0"]
["07","CHIAPAS","CUAUHTEMOC","07DPR0172I","MATUTINO","ACAPETAHUA","RIO ARRIBA","General Pública","Muy Alta y Alta","5","5","5","100","100","SI","SI","Generales públicas en el país en localidades de muy alta y alta marginación","5","0","0","0","100","0","0","0","5","0","0","0","100","0","0","0"]
["07","CHIAPAS","NIÑOS HEROES","07DPR3899C","MATUTINO","MAPASTEPEC","NARCISO MENDOZA","General Pública","Muy Alta y Alta","5","5","5","100","100","SI","SI","Generales públicas en el país en localidades de muy alta y alta marginación","5","0","0","0","100","0","0","0","5","0","0","0","100","0","0","0"]
["07","CHIAPAS","VICENTE GUERRERO","07DPR4679Y","MATUTINO","MAPASTEPEC","LA NUEVA ESPERANZA","General Pública","Muy Alta y Alta","5","5","5","100","100","SI","SI","Generales públicas en el país en localidades de muy alta y alta marginación","5","0","0","0","100","0","0","0","5","0","0","0","100","0","0","0"]
["07","CHIAPAS","JOSE MARIA MORELOS","07EPR0321Z","MATUTINO","REFORMA","MACAYO 1RA. SECCION (LAS M","General Pública","Muy Alta y Alta","5","5","5","100","100","SI","SI","Generales públicas en el país en localidades de muy alta y alta marginación","5","0","0","0","100","0","0","0","5","0","0","0","100","0","0","0"]
["07","CHIAPAS","SANTA ROSA OJO DE AGUA","07KPB1856Z","MATUTINO","OCOSINGO","SANTA ROSA (OJO DE AGUA)","Comunitaria","No identificada","5","5","5","100","100","SI","SI","Comunitarias en el país en los tres niveles de marginación","5","0","0","0","100","0","0","0","5","0","0","0","100","0","0","0"]
["07","CHIAPAS","SANTA MARTHA","07KPR0770O","MATUTINO","LA CONCORDIA","SANTA MARTHA","Comunitaria","No identificada","5","5","5","100","100","SI","SI","Comunitarias en el país en los tres niveles de marginación","5","0","0","0","100","0","0","0","5","0","0","0","100","0","0","0"]
["07","CHIAPAS","SAN PEDRO AGUA AZUL","07KPR4228E","MATUTINO","CHIAPA DE CORZO","SAN PEDRO AGUA AZUL","Comunitaria","No identificada","5","5","5","100","100","SI","SI","Comunitarias en el país en los tres niveles de marginación","5","0","0","0","100","0","0","0","5","0","0","0","100","0","0","0"]
["07","CHIAPAS","PUERTO MORELOS","07KPB1836M","MATUTINO","CHANAL","PUERTO MORELOS","Comunitaria","No identificada","4","4","4","100","100","SI","SI","Comunitarias en el país en los tres niveles de marginación","4","0","0","0","100","0","0","0","4","0","0","0","100","0","0","0"]
["07","CHIAPAS","SAN FRANCISCO","07KPR2160A","MATUTINO","CINTALAPA","SAN FRANCISCO","Comunitaria","No identificada","4","4","4","100","100","SI","SI","Comunitarias en el país en los tres niveles de marginación","4","0","0","0","100","0","0","0","4","0","0","0","100","0","0","0"]
["07","CHIAPAS","LA ISLA","07KPR4165J","MATUTINO","TECPATAN","LOS GUAYABOS (LA ISLA)","Comunitaria","No identificada","4","4","4","100","100","SI","SI","Comunitarias en el país en los tres niveles de marginación","4","0","0","0","100","0","0","0","4","0","0","0","100","0","0","0"]
["07","CHIAPAS","CANAAN","07KPR5687X","MATUTINO","CINTALAPA","CANAAN","Comunitaria","No identificada","4","4","4","100","100","SI","SI","Comunitarias en el país en los tres niveles de marginación","4","0","0","0","100","0","0","0","4","0","0","0","100","0","0","0"]
["07","CHIAPAS","ROSARIO CASTELLANOS FIGUEROA","07DPR4890S","MATUTINO","OCOSINGO","GRACIAS A DIOS","General Pública","Muy Alta y Alta","4","4","4","100","100","SI","SI","Generales públicas en el país en localidades de muy alta y alta marginación","4","0","0","0","100","0","0","0","4","0","0","0","100","0","0","0"]
["07","CHIAPAS","16 DE MAYO","07EPR0449D","MATUTINO","CINTALAPA","LOS OLACHEA (SAN ANTONIO V","General Pública","Muy Alta y Alta","4","4","4","100","100","SI","SI","Generales públicas en el país en localidades de muy alta y alta marginación","4","0","0","0","100","0","0","0","4","0","0","0","100","0","0","0"]
["07","CHIAPAS","JOSEFA ORTIZ DE DOMINGUEZ","07DPB0130I","MATUTINO","LAS MARGARITAS","SAN CRISTOBAL BUENOS AIRES","Indígena","No identificada","5","5","5","100","100","SI","SI","Indígenas en el país en los tres niveles de marginación","5","0","0","0","100","0","0","0","5","0","0","0","100","0","0","0"]
["07","CHIAPAS","JOSE VASCONCELOS CALDERON","07DPB0291V","MATUTINO","SIMOJOVEL","UNION PUYUCUM","Indígena","Muy Alta y Alta","7","7","7","100","100","SI","SI","Indígenas en el país en los tres niveles de marginación","7","0","0","0","100","0","0","0","7","0","0","0","100","0","0","0"]
["07","CHIAPAS","MELCHOR OCAMPO","07DPB0414O","MATUTINO","PALENQUE","NUEVO SAMARITANO","Indígena","Muy Alta y Alta","10","10","10","100","100","SI","SI","Indígenas en el país en los tres niveles de marginación","10","0","0","0","100","0","0","0","10","0","0","0","100","0","0","0"]
["07","CHIAPAS","CUAUHTEMOC","07DPB0465V","MATUTINO","CHENALHO","CHIMTIC","Indígena","Muy Alta y Alta","16","16","16","100","100","SI","SI","Indígenas en el país en los tres niveles de marginación","16","0","0","0","100","0","0","0","16","0","0","0","100","0","0","0"]
["07","CHIAPAS","FRANCISCO INDALECIO MADERO","07DPB0486H","MATUTINO","OCOSINGO","LA REFORMA","Indígena","Muy Alta y Alta","31","31","31","100","100","SI","SI","Indígenas en el país en los tres niveles de marginación","31","0","0","0","100","0","0","0","31","0","0","0","100","0","0","0"]
["07","CHIAPAS","JOSE MARIA PINO SUAREZ","07DPB0493R","MATUTINO","CHILON","1RA. YALXEX","Indígena","Muy Alta y Alta","13","13","13","100","100","SI","SI","Indígenas en el país en los tres niveles de marginación","13","0","0","0","100","0","0","0","13","0","0","0","100","0","0","0"]
["07","CHIAPAS","TIERRA Y LIBERTAD","07DPB0556M","MATUTINO","CHILON","LA VICTORIA","Indígena","Muy Alta y Alta","9","9","9","100","100","SI","SI","Indígenas en el país en los tres niveles de marginación","9","0","0","0","100","0","0","0","9","0","0","0","100","0","0","0"]
["07","CHIAPAS","ALFREDO V BONFIL","07DPB0691R","MATUTINO","TILA","VICENTE GUERRERO","Indígena","Muy Alta y Alta","12","12","12","100","100","SI","SI","Indígenas en el país en los tres niveles de marginación","12","0","0","0","100","0","0","0","12","0","0","0","100","0","0","0"]
["07","CHIAPAS","MANUEL GAMIO","07DPB0913K","MATUTINO","HUITIUPAN","CERRO LA PAVA","Indígena","Muy Alta y Alta","9","9","9","100","100","SI","SI","Indígenas en el país en los tres niveles de marginación","9","0","0","0","100","0","0","0","9","0","0","0","100","0","0","0"]
["07","CHIAPAS","ADOLFO RUIZ CORTINEZ","07DPB1133M","MATUTINO","MARAVILLA TENEJAPA","LAS NUBES","Indígena","Muy Alta y Alta","8","8","8","100","100","SI","SI","Indígenas en el país en los tres niveles de marginación","8","0","0","0","100","0","0","0","8","0","0","0","100","0","0","0"]
["07","CHIAPAS","ROSARIO CASTELLANOS FIGUEROA","07DPB1503O","MATUTINO","BOCHIL","LA CAÑADA","Indígena","Muy Alta y Alta","9","9","9","100","100","SI","SI","Indígenas en el país en los tres niveles de marginación","9","0","0","0","100","0","0","0","9","0","0","0","100","0","0","0"]
["07","CHIAPAS","JUAN ALDAMA","07DPB1590Z","MATUTINO","CHILON","SAN MIGUEL CATARRAYA","Indígena","Muy Alta y Alta","4","4","4","100","100","SI","SI","Indígenas en el país en los tres niveles de marginación","4","0","0","0","100","0","0","0","4","0","0","0","100","0","0","0"]
["07","CHIAPAS","LA CONSTITUCION","07DPB2096F","MATUTINO","SALTO DE AGUA","RECUERDO IXTELJA","Indígena","Muy Alta y Alta","6","6","6","100","100","SI","SI","Indígenas en el país en los tres niveles de marginación","6","0","0","0","100","0","0","0","6","0","0","0","100","0","0","0"]
["07","CHIAPAS","ALVARO OBREGON","07DPB2236P","MATUTINO","SALTO DE AGUA","IGNACIO ZARAGOZA","Indígena","Muy Alta y Alta","21","21","21","100","100","SI","SI","Indígenas en el país en los tres niveles de marginación","21","0","0","0","100","0","0","0","21","0","0","0","100","0","0","0"]
["07","CHIAPAS","IGNACIO MEJIA","07DPB2408R","MATUTINO","CHILON","SAN JOSE BAWITZ","Indígena","Muy Alta y Alta","7","7","7","100","100","SI","SI","Indígenas en el país en los tres niveles de marginación","7","0","0","0","100","0","0","0","7","0","0","0","100","0","0","0"]
["07","CHIAPAS","VASCO DE QUIROGA","07DPB2459Y","MATUTINO","OCOSINGO","SANTO TON","Indígena","Muy Alta y Alta","23","23","23","100","100","SI","SI","Indígenas en el país en los tres niveles de marginación","23","0","0","0","100","0","0","0","23","0","0","0","100","0","0","0"]
["07","CHIAPAS","JUAN ESPONDA","07DPB2895Z","MATUTINO","CHAMULA","JOLCHIJTIK","Indígena","Muy Alta y Alta","7","7","7","100","100","SI","SI","Indígenas en el país en los tres niveles de marginación","7","0","0","0","100","0","0","0","7","0","0","0","100","0","0","0"]
["07","CHIAPAS","EMILIANO ZAPATA SALAZAR","07DPB3015L","MATUTINO","CHILON","SAN JOSE NANCITE","Indígena","Muy Alta y Alta","4","4","4","100","100","SI","SI","Indígenas en el país en los tres niveles de marginación","4","0","0","0","100","0","0","0","4","0","0","0","100","0","0","0"]
["07","CHIAPAS","OCTAVIO PAZ LOZANO","07DPB3070E","MATUTINO","LA TRINITARIA","ALBORES DE ZAPATA I","Indígena","Muy Alta y Alta","6","6","6","100","100","SI","SI","Indígenas en el país en los tres niveles de marginación","6","0","0","0","100","0","0","0","6","0","0","0","100","0","0","0"]
["07","CHIAPAS","JUAN ESCUTIA Y MARTINEZ","07DPB3323R","MATUTINO","CHILON","YAXTELJA","Indígena","Muy Alta y Alta","6","6","6","100","100","SI","SI","Indígenas en el país en los tres niveles de marginación","6","0","0","0","100","0","0","0","6","0","0","0","100","0","0","0"]
["07","CHIAPAS","RUBEN BONIFAZ NUÑO","07DPB3327N","MATUTINO","COMITAN DE DOMINGUEZ","NUEVA ERA COMITECA","Indígena","Muy Alta y Alta","4","4","4","100","100","SI","SI","Indígenas en el país en los tres niveles de marginación","4","0","0","0","100","0","0","0","4","0","0","0","100","0","0","0"]
["07","CHIAPAS","LAZARO CARDENAS DEL RIO","07DPB0620X","MATUTINO","LAS MARGARITAS","SANTA ROSA EL COPAN","Indígena","No identificada","3","3","3","100","100","SI","SI","Indígenas en el país en los tres niveles de marginación","3","0","0","0","100","0","0","0","3","0","0","0","100","0","0","0"]
["07","CHIAPAS","SAN ANTONIO","07KPB0679F","MATUTINO","PANTELHO","SAN ANTONIO","Comunitaria","No identificada","3","3","3","100","100","SI","SI","Comunitarias en el país en los tres niveles de marginación","3","0","0","0","100","0","0","0","3","0","0","0","100","0","0","0"]
["07","CHIAPAS","CRUZ GABRIEL SEGUNDA SECCION","07KPB1666I","MATUTINO","CHILON","CRUZ GABRIEL 2DA. SECCION","Comunitaria","No identificada","3","3","3","100","100","SI","SI","Comunitarias en el país en los tres niveles de marginación","3","0","0","0","100","0","0","0","3","0","0","0","100","0","0","0"]
["07","CHIAPAS","CHICOZAPOTE","07KPR0029E","MATUTINO","BERRIOZABAL","CHICOZAPOTE","Comunitaria","No identificada","3","3","3","100","100","SI","SI","Comunitarias en el país en los tres niveles de marginación","3","0","0","0","100","0","0","0","3","0","0","0","100","0","0","0"]
["07","CHIAPAS","LAS ROSAS","07KPR0030U","MATUTINO","SAN FERNANDO","LAS ROSAS","Comunitaria","No identificada","3","3","3","100","100","SI","SI","Comunitarias en el país en los tres niveles de marginación","3","0","0","0","100","0","0","0","3","0","0","0","100","0","0","0"]
["07","CHIAPAS","EL PACAYAL","07KPR0083Z","MATUTINO","LA CONCORDIA","EL PACAYAL","Comunitaria","No identificada","3","3","3","100","100","SI","SI","Comunitarias en el país en los tres niveles de marginación","3","0","0","0","100","0","0","0","3","0","0","0","100","0","0","0"]
["07","CHIAPAS","FRACCION GUADALUPE","07KPR1250M","MATUTINO","COMITAN DE DOMINGUEZ","FRACCION GUADALUPE","Comunitaria","No identificada","3","3","3","100","100","SI","SI","Comunitarias en el país en los tres niveles de marginación","3","0","0","0","100","0","0","0","3","0","0","0","100","0","0","0"]
["07","CHIAPAS","NUEVO VERGEL","07KPR3851T","MATUTINO","LA CONCORDIA","NUEVO VERGEL","Comunitaria","No identificada","3","3","3","100","100","SI","SI","Comunitarias en el país en los tres niveles de marginación","3","0","0","0","100","0","0","0","3","0","0","0","100","0","0","0"]
["07","CHIAPAS","JUSTO SIERRA MENDEZ","07DPB0177C","MATUTINO","SIMOJOVEL","TRES CASAS","Indígena","Muy Alta y Alta","3","3","3","100","100","SI","SI","Indígenas en el país en los tres niveles de marginación","3","0","0","0","100","0","0","0","3","0","0","0","100","0","0","0"]
["07","CHIAPAS","VICENTE GUERRERO","07DPB1483R","MATUTINO","OCOZOCOAUTLA DE ESPINOSA","VENUSTIANO CARRANZA","Indígena","Muy Alta y Alta","3","3","3","100","100","SI","SI","Indígenas en el país en los tres niveles de marginación","3","0","0","0","100","0","0","0","3","0","0","0","100","0","0","0"]
["07","CHIAPAS","JOSE MARIA MORELOS Y PAVON","07DPB1651X","MATUTINO","CHAPULTENANGO","CARMEN TONAPAC","Indígena","Muy Alta y Alta","3","3","3","100","100","SI","SI","Indígenas en el país en los tres niveles de marginación","3","0","0","0","100","0","0","0","3","0","0","0","100","0","0","0"]
["07","CHIAPAS","JUSTO SIERRA MENDEZ","07DPB2178P","MATUTINO","OCOTEPEC","NAZARETH","Indígena","Muy Alta y Alta","3","3","3","100","100","SI","SI","Indígenas en el país en los tres niveles de marginación","3","0","0","0","100","0","0","0","3","0","0","0","100","0","0","0"]
["07","CHIAPAS","PRIMARIA COMUNITARIA FRANCISCO J. MUJICA","07EPB0005J","MATUTINO","AMATAN","SAN SEBASTIAN","Indígena","Muy Alta y Alta","3","3","3","100","100","SI","SI","Indígenas en el país en los tres niveles de marginación","3","0","0","0","100","0","0","0","3","0","0","0","100","0","0","0"]
["07","CHIAPAS","PRIMARIA COMUNITARIA JAIME TORRES BODET","07EPB0564U","MATUTINO","ESCUINTLA","EL TRIUNFO","Indígena","Muy Alta y Alta","3","3","3","100","100","SI","SI","Indígenas en el país en los tres niveles de marginación","3","0","0","0","100","0","0","0","3","0","0","0","100","0","0","0"]
["07","CHIAPAS","LUIS DONALDO COLOSIO MURRIETA","07DPR4528S","MATUTINO","OCOZOCOAUTLA DE ESPINOSA","EL EMBARCADERO APIC PAC","General Pública","Muy Alta y Alta","3","3","3","100","100","SI","SI","Generales públicas en el país en localidades de muy alta y alta marginación","3","0","0","0","100","0","0","0","3","0","0","0","100","0","0","0"]
["07","CHIAPAS","SAN PEDRO TIYA'ALTON","07KPB1195I","MATUTINO","CHILON","SAN PEDRO TIYA'ALTON","Comunitaria","No identificada","2","2","2","100","100","SI","SI","Comunitarias en el país en los tres niveles de marginación","2","0","0","0","100","0","0","0","2","0","0","0","100","0","0","0"]
["07","CHIAPAS","CHIVALTIC","07KPB1484Z","MATUTINO","EL BOSQUE","CHIVALTIC","Comunitaria","No identificada","2","2","2","100","100","SI","SI","Comunitarias en el país en los tres niveles de marginación","2","0","0","0","100","0","0","0","2","0","0","0","100","0","0","0"]
["07","CHIAPAS","CH´AKA NABIL","07KPB1495F","MATUTINO","CHILON","SACLUMIL","Comunitaria","No identificada","2","2","2","100","100","SI","SI","Comunitarias en el país en los tres niveles de marginación","2","0","0","0","100","0","0","0","2","0","0","0","100","0","0","0"]
["07","CHIAPAS","NUEVA ESPERANZA","07KPB1781Z","MATUTINO","EL BOSQUE","NUEVA ESPERANZA","Comunitaria","No identificada","2","2","2","100","100","SI","SI","Comunitarias en el país en los tres niveles de marginación","2","0","0","0","100","0","0","0","2","0","0","0","100","0","0","0"]
["07","CHIAPAS","SAN MIGUEL JOTOAQUIL","07KPB1913A","MATUTINO","CHILON","SAN MIGUEL JOTOAQUIL","Comunitaria","No identificada","2","2","2","100","100","SI","SI","Comunitarias en el país en los tres niveles de marginación","2","0","0","0","100","0","0","0","2","0","0","0","100","0","0","0"]
["07","CHIAPAS","EL OASIS","07KPR0304T","MATUTINO","SILTEPEC","EL OASIS","Comunitaria","No identificada","2","2","2","100","100","SI","SI","Comunitarias en el país en los tres niveles de marginación","2","0","0","0","100","0","0","0","2","0","0","0","100","0","0","0"]
["07","CHIAPAS","NUEVO TENEJAPA","07KPR1396G","MATUTINO","CHICOMUSELO","NUEVO TENEJAPA","Comunitaria","No identificada","2","2","2","100","100","SI","SI","Comunitarias en el país en los tres niveles de marginación","2","0","0","0","100","0","0","0","2","0","0","0","100","0","0","0"]
["07","CHIAPAS","LOS ALPES","07KPR1489W","MATUTINO","LA CONCORDIA","LOS ALPES","Comunitaria","No identificada","2","2","2","100","100","SI","SI","Comunitarias en el país en los tres niveles de marginación","2","0","0","0","100","0","0","0","2","0","0","0","100","0","0","0"]
["07","CHIAPAS","EL PROGRESO","07KPR2839R","MATUTINO","OCOZOCOAUTLA DE ESPINOSA","EL PROGRESO","Comunitaria","No identificada","2","2","2","100","100","SI","SI","Comunitarias en el país en los tres niveles de marginación","2","0","0","0","100","0","0","0","2","0","0","0","100","0","0","0"]
["07","CHIAPAS","CANDELARIA EL POZO","07KPR3739Z","MATUTINO","LAS ROSAS","CANDELARIA EL POZO","Comunitaria","No identificada","2","2","2","100","100","SI","SI","Comunitarias en el país en los tres niveles de marginación","2","0","0","0","100","0","0","0","2","0","0","0","100","0","0","0"]
["07","CHIAPAS","LAS FLORES","07KPR3798O","MATUTINO","LAS MARGARITAS","LAS FLORES","Comunitaria","No identificada","2","2","2","100","100","SI","SI","Comunitarias en el país en los tres niveles de marginación","2","0","0","0","100","0","0","0","2","0","0","0","100","0","0","0"]
["07","CHIAPAS","BUENAVISTA","07KPR3860A","MATUTINO","VILLAFLORES","BUENAVISTA","Comunitaria","No identificada","2","2","2","100","100","SI","SI","Comunitarias en el país en los tres niveles de marginación","2","0","0","0","100","0","0","0","2","0","0","0","100","0","0","0"]
["07","CHIAPAS","LOMA LINDA","07KPR3889F","MATUTINO","SILTEPEC","LOMA LINDA","Comunitaria","No identificada","2","2","2","100","100","SI","SI","Comunitarias en el país en los tres niveles de marginación","2","0","0","0","100","0","0","0","2","0","0","0","100","0","0","0"]
["07","CHIAPAS","BETANIA","07KPR4465G","MATUTINO","TECPATAN","LAS CONCHAS","Comunitaria","No identificada","2","2","2","100","100","SI","SI","Comunitarias en el país en los tres niveles de marginación","2","0","0","0","100","0","0","0","2","0","0","0","100","0","0","0"]
["07","CHIAPAS","SANTA CRUZ","07KPR4503T","MATUTINO","ESCUINTLA","SANTA CRUZ","Comunitaria","No identificada","2","2","2","100","100","SI","SI","Comunitarias en el país en los tres niveles de marginación","2","0","0","0","100","0","0","0","2","0","0","0","100","0","0","0"]
["07","CHIAPAS","LAS GARDENIAS  II","07KPR5161U","MATUTINO","LA CONCORDIA","LAS GARDENIAS","Comunitaria","No identificada","2","2","2","100","100","SI","SI","Comunitarias en el país en los tres niveles de marginación","2","0","0","0","100","0","0","0","2","0","0","0","100","0","0","0"]
["07","CHIAPAS","SAN PEDRO","07KPR5289Z","MATUTINO","CINTALAPA","SAN PEDRO","Comunitaria","No identificada","2","2","2","100","100","SI","SI","Comunitarias en el país en los tres niveles de marginación","2","0","0","0","100","0","0","0","2","0","0","0","100","0","0","0"]
["07","CHIAPAS","NUEVO VICENTE GUERRERO","07KPR5510J","MATUTINO","VILLA CORZO","SAN RAMON","Comunitaria","No identificada","2","2","2","100","100","SI","SI","Comunitarias en el país en los tres niveles de marginación","2","0","0","0","100","0","0","0","2","0","0","0","100","0","0","0"]
["07","CHIAPAS","EL MIRADOR","07KPR5746W","MATUTINO","BERRIOZABAL","EL MIRADOR","Comunitaria","No identificada","2","2","2","100","100","SI","SI","Comunitarias en el país en los tres niveles de marginación","2","0","0","0","100","0","0","0","2","0","0","0","100","0","0","0"]
["07","CHIAPAS","LOS LOPEZ","07KPR9287P","MATUTINO","EL PORVENIR","LOS LOPEZ","Comunitaria","No identificada","2","2","2","100","100","SI","SI","Comunitarias en el país en los tres niveles de marginación","2","0","0","0","100","0","0","0","2","0","0","0","100","0","0","0"]
["07","CHIAPAS","BELISARIO DOMINGUEZ PALENCIA","07EPR0366V","MATUTINO","CATAZAJA","DOBLE A","General Pública","No identificada","2","2","2","100","100","SI","SI","Generales públicas en el país en los tres niveles de marginación","2","0","0","0","100","0","0","0","2","0","0","0","100","0","0","0"]
["07","CHIAPAS","REFORMA EDUCATIVA","07DPR1174N","MATUTINO","JUAREZ","GALEANA 2DA. SECCION (JOAQ","General Pública","Muy Alta y Alta","2","2","2","100","100","SI","SI","Generales públicas en el país en localidades de muy alta y alta marginación","2","0","0","0","100","0","0","0","2","0","0","0","100","0","0","0"]
["07","CHIAPAS","RICARDO FLORES MAGON","07DPR1465C","MATUTINO","SALTO DE AGUA","EL RETIRO","General Pública","Muy Alta y Alta","2","2","2","100","100","SI","SI","Generales públicas en el país en localidades de muy alta y alta marginación","2","0","0","0","100","0","0","0","2","0","0","0","100","0","0","0"]
["07","CHIAPAS","FRAY MATIAS DE CORDOVA Y ORDOÑEZ","07DPR4521Z","MATUTINO","ACAPETAHUA","LA LUPE","General Pública","Muy Alta y Alta","2","2","2","100","100","SI","SI","Generales públicas en el país en localidades de muy alta y alta marginación","2","0","0","0","100","0","0","0","2","0","0","0","100","0","0","0"]
["07","CHIAPAS","15 DE SEPTIEMBRE","07DPR4625U","MATUTINO","ACACOYAGUA","QUINCE DE SEPTIEMBRE","General Pública","Muy Alta y Alta","2","2","2","100","100","SI","SI","Generales públicas en el país en localidades de muy alta y alta marginación","2","0","0","0","100","0","0","0","2","0","0","0","100","0","0","0"]
["07","CHIAPAS","BENEMERITO DE LAS AMERICAS","07DPB0136C","MATUTINO","AMATAN","LOS OLIVARES","Indígena","Muy Alta y Alta","2","2","2","100","100","SI","SI","Indígenas en el país en los tres niveles de marginación","2","0","0","0","100","0","0","0","2","0","0","0","100","0","0","0"]
["07","CHIAPAS","PRIMARIA INDIGENA","07DPB2588S","MATUTINO","OCOSINGO","NUEVO PROGRESO","Indígena","Muy Alta y Alta","2","2","2","100","100","SI","SI","Indígenas en el país en los tres niveles de marginación","2","0","0","0","100","0","0","0","2","0","0","0","100","0","0","0"]
["07","CHIAPAS","VICENTE SUAREZ","07EPB0339X","MATUTINO","AMATAN","EL PARAISO","Indígena","Muy Alta y Alta","2","2","2","100","100","SI","SI","Indígenas en el país en los tres niveles de marginación","2","0","0","0","100","0","0","0","2","0","0","0","100","0","0","0"]
["07","CHIAPAS","PRIMARIA COMUNITARIA XAVIER VILLAURRUTIA","07EPB0799H","MATUTINO","CHILON","GUADALUPE TZAJALUCUM","Indígena","Muy Alta y Alta","2","2","2","100","100","SI","SI","Indígenas en el país en los tres niveles de marginación","2","0","0","0","100","0","0","0","2","0","0","0","100","0","0","0"]
["07","CHIAPAS","PRIMARIA COMUNITARIA INDIGENA","07EPB0814J","MATUTINO","IXTAPANGAJOYA","LLANOS MORELOS 1RA. SECCIO","Indígena","Muy Alta y Alta","2","2","2","100","100","SI","SI","Indígenas en el país en los tres niveles de marginación","2","0","0","0","100","0","0","0","2","0","0","0","100","0","0","0"]
["07","CHIAPAS","PRIMARIA COMUNITARIA INDIGENA","07EPB0828M","MATUTINO","COMITAN DE DOMINGUEZ","COMITAN DE DOMINGUEZ","Indígena","Muy Alta y Alta","2","2","2","100","100","SI","SI","Indígenas en el país en los tres niveles de marginación","2","0","0","0","100","0","0","0","2","0","0","0","100","0","0","0"]
["07","CHIAPAS","PRIMARIA COMUNITARIA LIBRADO DE LA TORRE RAMOS","07EPB0880I","MATUTINO","TAPILULA","LA PIEDAD (SAN ANTONIO)","Indígena","No identificada","2","2","2","100","100","SI","SI","Indígenas en el país en los tres niveles de marginación","2","0","0","0","100","0","0","0","2","0","0","0","100","0","0","0"]
["07","CHIAPAS","FRANCISCO PIZARRO","07DPB2102Z","MATUTINO","CHILON","JOLAMALTZAC","Indígena","Muy Alta y Alta","1","1","1","100","100","SI","SI","Indígenas en el país en los tres niveles de marginación","1","0","0","0","100","0","0","0","1","0","0","0","100","0","0","0"]
["07","CHIAPAS","MIGUEL HIDALGO Y COSTILLA","07DPB3297J","MATUTINO","TECPATAN","RAUDALES MALPASO","Indígena","Muy Alta y Alta","1","1","1","100","100","SI","SI","Indígenas en el país en los tres niveles de marginación","1","0","0","0","100","0","0","0","1","0","0","0","100","0","0","0"]
["07","CHIAPAS","PRIMARIA COMUNITARIA 24 DE FEBRERO","07EPB0292T","MATUTINO","COPAINALA","RIO GRANDE","Indígena","Media","1","1","1","100","100","SI","SI","Indígenas en el país en los tres niveles de marginación","1","0","0","0","100","0","0","0","1","0","0","0","100","0","0","0"]
["07","CHIAPAS","PRIMARIA COMUNITARIA JUAN RUIZ DE ALARCON","07EPB0410R","MATUTINO","SAN ANDRES DURAZNAL","EL OCOTAL","Indígena","Muy Alta y Alta","1","1","1","100","100","SI","SI","Indígenas en el país en los tres niveles de marginación","1","0","0","0","100","0","0","0","1","0","0","0","100","0","0","0"]
["07","CHIAPAS","PRIMARIA COMUNITARIA MELCHOR OCAMPO","07EPB0543H","MATUTINO","AMATAN","SAN SEBASTIAN","Indígena","Muy Alta y Alta","1","1","1","100","100","SI","SI","Indígenas en el país en los tres niveles de marginación","1","0","0","0","100","0","0","0","1","0","0","0","100","0","0","0"]
["07","CHIAPAS","PRIMARIA COMUNITARIA XAVIER VILLAURRUTIA","07EPB0594O","MATUTINO","PANTEPEC","EL RECUERDO","Indígena","Muy Alta y Alta","1","1","1","100","100","SI","SI","Indígenas en el país en los tres niveles de marginación","1","0","0","0","100","0","0","0","1","0","0","0","100","0","0","0"]
["07","CHIAPAS","PRIMARIA COMUNITARIA JAIME SABINES GUTIERREZ","07EPB0677X","MATUTINO","FRANCISCO LEON","EL GAVILAN","Indígena","Muy Alta y Alta","1","1","1","100","100","SI","SI","Indígenas en el país en los tres niveles de marginación","1","0","0","0","100","0","0","0","1","0","0","0","100","0","0","0"]
["07","CHIAPAS","JUAN SABINES GUTIERREZ","07KPR5205A","MATUTINO","REFORMA","JUAN SABINES GUTIERREZ","Comunitaria","Media","1","1","1","100","100","SI","SI","Comunitarias en el país en localidades de media marginación","1","0","0","0","100","0","0","0","1","0","0","0","100","0","0","0"]
["07","CHIAPAS","FRAY MATIAS DE CORDOVA Y ORDOÑEZ","07DPR2177R","MATUTINO","SAN FERNANDO","EL PORVENIR","General Pública","Muy Alta y Alta","1","1","1","100","100","SI","SI","Generales públicas en el país en localidades de muy alta y alta marginación","1","0","0","0","100","0","0","0","1","0","0","0","100","0","0","0"]
["07","CHIAPAS","SIMON BOLIVAR","07DPR4550U","MATUTINO","MAPASTEPEC","SIMON BOLIVAR","General Pública","Muy Alta y Alta","1","1","1","100","100","SI","SI","Generales públicas en el país en localidades de muy alta y alta marginación","1","0","0","0","100","0","0","0","1","0","0","0","100","0","0","0"]
["07","CHIAPAS","MOCTEZUMA","07DPR4682L","MATUTINO","VILLA COMALTITLAN","23 DE ENERO","General Pública","Muy Alta y Alta","1","1","1","100","100","SI","SI","Generales públicas en el país en localidades de muy alta y alta marginación","1","0","0","0","100","0","0","0","1","0","0","0","100","0","0","0"]
["07","CHIAPAS","DR. BELISARIO DOMINGUEZ PALENCIA","07EPR0357N","MATUTINO","SABANILLA","PASIJA DE MORELOS 1RA. SEC","General Pública","Muy Alta y Alta","1","1","1","100","100","SI","SI","Generales públicas en el país en localidades de muy alta y alta marginación","1","0","0","0","100","0","0","0","1","0","0","0","100","0","0","0"]
["07","CHIAPAS","AMADO NERVO","07EPR0646E","MATUTINO","AMATAN","SAN ANDRES TRES PICOS","General Pública","Muy Alta y Alta","1","1","1","100","100","SI","SI","Generales públicas en el país en localidades de muy alta y alta marginación","1","0","0","0","100","0","0","0","1","0","0","0","100","0","0","0"]
["07","CHIAPAS","CENTRO CRUZ OBISPO","07KPB0420I","MATUTINO","CHAMULA","CENTRO CRUZ OBISPO","Comunitaria","No identificada","1","1","1","100","100","SI","SI","Comunitarias en el país en los tres niveles de marginación","1","0","0","0","100","0","0","0","1","0","0","0","100","0","0","0"]
["07","CHIAPAS","AGUA ESCONDIDA","07KPB1145A","MATUTINO","OCOSINGO","AGUA ESCONDIDA","Comunitaria","No identificada","1","1","1","100","100","SI","SI","Comunitarias en el país en los tres niveles de marginación","1","0","0","0","100","0","0","0","1","0","0","0","100","0","0","0"]
["07","CHIAPAS","SAN JOSE EDEN","07KPB1251K","MATUTINO","CHILON","SAN JOSE EDEN","Comunitaria","No identificada","1","1","1","100","100","SI","SI","Comunitarias en el país en los tres niveles de marginación","1","0","0","0","100","0","0","0","1","0","0","0","100","0","0","0"]
["07","CHIAPAS","MOVAC SEGUNDA SECCION","07KPB1521N","MATUTINO","CHAPULTENANGO","MOVAC 2DA. SECCION","Comunitaria","No identificada","1","1","1","100","100","SI","SI","Comunitarias en el país en los tres niveles de marginación","1","0","0","0","100","0","0","0","1","0","0","0","100","0","0","0"]
["07","CHIAPAS","CRUCERO SAN ANTONIO","07KPB1878L","MATUTINO","CHILON","CRUCERO SAN ANTONIO","Comunitaria","No identificada","1","1","1","100","100","SI","SI","Comunitarias en el país en los tres niveles de marginación","1","0","0","0","100","0","0","0","1","0","0","0","100","0","0","0"]
["07","CHIAPAS","COPROPIEDAD SANTA CRUZ","07KPB1911C","MATUTINO","YAJALON","COPROPIEDAD SANTA CRUZ","Comunitaria","No identificada","1","1","1","100","100","SI","SI","Comunitarias en el país en los tres niveles de marginación","1","0","0","0","100","0","0","0","1","0","0","0","100","0","0","0"]
["07","CHIAPAS","EMILIANO ZAPATA","07KPR0028F","MATUTINO","BERRIOZABAL","EMILIANO ZAPATA","Comunitaria","No identificada","1","1","1","100","100","SI","SI","Comunitarias en el país en los tres niveles de marginación","1","0","0","0","100","0","0","0","1","0","0","0","100","0","0","0"]
["07","CHIAPAS","DESENGAÑO JURISDICCION SA JUAN","07KPR0156A","MATUTINO","PALENQUE","SAN JUAN (FRACCION EL DESENGAÑO)","Comunitaria","No identificada","1","1","1","100","100","SI","SI","Comunitarias en el país en los tres niveles de marginación","1","0","0","0","100","0","0","0","1","0","0","0","100","0","0","0"]
["07","CHIAPAS","EL RINCON","07KPR0235N","MATUTINO","LAS MARGARITAS","EL RINCON","Comunitaria","No identificada","1","1","1","100","100","SI","SI","Comunitarias en el país en los tres niveles de marginación","1","0","0","0","100","0","0","0","1","0","0","0","100","0","0","0"]
["07","CHIAPAS","NUEVA ESPERANZA","07KPR0347R","MATUTINO","VILLA CORZO","NUEVA ESPERANZA","Comunitaria","No identificada","1","1","1","100","100","SI","SI","Comunitarias en el país en los tres niveles de marginación","1","0","0","0","100","0","0","0","1","0","0","0","100","0","0","0"]
["07","CHIAPAS","NUEVA SONORA","07KPR1898Z","MATUTINO","ESCUINTLA","NUEVA SONORA","Comunitaria","No identificada","1","1","1","100","100","SI","SI","Comunitarias en el país en los tres niveles de marginación","1","0","0","0","100","0","0","0","1","0","0","0","100","0","0","0"]
["07","CHIAPAS","EL BRASILITO","07KPR2013R","MATUTINO","VILLAFLORES","MAGDALENA","Comunitaria","No identificada","1","1","1","100","100","SI","SI","Comunitarias en el país en los tres niveles de marginación","1","0","0","0","100","0","0","0","1","0","0","0","100","0","0","0"]
["07","CHIAPAS","EL ARBOLITO","07KPR2324U","MATUTINO","OCOZOCOAUTLA DE ESPINOSA","EL ARBOLITO","Comunitaria","No identificada","1","1","1","100","100","SI","SI","Comunitarias en el país en los tres niveles de marginación","1","0","0","0","100","0","0","0","1","0","0","0","100","0","0","0"]
["07","CHIAPAS","ZAPALUTA","07KPR2890O","MATUTINO","VILLA COMALTITLAN","ZAPALUTA","Comunitaria","No identificada","1","1","1","100","100","SI","SI","Comunitarias en el país en los tres niveles de marginación","1","0","0","0","100","0","0","0","1","0","0","0","100","0","0","0"]
["07","CHIAPAS","SAN ESTEBAN","07KPR3075K","MATUTINO","VILLA CORZO","SAN ESTEBAN","Comunitaria","No identificada","1","1","1","100","100","SI","SI","Comunitarias en el país en los tres niveles de marginación","1","0","0","0","100","0","0","0","1","0","0","0","100","0","0","0"]
["07","CHIAPAS","LOS CIMIENTOS","07KPR3139E","MATUTINO","SILTEPEC","LOS CIMIENTOS","Comunitaria","No identificada","1","1","1","100","100","SI","SI","Comunitarias en el país en los tres niveles de marginación","1","0","0","0","100","0","0","0","1","0","0","0","100","0","0","0"]
["07","CHIAPAS","LINDAVISTA","07KPR3193Z","MATUTINO","LA CONCORDIA","LINDAVISTA","Comunitaria","No identificada","1","1","1","100","100","SI","SI","Comunitarias en el país en los tres niveles de marginación","1","0","0","0","100","0","0","0","1","0","0","0","100","0","0","0"]
["07","CHIAPAS","LA BANDERA","07KPR3283R","MATUTINO","CINTALAPA","LA BANDERA","Comunitaria","No identificada","1","1","1","100","100","SI","SI","Comunitarias en el país en los tres niveles de marginación","1","0","0","0","100","0","0","0","1","0","0","0","100","0","0","0"]
["07","CHIAPAS","EL BERLIN","07KPR3638A","MATUTINO","VILLA CORZO","BERLIN","Comunitaria","No identificada","1","1","1","100","100","SI","SI","Comunitarias en el país en los tres niveles de marginación","1","0","0","0","100","0","0","0","1","0","0","0","100","0","0","0"]
["07","CHIAPAS","CUATRO MILPAS","07KPR3706H","MATUTINO","VILLA CORZO","CUATRO MILPAS","Comunitaria","No identificada","1","1","1","100","100","SI","SI","Comunitarias en el país en los tres niveles de marginación","1","0","0","0","100","0","0","0","1","0","0","0","100","0","0","0"]
["07","CHIAPAS","LAS ARENAS (EL COROZO)","07KPR3726V","MATUTINO","TECPATAN","LAS ARENAS (EL COROZO)","Comunitaria","No identificada","1","1","1","100","100","SI","SI","Comunitarias en el país en los tres niveles de marginación","1","0","0","0","100","0","0","0","1","0","0","0","100","0","0","0"]
["07","CHIAPAS","NUEVA REFORMA AGRARIA","07KPR3774E","MATUTINO","CHICOMUSELO","NUEVA REFORMA AGRARIA","Comunitaria","No identificada","1","1","1","100","100","SI","SI","Comunitarias en el país en los tres niveles de marginación","1","0","0","0","100","0","0","0","1","0","0","0","100","0","0","0"]
["07","CHIAPAS","EL CEÑIDO","07KPR3819K","MATUTINO","MONTECRISTO DE GUERRERO","MONTECRISTO DE GUERRERO","Comunitaria","No identificada","1","1","1","100","100","SI","SI","Comunitarias en el país en los tres niveles de marginación","1","0","0","0","100","0","0","0","1","0","0","0","100","0","0","0"]
["07","CHIAPAS","MONTE BONITO","07KPR3882M","MATUTINO","BERRIOZABAL","MONTE BONITO","Comunitaria","No identificada","1","1","1","100","100","SI","SI","Comunitarias en el país en los tres niveles de marginación","1","0","0","0","100","0","0","0","1","0","0","0","100","0","0","0"]
["07","CHIAPAS","NUEVA ESPERANZA","07KPR4150H","MATUTINO","ACACOYAGUA","LAS CHICHARRAS","Comunitaria","No identificada","1","1","1","100","100","SI","SI","Comunitarias en el país en los tres niveles de marginación","1","0","0","0","100","0","0","0","1","0","0","0","100","0","0","0"]
["07","CHIAPAS","OJO DE AGUA LOS CERRITOS","07KPR4175Q","MATUTINO","LA TRINITARIA","OJO DE AGUA","Comunitaria","No identificada","1","1","1","100","100","SI","SI","Comunitarias en el país en los tres niveles de marginación","1","0","0","0","100","0","0","0","1","0","0","0","100","0","0","0"]
["07","CHIAPAS","LINDA VISTA","07KPR4462J","MATUTINO","CINTALAPA","LINDAVISTA","Comunitaria","No identificada","1","1","1","100","100","SI","SI","Comunitarias en el país en los tres niveles de marginación","1","0","0","0","100","0","0","0","1","0","0","0","100","0","0","0"]
["07","CHIAPAS","EL PENCIL","07KPR5529H","MATUTINO","ANGEL ALBINO CORZO","EL PENCIL","Comunitaria","No identificada","1","1","1","100","100","SI","SI","Comunitarias en el país en los tres niveles de marginación","1","0","0","0","100","0","0","0","1","0","0","0","100","0","0","0"]
["07","CHIAPAS","SAN PRUDENCIO","07KPR5711G","MATUTINO","SALTO DE AGUA","EL PROGRESO DOS (SAN PRUDENCIO)","Comunitaria","No identificada","1","1","1","100","100","SI","SI","Comunitarias en el país en los tres niveles de marginación","1","0","0","0","100","0","0","0","1","0","0","0","100","0","0","0"]
["07","CHIAPAS","NUEVA LIBERTAD","07KPR5934P","MATUTINO","LA TRINITARIA","NUEVA LIBERTAD","Comunitaria","No identificada","1","1","1","100","100","SI","SI","Comunitarias en el país en los tres niveles de marginación","1","0","0","0","100","0","0","0","1","0","0","0","100","0","0","0"]
["07","CHIAPAS","BARRIO NUEVO ROSARIO","07KPR9352P","MATUTINO","BEJUCAL DE OCAMPO","BARRIO NUEVO ROSARIO","Comunitaria","No identificada","1","1","1","100","100","SI","SI","Comunitarias en el país en los tres niveles de marginación","1","0","0","0","100","0","0","0","1","0","0","0","100","0","0","0"]
["07","CHIAPAS","FRANCISCO VILLA","07KPB0493A","MATUTINO","BOCHIL","FRANCISCO VILLA","Comunitaria","Muy Alta y Alta","1","1","1","100","100","SI","SI","Comunitarias en el país en localidades de muy alta y alta marginación","0","1","0","0","0","100","0","0","1","0","0","0","100","0","0","0"]
["07","CHIAPAS","ANEXO SAN LUIS POTOSI","07KPB1359B","MATUTINO","ALTAMIRANO","SAN LUIS POTOSI","Comunitaria","Muy Alta y Alta","1","1","1","100","100","SI","SI","Comunitarias en el país en localidades de muy alta y alta marginación","0","1","0","0","0","100","0","0","1","0","0","0","100","0","0","0"]
["07","CHIAPAS","AURORA DURAZNAL","07KPB1385Z","MATUTINO","PUEBLO NUEVO SOLISTAHUACAN","AURORA EL DURAZNAL","Comunitaria","Muy Alta y Alta","1","1","1","100","100","SI","SI","Comunitarias en el país en localidades de muy alta y alta marginación","0","1","0","0","0","100","0","0","1","0","0","0","100","0","0","0"]
["07","CHIAPAS","LAGUNA GRANDE","07KPB1463N","MATUTINO","PANTEPEC","LAGUNA GRANDE","Comunitaria","Muy Alta y Alta","1","1","1","100","100","SI","SI","Comunitarias en el país en localidades de muy alta y alta marginación","0","1","0","0","0","100","0","0","1","0","0","0","100","0","0","0"]
["07","CHIAPAS","SAN FELIPE DE JESUS","07KPB1512F","MATUTINO","OCOSINGO","SAN FELIPE","Comunitaria","Muy Alta y Alta","1","1","1","100","100","SI","SI","Comunitarias en el país en localidades de muy alta y alta marginación","0","1","0","0","0","100","0","0","1","0","0","0","100","0","0","0"]
["07","CHIAPAS","TIERRA Y LIBERTAD","07KPB1588V","MATUTINO","YAJALON","TIERRA Y LIBERTAD","Comunitaria","Muy Alta y Alta","1","1","1","100","100","SI","SI","Comunitarias en el país en localidades de muy alta y alta marginación","0","1","0","0","0","100","0","0","1","0","0","0","100","0","0","0"]
["07","CHIAPAS","SAN JOSE LA AURORA","07KPB1681A","MATUTINO","PANTELHO","SAN JOSE LA AURORA","Comunitaria","Muy Alta y Alta","1","1","1","100","100","SI","SI","Comunitarias en el país en localidades de muy alta y alta marginación","0","1","0","0","0","100","0","0","1","0","0","0","100","0","0","0"]
["07","CHIAPAS","PRIMARIA CONAFE INDIGENA","07KPB1700Z","MATUTINO","PUEBLO NUEVO SOLISTAHUACAN","CACATEAL","Comunitaria","Muy Alta y Alta","1","1","1","100","100","SI","SI","Comunitarias en el país en localidades de muy alta y alta marginación","0","1","0","0","0","100","0","0","1","0","0","0","100","0","0","0"]
["07","CHIAPAS","CARMITO DOS","07KPB1778M","MATUTINO","HUITIUPAN","CARMITO DOS","Comunitaria","Muy Alta y Alta","1","1","1","100","100","SI","SI","Comunitarias en el país en localidades de muy alta y alta marginación","0","1","0","0","0","100","0","0","1","0","0","0","100","0","0","0"]
["07","CHIAPAS","CANTON VILLAHERMOSA","07KPR0148S","MATUTINO","HUEHUETAN","CANTON VILLAHERMOSA","Comunitaria","Muy Alta y Alta","1","1","1","100","100","SI","SI","Comunitarias en el país en localidades de muy alta y alta marginación","0","1","0","0","0","100","0","0","1","0","0","0","100","0","0","0"]
["07","CHIAPAS","SAN JOSE LAS PALMAS","07KPR0201X","MATUTINO","LAS MARGARITAS","SAN JOSE LAS PALMAS","Comunitaria","Muy Alta y Alta","1","1","1","100","100","SI","SI","Comunitarias en el país en localidades de muy alta y alta marginación","0","1","0","0","0","100","0","0","1","0","0","0","100","0","0","0"]
["07","CHIAPAS","SAN PEDRITO EL XOCH DOS","07KPR0206S","MATUTINO","LAS MARGARITAS","EL MILAGRO (SAN PEDRITO EL XOCH)","Comunitaria","Muy Alta y Alta","1","1","1","100","100","SI","SI","Comunitarias en el país en localidades de muy alta y alta marginación","0","1","0","0","0","100","0","0","1","0","0","0","100","0","0","0"]
["07","CHIAPAS","CONSEJO AGRARIO MEXICANO","07KPR0323H","MATUTINO","TAPACHULA","CONSEJO AGRARIO MEXICANO","Comunitaria","Muy Alta y Alta","1","1","1","100","100","SI","SI","Comunitarias en el país en localidades de muy alta y alta marginación","0","1","0","0","0","100","0","0","1","0","0","0","100","0","0","0"]
["07","CHIAPAS","DOLORES LA FRONTERA","07KPR0404S","MATUTINO","LA TRINITARIA","DOLORES LA FRONTERA","Comunitaria","Muy Alta y Alta","1","1","1","100","100","SI","SI","Comunitarias en el país en localidades de muy alta y alta marginación","0","1","0","0","0","100","0","0","1","0","0","0","100","0","0","0"]
["07","CHIAPAS","ROSARITO LA PIÑUELA","07KPR0986N","MATUTINO","ESCUINTLA","ROSARITO LA PIÑUELA","Comunitaria","Muy Alta y Alta","1","1","1","100","100","SI","SI","Comunitarias en el país en localidades de muy alta y alta marginación","0","1","0","0","0","100","0","0","1","0","0","0","100","0","0","0"]
["07","CHIAPAS","FRACCION ESQUIPULAS I","07KPR1246Z","MATUTINO","PUEBLO NUEVO SOLISTAHUACAN","ESQUIPULAS","Comunitaria","Muy Alta y Alta","1","1","1","100","100","SI","SI","Comunitarias en el país en localidades de muy alta y alta marginación","0","1","0","0","0","100","0","0","1","0","0","0","100","0","0","0"]
["07","CHIAPAS","SAN JOSE LA UNION","07KPR1275V","MATUTINO","PALENQUE","SAN JOSE LA UNION","Comunitaria","Muy Alta y Alta","1","1","1","100","100","SI","SI","Comunitarias en el país en localidades de muy alta y alta marginación","0","1","0","0","0","100","0","0","1","0","0","0","100","0","0","0"]
["07","CHIAPAS","CHIVAL","07KPR1407W","MATUTINO","SALTO DE AGUA","SAN SEBASTIAN","Comunitaria","Muy Alta y Alta","1","1","1","100","100","SI","SI","Comunitarias en el país en localidades de muy alta y alta marginación","0","1","0","0","0","100","0","0","1","0","0","0","100","0","0","0"]
["07","CHIAPAS","SANTA ISABEL","07KPR1414F","MATUTINO","PALENQUE","SANTA ISABEL","Comunitaria","Muy Alta y Alta","1","1","1","100","100","SI","SI","Comunitarias en el país en localidades de muy alta y alta marginación","0","1","0","0","0","100","0","0","1","0","0","0","100","0","0","0"]
["07","CHIAPAS","EL HORIZONTE","07KPR1420Q","MATUTINO","TECPATAN","EL HORIZONTE","Comunitaria","Muy Alta y Alta","1","1","1","100","100","SI","SI","Comunitarias en el país en localidades de muy alta y alta marginación","0","1","0","0","0","100","0","0","1","0","0","0","100","0","0","0"]
["07","CHIAPAS","BUENAVISTA","07KPR1596E","MATUTINO","BELLA VISTA","BUENAVISTA","Comunitaria","Muy Alta y Alta","1","1","1","100","100","SI","SI","Comunitarias en el país en localidades de muy alta y alta marginación","0","1","0","0","0","100","0","0","1","0","0","0","100","0","0","0"]
["07","CHIAPAS","EL CHINAL","07KPR2125V","MATUTINO","AMATAN","EL CHINAL","Comunitaria","Muy Alta y Alta","1","1","1","100","100","SI","SI","Comunitarias en el país en localidades de muy alta y alta marginación","0","1","0","0","0","100","0","0","1","0","0","0","100","0","0","0"]
["07","CHIAPAS","SAN CARLOS","07KPR2202J","MATUTINO","VILLA CORZO","SAN CARLOS","Comunitaria","Muy Alta y Alta","1","1","1","100","100","SI","SI","Comunitarias en el país en localidades de muy alta y alta marginación","0","1","0","0","0","100","0","0","1","0","0","0","100","0","0","0"]
["07","CHIAPAS","EL MANGO","07KPR2256N","MATUTINO","PALENQUE","EL MANGO","Comunitaria","Muy Alta y Alta","1","1","1","100","100","SI","SI","Comunitarias en el país en localidades de muy alta y alta marginación","0","1","0","0","0","100","0","0","1","0","0","0","100","0","0","0"]
["07","CHIAPAS","EL CARMEN CERRO SANTO DOS","07KPR2304G","MATUTINO","TECPATAN","EL CARMEN CERRO SANTO DOS","Comunitaria","Muy Alta y Alta","1","1","1","100","100","SI","SI","Comunitarias en el país en localidades de muy alta y alta marginación","0","1","0","0","0","100","0","0","1","0","0","0","100","0","0","0"]
["07","CHIAPAS","CATEDRAL 1RA. SECCION","07KPR2552O","MATUTINO","OSTUACAN","CATEDRAL 1RA. SECCION","Comunitaria","Muy Alta y Alta","1","1","1","100","100","SI","SI","Comunitarias en el país en localidades de muy alta y alta marginación","0","1","0","0","0","100","0","0","1","0","0","0","100","0","0","0"]
["07","CHIAPAS","BUENAVISTA MANON","07KPR2669N","MATUTINO","TECPATAN","BUENAVISTA MANON","Comunitaria","Muy Alta y Alta","1","1","1","100","100","SI","SI","Comunitarias en el país en localidades de muy alta y alta marginación","0","1","0","0","0","100","0","0","1","0","0","0","100","0","0","0"]
["07","CHIAPAS","MIGUEL HIDALGO 2","07KPR2882F","MATUTINO","PICHUCALCO","MIGUEL HIDALGO","Comunitaria","Muy Alta y Alta","1","1","1","100","100","SI","SI","Comunitarias en el país en localidades de muy alta y alta marginación","0","1","0","0","0","100","0","0","1","0","0","0","100","0","0","0"]
["07","CHIAPAS","SAN ANTONIO AGUA ESCONDIDA","07KPR3036I","MATUTINO","LAS MARGARITAS","SAN ANTONIO AGUA ESCONDIDA","Comunitaria","Muy Alta y Alta","1","1","1","100","100","SI","SI","Comunitarias en el país en localidades de muy alta y alta marginación","0","1","0","0","0","100","0","0","1","0","0","0","100","0","0","0"]
["07","CHIAPAS","DIEZ DE ABRIL (TEXCOCO)","07KPR3308J","MATUTINO","ACACOYAGUA","DIEZ DE ABRIL (TEXCOCO)","Comunitaria","Muy Alta y Alta","1","1","1","100","100","SI","SI","Comunitarias en el país en localidades de muy alta y alta marginación","0","1","0","0","0","100","0","0","1","0","0","0","100","0","0","0"]
["07","CHIAPAS","POZA GALANA","07KPR3484O","MATUTINO","ARRIAGA","POZA GALANA","Comunitaria","Muy Alta y Alta","1","1","1","100","100","SI","SI","Comunitarias en el país en localidades de muy alta y alta marginación","0","1","0","0","0","100","0","0","1","0","0","0","100","0","0","0"]
["07","CHIAPAS","PLATANAR ABAJO 1A. SECCION (LA CRIMEA)","07KPR3563A","MATUTINO","PICHUCALCO","PLATANAR ABAJO 1RA. SECCION (LA CRIMEA)","Comunitaria","Muy Alta y Alta","1","1","1","100","100","SI","SI","Comunitarias en el país en localidades de muy alta y alta marginación","0","1","0","0","0","100","0","0","1","0","0","0","100","0","0","0"]
["07","CHIAPAS","SAN JOSE IXTELJA","07KPR3636C","MATUTINO","SALTO DE AGUA","SAN JOSE IXTELJA","Comunitaria","Muy Alta y Alta","1","1","1","100","100","SI","SI","Comunitarias en el país en localidades de muy alta y alta marginación","0","1","0","0","0","100","0","0","1","0","0","0","100","0","0","0"]
["07","CHIAPAS","ROSARIO BUENAVISTA","07KPR3654S","MATUTINO","LAS MARGARITAS","ROSARIO BUENAVISTA","Comunitaria","Muy Alta y Alta","1","1","1","100","100","SI","SI","Comunitarias en el país en localidades de muy alta y alta marginación","0","1","0","0","0","100","0","0","1","0","0","0","100","0","0","0"]
["07","CHIAPAS","NUEVO ALTAMIRANO","07KPR3685L","MATUTINO","PALENQUE","NUEVO ALTAMIRANO","Comunitaria","Muy Alta y Alta","1","1","1","100","100","SI","SI","Comunitarias en el país en localidades de muy alta y alta marginación","0","1","0","0","0","100","0","0","1","0","0","0","100","0","0","0"]
["07","CHIAPAS","NUEVO AMANECER LA AVANZADA","07KPR4182Z","MATUTINO","SILTEPEC","NUEVO AMANECER LA AVANZADA","Comunitaria","Muy Alta y Alta","1","1","1","100","100","SI","SI","Comunitarias en el país en localidades de muy alta y alta marginación","0","1","0","0","0","100","0","0","1","0","0","0","100","0","0","0"]
["07","CHIAPAS","SAN ANTONIO","07KPR4460L","MATUTINO","TECPATAN","LA PIÑITA","Comunitaria","Muy Alta y Alta","1","1","1","100","100","SI","SI","Comunitarias en el país en localidades de muy alta y alta marginación","0","1","0","0","0","100","0","0","1","0","0","0","100","0","0","0"]
["07","CHIAPAS","FLOR DE CAFE","07KPR4557X","MATUTINO","LAS MARGARITAS","FLOR DE CAFE","Comunitaria","Muy Alta y Alta","1","1","1","100","100","SI","SI","Comunitarias en el país en localidades de muy alta y alta marginación","0","1","0","0","0","100","0","0","1","0","0","0","100","0","0","0"]
["07","CHIAPAS","SAN CARALAMPIO (ANEXO FRANCISCO SARABIA)","07KPR5087C","MATUTINO","LA INDEPENDENCIA","SAN CARALAMPIO (ANEXO FRANCISCO SARABIA)","Comunitaria","Muy Alta y Alta","1","1","1","100","100","SI","SI","Comunitarias en el país en localidades de muy alta y alta marginación","0","1","0","0","0","100","0","0","1","0","0","0","100","0","0","0"]
["07","CHIAPAS","GALEANA PRIMERA SECCION COLONIA EL ENCANTO","07KPR5432W","MATUTINO","JUAREZ","GALEANA 1RA. SECCION","Comunitaria","Muy Alta y Alta","1","1","1","100","100","SI","SI","Comunitarias en el país en localidades de muy alta y alta marginación","0","1","0","0","0","100","0","0","1","0","0","0","100","0","0","0"]
["07","CHIAPAS","SOLO DIOS","07KPR5439P","MATUTINO","SUNUAPA","ESQUIPULAS","Comunitaria","Muy Alta y Alta","1","1","1","100","100","SI","SI","Comunitarias en el país en localidades de muy alta y alta marginación","0","1","0","0","0","100","0","0","1","0","0","0","100","0","0","0"]
["07","CHIAPAS","NUEVO LAREDO","07KPR5673U","MATUTINO","CHICOMUSELO","NUEVO LAREDO","Comunitaria","Muy Alta y Alta","1","1","1","100","100","SI","SI","Comunitarias en el país en localidades de muy alta y alta marginación","0","1","0","0","0","100","0","0","1","0","0","0","100","0","0","0"]
["07","CHIAPAS","SAN PEDRO","07KPR5945V","MATUTINO","ACALA","SAN PEDRO","Comunitaria","Muy Alta y Alta","1","1","1","100","100","SI","SI","Comunitarias en el país en localidades de muy alta y alta marginación","0","1","0","0","0","100","0","0","1","0","0","0","100","0","0","0"]
["07","CHIAPAS","PIEDRA BLANCA","07KPR5973R","MATUTINO","SILTEPEC","PIEDRA BLANCA","Comunitaria","Muy Alta y Alta","1","1","1","100","100","SI","SI","Comunitarias en el país en localidades de muy alta y alta marginación","0","1","0","0","0","100","0","0","1","0","0","0","100","0","0","0"]
["07","CHIAPAS","IGNACIO MANUEL ALTAMIRANO","07DPR4856L","MATUTINO","ACACOYAGUA","LAS CADENAS","General Pública","No identificada","1","1","1","100","100","SI","SI","Generales públicas en el país en los tres niveles de marginación","0","1","0","0","0","100","0","0","1","0","0","0","100","0","0","0"]
["07","CHIAPAS","PRIMARIA COMUNITARIA REVOLUCION 1910","07EPB0186J","MATUTINO","SALTO DE AGUA","PROVIDENCIA FRACCION","Indígena","No identificada","1","1","1","100","100","SI","SI","Indígenas en el país en los tres niveles de marginación","0","1","0","0","0","100","0","0","1","0","0","0","100","0","0","0"]
["07","CHIAPAS","EL LIMON","07KPB9379P","MATUTINO","TUMBALA","EL LIMON","Comunitaria","No identificada","1","1","1","100","100","SI","SI","Comunitarias en el país en los tres niveles de marginación","0","1","0","0","0","100","0","0","1","0","0","0","100","0","0","0"]
["07","CHIAPAS","EL MILAGRO","07KPR1424M","MATUTINO","OCOZOCOAUTLA DE ESPINOSA","EL MILAGRO","Comunitaria","No identificada","1","1","1","100","100","SI","SI","Comunitarias en el país en los tres niveles de marginación","0","1","0","0","0","100","0","0","1","0","0","0","100","0","0","0"]
["07","CHIAPAS","MONTECRISTO","07KPR2856H","MATUTINO","PALENQUE","MONTECRISTO","Comunitaria","No identificada","1","1","1","100","100","SI","SI","Comunitarias en el país en los tres niveles de marginación","0","1","0","0","0","100","0","0","1","0","0","0","100","0","0","0"]
["07","CHIAPAS","GRACIAS A DIOS","07KPR3170O","MATUTINO","CINTALAPA","GRACIAS A DIOS","Comunitaria","No identificada","1","1","1","100","100","SI","SI","Comunitarias en el país en los tres niveles de marginación","0","1","0","0","0","100","0","0","1","0","0","0","100","0","0","0"]
["07","CHIAPAS","LA FORTUNA","07KPR3243Q","MATUTINO","PALENQUE","LA FORTUNA","Comunitaria","No identificada","1","1","1","100","100","SI","SI","Comunitarias en el país en los tres niveles de marginación","0","1","0","0","0","100","0","0","1","0","0","0","100","0","0","0"]
["07","CHIAPAS","EL DESENGAÑO","07KPR3762Z","MATUTINO","VILLA CORZO","EL DESENGAÑO","Comunitaria","No identificada","1","1","1","100","100","SI","SI","Comunitarias en el país en los tres niveles de marginación","0","1","0","0","0","100","0","0","1","0","0","0","100","0","0","0"]
["07","CHIAPAS","SALTO DE AGUA","07KPR3764Y","MATUTINO","VILLAFLORES","SALTO DE AGUA","Comunitaria","No identificada","1","1","1","100","100","SI","SI","Comunitarias en el país en los tres niveles de marginación","0","1","0","0","0","100","0","0","1","0","0","0","100","0","0","0"]
["07","CHIAPAS","SAN JOSE (EL NARANJAL)","07KPR3881N","MATUTINO","CINTALAPA","SAN JOSE NARANJAL","Comunitaria","No identificada","1","1","1","100","100","SI","SI","Comunitarias en el país en los tres niveles de marginación","0","1","0","0","0","100","0","0","1","0","0","0","100","0","0","0"]
["07","CHIAPAS","SAN PEDRO BUENAVISTA","07KPR5560R","MATUTINO","OCOZOCOAUTLA DE ESPINOSA","RIO BRAVO","Comunitaria","No identificada","1","1","1","100","100","SI","SI","Comunitarias en el país en los tres niveles de marginación","0","1","0","0","0","100","0","0","1","0","0","0","100","0","0","0"]
["07","CHIAPAS","OJO DE AGUA","07KPR5834Q","MATUTINO","TEOPISCA","OJO DE AGUA","Comunitaria","No identificada","1","1","1","100","100","SI","SI","Comunitarias en el país en los tres niveles de marginación","0","1","0","0","0","100","0","0","1","0","0","0","100","0","0","0"]
["07","CHIAPAS","LA NUEVA ESPERANZA","07KPR5931S","MATUTINO","ACALA","LA NUEVA ESPERANZA","Comunitaria","Media","1","1","1","100","100","SI","SI","Comunitarias en el país en localidades de media marginación","0","1","0","0","0","100","0","0","1","0","0","0","100","0","0","0"]
["07","CHIAPAS","PRIMARIA CONAFE INDIGENA","07KPB1890G","MATUTINO","CHILON","CENTRO YOC CACUALA","Comunitaria","No identificada","2","2","2","100","100","SI","SI","Comunitarias en el país en los tres niveles de marginación","1","1","0","0","50","50","0","0","2","0","0","0","100","0","0","0"]
["07","CHIAPAS","LA HERENCIA","07KPR1129K","MATUTINO","VILLA CORZO","LA HERENCIA","Comunitaria","No identificada","2","2","2","100","100","SI","SI","Comunitarias en el país en los tres niveles de marginación","1","1","0","0","50","50","0","0","2","0","0","0","100","0","0","0"]
["07","CHIAPAS","EL ROGRESO","07KPR1331X","MATUTINO","LA TRINITARIA","EL PROGRESO","Comunitaria","Media","2","2","2","100","100","SI","SI","Comunitarias en el país en localidades de media marginación","1","1","0","0","50","50","0","0","2","0","0","0","100","0","0","0"]
["07","CHIAPAS","LAS DELICIAS","07KPR1614D","MATUTINO","LA CONCORDIA","LAS DELICIAS","Comunitaria","No identificada","2","2","2","100","100","SI","SI","Comunitarias en el país en los tres niveles de marginación","1","1","0","0","50","50","0","0","2","0","0","0","100","0","0","0"]
["07","CHIAPAS","SANTA TERESA","07KPR3653T","MATUTINO","LAS MARGARITAS","SANTA TERESA","Comunitaria","No identificada","2","2","2","100","100","SI","SI","Comunitarias en el país en los tres niveles de marginación","1","1","0","0","50","50","0","0","2","0","0","0","100","0","0","0"]
["07","CHIAPAS","LAS MARGARITAS","07KPR3847G","MATUTINO","LA CONCORDIA","LAS MARGARITAS","Comunitaria","No identificada","2","2","2","100","100","SI","SI","Comunitarias en el país en los tres niveles de marginación","1","1","0","0","50","50","0","0","2","0","0","0","100","0","0","0"]
["07","CHIAPAS","LOS MANGUITOS","07KPR4138M","MATUTINO","VILLAFLORES","LOS MANGUITOS","Comunitaria","No identificada","2","2","2","100","100","SI","SI","Comunitarias en el país en los tres niveles de marginación","1","1","0","0","50","50","0","0","2","0","0","0","100","0","0","0"]
["07","CHIAPAS","GRACIAS A DIOS","07KPB0013C","MATUTINO","SIMOJOVEL","GRACIAS A DIOS","Comunitaria","Muy Alta y Alta","2","2","2","100","100","SI","SI","Comunitarias en el país en localidades de muy alta y alta marginación","1","1","0","0","50","50","0","0","2","0","0","0","100","0","0","0"]
["07","CHIAPAS","EL PORVENIR","07KPB0399W","MATUTINO","TEOPISCA","EL PORVENIR","Comunitaria","Muy Alta y Alta","2","2","2","100","100","SI","SI","Comunitarias en el país en localidades de muy alta y alta marginación","1","1","0","0","50","50","0","0","2","0","0","0","100","0","0","0"]
["07","CHIAPAS","JOTOLA","07KPB0572N","MATUTINO","YAJALON","JOTOLA","Comunitaria","Muy Alta y Alta","2","2","2","100","100","SI","SI","Comunitarias en el país en localidades de muy alta y alta marginación","1","1","0","0","50","50","0","0","2","0","0","0","100","0","0","0"]
["07","CHIAPAS","SAN CARLOS","07KPB0584S","MATUTINO","OCOSINGO","SAN CARLOS","Comunitaria","Muy Alta y Alta","2","2","2","100","100","SI","SI","Comunitarias en el país en localidades de muy alta y alta marginación","1","1","0","0","50","50","0","0","2","0","0","0","100","0","0","0"]
["07","CHIAPAS","PRIMARIA CONAFE INDIGENA","07KPB0599U","MATUTINO","SAN CRISTOBAL DE LAS CASAS","CARRIZAL CHIQUITO (CARRIZALITO)","Comunitaria","Muy Alta y Alta","2","2","2","100","100","SI","SI","Comunitarias en el país en localidades de muy alta y alta marginación","1","1","0","0","50","50","0","0","2","0","0","0","100","0","0","0"]
["07","CHIAPAS","MUSTANJA","07KPB1334T","MATUTINO","CHILON","ARROYO MUSTANJA","Comunitaria","Muy Alta y Alta","2","2","2","100","100","SI","SI","Comunitarias en el país en localidades de muy alta y alta marginación","1","1","0","0","50","50","0","0","2","0","0","0","100","0","0","0"]
["07","CHIAPAS","NUEVA LIBERTAD","07KPB1798Z","MATUTINO","OCOSINGO","NUEVA LIBERTAD","Comunitaria","Muy Alta y Alta","2","2","2","100","100","SI","SI","Comunitarias en el país en localidades de muy alta y alta marginación","1","1","0","0","50","50","0","0","2","0","0","0","100","0","0","0"]
["07","CHIAPAS","LOS MANGOS","07KPB1904T","MATUTINO","SABANILLA","LOS MANGOS","Comunitaria","Muy Alta y Alta","2","2","2","100","100","SI","SI","Comunitarias en el país en localidades de muy alta y alta marginación","1","1","0","0","50","50","0","0","2","0","0","0","100","0","0","0"]
["07","CHIAPAS","FELIPE ANGELES","07KPR0038M","MATUTINO","CINTALAPA","FELIPE ANGELES","Comunitaria","Muy Alta y Alta","2","2","2","100","100","SI","SI","Comunitarias en el país en localidades de muy alta y alta marginación","1","1","0","0","50","50","0","0","2","0","0","0","100","0","0","0"]
["07","CHIAPAS","SANTA AMALIA","07KPR0982R","MATUTINO","TUZANTAN","SANTA AMALIA","Comunitaria","Muy Alta y Alta","2","2","2","100","100","SI","SI","Comunitarias en el país en localidades de muy alta y alta marginación","1","1","0","0","50","50","0","0","2","0","0","0","100","0","0","0"]
["07","CHIAPAS","GUADALUPE VICTORIA","07KPR1002E","MATUTINO","OCOZOCOAUTLA DE ESPINOSA","GUADALUPE VICTORIA","Comunitaria","Muy Alta y Alta","2","2","2","100","100","SI","SI","Comunitarias en el país en localidades de muy alta y alta marginación","1","1","0","0","50","50","0","0","2","0","0","0","100","0","0","0"]
["07","CHIAPAS","SANTO DOMINGO","07KPR1030A","MATUTINO","HUEHUETAN","SANTO DOMINGO","Comunitaria","Muy Alta y Alta","2","2","2","100","100","SI","SI","Comunitarias en el país en localidades de muy alta y alta marginación","1","1","0","0","50","50","0","0","2","0","0","0","100","0","0","0"]
["07","CHIAPAS","SAN ANTONIO BLANCA ROSA","07KPR1468J","MATUTINO","TAPALAPA","SAN ANTONIO BLANCA ROSA","Comunitaria","Muy Alta y Alta","2","2","2","100","100","SI","SI","Comunitarias en el país en localidades de muy alta y alta marginación","1","1","0","0","50","50","0","0","2","0","0","0","100","0","0","0"]
["07","CHIAPAS","PRIMARIA CONAFE","07KPR1585Z","MATUTINO","ACAPETAHUA","EL CHILAR","Comunitaria","Muy Alta y Alta","2","2","2","100","100","SI","SI","Comunitarias en el país en localidades de muy alta y alta marginación","1","1","0","0","50","50","0","0","2","0","0","0","100","0","0","0"]
["07","CHIAPAS","SAN CRISTOBAL BUENAVISTA","07KPR1677P","MATUTINO","TAPACHULA","SAN CRISTOBAL","Comunitaria","Muy Alta y Alta","2","2","2","100","100","SI","SI","Comunitarias en el país en localidades de muy alta y alta marginación","1","1","0","0","50","50","0","0","2","0","0","0","100","0","0","0"]
["07","CHIAPAS","PROPIEDAD EL MANACAL","07KPR2519G","MATUTINO","MOTOZINTLA","MANACALITO","Comunitaria","Muy Alta y Alta","2","2","2","100","100","SI","SI","Comunitarias en el país en localidades de muy alta y alta marginación","1","1","0","0","50","50","0","0","2","0","0","0","100","0","0","0"]
["07","CHIAPAS","ESTACION CHACAMAX","07KPR2526Q","MATUTINO","PALENQUE","ESTACION CHACAMAX","Comunitaria","Muy Alta y Alta","2","2","2","100","100","SI","SI","Comunitarias en el país en localidades de muy alta y alta marginación","1","1","0","0","50","50","0","0","2","0","0","0","100","0","0","0"]
["07","CHIAPAS","SANTA CATARINA 2DA. SECCION","07KPR2803C","MATUTINO","IXTACOMITAN","SANTA CATARINA 2DA. SECCION","Comunitaria","Muy Alta y Alta","2","2","2","100","100","SI","SI","Comunitarias en el país en localidades de muy alta y alta marginación","1","1","0","0","50","50","0","0","2","0","0","0","100","0","0","0"]
["07","CHIAPAS","PRIMARIA CONAFE","07KPR2929J","MATUTINO","SIMOJOVEL","MIRAMAR","Comunitaria","Muy Alta y Alta","2","2","2","100","100","SI","SI","Comunitarias en el país en localidades de muy alta y alta marginación","1","1","0","0","50","50","0","0","2","0","0","0","100","0","0","0"]
["07","CHIAPAS","LAS POMARROSAS","07KPR3117T","MATUTINO","VILLAFLORES","LAS POMARROSAS","Comunitaria","Muy Alta y Alta","2","2","2","100","100","SI","SI","Comunitarias en el país en localidades de muy alta y alta marginación","1","1","0","0","50","50","0","0","2","0","0","0","100","0","0","0"]
["07","CHIAPAS","ARROYO SANGRE","07KPR3295W","MATUTINO","FRANCISCO LEON","ARROYO SANGRE","Comunitaria","Muy Alta y Alta","2","2","2","100","100","SI","SI","Comunitarias en el país en localidades de muy alta y alta marginación","1","1","0","0","50","50","0","0","2","0","0","0","100","0","0","0"]
["07","CHIAPAS","NUEVO GUADALUPE NUCUPAC","07KPR3330L","MATUTINO","TECPATAN","NUEVO GUADALUPE","Comunitaria","Muy Alta y Alta","2","2","2","100","100","SI","SI","Comunitarias en el país en localidades de muy alta y alta marginación","1","1","0","0","50","50","0","0","2","0","0","0","100","0","0","0"]
["07","CHIAPAS","PLATANAR ABAJO SEGUNDA SECCION (UNIDAD CHIAPANECA)","07KPR3412V","MATUTINO","PICHUCALCO","PLATANAR ABAJO 2DA. SECCION (UNIDAD CHIAPANECA)","Comunitaria","Muy Alta y Alta","2","2","2","100","100","SI","SI","Comunitarias en el país en localidades de muy alta y alta marginación","1","1","0","0","50","50","0","0","2","0","0","0","100","0","0","0"]
["07","CHIAPAS","EL ARBOLITO","07KPR3585M","MATUTINO","VILLA CORZO","EL ARBOLITO (NUEVO EDEN)","Comunitaria","Muy Alta y Alta","2","2","2","100","100","SI","SI","Comunitarias en el país en localidades de muy alta y alta marginación","1","1","0","0","50","50","0","0","2","0","0","0","100","0","0","0"]
["07","CHIAPAS","PRIMARIA CONAFE","07KPR4428C","MATUTINO","VILLA CORZO","EL SUSPIRO","Comunitaria","Muy Alta y Alta","2","2","2","100","100","SI","SI","Comunitarias en el país en localidades de muy alta y alta marginación","1","1","0","0","50","50","0","0","2","0","0","0","100","0","0","0"]
["07","CHIAPAS","ISLAPA","07KPR4495A","MATUTINO","COMITAN DE DOMINGUEZ","ISLAPA (EL ROSARIO)","Comunitaria","Muy Alta y Alta","2","2","2","100","100","SI","SI","Comunitarias en el país en localidades de muy alta y alta marginación","1","1","0","0","50","50","0","0","2","0","0","0","100","0","0","0"]
["07","CHIAPAS","FABRICA LA PROVIDENCIA (NIÑOS HEROES)","07KPR4545S","MATUTINO","CINTALAPA","NIÑOS HEROES","Comunitaria","Muy Alta y Alta","2","2","2","100","100","SI","SI","Comunitarias en el país en localidades de muy alta y alta marginación","1","1","0","0","50","50","0","0","2","0","0","0","100","0","0","0"]
["07","CHIAPAS","BUENAVISTA","07KPR4752Z","MATUTINO","EL PORVENIR","BUENAVISTA","Comunitaria","Muy Alta y Alta","2","2","2","100","100","SI","SI","Comunitarias en el país en localidades de muy alta y alta marginación","1","1","0","0","50","50","0","0","2","0","0","0","100","0","0","0"]
["07","CHIAPAS","EL CARMEN","07KPR0037N","MATUTINO","CINTALAPA","EL CARMEN","Comunitaria","No identificada","3","3","3","100","100","SI","SI","Comunitarias en el país en los tres niveles de marginación","2","1","0","0","66.7","33.3","0","0","3","0","0","0","100","0","0","0"]
["07","CHIAPAS","EL PALMAR","07KPR0948K","MATUTINO","LAS MARGARITAS","MERIDA EL PALMAR","Comunitaria","No identificada","3","3","3","100","100","SI","SI","Comunitarias en el país en los tres niveles de marginación","2","1","0","0","66.7","33.3","0","0","3","0","0","0","100","0","0","0"]
["07","CHIAPAS","IGNACIO ZARAGOZA","07KPR4544T","MATUTINO","BERRIOZABAL","IGNACIO ZARAGOZA","Comunitaria","No identificada","3","3","3","100","100","SI","SI","Comunitarias en el país en los tres niveles de marginación","2","1","0","0","66.7","33.3","0","0","3","0","0","0","100","0","0","0"]
["07","CHIAPAS","SAN CARLOS","07KPR5619Z","MATUTINO","LAS MARGARITAS","SAN CARLOS","Comunitaria","No identificada","3","3","3","100","100","SI","SI","Comunitarias en el país en los tres niveles de marginación","2","1","0","0","66.7","33.3","0","0","3","0","0","0","100","0","0","0"]
["07","CHIAPAS","MIGUEL HIDALGO Y COSTILLA","07DPR4574D","MATUTINO","TECPATAN","RANCHO ALEGRE","General Pública","Muy Alta y Alta","3","3","3","100","100","SI","SI","Generales públicas en el país en localidades de muy alta y alta marginación","2","1","0","0","66.7","33.3","0","0","3","0","0","0","100","0","0","0"]
["07","CHIAPAS","MIGUEL HIDALGO Y COSTILLA","07EPR0386I","MATUTINO","VILLA COMALTITLAN","LA FLOR LOTE DOS","General Pública","Muy Alta y Alta","3","3","3","100","100","SI","SI","Generales públicas en el país en localidades de muy alta y alta marginación","2","1","0","0","66.7","33.3","0","0","3","0","0","0","100","0","0","0"]
["07","CHIAPAS","JUSTO SIERRA MENDEZ","07EPR0400L","MATUTINO","REFORMA","ZAPOTAL 1RA. SECCION","General Pública","Muy Alta y Alta","3","3","3","100","100","SI","SI","Generales públicas en el país en localidades de muy alta y alta marginación","2","1","0","0","66.7","33.3","0","0","3","0","0","0","100","0","0","0"]
["07","CHIAPAS","PRIMARIA CONAFE INDIGENA","07KPB0436J","MATUTINO","ALTAMIRANO","PALESTINA","Comunitaria","Muy Alta y Alta","3","3","3","100","100","SI","SI","Comunitarias en el país en localidades de muy alta y alta marginación","2","1","0","0","66.7","33.3","0","0","3","0","0","0","100","0","0","0"]
["07","CHIAPAS","LAGUNA EL CARRIZAL","07KPR0377L","MATUTINO","LAS MARGARITAS","LAGUNA EL CARRIZAL","Comunitaria","Muy Alta y Alta","3","3","3","100","100","SI","SI","Comunitarias en el país en localidades de muy alta y alta marginación","2","1","0","0","66.7","33.3","0","0","3","0","0","0","100","0","0","0"]
["07","CHIAPAS","EL ESTRECHO","07KPR0674L","MATUTINO","TECPATAN","EL ESTRECHO","Comunitaria","Muy Alta y Alta","3","3","3","100","100","SI","SI","Comunitarias en el país en localidades de muy alta y alta marginación","2","1","0","0","66.7","33.3","0","0","3","0","0","0","100","0","0","0"]
["07","CHIAPAS","EL AZUFRE 2DA. SECCION","07KPR1114I","MATUTINO","PICHUCALCO","EL AZUFRE 2DA. SECCION","Comunitaria","Muy Alta y Alta","3","3","3","100","100","SI","SI","Comunitarias en el país en localidades de muy alta y alta marginación","2","1","0","0","66.7","33.3","0","0","3","0","0","0","100","0","0","0"]
["07","CHIAPAS","LA NORIA","07KPR1260T","MATUTINO","FRONTERA COMALAPA","LA NORIA","Comunitaria","Muy Alta y Alta","3","3","3","100","100","SI","SI","Comunitarias en el país en localidades de muy alta y alta marginación","2","1","0","0","66.7","33.3","0","0","3","0","0","0","100","0","0","0"]
["07","CHIAPAS","MIRAMAR","07KPR1370Z","MATUTINO","MOTOZINTLA","MIRAMAR","Comunitaria","Muy Alta y Alta","3","3","3","100","100","SI","SI","Comunitarias en el país en localidades de muy alta y alta marginación","2","1","0","0","66.7","33.3","0","0","3","0","0","0","100","0","0","0"]
["07","CHIAPAS","LA FLORIDA UNO","07KPR1441C","MATUTINO","TECPATAN","LA FLORIDA UNO","Comunitaria","Muy Alta y Alta","3","3","3","100","100","SI","SI","Comunitarias en el país en localidades de muy alta y alta marginación","2","1","0","0","66.7","33.3","0","0","3","0","0","0","100","0","0","0"]
["07","CHIAPAS","EL MECATAL","07KPR1467K","MATUTINO","RAYON","EL MECATAL","Comunitaria","Muy Alta y Alta","3","3","3","100","100","SI","SI","Comunitarias en el país en localidades de muy alta y alta marginación","2","1","0","0","66.7","33.3","0","0","3","0","0","0","100","0","0","0"]
["07","CHIAPAS","PRIMARIA CONAFE","07KPR3163E","MATUTINO","JIQUIPILAS","LA FLORIDA (SAN RAMON)","Comunitaria","Muy Alta y Alta","3","3","3","100","100","SI","SI","Comunitarias en el país en localidades de muy alta y alta marginación","2","1","0","0","66.7","33.3","0","0","3","0","0","0","100","0","0","0"]
["07","CHIAPAS","SAN RAMON","07KPR4102Y","MATUTINO","MOTOZINTLA","SAN RAMON","Comunitaria","Muy Alta y Alta","3","3","3","100","100","SI","SI","Comunitarias en el país en localidades de muy alta y alta marginación","2","1","0","0","66.7","33.3","0","0","3","0","0","0","100","0","0","0"]
["07","CHIAPAS","LA GLORIA","07KPR4174R","MATUTINO","LA TRINITARIA","LA GLORIA","Comunitaria","Muy Alta y Alta","3","3","3","100","100","SI","SI","Comunitarias en el país en localidades de muy alta y alta marginación","2","1","0","0","66.7","33.3","0","0","3","0","0","0","100","0","0","0"]
["07","CHIAPAS","VEINTIUNO DE SEPTIEMBRE","07KPR4426E","MATUTINO","VILLA CORZO","VEINTIUNO DE SEPTIEMBRE","Comunitaria","Muy Alta y Alta","3","3","3","100","100","SI","SI","Comunitarias en el país en localidades de muy alta y alta marginación","2","1","0","0","66.7","33.3","0","0","3","0","0","0","100","0","0","0"]
["07","CHIAPAS","ANEXO PALMA REAL","07KPR4510C","MATUTINO","LAS MARGARITAS","ANEXO PALMA REAL","Comunitaria","Muy Alta y Alta","3","3","3","100","100","SI","SI","Comunitarias en el país en localidades de muy alta y alta marginación","2","1","0","0","66.7","33.3","0","0","3","0","0","0","100","0","0","0"]
["07","CHIAPAS","EL ROSARIO","07KPR5100G","MATUTINO","COMITAN DE DOMINGUEZ","EL ROSARIO","Comunitaria","Muy Alta y Alta","3","3","3","100","100","SI","SI","Comunitarias en el país en localidades de muy alta y alta marginación","2","1","0","0","66.7","33.3","0","0","3","0","0","0","100","0","0","0"]
["07","CHIAPAS","EL LLANO","07KPR5789U","MATUTINO","OSTUACAN","EL LLANO","Comunitaria","Muy Alta y Alta","3","3","3","100","100","SI","SI","Comunitarias en el país en localidades de muy alta y alta marginación","2","1","0","0","66.7","33.3","0","0","3","0","0","0","100","0","0","0"]
["07","CHIAPAS","16 DE SEPTIEMBRE","07DPB0036D","MATUTINO","OCOSINGO","NUEVO PARAISO","Indígena","Muy Alta y Alta","4","4","4","100","100","SI","SI","Indígenas en el país en los tres niveles de marginación","3","1","0","0","75","25","0","0","4","0","0","0","100","0","0","0"]
["07","CHIAPAS","PRIMARIA COMUNITARIA FRANCISCO MARQUEZ","07EPB0325U","MATUTINO","COMITAN DE DOMINGUEZ","SANTA ROSA","Indígena","Muy Alta y Alta","4","4","4","100","100","SI","SI","Indígenas en el país en los tres niveles de marginación","3","1","0","0","75","25","0","0","4","0","0","0","100","0","0","0"]
["07","CHIAPAS","MONTE AZUL","07KPB0836F","MATUTINO","CHILON","MONTE AZUL","Comunitaria","Muy Alta y Alta","4","4","4","100","100","SI","SI","Comunitarias en el país en localidades de muy alta y alta marginación","3","1","0","0","75","25","0","0","4","0","0","0","100","0","0","0"]
["07","CHIAPAS","OJO DE AGUA","07KPB0859Q","MATUTINO","OXCHUC","OJO DE AGUA","Comunitaria","Muy Alta y Alta","4","4","4","100","100","SI","SI","Comunitarias en el país en localidades de muy alta y alta marginación","3","1","0","0","75","25","0","0","4","0","0","0","100","0","0","0"]
["07","CHIAPAS","SAN ANTONIO PUSILJA","07KPB1348W","MATUTINO","OCOSINGO","SAN ANTONIO PUSHILA","Comunitaria","Muy Alta y Alta","4","4","4","100","100","SI","SI","Comunitarias en el país en localidades de muy alta y alta marginación","3","1","0","0","75","25","0","0","4","0","0","0","100","0","0","0"]
["07","CHIAPAS","NICOLAS BRAVO UNO ANEXO EMILIANO ZAPATA","07KPR0097B","MATUTINO","MAPASTEPEC","NICOLAS BRAVO UNO ANEXO EMILIANO ZAPATA","Comunitaria","Muy Alta y Alta","4","4","4","100","100","SI","SI","Comunitarias en el país en localidades de muy alta y alta marginación","3","1","0","0","75","25","0","0","4","0","0","0","100","0","0","0"]
["07","CHIAPAS","SAN ANTONIO 2","07KPR0293D","MATUTINO","VILLA CORZO","SAN ANTONIO","Comunitaria","Muy Alta y Alta","4","4","4","100","100","SI","SI","Comunitarias en el país en localidades de muy alta y alta marginación","3","1","0","0","75","25","0","0","4","0","0","0","100","0","0","0"]
["07","CHIAPAS","LA SIRIA 1RA. SECCION","07KPR1405Y","MATUTINO","CATAZAJA","LA SIRIA 1RA. SECCION","Comunitaria","Muy Alta y Alta","4","4","4","100","100","SI","SI","Comunitarias en el país en localidades de muy alta y alta marginación","3","1","0","0","75","25","0","0","4","0","0","0","100","0","0","0"]
["07","CHIAPAS","MONTE DE SION","07KPR1406X","MATUTINO","PALENQUE","MONTE DE SION","Comunitaria","Muy Alta y Alta","4","4","4","100","100","SI","SI","Comunitarias en el país en localidades de muy alta y alta marginación","3","1","0","0","75","25","0","0","4","0","0","0","100","0","0","0"]
["07","CHIAPAS","ICUL","07KPR3729S","MATUTINO","CACAHOATAN","ICUL (PLAN CHIAPAS)","Comunitaria","Muy Alta y Alta","4","4","4","100","100","SI","SI","Comunitarias en el país en localidades de muy alta y alta marginación","3","1","0","0","75","25","0","0","4","0","0","0","100","0","0","0"]
["07","CHIAPAS","LAS GUAYABITAS","07KPR3810T","MATUTINO","VILLA CORZO","LAS GUAYABITAS","Comunitaria","Muy Alta y Alta","4","4","4","100","100","SI","SI","Comunitarias en el país en localidades de muy alta y alta marginación","3","1","0","0","75","25","0","0","4","0","0","0","100","0","0","0"]
["07","CHIAPAS","SAN JOSE YALACEVO","07KPR5036W","MATUTINO","COMITAN DE DOMINGUEZ","SAN JOSE YALACEVO","Comunitaria","Muy Alta y Alta","4","4","4","100","100","SI","SI","Comunitarias en el país en localidades de muy alta y alta marginación","3","1","0","0","75","25","0","0","4","0","0","0","100","0","0","0"]
["07","CHIAPAS","PRIMARIA CONAFE","07KPR6033F","MATUTINO","AMATENANGO DEL VALLE","CAMPO ALEGRE","Comunitaria","Muy Alta y Alta","4","4","4","100","100","SI","SI","Comunitarias en el país en localidades de muy alta y alta marginación","3","1","0","0","75","25","0","0","4","0","0","0","100","0","0","0"]
["07","CHIAPAS","MARIANO MATAMOROS","07DPB0871B","MATUTINO","LAS MARGARITAS","SAN JOSE ZAPOTAL","Indígena","No identificada","4","4","4","100","100","SI","SI","Indígenas en el país en los tres niveles de marginación","3","1","0","0","75","25","0","0","4","0","0","0","100","0","0","0"]
["07","CHIAPAS","LINDAVISTA","07KPR1336S","MATUTINO","JIQUIPILAS","LINDAVISTA","Comunitaria","No identificada","4","4","4","100","100","SI","SI","Comunitarias en el país en los tres niveles de marginación","3","1","0","0","75","25","0","0","4","0","0","0","100","0","0","0"]
["07","CHIAPAS","PRIMARIA CONAFE","07KPR5479Q","MATUTINO","MOTOZINTLA","LINDAVISTA DOS","Comunitaria","No identificada","5","5","5","100","100","SI","SI","Comunitarias en el país en los tres niveles de marginación","4","1","0","0","80","20","0","0","5","0","0","0","100","0","0","0"]
["07","CHIAPAS","PRIMARIA COMUNITARIA REFORMA LIBERAL","07EPB0449C","MATUTINO","SALTO DE AGUA","MIGUEL HIDALGO DOS","Indígena","Muy Alta y Alta","5","5","5","100","100","SI","SI","Indígenas en el país en los tres niveles de marginación","4","1","0","0","80","20","0","0","5","0","0","0","100","0","0","0"]
["07","CHIAPAS","SAN ANTONIO LA ESPERANZA","07KPR2131F","MATUTINO","CHICOMUSELO","SAN ANTONIO LA ESPERANZA DOS","Comunitaria","Muy Alta y Alta","5","5","5","100","100","SI","SI","Comunitarias en el país en localidades de muy alta y alta marginación","4","1","0","0","80","20","0","0","5","0","0","0","100","0","0","0"]
["07","CHIAPAS","LAS PALMAS","07KPR3716O","MATUTINO","CINTALAPA","LAS PALMAS","Comunitaria","Muy Alta y Alta","5","5","5","100","100","SI","SI","Comunitarias en el país en localidades de muy alta y alta marginación","4","1","0","0","80","20","0","0","5","0","0","0","100","0","0","0"]
["07","CHIAPAS","FRANCISCO VILLA","07KPR3743L","MATUTINO","TECPATAN","FRANCISCO VILLA","Comunitaria","Muy Alta y Alta","5","5","5","100","100","SI","SI","Comunitarias en el país en localidades de muy alta y alta marginación","4","1","0","0","80","20","0","0","5","0","0","0","100","0","0","0"]
["07","CHIAPAS","MOCTEZUMA XOCOYOTZIN","07DPB0135D","MATUTINO","AMATAN","SAN ANDRES","Indígena","Muy Alta y Alta","6","6","6","100","100","SI","SI","Indígenas en el país en los tres niveles de marginación","5","1","0","0","83.3","16.7","0","0","6","0","0","0","100","0","0","0"]
["07","CHIAPAS","VENUSTIANO CARRANZA","07DPB2773O","MATUTINO","SALTO DE AGUA","GENERACION NOVENTA Y CINCO","Indígena","Muy Alta y Alta","6","6","6","100","100","SI","SI","Indígenas en el país en los tres niveles de marginación","5","1","0","0","83.3","16.7","0","0","6","0","0","0","100","0","0","0"]
["07","CHIAPAS","LA SOMBRA (ANEXO SAN CARLOS DEL RIO)","07KPR0115A","MATUTINO","LAS MARGARITAS","LA SOMBRA (ANEXO SAN CARLOS DEL RIO)","Comunitaria","Muy Alta y Alta","6","6","6","100","100","SI","SI","Comunitarias en el país en localidades de muy alta y alta marginación","5","1","0","0","83.3","16.7","0","0","6","0","0","0","100","0","0","0"]
["07","CHIAPAS","EL TUILAITO PUNTA DE DIAMANTE","07KPR0942Q","MATUTINO","COMITAN DE DOMINGUEZ","EL TUILAITO PUNTA DE DIAMANTE","Comunitaria","Muy Alta y Alta","6","6","6","100","100","SI","SI","Comunitarias en el país en localidades de muy alta y alta marginación","5","1","0","0","83.3","16.7","0","0","6","0","0","0","100","0","0","0"]
["07","CHIAPAS","RINCON DEL BOSQUE","07KPR3255V","MATUTINO","MOTOZINTLA","RINCON DEL BOSQUE","Comunitaria","Muy Alta y Alta","6","6","6","100","100","SI","SI","Comunitarias en el país en localidades de muy alta y alta marginación","5","1","0","0","83.3","16.7","0","0","6","0","0","0","100","0","0","0"]
["07","CHIAPAS","SAN ANTONIO LA ESPERANZA","07KPR0984P","MATUTINO","LAS MARGARITAS","SAN ANTONIO LA ESPERANZA","Comunitaria","No identificada","6","6","6","100","100","SI","SI","Comunitarias en el país en los tres niveles de marginación","5","1","0","0","83.3","16.7","0","0","6","0","0","0","100","0","0","0"]
["07","CHIAPAS","SEBASTIAN LERDO DE TEJADA","07DPB0608B","MATUTINO","HUITIUPAN","RAMOS CUBILETE","Indígena","Muy Alta y Alta","16","16","16","100","100","SI","SI","Indígenas en el país en los tres niveles de marginación","15","1","0","0","93.8","6.3","0","0","16","0","0","0","100","0","0","0"]
["07","CHIAPAS","ROSARIO CASTELLANOS FIGUEROA","07DPB0803E","MATUTINO","HUITIUPAN","JOSE MARIA MORELOS Y PAVON","Indígena","Muy Alta y Alta","20","20","20","100","100","SI","SI","Indígenas en el país en los tres niveles de marginación","19","1","0","0","95","5","0","0","20","0","0","0","100","0","0","0"]
["07","CHIAPAS","SIMON BOLIVAR","07DPB2435O","MATUTINO","CHILON","CENTRO CACUALA","Indígena","Muy Alta y Alta","16","16","16","100","100","SI","SI","Indígenas en el país en los tres niveles de marginación","15","1","0","0","93.8","6.3","0","0","16","0","0","0","100","0","0","0"]
["07","CHIAPAS","FRANCISCO JAVIER MINA","07DPB2981V","MATUTINO","LA INDEPENDENCIA","LA ESPERANZA (EL HORIZONTE","Indígena","Muy Alta y Alta","9","9","9","100","100","SI","SI","Indígenas en el país en los tres niveles de marginación","8","1","0","0","88.9","11.1","0","0","9","0","0","0","100","0","0","0"]
["07","CHIAPAS","SAN MARTIN POR NO VENCIDO","07KPB0257Y","MATUTINO","HUIXTAN","SAN MARTIN POR NO VENCIDO","Comunitaria","Muy Alta y Alta","7","7","7","100","100","SI","SI","Comunitarias en el país en localidades de muy alta y alta marginación","6","1","0","0","85.7","14.3","0","0","7","0","0","0","100","0","0","0"]
["07","CHIAPAS","GENERAL EMILIANO ZAPATA SALAZAR","07DPR3052Q","MATUTINO","ACAPETAHUA","LUIS ESPINOZA","General Pública","Muy Alta y Alta","11","11","11","100","100","SI","SI","Generales públicas en el país en localidades de muy alta y alta marginación","10","1","0","0","90.9","9.1","0","0","11","0","0","0","100","0","0","0"]
["07","CHIAPAS","DR. BELISARIO DOMINGUEZ PALENCIA","07DPR3846Y","MATUTINO","AMATAN","ADOLFO LOPEZ MATEOS","General Pública","Muy Alta y Alta","7","7","7","100","100","SI","SI","Generales públicas en el país en localidades de muy alta y alta marginación","6","1","0","0","85.7","14.3","0","0","7","0","0","0","100","0","0","0"]
["07","CHIAPAS","LIBERACION","07EPR0180Q","MATUTINO","TECPATAN","LUIS ESPINOSA","General Pública","Muy Alta y Alta","34","34","34","100","100","SI","SI","Generales públicas en el país en localidades de muy alta y alta marginación","33","1","0","0","97.1","2.9","0","0","34","0","0","0","100","0","0","0"]
["07","CHIAPAS","VICENTE GUERRERO","07DPB0466U","COMPLEMENTARIO","CHILON","SAN JUAN BAWITZ","Indígena","Muy Alta y Alta","11","11","11","100","100","SI","SI","Indígenas en el país en los tres niveles de marginación","10","1","0","0","90.9","9.1","0","0","11","0","0","0","100","0","0","0"]
["07","CHIAPAS","LAS TRES GARANTIAS","07DPB1313X","COMPLEMENTARIO","HUITIUPAN","BENITO JUAREZ","Indígena","Muy Alta y Alta","5","5","5","100","100","SI","SI","Indígenas en el país en los tres niveles de marginación","4","1","0","0","80","20","0","0","5","0","0","0","100","0","0","0"]
["07","CHIAPAS","ANGEL ALBINO CORZO","07DPB1824Y","COMPLEMENTARIO","PICHUCALCO","CAMOAPITA 2DA. SECCION A (CENTRO)","Indígena","Muy Alta y Alta","5","5","5","100","100","SI","SI","Indígenas en el país en los tres niveles de marginación","4","1","0","0","80","20","0","0","5","0","0","0","100","0","0","0"]
["07","CHIAPAS","MANUEL GONZALEZ","07DPB2174T","COMPLEMENTARIO","OCOTEPEC","CERRO DEL MONO","Indígena","Muy Alta y Alta","1","1","1","100","100","SI","SI","Indígenas en el país en los tres niveles de marginación","0","1","0","0","0","100","0","0","1","0","0","0","100","0","0","0"]
["07","CHIAPAS","NIÑOS HEROES","07DPB2288V","COMPLEMENTARIO","CHILON","SAMARIA","Indígena","Muy Alta y Alta","6","6","6","100","100","SI","SI","Indígenas en el país en los tres niveles de marginación","5","1","0","0","83.3","16.7","0","0","6","0","0","0","100","0","0","0"]
["07","CHIAPAS","JAIME SABINES GUTIERREZ","07DPB3280J","COMPLEMENTARIO","TILA","MONTERREY 1RA. SECCION","Indígena","Muy Alta y Alta","4","4","4","100","100","SI","SI","Indígenas en el país en los tres niveles de marginación","3","1","0","0","75","25","0","0","4","0","0","0","100","0","0","0"]
["07","CHIAPAS","PRIMARIA COMUNITARIA EXPROPIACION PETROLERA","07EPB0151U","COMPLEMENTARIO","OCOTEPEC","LAZARO CARDENAS","Indígena","Muy Alta y Alta","1","1","1","100","100","SI","SI","Indígenas en el país en los tres niveles de marginación","0","1","0","0","0","100","0","0","1","0","0","0","100","0","0","0"]
["07","CHIAPAS","PRIMARIA COMUNITARIA LEYES DE REFORMA","07EPB0240N","COMPLEMENTARIO","TUMBALA","FLOR DE ALIANZA","Indígena","Muy Alta y Alta","2","2","2","100","100","SI","SI","Indígenas en el país en los tres niveles de marginación","1","1","0","0","50","50","0","0","2","0","0","0","100","0","0","0"]
["07","CHIAPAS","PRIMARIA COMUNITARIA INDIGENA","07EPB0810N","COMPLEMENTARIO","YAJALON","LA PROVIDENCIA","Indígena","No identificada","4","4","4","100","100","SI","SI","Indígenas en el país en los tres niveles de marginación","3","1","0","0","75","25","0","0","4","0","0","0","100","0","0","0"]
["07","CHIAPAS","MIGUEL HIDALGO Y COSTILLA","07DPB0443J","COMPLEMENTARIO","MOTOZINTLA","SANTA TERESA","Indígena","Muy Alta y Alta","2","2","2","100","100","SI","SI","Indígenas en el país en los tres niveles de marginación","0","2","0","0","0","100","0","0","2","0","0","0","100","0","0","0"]
["07","CHIAPAS","CUITLAHUAC","07EPB0879T","MATUTINO","JITOTOL","SAN ANTONIO LA CUMBRE","Indígena","No identificada","3","3","3","100","100","SI","SI","Indígenas en el país en los tres niveles de marginación","1","2","0","0","33.3","66.7","0","0","3","0","0","0","100","0","0","0"]
["07","CHIAPAS","FRACCION GUADALUPE","07KPB1400B","MATUTINO","PANTELHO","GUADALUPE DE LA PEÑA","Comunitaria","No identificada","2","2","2","100","100","SI","SI","Comunitarias en el país en los tres niveles de marginación","0","2","0","0","0","100","0","0","2","0","0","0","100","0","0","0"]
["07","CHIAPAS","LA CANDELARIA","07KPR0154C","MATUTINO","MONTECRISTO DE GUERRERO","LA CANDELARIA","Comunitaria","No identificada","2","2","2","100","100","SI","SI","Comunitarias en el país en los tres niveles de marginación","0","2","0","0","0","100","0","0","2","0","0","0","100","0","0","0"]
["07","CHIAPAS","EL CALVARIO","07KPR1016H","MATUTINO","OCOZOCOAUTLA DE ESPINOSA","EL CALVARIO","Comunitaria","No identificada","2","2","2","100","100","SI","SI","Comunitarias en el país en los tres niveles de marginación","0","2","0","0","0","100","0","0","2","0","0","0","100","0","0","0"]
["07","CHIAPAS","VIEJO SAN MARCOS","07KPR3543N","MATUTINO","LAS MARGARITAS","VIEJO SAN MARCOS","Comunitaria","No identificada","2","2","2","100","100","SI","SI","Comunitarias en el país en los tres niveles de marginación","0","2","0","0","0","100","0","0","2","0","0","0","100","0","0","0"]
["07","CHIAPAS","5 DE MAYO","07DPB1591Z","MATUTINO","CHILON","CANAL ULUB","Indígena","Muy Alta y Alta","3","3","3","100","100","SI","SI","Indígenas en el país en los tres niveles de marginación","1","2","0","0","33.3","66.7","0","0","3","0","0","0","100","0","0","0"]
["07","CHIAPAS","ADOLFO LOPEZ MATEOS","07DPB2485W","MATUTINO","SALTO DE AGUA","VICENTE GUERRERO","Indígena","Muy Alta y Alta","26","26","26","100","100","SI","SI","Indígenas en el país en los tres niveles de marginación","24","2","0","0","92.3","7.7","0","0","26","0","0","0","100","0","0","0"]
["07","CHIAPAS","CANCHAJA","07KPB0045V","MATUTINO","CHILON","CANCHAJA","Comunitaria","Muy Alta y Alta","7","7","7","100","100","SI","SI","Comunitarias en el país en localidades de muy alta y alta marginación","5","2","0","0","71.4","28.6","0","0","7","0","0","0","100","0","0","0"]
["07","CHIAPAS","NUEVO EL CARMEN","07KPB1376S","MATUTINO","FRANCISCO LEON","NUEVO CARMEN","Comunitaria","Muy Alta y Alta","2","2","2","100","100","SI","SI","Comunitarias en el país en localidades de muy alta y alta marginación","0","2","0","0","0","100","0","0","2","0","0","0","100","0","0","0"]
["07","CHIAPAS","SAN JUAN DEL RIO","07KPB1757Z","MATUTINO","AMATENANGO DEL VALLE","SAN JUAN DEL RIO","Comunitaria","Muy Alta y Alta","2","2","2","100","100","SI","SI","Comunitarias en el país en localidades de muy alta y alta marginación","0","2","0","0","0","100","0","0","2","0","0","0","100","0","0","0"]
["07","CHIAPAS","LA VAINILLA(SAN PABLO)","07KPB1838K","MATUTINO","SOYALO","LA VAINILLA","Comunitaria","Muy Alta y Alta","4","4","4","100","100","SI","SI","Comunitarias en el país en localidades de muy alta y alta marginación","2","2","0","0","50","50","0","0","4","0","0","0","100","0","0","0"]
["07","CHIAPAS","EL SABINITO","07KPR0024J","MATUTINO","BERRIOZABAL","EL SABINITO","Comunitaria","Muy Alta y Alta","7","7","7","100","100","SI","SI","Comunitarias en el país en localidades de muy alta y alta marginación","5","2","0","0","71.4","28.6","0","0","7","0","0","0","100","0","0","0"]
["07","CHIAPAS","AGUA AZUL","07KPR0046V","MATUTINO","MARAVILLA TENEJAPA","AGUA AZUL","Comunitaria","Muy Alta y Alta","2","2","2","100","100","SI","SI","Comunitarias en el país en localidades de muy alta y alta marginación","0","2","0","0","0","100","0","0","2","0","0","0","100","0","0","0"]
["07","CHIAPAS","NUEVA EUROPA","07KPR0151F","MATUTINO","HUIXTLA","NUEVA EUROPA","Comunitaria","Muy Alta y Alta","2","2","2","100","100","SI","SI","Comunitarias en el país en localidades de muy alta y alta marginación","0","2","0","0","0","100","0","0","2","0","0","0","100","0","0","0"]
["07","CHIAPAS","SOLEDAD Y PROGRESO","07KPR0190H","MATUTINO","TAPACHULA","LA SOLEDAD","Comunitaria","Muy Alta y Alta","2","2","2","100","100","SI","SI","Comunitarias en el país en localidades de muy alta y alta marginación","0","2","0","0","0","100","0","0","2","0","0","0","100","0","0","0"]
["07","CHIAPAS","VILLA NUEVA","07KPR0311C","MATUTINO","SILTEPEC","VILLA NUEVA","Comunitaria","Muy Alta y Alta","4","4","4","100","100","SI","SI","Comunitarias en el país en localidades de muy alta y alta marginación","2","2","0","0","50","50","0","0","4","0","0","0","100","0","0","0"]
["07","CHIAPAS","SONORA","07KPR0608M","MATUTINO","UNION JUAREZ","SONORA","Comunitaria","Muy Alta y Alta","4","4","4","100","100","SI","SI","Comunitarias en el país en localidades de muy alta y alta marginación","2","2","0","0","50","50","0","0","4","0","0","0","100","0","0","0"]
["07","CHIAPAS","LAS CRUCES","07KPR1724J","MATUTINO","ACACOYAGUA","LAS CRUCES","Comunitaria","Muy Alta y Alta","4","4","4","100","100","SI","SI","Comunitarias en el país en localidades de muy alta y alta marginación","2","2","0","0","50","50","0","0","4","0","0","0","100","0","0","0"]
["07","CHIAPAS","LOS LLANOS","07KPR1742Z","MATUTINO","PALENQUE","LOS LLANOS","Comunitaria","Muy Alta y Alta","2","2","2","100","100","SI","SI","Comunitarias en el país en localidades de muy alta y alta marginación","0","2","0","0","0","100","0","0","2","0","0","0","100","0","0","0"]
["07","CHIAPAS","LAS PIMIENTAS","07KPR1793F","MATUTINO","OCOZOCOAUTLA DE ESPINOSA","LA CANDELARIA","Comunitaria","Muy Alta y Alta","4","4","4","100","100","SI","SI","Comunitarias en el país en localidades de muy alta y alta marginación","2","2","0","0","50","50","0","0","4","0","0","0","100","0","0","0"]
["07","CHIAPAS","MORELOS LOS CHAVEZ","07KPR2399K","MATUTINO","AMATAN","MORELOS LOS CHAVEZ","Comunitaria","Muy Alta y Alta","2","2","2","100","100","SI","SI","Comunitarias en el país en localidades de muy alta y alta marginación","0","2","0","0","0","100","0","0","2","0","0","0","100","0","0","0"]
["07","CHIAPAS","SAN PEDRO EL SALVADOR","07KPR2939Q","MATUTINO","SUCHIAPA","SAN PEDRO EL SALVADOR","Comunitaria","Muy Alta y Alta","2","2","2","100","100","SI","SI","Comunitarias en el país en localidades de muy alta y alta marginación","0","2","0","0","0","100","0","0","2","0","0","0","100","0","0","0"]
["07","CHIAPAS","ISLA SAN JOSE (TRIPLE S)","07KPR3237F","MATUTINO","PIJIJIAPAN","ISLA SAN JOSE","Comunitaria","Muy Alta y Alta","3","3","3","100","100","SI","SI","Comunitarias en el país en localidades de muy alta y alta marginación","1","2","0","0","33.3","66.7","0","0","3","0","0","0","100","0","0","0"]
["07","CHIAPAS","LA ESMERALDA","07KPR3579B","MATUTINO","LAS MARGARITAS","LA ESMERALDA","Comunitaria","Muy Alta y Alta","3","3","3","100","100","SI","SI","Comunitarias en el país en localidades de muy alta y alta marginación","1","2","0","0","33.3","66.7","0","0","3","0","0","0","100","0","0","0"]
["07","CHIAPAS","EL PROGRESO","07KPR3679A","MATUTINO","CINTALAPA","EL PROGRESO","Comunitaria","Muy Alta y Alta","3","3","3","100","100","SI","SI","Comunitarias en el país en localidades de muy alta y alta marginación","1","2","0","0","33.3","66.7","0","0","3","0","0","0","100","0","0","0"]
["07","CHIAPAS","FRACCION ZARAGOZA","07KPR5066Q","MATUTINO","TAPACHULA","FRACCION ZARAGOZA","Comunitaria","Muy Alta y Alta","3","3","3","100","100","SI","SI","Comunitarias en el país en localidades de muy alta y alta marginación","1","2","0","0","33.3","66.7","0","0","3","0","0","0","100","0","0","0"]
["07","CHIAPAS","GUADALUPE VICTORIA","07KPR5775R","MATUTINO","TONALA","GUADALUPE VICTORIA","Comunitaria","Muy Alta y Alta","3","3","3","100","100","SI","SI","Comunitarias en el país en localidades de muy alta y alta marginación","1","2","0","0","33.3","66.7","0","0","3","0","0","0","100","0","0","0"]
["07","CHIAPAS","EL CHAMIZAL","07DPR0161C","MATUTINO","JUAREZ","HUAPAQUE 2DA. SECCION","General Pública","Muy Alta y Alta","2","2","2","100","100","SI","SI","Generales públicas en el país en localidades de muy alta y alta marginación","0","2","0","0","0","100","0","0","2","0","0","0","100","0","0","0"]
["07","CHIAPAS","20 DE NOVIEMBRE","07DPB0932Z","MATUTINO","OCOZOCOAUTLA DE ESPINOSA","ARMANDO ZEBADUA","Indígena","Muy Alta y Alta","13","13","13","100","100","SI","SI","Indígenas en el país en los tres niveles de marginación","10","3","0","0","76.9","23.1","0","0","13","0","0","0","100","0","0","0"]
["07","CHIAPAS","BENEMERITO DE LAS AMERICAS","07DPB1654U","MATUTINO","MOTOZINTLA","RIO BRAVO","Indígena","Muy Alta y Alta","12","12","12","100","100","SI","SI","Indígenas en el país en los tres niveles de marginación","9","3","0","0","75","25","0","0","12","0","0","0","100","0","0","0"]
["07","CHIAPAS","PRIMARIA COMUNITARIA INDIGENA","07EPB0816H","MATUTINO","LA TRINITARIA","SANTA ANA EL ORIENTE","Indígena","Muy Alta y Alta","5","5","5","100","100","SI","SI","Indígenas en el país en los tres niveles de marginación","2","3","0","0","40","60","0","0","5","0","0","0","100","0","0","0"]
["07","CHIAPAS","PRIMARIA COMUNITARIA INDIGENA","07EPB0817G","MATUTINO","LA INDEPENDENCIA","NUEVA VIRGINIA","Indígena","Muy Alta y Alta","7","7","7","100","100","SI","SI","Indígenas en el país en los tres niveles de marginación","4","3","0","0","57.1","42.9","0","0","7","0","0","0","100","0","0","0"]
["07","CHIAPAS","REVOLUCION SEGUNDA SECCION","07KPB1673S","MATUTINO","PALENQUE","LA REVOLUCION","Comunitaria","Muy Alta y Alta","5","5","5","100","100","SI","SI","Comunitarias en el país en localidades de muy alta y alta marginación","2","3","0","0","40","60","0","0","5","0","0","0","100","0","0","0"]
["07","CHIAPAS","ESCUELA PRIMARIA BILINGUE FRAILE","07PPR0034L","MATUTINO","VILLAFLORES","VILLAFLORES","Privada","Media","4","4","4","100","100","SI","SI","Privadas en el país en localidades de media marginación","1","3","0","0","25","75","0","0","4","0","0","0","100","0","0","0"]
["07","CHIAPAS","PRIMARIA COMUNITARIA XICOTENCATL","07EPB0182N","COMPLEMENTARIO","SABANILLA","EL CAPUYIL","Indígena","Muy Alta y Alta","3","3","3","100","100","SI","SI","Indígenas en el país en los tres niveles de marginación","0","3","0","0","0","100","0","0","3","0","0","0","100","0","0","0"]
["07","CHIAPAS","FRANCISCO INDALECIO MADERO","07DPB1884M","COMPLEMENTARIO","CHILON","BAJYULUBMAX","Indígena","Muy Alta y Alta","6","6","6","100","100","SI","SI","Indígenas en el país en los tres niveles de marginación","2","4","0","0","33.3","66.7","0","0","6","0","0","0","100","0","0","0"]
["07","CHIAPAS","ADOLFO LOPEZ MATEOS","07DPB2396C","COMPLEMENTARIO","PUEBLO NUEVO SOLISTAHUACAN","EL RINCONCITO","Indígena","Muy Alta y Alta","8","8","8","100","100","SI","SI","Indígenas en el país en los tres niveles de marginación","1","7","0","0","12.5","87.5","0","0","8","0","0","0","100","0","0","0"]
["07","CHIAPAS","PRIMARIA COMUNITARIA ESTADO DE SINALOA","07EPB0017O","COMPLEMENTARIO","EL BOSQUE","UNION TIERRA TZOTZIL","Indígena","Muy Alta y Alta","5","5","5","100","100","SI","SI","Indígenas en el país en los tres niveles de marginación","1","4","0","0","20","80","0","0","5","0","0","0","100","0","0","0"]
["07","CHIAPAS","PRIMARIA COMUNITARIA GUADALUPE VICTORIA","07EPB0155Q","COMPLEMENTARIO","OCOTEPEC","SAN JUAN BOSCO","Indígena","Muy Alta y Alta","6","6","6","100","100","SI","SI","Indígenas en el país en los tres niveles de marginación","0","6","0","0","0","100","0","0","6","0","0","0","100","0","0","0"]
["07","CHIAPAS","EL PARAISO","07KPR4487S","MATUTINO","TAPACHULA","PARAISO","Comunitaria","No identificada","7","7","7","100","100","SI","SI","Comunitarias en el país en los tres niveles de marginación","3","4","0","0","42.9","57.1","0","0","7","0","0","0","100","0","0","0"]
["07","CHIAPAS","ROSARIO CASTELLANOS FIGUEROA","07DPB2921G","COMPLEMENTARIO","SALTO DE AGUA","EL RUBI TULIJA","Indígena","Muy Alta y Alta","9","8","9","88.9","100","SI","SI","Indígenas en el país en los tres niveles de marginación","5","3","0","0","62.5","37.5","0","0","9","0","0","0","100","0","0","0"]
["07","CHIAPAS","JOSE MARIA MORELOS Y PAVON","07DPB3035Z","COMPLEMENTARIO","SABANILLA","SAN PEDRO","Indígena","Muy Alta y Alta","4","3","4","75","100","SI","SI","Indígenas en el país en los tres niveles de marginación","2","1","0","0","66.7","33.3","0","0","4","0","0","0","100","0","0","0"]
["07","CHIAPAS","EMILIANO ZAPATA SALAZAR","07DPB0129T","MATUTINO","TEOPISCA","GALILEA","Indígena","Muy Alta y Alta","15","14","15","93.3","100","SI","SI","Indígenas en el país en los tres niveles de marginación","10","4","0","0","71.4","28.6","0","0","15","0","0","0","100","0","0","0"]
["07","CHIAPAS","PRIMARIA COMUNITARIA FRANCISCO MONTES DE OCA","07EPB0159M","MATUTINO","OCOTEPEC","LOMAS ALEGRES","Indígena","Muy Alta y Alta","13","12","13","92.3","100","SI","SI","Indígenas en el país en los tres niveles de marginación","10","2","0","0","83.3","16.7","0","0","13","0","0","0","100","0","0","0"]
["07","CHIAPAS","PRIMARIA CONAFE","07KPR0130T","MATUTINO","CHICOMUSELO","LAS BRISAS","Comunitaria","No identificada","4","3","4","75","100","SI","SI","Comunitarias en el país en los tres niveles de marginación","2","1","0","0","66.7","33.3","0","0","4","0","0","0","100","0","0","0"]
["07","CHIAPAS","PASCUAL ORTIZ RUBIO","07DPB2371U","MATUTINO","CHILON","LA CUMBRE VERAPAZ","Indígena","Muy Alta y Alta","5","0","5","0","100","NO","SI","Indígenas en el país en los tres niveles de marginación","0","0","0","0","0","0","0","0","5","0","0","0","100","0","0","0"]
["07","CHIAPAS","JUAN ESCUTIA","07DPB2704S","MATUTINO","SABANILLA","SAN PATRICIO","Indígena","Muy Alta y Alta","3","0","3","0","100","NO","SI","Indígenas en el país en los tres niveles de marginación","0","0","0","0","0","0","0","0","3","0","0","0","100","0","0","0"]
["07","CHIAPAS","JUSTO SIERRA MENDEZ","07DPB3326O","MATUTINO","CHILON","XEXALJA SEGUNDA SECCION","Indígena","No identificada","1","0","1","0","100","NO","SI","Indígenas en el país en los tres niveles de marginación","0","0","0","0","0","0","0","0","1","0","0","0","100","0","0","0"]
["07","CHIAPAS","PRIMARIA COMUNITARIA ESTADO DE COAHUILA","07EPB0284K","COMPLEMENTARIO","EL BOSQUE","NUEVA JERUSALEN","Indígena","Muy Alta y Alta","1","0","1","0","100","NO","SI","Indígenas en el país en los tres niveles de marginación","0","0","0","0","0","0","0","0","1","0","0","0","100","0","0","0"]
["07","CHIAPAS","PRIMARIA COMUNITARIA REPUBLICA DE CHILE","07EPB0306F","COMPLEMENTARIO","CHILON","LA PROVIDENCIA","Indígena","Muy Alta y Alta","6","0","6","0","100","NO","SI","Indígenas en el país en los tres niveles de marginación","0","0","0","0","0","0","0","0","6","0","0","0","100","0","0","0"]
["07","CHIAPAS","CHALOMCHENTIK","07KPB0594Z","MATUTINO","OXCHUC","PORVENIR","Comunitaria","Muy Alta y Alta","1","0","1","0","100","NO","SI","Comunitarias en el país en localidades de muy alta y alta marginación","0","0","0","0","0","0","0","0","1","0","0","0","100","0","0","0"]
["07","CHIAPAS","TZOTOMTETIC","07KPB1695D","MATUTINO","CHAMULA","TZOTOMTETIC","Comunitaria","Muy Alta y Alta","3","0","3","0","100","NO","SI","Comunitarias en el país en localidades de muy alta y alta marginación","0","0","0","0","0","0","0","0","3","0","0","0","100","0","0","0"]
["07","CHIAPAS","GENARO VAZQUEZ ROJAS","07KPR1440D","MATUTINO","TECPATAN","GENARO VAZQUEZ ROJAS","Comunitaria","Muy Alta y Alta","4","0","4","0","100","NO","SI","Comunitarias en el país en localidades de muy alta y alta marginación","0","0","0","0","0","0","0","0","4","0","0","0","100","0","0","0"]
["07","CHIAPAS","VICTOR MANUEL CASTILLO","07KPR3571J","MATUTINO","ACACOYAGUA","VICTOR MANUEL CASTILLO (ESPAÑA)","Comunitaria","No identificada","1","0","1","0","100","NO","SI","Comunitarias en el país en los tres niveles de marginación","0","0","0","0","0","0","0","0","1","0","0","0","100","0","0","0"]
["07","CHIAPAS","LOS ANGELES","07KPR3700N","MATUTINO","SILTEPEC","LOS ANGELES","Comunitaria","Muy Alta y Alta","1","0","1","0","100","NO","SI","Comunitarias en el país en localidades de muy alta y alta marginación","0","0","0","0","0","0","0","0","1","0","0","0","100","0","0","0"]
["07","CHIAPAS","EL CERRO SEGUNDA SECCION","07KPR3704J","MATUTINO","PICHUCALCO","EL CERRO 2DA. SECCION","Comunitaria","Muy Alta y Alta","1","0","1","0","100","NO","SI","Comunitarias en el país en localidades de muy alta y alta marginación","0","0","0","0","0","0","0","0","1","0","0","0","100","0","0","0"]
["07","CHIAPAS","AMPLIACION LA VICTORIA EL PARAISO","07KPR4151G","MATUTINO","MAPASTEPEC","EL PARAISO","Comunitaria","Muy Alta y Alta","5","0","5","0","100","NO","SI","Comunitarias en el país en localidades de muy alta y alta marginación","0","0","0","0","0","0","0","0","5","0","0","0","100","0","0","0"]
["07","CHIAPAS","LAZARO CARDENAS DEL RIO","07KPR5484B","MATUTINO","MOTOZINTLA","LAZARO CARDENAS","Comunitaria","Muy Alta y Alta","2","0","2","0","100","NO","SI","Comunitarias en el país en localidades de muy alta y alta marginación","0","0","0","0","0","0","0","0","2","0","0","0","100","0","0","0"]
["07","CHIAPAS","21 DE AGOSTO","07DPB0406F","COMPLEMENTARIO","SALTO DE AGUA","ARROYO EL ENCANTO 2DA. SEC","Indígena","Muy Alta y Alta","3","2","3","66.7","100","SI","SI","Indígenas en el país en los tres niveles de marginación","2","0","0","0","100","0","0","0","3","0","0","0","100","0","0","0"]
["07","CHIAPAS","24 DE FEBRERO","07DPB0598L","COMPLEMENTARIO","TUMBALA","JOLJAMIL","Indígena","Muy Alta y Alta","10","6","10","60","100","NO","SI","Indígenas en el país en los tres niveles de marginación","6","0","0","0","100","0","0","0","10","0","0","0","100","0","0","0"]
["07","CHIAPAS","JAIME NUNO","07DPB1576G","COMPLEMENTARIO","YAJALON","SAN PEDRO BUENAVISTA","Indígena","Muy Alta y Alta","4","3","4","75","100","SI","SI","Indígenas en el país en los tres niveles de marginación","3","0","0","0","100","0","0","0","4","0","0","0","100","0","0","0"]
["07","CHIAPAS","JUSTO SIERRA MENDEZ","07DPB2293G","COMPLEMENTARIO","IXHUATAN","EL MAJAGUAL","Indígena","Muy Alta y Alta","7","6","7","85.7","100","SI","SI","Indígenas en el país en los tres niveles de marginación","6","0","0","0","100","0","0","0","7","0","0","0","100","0","0","0"]
["07","CHIAPAS","VASCO DE QUIROGA","07DPB3181J","COMPLEMENTARIO","TILA","CARMEN 3RA. SECCION (CARME","Indígena","Muy Alta y Alta","6","3","6","50","100","NO","SI","Indígenas en el país en los tres niveles de marginación","3","0","0","0","100","0","0","0","6","0","0","0","100","0","0","0"]
["07","CHIAPAS","PRIMARIA COMUNITARIA ALFONSO REYES","07EPB0368S","COMPLEMENTARIO","OCOTEPEC","OCOTEPEC","Indígena","Muy Alta y Alta","9","8","9","88.9","100","SI","SI","Indígenas en el país en los tres niveles de marginación","8","0","0","0","100","0","0","0","9","0","0","0","100","0","0","0"]
["07","CHIAPAS","PRIMARIA COMUNITARIA OCTAVIO PAZ LOZANO","07EPB0734Y","COMPLEMENTARIO","SALTO DE AGUA","PALMA TULIJA","Indígena","Muy Alta y Alta","8","6","8","75","100","SI","SI","Indígenas en el país en los tres niveles de marginación","6","0","0","0","100","0","0","0","8","0","0","0","100","0","0","0"]
["07","CHIAPAS","GUADALUPE VICTORIA","07EPR0506E","COMPLEMENTARIO","OCOSINGO","SAN FRANCISCO UNO","General Pública","Muy Alta y Alta","6","5","6","83.3","100","SI","SI","Generales públicas en el país en localidades de muy alta y alta marginación","5","0","0","0","100","0","0","0","6","0","0","0","100","0","0","0"]
["07","CHIAPAS","LUQUILHO","07KPB0136M","MATUTINO","LARRAINZAR","LUQUILHO","Comunitaria","Muy Alta y Alta","5","3","5","60","100","NO","SI","Comunitarias en el país en localidades de muy alta y alta marginación","3","0","0","0","100","0","0","0","5","0","0","0","100","0","0","0"]
["07","CHIAPAS","EL CARMEN CANDELARIA (LAGUNA SECA)","07KPR5355H","MATUTINO","COMITAN DE DOMINGUEZ","EL CARMEN CANDELARIA (LAGUNA SECA)","Comunitaria","Muy Alta y Alta","7","5","7","71.4","100","NO","SI","Comunitarias en el país en localidades de muy alta y alta marginación","5","0","0","0","100","0","0","0","7","0","0","0","100","0","0","0"]
["07","CHIAPAS","GUADALUPE LA PROVIDENCIA SANTA ROSA","07KPR6045K","MATUTINO","TEOPISCA","GUADALUPE LA PROVIDENCIA (SANTA ROSA)","Comunitaria","Muy Alta y Alta","3","1","3","33.3","100","NO","SI","Comunitarias en el país en localidades de muy alta y alta marginación","1","0","0","0","100","0","0","0","3","0","0","0","100","0","0","0"]
["07","CHIAPAS","DIA DE LA RAZA","07DPB0424V","MATUTINO","SABANILLA","UNION JUAREZ","Indígena","Muy Alta y Alta","26","22","26","84.6","100","SI","SI","Indígenas en el país en los tres niveles de marginación","22","0","0","0","100","0","0","0","26","0","0","0","100","0","0","0"]
["07","CHIAPAS","FRANCISCO INDALECIO MADERO","07DPB2251H","MATUTINO","ALDAMA","SAN JOSE FIU","Indígena","Muy Alta y Alta","14","13","14","92.9","100","SI","SI","Indígenas en el país en los tres niveles de marginación","13","0","0","0","100","0","0","0","14","0","0","0","100","0","0","0"]
["07","CHIAPAS","ANGEL ALBINO CORZO","07DPB2344X","MATUTINO","SALTO DE AGUA","NUEVO BERLIN","Indígena","Muy Alta y Alta","6","5","6","83.3","100","SI","SI","Indígenas en el país en los tres niveles de marginación","5","0","0","0","100","0","0","0","6","0","0","0","100","0","0","0"]
["07","CHIAPAS","MANUEL GUTIERREZ NAJERA","07DPB2743U","MATUTINO","CHAMULA","CHIMTIC","Indígena","Muy Alta y Alta","3","2","3","66.7","100","SI","SI","Indígenas en el país en los tres niveles de marginación","2","0","0","0","100","0","0","0","3","0","0","0","100","0","0","0"]
["07","CHIAPAS","ARCOCHEN","07KPB0212B","MATUTINO","LARRAINZAR","ARCOCHEN","Comunitaria","Muy Alta y Alta","3","2","3","66.7","100","SI","SI","Comunitarias en el país en localidades de muy alta y alta marginación","2","0","0","0","100","0","0","0","3","0","0","0","100","0","0","0"]
["07","CHIAPAS","EL CARMEN","07KPB1614C","MATUTINO","SANTIAGO EL PINAR","EL CARMEN","Comunitaria","Muy Alta y Alta","2","1","2","50","100","SI","SI","Comunitarias en el país en localidades de muy alta y alta marginación","1","0","0","0","100","0","0","0","2","0","0","0","100","0","0","0"]
["07","CHIAPAS","SAN JOSE BUENA VISTA","07KPB1679M","MATUTINO","PANTEPEC","SAN JOSE BUENAVISTA","Comunitaria","Muy Alta y Alta","7","6","7","85.7","100","SI","SI","Comunitarias en el país en localidades de muy alta y alta marginación","6","0","0","0","100","0","0","0","7","0","0","0","100","0","0","0"]
["07","CHIAPAS","GUADALUPE EL JAGÜEY","07KPR0053E","MATUTINO","COMITAN DE DOMINGUEZ","GUADALUPE EL JAGÜEY","Comunitaria","Muy Alta y Alta","4","3","4","75","100","SI","SI","Comunitarias en el país en localidades de muy alta y alta marginación","3","0","0","0","100","0","0","0","4","0","0","0","100","0","0","0"]
["07","CHIAPAS","PRIMARIA CONAFE","07KPR0820F","MATUTINO","PALENQUE","DIVISION DEL NORTE","Comunitaria","Muy Alta y Alta","4","3","4","75","100","SI","SI","Comunitarias en el país en localidades de muy alta y alta marginación","3","0","0","0","100","0","0","0","4","0","0","0","100","0","0","0"]
["07","CHIAPAS","CAMOAPA 1RA. SECCION","07KPR0997T","MATUTINO","PICHUCALCO","CAMOAPA 1RA. SECCION A (PORTACELI)","Comunitaria","Muy Alta y Alta","2","1","2","50","100","SI","SI","Comunitarias en el país en localidades de muy alta y alta marginación","1","0","0","0","100","0","0","0","2","0","0","0","100","0","0","0"]
["07","CHIAPAS","SAN MIGUEL","07KPR1915Z","MATUTINO","IXTACOMITAN","SAN MIGUEL","Comunitaria","Muy Alta y Alta","2","1","2","50","100","SI","SI","Comunitarias en el país en localidades de muy alta y alta marginación","1","0","0","0","100","0","0","0","2","0","0","0","100","0","0","0"]
["07","CHIAPAS","EL NARANJO","07KPR2112R","MATUTINO","PANTEPEC","EL NARANJO","Comunitaria","Muy Alta y Alta","5","4","5","80","100","SI","SI","Comunitarias en el país en localidades de muy alta y alta marginación","4","0","0","0","100","0","0","0","5","0","0","0","100","0","0","0"]
["07","CHIAPAS","LA PINADA","07KPR2337Y","MATUTINO","SILTEPEC","LA PINADA","Comunitaria","Muy Alta y Alta","3","2","3","66.7","100","SI","SI","Comunitarias en el país en localidades de muy alta y alta marginación","2","0","0","0","100","0","0","0","3","0","0","0","100","0","0","0"]
["07","CHIAPAS","SAN LUCAS","07KPR3536D","MATUTINO","FRONTERA COMALAPA","SAN LUCAS","Comunitaria","Muy Alta y Alta","2","1","2","50","100","SI","SI","Comunitarias en el país en localidades de muy alta y alta marginación","1","0","0","0","100","0","0","0","2","0","0","0","100","0","0","0"]
["07","CHIAPAS","CINCO DE MAYO","07KPR3668V","MATUTINO","AMATENANGO DE LA FRONTERA","CINCO DE MAYO","Comunitaria","Muy Alta y Alta","4","3","4","75","100","SI","SI","Comunitarias en el país en localidades de muy alta y alta marginación","3","0","0","0","100","0","0","0","4","0","0","0","100","0","0","0"]
["07","CHIAPAS","SAN LORENZO UZUM","07KPR3734D","MATUTINO","LAS MARGARITAS","SAN LORENZO UZUM","Comunitaria","Muy Alta y Alta","4","3","4","75","100","SI","SI","Comunitarias en el país en localidades de muy alta y alta marginación","3","0","0","0","100","0","0","0","4","0","0","0","100","0","0","0"]
["07","CHIAPAS","EL PARAISO","07KPR3884K","MATUTINO","AMATAN","EL PARAISO","Comunitaria","Muy Alta y Alta","2","1","2","50","100","SI","SI","Comunitarias en el país en localidades de muy alta y alta marginación","1","0","0","0","100","0","0","0","2","0","0","0","100","0","0","0"]
["07","CHIAPAS","EL TRIUNFO","07KPR4179M","MATUTINO","BEJUCAL DE OCAMPO","EL TRIUNFO","Comunitaria","Muy Alta y Alta","4","3","4","75","100","SI","SI","Comunitarias en el país en localidades de muy alta y alta marginación","3","0","0","0","100","0","0","0","4","0","0","0","100","0","0","0"]
["07","CHIAPAS","24 DE FEBRERO","07DPB0055S","MATUTINO","TILA","CHULUM ITURBIDE","Indígena","Muy Alta y Alta","11","10","10","90.9","90.9","SI","SI","Indígenas en el país en los tres niveles de marginación","3","7","0","0","30","70","0","0","10","0","0","0","100","0","0","0"]
["07","CHIAPAS","24 DE FEBRERO","07DPB0594P","COMPLEMENTARIO","AMATENANGO DEL VALLE","EL MADRONAL","Indígena","Muy Alta y Alta","19","0","18","0","94.7","NO","SI","Indígenas en el país en los tres niveles de marginación","0","0","0","0","0","0","0","0","18","0","0","0","100","0","0","0"]

{"sheet":"MRA_6o_P18","index":1,"n_rows":47,"n_cols":17,"rows_kept":47,"cut":false,"hidden":false,"merged":[[37,7,38,13],[46,7,46,15]]}
[]
[]
[]
[null,null,null,null,null,null,null,null,null,null,null,null,null,null,null,null,"F"]
[]
[]
[]
[]
[]
[]
[]
[]
[]
[]
[]
[]
[]
[]
[]
[]
[]
[]
[]
[]
[]
[]
[]
[]
[]
[]
[]
[]
[]
[]
[]
[]
[]
[null,null,null,null,null,null,null,"*REQUERIMIENTOS: EXCEL 2013 EN ADELANTE"]
[]
[]
[]
[]
[]
[]
[]
[]
[null,null,null,null,null,null,null,"        http://educacion.chihuahua.gob.mx/investigacion/"]

{"sheet":"RETRO","index":2,"n_rows":20,"n_cols":17,"rows_kept":20,"cut":false,"hidden":true,"merged":[[19,7,23,14],[19,6,23,6]]}
[]
[]
[]
[null,null,null,null,null,null,null,null,null,null,null,null,null,null,null,null,"F"]
[]
[]
[]
[]
[]
[]
[]
[]
[]
[]
[]
[]
[]
[]
[]
[null,null,null,null,null,null,null,"IMPORTANTE: Este programa educativo se elaboró exclusivamente con fines de mejoramiento educativo. Sugerimos no hacer otro tipo de uso diferente, sobre todo aquél que perjudique a cualquier integrante de las comunidades escolares, como estudiantes, padres de familia, docentes, directivos, etc."]

{"sheet":"ÍNDICE_1","index":3,"n_rows":43,"n_cols":4,"rows_kept":43,"cut":false,"hidden":true,"merged":[]}
[]
[]
[]
[]
[]
[]
[]
[]
[]
[]
[]
[]
[]
[]
[]
[]
[]
[]
[]
[]
[]
[]
[]
[]
[]
[]
[]
[]
[null,null,null,"Advertencias técnicas:"]
[]
[null,null,1,"Para que el programa trabaje adecuadamente se requiere contar con una versión de Excel 2013 en adelante."]
[]
[null,null,2,"El programa puede tardar al iniciarse, debido a que absorbe la información necesaria para el manejo del programa."]
[]
[null,null,3,"Sobre todo en las secciones en donde se seleccionan los segmentos para analizar, la recuperación de los datos solicitados, puede ralentizarse."]
[]
[null,null,4,"Fases posteriores contarán con nuevas opciones de análisis y mejoras técnicas, dado que esta es la primera versión del mismo."]
[]
[null,null,5,"En algunos casos es posible que aparezca en la parte de arriba de la pantalla la frase \"habilitar contenido\" o algo semejante, dar click para aceptar."]
[]
[null,null,6,"Este programa funciona con el archivo \"MRA_P6_P18\", al cual se le \"clikea\" para poder abrirlo. Este archivo está contenido en la carpeta denominada de la misma forma, que incluye además 2 PDF y 1 Word.  "]
[]
[null,null,7,"Conserve los archivos en la misma carpeta, dado que el programa funcionará inadecuadamente si alguno de sus archivos se extrae de tal carpeta."]

{"sheet":"ÍNDICE_2","index":4,"n_rows":3,"n_cols":5,"rows_kept":3,"cut":false,"hidden":true,"merged":[]}
[]
[]
[null,null,null,null,"E"]

{"sheet":"ENTIDAD","index":5,"n_rows":48,"n_cols":25,"rows_kept":48,"cut":false,"hidden":true,"merged":[[42,1,42,4],[42,5,42,8],[0,0,0,24],[17,11,23,11],[26,11,32,11],[41,15,41,16],[41,0,41,13],[1,0,1,10],[24,0,24,10],[24,12,24,22],[1,12,1,21]]}
["UBICACIÓN DEL ESTADO DE CHIHUAHUA CON RELACIÓN AL RESTO DE LAS ENTIDADES DEL PAÍS, DE ACUERDO A LOS RESULTADOS DE PLANEA DE SEXTO GRADO 2018."]
["ORDENAMIENTO PROMEDIOS LENGUAJE Y COMUNICACIÓN",null,null,null,null,null,null,null,null,null,null,null,"ORDENAMIENTO PROMEDIOS MATEMÁTICAS"]
[]
[]
[]
[null,null,null,null,null,null,null,null,null,null,1,"CDMX",null,null,null,null,null,null,null,null,null,null,null,1,"JALISCO"]
[null,null,null,null,null,null,null,null,null,null,2,"COLIMA",null,null,null,null,null,null,null,null,null,null,null,2,"CDMX"]
[null,null,null,null,null,null,null,null,null,null,3,"AGUASCALIENTES",null,null,null,null,null,null,null,null,null,null,null,3,"AGUASCALIENTES"]
[null,null,null,null,null,null,null,null,null,null,4,"QUERÉTARO",null,null,null,null,null,null,null,null,null,null,null,4,"NUEVO LEÓN"]
[null,null,null,null,null,null,null,null,null,null,5,"NUEVO LEÓN",null,null,null,null,null,null,null,null,null,null,null,5,"COLIMA"]
[null,null,null,null,null,null,null,null,null,null,6,"EDOMEX",null,null,null,null,null,null,null,null,null,null,null,6,"QUERÉTARO"]
[null,null,null,null,null,null,null,null,null,null,7,"COAHUILA",null,null,null,null,null,null,null,null,null,null,null,7,"HIDALGO"]
[null,null,null,null,null,null,null,null,null,null,8,"QUINTANA ROO",null,null,null,null,null,null,null,null,null,null,null,8,"COHAUILA"]
[null,null,null,null,null,null,null,null,null,null,9,"SONORA",null,null,null,null,null,null,null,null,null,null,null,9,"EDOMEX"]
[null,null,null,null,null,null,null,null,null,null,10,"JALISCO",null,null,null,null,null,null,null,null,null,null,null,10,"PUEBLA"]
[null,null,null,null,null,null,null,null,null,null,24,"CHIHUAHUA",null,null,null,null,null,null,null,null,null,null,null,25,"CHIHUAHUA"]
[]
[null,null,null,null,null,null,null,null,null,null,null,"CONTINÚE SU ANÁLISIS YENDO MÁS ABAJO EN ESTA HOJA"]
[]
[]
[]
[]
[]
[]
["COMPARATIVO PERIÓDICO EN LENGUAJE Y COMUNICACIÓN",null,null,null,null,null,null,null,null,null,null,null,"COMPARATIVO PERIÓDICO EN MATEMÁTICAS"]
[]
[null,null,null,null,null,null,null,null,null,null,null,"CONTINÚE CON SU ANÁLISIS HABILITANDO LOS NIVELES DE DESEMPEÑO POR ENTIDAD EN LA PARTE DE ABAJO"]
[]
[]
[]
[]
[]
[]
[]
[]
[]
[]
[]
[]
[]
[]
["NIVELES DE DESEMPEÑO POR ENTIDAD FEDERATIVA PLANEA 6o 2018",null,null,null,null,null,null,null,null,null,null,null,null,null,null,"AL TERMINAR EL ANÁLISIS DE LA ENTIDAD…"]
["SELECCIONE AQUÍ LA ENTIDAD FEDERATIVA QUE DESEA OBSERVAR ","LENGUAJE Y COMUNICACIÓN",null,null,null,"MATEMÁTICAS",null,null,null,null,null,null,null,null,null,null,null,"E"]
["ENTIDAD ---------->","LYC I","LYC II","LYC III","LYC IV","MAT I","MAT II","MAT III","MAT IV"]
["CIUDAD DE MEXICO",29.940976089092757,33.386636095643794,25.802030789387526,10.837078283655414,42.112872584343378,19.312217490992417,20.232034064854265,18.279462823452338]
["JALISCO",49.805075757575466,32.065681818181709,14.458030303030343,3.2004545454545394,55.168503787878727,17.621193181818231,16.049905303030346,10.801742424242395]
["SONORA",45.65863453815254,32.302294893861223,17.269822145725755,4.6004016064257058,55.561503155479059,18.181296615031521,15.987894434882378,10.271428571428572]
["CHIHUAHUA",55.235610766045703,28.100000000000062,13.227163561076594,3.0678674948240126,62.848530020703869,16.306004140786705,12.85946169772256,7.741283643892344]

{"sheet":"SELECCION_ZONA","index":6,"n_rows":16,"n_cols":5,"rows_kept":16,"cut":false,"hidden":true,"merged":[[14,1,26,3],[15,4,27,5],[2,1,11,3],[2,4,14,5]]}
[]
[]
[null,"PASO 1: SELECCIONE EL SUBSISTEMA O FUENTE DE SOSTENIMIENTO",null,null,"F"]
[]
[]
[]
[]
[]
[]
[]
[]
[]
[]
[]
[null,"PASO 2: SELECCIONE LA ZONA QUE DESEA ANALIZAR"]
[null,null,null,null,"F"]

{"sheet":"NIV_ZONA","index":7,"n_rows":19,"n_cols":21,"rows_kept":19,"cut":false,"hidden":true,"merged":[[18,11,18,13],[18,9,18,10],[3,5,3,8],[3,1,3,4],[0,9,0,16]]}
["ZONA ESCOLAR","LYC I","LYC II","LYC III","LYC IV","MAT I","MAT II","MAT III","MAT IV","PANORAMA DE LA ZONA ESCOLAR A PARTIR DE LOS RESULTADOS DE PLANEA 2018."]
["08EPR"]
["014",59.14,34.32,5.9700000000000006,0.57000000000000006,76.02000000000001,8.77,3.17,12.040000000000001]
[null,"LENGUAJE Y COMUNICACIÓN",null,null,null,"MATEMÁTICAS"]
[]
[]
[]
[]
[]
[]
[null,null,null,null,null,null,null,null,null,null,null,null,null,null,null,null,null,null,null,null,"IR A NIVEL DE LA ZONA POR ESCUELA EN LYC"]
[]
[]
[]
[]
[]
[]
[]
[null,null,null,null,null,null,null,null,null,"LENGUAJE Y COMUNICACIÓN",null,"MATEMÁTICAS"]

{"sheet":"NIV_ESC_ZONA_LYC","index":8,"n_rows":15,"n_cols":7,"rows_kept":15,"cut":false,"hidden":true,"merged":[[0,6,0,15]]}
["NIVELES DE DESEMPEÑO POR CADA ESCUELA DE LA ZONA ESCOLAR","LYC I","LYC II","LYC III","LYC IV",null,"NIVELES DE DESEMPEÑO EN CADA ESCUELA DE LA ZONA ESCOLAR EN LENGUAJE Y COMUNICACIÓN"]
["08EPR"]
["014"]
["MATUTINO"]
["08EPR0321Y",83.3,5.6,11.1,0]
["08EPR0375B",45.7,28.6,20,5.7]
["08EPR0378Z",45.7,25.7,28.6,0]
["08EPR0481L",0,100,0,0]
["08EPR0637W",100,0,0,0]
["TIEMPO COMPLETO"]
["08EPR0369R",66.7,33.299999999999997,0,0]
["08EPR0370G",50,50,0,0]
["08EPR0373D",100,0,0,0]
["08EPR0374C",100,0,0,0]
["08EPR0377Z",0,100,0,0]

{"sheet":"NIV_ESC_ZONA_MAT","index":9,"n_rows":15,"n_cols":7,"rows_kept":15,"cut":false,"hidden":true,"merged":[[0,6,0,15]]}
["NIVELES DE DESEMPEÑO POR CADA ESCUELA DE LA ZONA ESCOLAR","MAT I","MAT II","MAT III","MAT IV",null,"NIVELES DE DESEMPEÑO EN CADA ESCUELA DE LA ZONA ESCOLAR EN MATEMÁTICAS"]
["08EPR"]
["014"]
["MATUTINO"]
["08EPR0321Y",94.4,0,5.6,0]
["08EPR0375B",52.9,20.6,14.7,11.8]
["08EPR0378Z",62.9,17.100000000000001,11.4,8.6]
["08EPR0481L",0,0,0,100]
["08EPR0637W",100,0,0,0]
["TIEMPO COMPLETO"]
["08EPR0369R",100,0,0,0]
["08EPR0370G",50,50,0,0]
["08EPR0373D",100,0,0,0]
["08EPR0374C",100,0,0,0]
["08EPR0377Z",100,0,0,0]

{"sheet":"SELECCION ESCUELA","index":10,"n_rows":11,"n_cols":5,"rows_kept":11,"cut":false,"hidden":true,"merged":[[10,1,20,3],[10,4,20,4]]}
[]
[]
[]
[]
[]
[]
[]
[]
[]
[]
[null,"SELECCIONE LA ESCUELA QUE DESEA ANALIZAR",null,null,"F"]

{"sheet":"UD EXTRAC","index":11,"n_rows":8,"n_cols":16,"rows_kept":8,"cut":false,"hidden":true,"merged":[[3,1,3,10]]}
["LENGUAJE Y COMUNICACIÓN"]
["COMPRENSIÓN LECTORA",null,null,null,null,null,null,null,null,null,null,"F"]
["UNIDAD DE DIAGNÓSTICO: EXTRACCIÓN DE LA INFORMACIÓN Y COMPRENSIÓN"]
[null,"DESCRIPTORES"]
["PORCENTAJES DE ACIERTOS EN CADA ESCUELA Y POR REACTIVO","Identificar la conclusión que podría derivarse de un debate.","Identificar el párrafo de una biografía en el que se describa una situación particular. ","Identificar los datos necesarios para llenar un formulario.","Seguir instrucciones para llenar un formulario.","Completar información en un cuadro sinóptico. ","Seleccionar el encabezado de una noticia.","Identificar un fragmento del cuento en que se genere suspenso o tensión.","Seleccionar la pregunta que incluya la información esencial de un párrafo de un reportaje. ","Identificar la paráfrasis que recupera el sentido de un párrafo que aparece en un reportaje.","Reconocer la relación que existe en el destinatario y el remitente en una carta formal.",null,null,null,null,"E"]
["CCT ESCUELA","LYC C-1","LYC C-4","LYC C-16","LYC C-17","LYC C-23","LYC C-26","LYC C-33","LYC C-36","LYC C-37","LYC C-41"]
["MANUELA MEDINA 2225"]
["08EPR0147H",0.23529411764705882,0.76470588235294112,0.52941176470588236,0.17647058823529413,0.29411764705882354,0.23529411764705882,0.70588235294117652,0.23529411764705882,0.23529411764705882,0.11764705882352941]

{"sheet":"UD DESAR","index":12,"n_rows":7,"n_cols":15,"rows_kept":7,"cut":false,"hidden":true,"merged":[[3,1,3,7]]}
["LENGUAJE Y COMUNICACIÓN"]
["COMPRENSIÓN LECTORA",null,null,null,null,null,null,null,null,"F"]
["UNIDAD DE DIAGNÓSTICO: DESARROLLO DE UNA INTERPRETACIÓN"]
[null,"DESCRIPTORES",null,null,null,null,null,null,null,null,null,null,null,null,"E"]
[null,"Identificar la expresión que incluye un acuerdo tomado dentro de una discusión.","Identificar la función de un índice. ","Identificar la función de un índice. ","Inferir las emociones de los personajes dentro de un cuento de terror. ","Interpretar la emoción que transmite un fragmento de una carta formal.","Identificar las relaciones causa y consecuencia en un artículo de divulgación.","Identificar la congruencia entre una imagen y el uso de recursos de apoyo como pies de figura en un artículo de divulgación. "]
["MUNICIPIO - LOCALIDAD - ESCUELA","LYC C-3","LYC C-22","LYC C-29","LYC C-31","LYC C-40","LYC C-43","LYC C-45"]
["08EPR0147H",0.29411764705882354,0.17647058823529413,0.35294117647058826,0.41176470588235292,0.35294117647058826,0.23529411764705882,0.41176470588235292]

{"sheet":"UD ANÁLIS","index":13,"n_rows":7,"n_cols":19,"rows_kept":7,"cut":false,"hidden":true,"merged":[[3,1,3,12]]}
["LENGUAJE Y COMUNICACIÓN"]
["COMPRENSIÓN LECTORA",null,null,null,null,null,null,null,null,null,null,null,null,"F"]
["UNIDAD DE DIAGNÓSTICO: ANÁLISIS DE LA ESTRUCTURA TEXTUAL"]
[null,"DESCRIPTORES",null,null,null,null,null,null,null,null,null,null,null,null,null,null,null,null,"E"]
[null,"Identificar la voz narrativa en una biografía. ","Identificar la función de un tipo de texto para integrar información sobre un tema.","Identificar la intención del autor al escribir un texto con función apelativa.","Identificar el uso de elementos de realidad y fantasía en un cuento.","Identificar la organización de las ideas en una entrevista.","Identificar el uso correcto de la cita textual en una nota enciclopédica. ","Distinguir entre datos, argumentos y opiniones.","Identificar la diferencia entre expresar una opinión y referir un hecho.","Identificar la diferencia en la estructura de una obra de teatro y un cuento (diálogos). ","Identificar el uso del lenguaje en una carta formal.","Reconocer la función que tiene una referencia bibliográfica que aparece en un artículo de divulgación. ","Identificar los elementos genéricos de una referencia bibliográfica."]
["CCT","LYC C-5","LYC C-11","LYC C-13","LYC C-14","LYC C-20","LYC C-24","LYC C-27","LYC C-28","LYC C-35","LYC C-42","LYC C-46","LYC_C_49"]
["08EPR0147H",0.76470588235294112,0.41176470588235292,0.6470588235294118,0.58823529411764708,0.23529411764705882,0.23529411764705882,0.29411764705882354,0.35294117647058826,0.47058823529411764,0.41176470588235292,0.23529411764705882,0.41176470588235292]

{"sheet":"UD CONVEN","index":14,"n_rows":7,"n_cols":15,"rows_kept":7,"cut":false,"hidden":true,"merged":[[3,1,3,5]]}
["LENGUAJE Y COMUNICACIÓN"]
["COMPRENSIÓN LECTORA",null,null,null,null,null,null,"F"]
["UNIDAD DE DIAGNÓSTICO: CONVENCIONALIDADES LINGÜÍSTICAS"]
[null,"DESCRIPTORES"]
[null,"Identificar los errores de segmentación de algunas palabras dentro de un texto. ","Segmentación convencional de palabras.","Identificar la acentuación correcta en palabras esdrújulas.","Identificar el significado de siglas y abreviaturas de un formulario.","Identificar el uso correcto de palabras de la misma familia léxica para guiar decisiones ortográficas. ",null,null,null,null,null,null,null,null,"E"]
["CCT","LYC C-6","LYC C-8","LYC C-10","LYC C-18","LYC C-25"]
["08EPR0147H",0.41176470588235292,0.41176470588235292,0.41176470588235292,0.6470588235294118,0.58823529411764708]

{"sheet":"UD REFLEX","index":15,"n_rows":7,"n_cols":18,"rows_kept":7,"cut":false,"hidden":true,"merged":[[3,1,3,9]]}
["LENGUAJE Y COMUNICACIÓN"]
["COMPRENSIÓN LECTORA",null,null,null,null,null,null,null,null,null,null,null,null,null,null,null,null,"E"]
["UNIDAD DE DIAGNÓSTICO: REFLEXIÓN SOBRE EL SISTEMA DE LA LENGUA"]
[null,"DESCRIPTORES",null,null,null,null,null,null,null,null,null,null,null,null,null,null,null,"E"]
[null,"Identificar adverbios y frases adverbiales modales.","Identificar oraciones complejas por coordinación copulativa. ","Reconocer la función de una entrevista. ","Identificar los nexos que indiquen suspenso en un cuento de terror. ","Identificar el uso de un adverbio, adjetivo o frase preposicional para describir.","Interpretar el significado de una palabra en el contexto de una carta formal.","Identificar los nexos que indiquen una relación causa y efecto en un artículo de divulgación. ","Seleccionar fuentes de información relevantes para hacer un reportaje. ","Identificar los nexos que introducen secuencias lógicas de ideas. "]
["CCT","LYC C-7","LYC C-9","LYC C-19","LYC C-34","LYC C-38","LYC C-39","LYC C-44","LYC C-47","LYC C-50"]
["08EPR0147H",0.41176470588235292,0.70588235294117652,0.70588235294117652,0.41176470588235292,0.52941176470588236,0.23529411764705882,0.29411764705882354,0.47058823529411764,0.11764705882352941]

{"sheet":"UD_MAT_FyC","index":16,"n_rows":7,"n_cols":15,"rows_kept":7,"cut":false,"hidden":true,"merged":[[3,1,3,6]]}
["MATEMÁTICAS"]
["FORMA, ESPACIO Y MEDIDA.",null,null,null,null,null,null,null,null,"F"]
["UNIDAD DE DIAGNÓSTICO: FIGURAS Y CUERPOS"]
[null,"DESCRIPTORES"]
["PORCENTAJES DE ACIERTOS EN CADA ESCUELA Y POR REACTIVO","Identificar dos o tres características geométricas de un  cuadrilátero dado.","Identificar un prisma por el número de caras, aristas y vértices.","Identificar el triángulo  que cumple con las características geométricas dadas.","Identificar ángulos agudos y obtusos.","Identificar un prisma por el número de caras, aristas y vértices.","Identificar el cuadrilátero que cumple con las características geométricas dadas.",null,null,null,null,null,null,null,"E"]
["CCT ESCUELA","MAT_C_7","MAT_C_8","MAT_C_9","MAT_C_29","MAT_C_32","MAT_C_34"]
["08EPR0147H",0.47058823529411764,0.35294117647058826,0.76470588235294112,0.29411764705882354,0.29411764705882354,0.70588235294117652]

{"sheet":"UD_MAT_MEDIDA","index":17,"n_rows":7,"n_cols":14,"rows_kept":7,"cut":false,"hidden":true,"merged":[[3,1,3,6]]}
["MATEMÁTICAS"]
["FORMA, ESPACIO Y MEDIDA.",null,null,null,null,null,null,null,"F"]
["UNIDAD DE DIAGNÓSTICO: MEDIDA"]
[null,"DESCRIPTORES"]
["PORCENTAJES DE ACIERTOS EN LA ESCUELA POR REACTIVO","Resolver problemas que implican conversiones entre unidades de longitud del Sistema Internacional de Medidas, de una unidad menor a una mayor.\n","Resolver problemas que implican conversiones entre unidades de peso del Sistema Internacional de Medidas, de una unidad mayor a una menor.","Resolver problemas que implican conversiones entre unidades de peso del Sistema Internacional de Medidas, de una unidad mayor a una menor.","Resolver problemas que implican conversiones entre unidades de longitud del Sistema Internacional de Medidas, de una unidad menor a una mayor.\n","Calcular distancias reales de un punto a otro en mapas.","Calcular distancias reales de un punto a otro en mapas.",null,null,null,null,null,null,"E"]
["CCT ESCUELA","MAT_C_3","MAT_C_27","MAT_C_28","MAT_C_30","MAT_C_31","MAT_C_33"]
["08EPR0147H",0.52941176470588236,0.17647058823529413,0.35294117647058826,0.35294117647058826,0.41176470588235292,0.41176470588235292]

{"sheet":"UD_MAT_NÚMEROS","index":18,"n_rows":7,"n_cols":19,"rows_kept":7,"cut":false,"hidden":true,"merged":[[3,1,3,12]]}
["MATEMÁTICAS"]
["SENTIDO NUMÉRICO Y PENSAMIENTO ALGEBRÁICO",null,null,null,null,null,null,null,null,null,null,null,null,null,"F"]
["UNIDAD DE DIAGNÓSTICO: NÚMEROS Y SISTEMAS DE NUMERACIÓN"]
[null,"DESCRIPTORES",null,null,null,null,null,null,null,null,null,null,null,null,null,null,null,null,"E"]
[null,"Comparar números decimales.","Comparar fracciones con denominadores que sean uno múltiplo de otro.","Comparar números naturales con ceros intermedios.","Identificar la representación gráfica de una fracción en un modelo continuo dada su expresión numérica  ","Leer y escribir números decimales hasta centésimos sin ceros intermedios.","Identificar la representación gráfica de una fracción en un modelo discreto dada su expresión numérica  ","Identificar la representación gráfica de una fracción en un modelo continuo dada su expresión numérica  ","Comparar fracciones con denominadores que no sean iguales o múltiplos uno del otro","Identificar si un término alejado no más de cinco posiciones, pertenece o no a una sucesión dada, con progresión aritmética ascendente.","Identificar la sucesión con progresión geométrica ascendente dada la regla verbal.","Leer y escribir números naturales sin ceros intermedios.\n","Identificar la representación gráfica de una fracción en un modelo discreto dada su expresión numérica  "]
["CCT","MAT_C_13","MAT_C_16","MAT_C_24","MAT_C_38","MAT_C_41","MAT_C_42","MAT_C_43","MAT_C_44","MAT_C_46","MAT_C_47","MAT_C_48","MAT_C_50"]
["08EPR0147H",0.35294117647058826,0.35294117647058826,0.41176470588235292,0.29411764705882354,0.29411764705882354,0.17647058823529413,0.23529411764705882,0.35294117647058826,0.41176470588235292,0.35294117647058826,0.23529411764705882,0.35294117647058826]

{"sheet":"UD_MAT_ADITIVOS","index":19,"n_rows":7,"n_cols":16,"rows_kept":7,"cut":false,"hidden":true,"merged":[[3,1,3,7]]}
["MATEMÁTICAS"]
["SENTIDO NUMÉRICO Y PENSAMIENTO ALGEBRÁICO",null,null,null,null,null,null,null,null,null,null,"F"]
["UNIDAD DE DIAGNÓSTICO: PROBLEMAS ADITIVOS"]
[null,"DESCRIPTORES",null,null,null,null,null,null,null,null,null,null,null,null,null,"E"]
[null,"Resolver problemas que implican multiplicar números fraccionarios por números naturales.\n","Resolver problemas de división con números naturales.\n","Resolver problemas de reparto en los  que la incógnita sea la cantidad de objetos a repartir.","Resolver problemas que implican multiplicar decimales por números naturales.","Resolver problemas de multiplicación de números naturales.\n","Calcular multiplicaciones de números decimales por números naturales.","Calcular multiplicaciones con números fraccionarios por números naturales.\n"]
["CCT","MAT_C_14","MAT_C_15","MAT_C_17","MAT_C_22","MAT_C_29","MAT_C_40","MAT_C_49"]
["08EPR0147H",0.23529411764705882,0.52941176470588236,0.70588235294117652,0.41176470588235292,0.29411764705882354,0.29411764705882354,0.35294117647058826]

{"sheet":"UD_MAT_MULTIPLIC","index":20,"n_rows":7,"n_cols":16,"rows_kept":7,"cut":false,"hidden":true,"merged":[[3,1,3,7]]}
["MATEMÁTICAS"]
["SENTIDO NUMÉRICO Y PENSAMIENTO ALGEBRÁICO",null,null,null,null,null,null,null,null,"F"]
["UNIDAD DE DIAGNÓSTICO: PROBLEMAS MULTIPLICATIVOS"]
[null,"DESCRIPTORES"]
[null,"Resolver problemas aditivos con números decimales. La incógnita es el resultado.","Calcular restas con números decimales.","Resolver problemas que involucren restas con decimales donde la estructura del problema es de transformación.","Resolver problemas que involucren sumas con números naturales, donde la incógnita es el resultado.","Resolver problemas que involucren sumas con números fraccionarios, donde la estructura del problema es de comparación.","Calcular restas con números decimales.","Resolver problemas que involucren sumas con números naturales, donde la incógnita es el resultado.",null,null,null,null,null,null,null,"E"]
["CCT","MAT_C_18","MAT_C_19","MAT_C_20","MAT_C_21","MAT_C_23","MAT_C_25","MAT_C_45"]
["08EPR0147H",0.52941176470588236,0.6470588235294118,0.41176470588235292,0.58823529411764708,0.47058823529411764,0.58823529411764708,0.23529411764705882]

{"sheet":"UD_MAT_PROPORCION","index":21,"n_rows":7,"n_cols":14,"rows_kept":7,"cut":false,"hidden":true,"merged":[[3,1,3,2]]}
["MATEMÁTICAS",null,null,null,null,null,null,null,null,"F"]
["MANEJO DE LA INFORMACIÓN"]
["UNIDAD DE DIAGNÓSTICO: PROPORCIONALIDAD Y FUNCIONES"]
[null,"DESCRIPTORES",null,null,null,null,null,null,null,null,null,null,null,"E"]
[null,"Resolver problemas que implican comparar dos o más razones con cantidades discretas.\n\n\n","Identificar distintas formas de representar un porcentaje (fracción común, decimal y porcentaje)"]
["CCT","MAT_C_11","MAT_C_36"]
["08EPR0147H",0.35294117647058826,0.47058823529411764]

{"sheet":"UD_MAT_UBIC-ESP","index":22,"n_rows":7,"n_cols":12,"rows_kept":7,"cut":false,"hidden":true,"merged":[[3,1,3,4]]}
["MATEMÁTICAS"]
["FORMA, ESPACIO Y MEDIDA.",null,null,null,null,null,null,null,null,null,null,"E"]
["UNIDAD DE DIAGNÓSTICO: UBICACIÓN ESPACIAL"]
[null,"DESCRIPTORES"]
["PORCENTAJES DE ACIERTOS EN CADA ESCUELA Y POR REACTIVO"," Identificar la descripción de una trayectoria.","Identificar las coordenadas de un punto a partir de las coordenadas de otro punto, sin graduación de los ejes.","Interpretar la descripción de una trayectoria.","Identificar el objeto dadas las coordenadas.",null,null,null,null,null,null,"E"]
["CCT ESCUELA","MAT_C_1","MAT_C_4","MAT_C_5","MAT_C_6"]
["08EPR0147H",0.29411764705882354,0.23529411764705882,0.82352941176470584,0.35294117647058826]

{"sheet":"REACT_LyC","index":23,"n_rows":79,"n_cols":57,"rows_kept":79,"cut":false,"hidden":true,"merged":[[2,46,2,50],[2,51,2,55],[0,56,3,59]]}
[null,null,null,null,null,null,null,null,null,null,null,null,null,null,null,null,null,null,null,null,null,null,null,null,null,null,null,null,null,null,null,null,null,null,null,null,null,null,null,null,null,null,null,null,null,null,null,null,null,null,null,null,null,null,null,null,"LOS RECUADROS EN COLOR VERDE INDICAN QUE ES LA RESPUESTA CORRECTA"]
[]
[null,null,null,null,null,null,null,null,null,null,null,null,null,null,null,null,null,null,null,null,null,null,null,null,null,null,null,null,null,null,null,null,null,null,null,null,null,null,null,null,null,null,null,null,null,"NOMBRE_CT","CANTIDAD DE ESTUDIANTES",null,null,null,null,"PORCENTAJE POR CADA OPCIÓN EN CADA REACTIVO"]
["LYC_R_1","LYC_R_3","LYC_R_4","LYC_R_5","LYC_R_6","LYC_R_7","LYC_R_8","LYC_R_9","LYC_R_10","LYC_R_11","LYC_R_12","LYC_R_13","LYC_R_14","LYC_R_15","LYC_R_16","LYC_R_17","LYC_R_18","LYC_R_19","LYC_R_20","LYC_R_22","LYC_R_23","LYC_R_24","LYC_R_25","LYC_R_26","LYC_R_27","LYC_R_28","LYC_R_29","LYC_R_31","LYC_R_33","LYC_R_34","LYC_R_35","LYC_R_36","LYC_R_37","LYC_R_38","LYC_R_39","LYC_R_40","LYC_R_41","LYC_R_42","LYC_R_43","LYC_R_44","LYC_R_45","LYC_R_46","LYC_R_47","LYC_R_49","LYC_R_50","MANUELA MEDINA 2225",1,2,3,4,"TOTAL","SELECCIONE EL REACTIVO DESEADO","A","B","C","D"]
[1,1,2,1,3,3,3,4,3,2,4,3,4,1,1,1,3,1,2,4,2,1,1,2,3,1,4,1,3,3,2,3,1,2,1,3,1,1,3,2,2,3,1,4,1,null,{"$f":"COUNTIF($A:$A,$AU$4)","v":3},{"$f":"COUNTIF($A:$A,$AV$4)","v":2},{"$f":"COUNTIF($A:$A,$AW$4)","v":4},{"$f":"COUNTIF($A:$A,$AX$4)","v":7},{"$f":"SUM(AU5:AX5)","v":16},"P1",{"$f":"(AU5*100)/AY5","v":18.75},{"$f":"(AV5*100)/AY5","v":12.5},{"$f":"(AW5*100)/AY5","v":25},{"$f":"(AX5*100)/AY5","v":43.75}]
[1,1,3,4,1,1,1,4,3,2,4,1,4,1,2,2,3,1,2,1,2,3,1,3,3,1,4,3,3,2,2,3,4,1,3,2,2,1,1,4,2,4,1,4,2,null,{"$f":"COUNTIF($B:$B,$AU$4)","v":5},{"$f":"COUNTIF($B:$B,$AV$4)","v":6},{"$f":"COUNTIF($B:$B,$AW$4)","v":3},{"$f":"COUNTIF($B:$B,$AX$4)","v":1},{"$f":"SUM(AU6:AX6)","v":15},"P3",{"$f":"(AU6*100)/AY6","v":33.333333333333336},{"$f":"(AV6*100)/AY6","v":40},{"$f":"(AW6*100)/AY6","v":20},{"$f":"(AX6*100)/AY6","v":6.666666666666667}]
[1,2,2,1,3,1,1,4,2,3,4,3,4,3,1,2,3,1,4,4,4,2,4,1,4,1,2,3,3,3,3,1,3,3,4,8,2,3,1,1,3,2,4,4,4,null,{"$f":"COUNTIF($C:C,$AU$4)","v":0},{"$f":"COUNTIF($C:$C,$AV$4)","v":13},{"$f":"COUNTIF($C:$C,$AW$4)","v":2},{"$f":"COUNTIF($C:$C,$AX$4)","v":1},16,"P4",0,81.25,12.5,6.25]
[2,2,2,1,3,1,4,2,1,2,4,4,2,1,2,2,3,1,2,2,2,4,3,3,1,1,3,3,2,4,3,4,3,2,2,3,1,4,1,3,3,3,4,2,3,null,{"$f":"COUNTIF($D:$D,$AU$4)","v":13},{"$f":"COUNTIF($D:$D,$AV$4)","v":1},{"$f":"COUNTIF($D:$D,$AW$4)","v":1},{"$f":"COUNTIF($D:$D,$AX$4)","v":1},16,"P5",81.25,6.25,6.25,6.25]
[2,8,2,2,3,1,1,2,1,3,1,3,2,3,2,3,3,2,4,4,1,3,1,4,1,3,2,2,3,1,3,3,1,3,1,2,1,3,1,2,1,3,1,4,1,null,{"$f":"COUNTIF($E:$E,$AU$4)","v":7},{"$f":"COUNTIF($E:$E,$AV$4)","v":2},{"$f":"COUNTIF($E:$E,$AW$4)","v":7},{"$f":"COUNTIF($E:$E,$AX$4)","v":0},16,"P6",43.75,12.5,43.75,0]
[3,1,2,1,3,3,4,4,3,3,2,3,4,3,1,1,3,1,3,4,1,4,2,1,1,2,3,1,3,3,2,2,3,2,3,3,2,3,4,4,3,4,1,3,4,null,{"$f":"COUNTIF($F:$F,$AU$4)","v":8},{"$f":"COUNTIF($F:$F,$AV$4)","v":0},{"$f":"COUNTIF($F:$F,$AW$4)","v":7},{"$f":"COUNTIF($F:$F,$AX$4)","v":1},16,"P7",50,0,43.75,6.25]
[3,1,4,1,2,3,1,4,1,3,4,1,3,3,2,4,3,2,4,4,1,3,1,4,4,1,3,3,1,4,4,1,3,1,4,1,2,1,3,3,1,3,1,4,2,null,{"$f":"COUNTIF($G:$G,$AU$4)","v":7},{"$f":"COUNTIF($G:$G,$AV$4)","v":2},{"$f":"COUNTIF($G:$G,$AW$4)","v":1},{"$f":"COUNTIF($G:$G,$AX$4)","v":6},16,"P8",43.75,12.5,6.25,37.5]
[3,3,2,1,1,3,2,4,4,2,2,3,4,3,2,3,3,1,2,3,4,2,1,4,1,3,1,3,2,3,2,2,1,3,3,1,1,1,2,3,3,1,3,4,2,null,{"$f":"COUNTIF($H:$H,$AU$4)","v":2},{"$f":"COUNTIF($H:$H,$AV$4)","v":2},{"$f":"COUNTIF($H:$H,$AW$4)","v":0},{"$f":"COUNTIF($H:$H,$AX$4)","v":12},16,"P9",12.5,12.5,0,75]
[3,4,2,1,3,3,1,4,1,2,3,2,3,1,2,2,2,4,2,4,2,2,1,2,1,3,2,4,3,4,3,1,4,2,3,1,4,1,4,2,3,3,2,3,4,null,{"$f":"COUNTIF($I:$I,$AU$4)","v":6},{"$f":"COUNTIF($I:$I,$AV$4)","v":2},{"$f":"COUNTIF($I:$I,$AW$4)","v":7},{"$f":"COUNTIF($I:$I,$AX$4)","v":1},16,"P10",37.5,12.5,43.75,{"$f":"(AX13*100)/AY13","v":6.25}]
[4,1,2,1,3,3,1,1,3,3,4,3,4,1,2,3,3,1,4,4,2,4,1,1,4,2,3,1,3,3,3,4,1,2,1,3,3,1,2,3,2,3,1,1,3,null,{"$f":"COUNTIF($J:$J,$AU$4)","v":1},{"$f":"COUNTIF($J:$J,$AV$4)","v":7},{"$f":"COUNTIF($J:$J,$AW$4)","v":8},{"$f":"COUNTIF($J:$J,$AX$4)","v":0},16,"P11",6.25,43.75,50,0]
[4,2,2,1,1,1,4,4,3,2,4,3,4,1,2,2,3,1,2,2,3,4,1,3,8,3,4,1,3,4,3,2,3,1,3,4,3,1,1,1,1,1,1,2,4,null,{"$f":"COUNTIF($K:$K,$AU$4)","v":2},{"$f":"COUNTIF($K:$K,$AV$4)","v":3},{"$f":"COUNTIF($K:$K,$AW$4)","v":2},{"$f":"COUNTIF($K:$K,$AX$4)","v":9},16,"P12",12.5,18.75,12.5,56.25]
[4,2,2,1,1,3,2,1,3,3,1,3,4,1,2,2,2,1,2,4,4,3,1,3,4,1,3,3,3,4,3,4,4,2,4,3,4,4,2,1,2,3,2,3,4,null,{"$f":"COUNTIF($L:$L,$AU$4)","v":3},{"$f":"COUNTIF($L:$L,$AV$4)","v":1},{"$f":"COUNTIF($L:$L,$AW$4)","v":11},{"$f":"COUNTIF($L:$L,$AX$4)","v":1},16,"P13",18.75,6.25,68.75,6.25]
[4,2,2,1,2,1,4,4,1,3,2,3,4,1,4,4,4,1,3,4,3,1,2,1,1,2,3,3,2,4,2,2,3,2,3,3,2,4,4,3,3,1,1,3,4,null,{"$f":"COUNTIF($M:$M,$AU$4)","v":0},{"$f":"COUNTIF($M:$M,$AV$4)","v":3},{"$f":"COUNTIF($M:$M,$AW$4)","v":3},{"$f":"COUNTIF($M:$M,$AX$4)","v":10},16,"P14",0,18.75,18.75,62.5]
[4,2,2,3,1,1,4,4,1,3,4,3,3,1,3,2,3,1,1,4,4,2,3,2,4,4,1,1,3,3,3,4,2,2,4,2,2,2,1,1,4,1,4,1,2,null,{"$f":"COUNTIF($N:$N,$AU$4)","v":11},{"$f":"COUNTIF($N:$N,$AV$4)","v":0},{"$f":"COUNTIF($N:$N,$AW$4)","v":5},{"$f":"COUNTIF($N:$N,$AX$4)","v":0},16,"P15",68.75,0,31.25,0]
[4,3,2,1,1,4,1,4,3,2,4,3,4,1,1,2,2,1,1,2,3,3,2,2,1,3,2,1,3,3,2,1,3,2,3,1,3,4,2,4,3,2,4,3,2,null,{"$f":"COUNTIF($O:$O,$AU$4)","v":4},{"$f":"COUNTIF($O:$O,$AV$4)","v":9},{"$f":"COUNTIF($O:$O,$AW$4)","v":2},{"$f":"COUNTIF($O:$O,$AX$4)","v":1},16,"P16",25,56.25,12.5,6.25]
[4,3,3,1,1,1,4,4,2,1,3,1,2,1,3,1,2,4,1,3,4,1,1,4,3,2,4,4,3,1,4,1,3,4,1,1,2,3,1,8,1,3,3,4,1,null,{"$f":"COUNTIF($P:$P,$AU$4)","v":3},{"$f":"COUNTIF($P:$P,$AV$4)","v":8},{"$f":"COUNTIF($P:$P,$AW$4)","v":3},{"$f":"COUNTIF($P:$P,$AX$4)","v":2},16,"P17",18.75,50,18.75,12.5]
[8,8,8,8,8,8,8,8,8,8,8,8,8,8,8,8,8,8,8,8,8,8,8,8,8,8,8,8,8,8,8,8,8,8,8,8,8,8,8,8,8,8,8,8,8,null,{"$f":"COUNTIF($Q:$Q,$AU$4)","v":0},{"$f":"COUNTIF($Q:$Q,$AV$4)","v":4},{"$f":"COUNTIF($Q:$Q,$AW$4)","v":11},{"$f":"COUNTIF($Q:$Q,$AX$4)","v":1},16,"P18",0,25,68.75,6.25]
[null,null,null,null,null,null,null,null,null,null,null,null,null,null,null,null,null,null,null,null,null,null,null,null,null,null,null,null,null,null,null,null,null,null,null,null,null,null,null,null,null,null,null,null,null,null,{"$f":"COUNTIF($R:$R,$AU$4)","v":12},{"$f":"COUNTIF($R:$R,$AV$4)","v":2},{"$f":"COUNTIF($R:$R,$AW$4)","v":0},{"$f":"COUNTIF($R:$R,$AX$4)","v":2},16,"P19",75,12.5,0,12.5]
[null,null,null,null,null,null,null,null,null,null,null,null,null,null,null,null,null,null,null,null,null,null,null,null,null,null,null,null,null,null,null,null,null,null,null,null,null,null,null,null,null,null,null,null,null,null,{"$f":"COUNTIF($S:$S,$AU$4)","v":3},{"$f":"COUNTIF($S:$S,$AV$4)","v":7},{"$f":"COUNTIF($S:$S,$AW$4)","v":2},{"$f":"COUNTIF($S:$S,$AX$4)","v":4},16,"P20",18.75,43.75,12.5,25]
[null,null,null,null,null,null,null,null,null,null,null,null,null,null,null,null,null,null,null,null,null,null,null,null,null,null,null,null,null,null,null,null,null,null,null,null,null,null,null,null,null,null,null,null,null,null,{"$f":"COUNTIF($T:$T,$AU$4)","v":1},{"$f":"COUNTIF($T:$T,$AV$4)","v":3},{"$f":"COUNTIF($T:$T,$AW$4)","v":2},{"$f":"COUNTIF($T:$T,$AX$4)","v":10},16,"P22",6.25,18.75,12.5,62.5]
[null,null,null,null,null,null,null,null,null,null,null,null,null,null,null,null,null,null,null,null,null,null,null,null,null,null,null,null,null,null,null,null,null,null,null,null,null,null,null,null,null,null,null,null,null,null,{"$f":"COUNTIF($U:$U,$AU$4)","v":3},{"$f":"COUNTIF($U:$U,$AV$4)","v":5},{"$f":"COUNTIF($U:$U,$AW$4)","v":3},{"$f":"COUNTIF($U:$U,$AX$4)","v":5},16,"P23",18.75,31.25,18.75,31.25]
[null,null,null,null,null,null,null,null,null,null,null,null,null,null,null,null,null,null,null,null,null,null,null,null,null,null,null,null,null,null,null,null,null,null,null,null,null,null,null,null,null,null,null,null,null,null,{"$f":"COUNTIF($V:$V,$AU$4)","v":3},{"$f":"COUNTIF($V:$V,$AV$4)","v":4},{"$f":"COUNTIF($V:$V,$AW$4)","v":5},{"$f":"COUNTIF($V:$V,$AX$4)","v":4},16,"P24",18.75,25,31.25,25]
[null,null,null,null,null,null,null,null,null,null,null,null,null,null,null,null,null,null,null,null,null,null,null,null,null,null,null,null,null,null,null,null,null,null,null,null,null,null,null,null,null,null,null,null,null,null,{"$f":"COUNTIF($W:$W,$AU$4)","v":10},{"$f":"COUNTIF($W:$W,$AV$4)","v":3},{"$f":"COUNTIF($W:$W,$AW$4)","v":2},{"$f":"COUNTIF($W:$W,$AX$4)","v":1},16,"P25",62.5,18.75,12.5,6.25]
[null,null,null,null,null,null,null,null,null,null,null,null,null,null,null,null,null,null,null,null,null,null,null,null,null,null,null,null,null,null,null,null,null,null,null,null,null,null,null,null,null,null,null,null,null,null,{"$f":"COUNTIF($X:$X,$AU$4)","v":4},{"$f":"COUNTIF($X:$X,$AV$4)","v":4},{"$f":"COUNTIF($X:$X,$AW$4)","v":4},{"$f":"COUNTIF($X:$X,$AX$4)","v":4},16,"P26",25,25,25,25]
[null,null,null,null,null,null,null,null,null,null,null,null,null,null,null,null,null,null,null,null,null,null,null,null,null,null,null,null,null,null,null,null,null,null,null,null,null,null,null,null,null,null,null,null,null,null,{"$f":"COUNTIF($Y:$Y,$AU$4)","v":7},{"$f":"COUNTIF($Y:$Y,$AV$4)","v":0},{"$f":"COUNTIF($Y:$Y,$AW$4)","v":3},{"$f":"COUNTIF($Y:$Y,$AX$4)","v":5},15,"P27",46.666666666666664,0,20,33.333333333333336]
[null,null,null,null,null,null,null,null,null,null,null,null,null,null,null,null,null,null,null,null,null,null,null,null,null,null,null,null,null,null,null,null,null,null,null,null,null,null,null,null,null,null,null,null,null,null,{"$f":"COUNTIF($Z:$Z,$AU$4)","v":6},{"$f":"COUNTIF($Z:$Z,$AV$4)","v":4},{"$f":"COUNTIF($Z:$Z,$AW$4)","v":5},{"$f":"COUNTIF($Z:$Z,$AX$4)","v":1},16,"P28",37.5,25,31.25,6.25]
[null,null,null,null,null,null,null,null,null,null,null,null,null,null,null,null,null,null,null,null,null,null,null,null,null,null,null,null,null,null,null,null,null,null,null,null,null,null,null,null,null,null,null,null,null,null,{"$f":"COUNTIF($AA:$AA,$AU$4)","v":2},{"$f":"COUNTIF($AA:$AA,$AV$4)","v":4},{"$f":"COUNTIF($AA:$AA,$AW$4)","v":6},{"$f":"COUNTIF($AA:$AA,$AX$4)","v":4},16,"P29",12.5,25,37.5,25]
[null,null,null,null,null,null,null,null,null,null,null,null,null,null,null,null,null,null,null,null,null,null,null,null,null,null,null,null,null,null,null,null,null,null,null,null,null,null,null,null,null,null,null,null,null,null,{"$f":"COUNTIF($AB:$AB,$AU$4)","v":6},{"$f":"COUNTIF($AB:$AB,$AV$4)","v":1},{"$f":"COUNTIF($AB:$AB,$AW$4)","v":7},{"$f":"COUNTIF($AB:$AB,$AX$4)","v":2},16,"P31",37.5,6.25,43.75,12.5]
[null,null,null,null,null,null,null,null,null,null,null,null,null,null,null,null,null,null,null,null,null,null,null,null,null,null,null,null,null,null,null,null,null,null,null,null,null,null,null,null,null,null,null,null,null,null,{"$f":"COUNTIF($AC:$AC,$AU$4)","v":1},{"$f":"COUNTIF($AC:$AC,$AV$4)","v":3},{"$f":"COUNTIF($AC:$AC,$AW$4)","v":12},{"$f":"COUNTIF($AC:$AC,$AX$4)","v":0},16,"P33",6.25,18.75,75,0]
[null,null,null,null,null,null,null,null,null,null,null,null,null,null,null,null,null,null,null,null,null,null,null,null,null,null,null,null,null,null,null,null,null,null,null,null,null,null,null,null,null,null,null,null,null,null,{"$f":"COUNTIF($D:$D,$AU$4)","v":13},{"$f":"COUNTIF($D:$D,$AV$4)","v":1},{"$f":"COUNTIF($D:$D,$AW$4)","v":1},{"$f":"COUNTIF($D:$D,$AX$4)","v":1},16,"P34",81.25,6.25,6.25,6.25]
[null,null,null,null,null,null,null,null,null,null,null,null,null,null,null,null,null,null,null,null,null,null,null,null,null,null,null,null,null,null,null,null,null,null,null,null,null,null,null,null,null,null,null,null,null,null,{"$f":"COUNTIF($AE:$AE,$AU$4)","v":0},{"$f":"COUNTIF($AE:$AE,$AV$4)","v":6},{"$f":"COUNTIF($AE:$AE,$AW$4)","v":8},{"$f":"COUNTIF($AE:$AE,$AX$4)","v":2},16,"P35",0,37.5,50,12.5]
[null,null,null,null,null,null,null,null,null,null,null,null,null,null,null,null,null,null,null,null,null,null,null,null,null,null,null,null,null,null,null,null,null,null,null,null,null,null,null,null,null,null,null,null,null,null,{"$f":"COUNTIF($AF:$AF,$AU$4)","v":5},{"$f":"COUNTIF($AF:$AF,$AV$4)","v":4},{"$f":"COUNTIF($AF:$AF,$AW$4)","v":3},{"$f":"COUNTIF($AF:$AF,$AX$4)","v":4},16,"P36",31.25,25,18.75,25]
[null,null,null,null,null,null,null,null,null,null,null,null,null,null,null,null,null,null,null,null,null,null,null,null,null,null,null,null,null,null,null,null,null,null,null,null,null,null,null,null,null,null,null,null,null,null,{"$f":"COUNTIF($AG:$AG,$AU$4)","v":4},{"$f":"COUNTIF($AG:$AG,$AV$4)","v":1},{"$f":"COUNTIF($AG:$AG,$AW$4)","v":8},{"$f":"COUNTIF($AG:$AG,$AX$4)","v":3},16,"P37",25,6.25,50,18.75]
[null,null,null,null,null,null,null,null,null,null,null,null,null,null,null,null,null,null,null,null,null,null,null,null,null,null,null,null,null,null,null,null,null,null,null,null,null,null,null,null,null,null,null,null,null,null,{"$f":"COUNTIF($AH:$AH,$AU$4)","v":3},{"$f":"COUNTIF($AH:$AH,$AV$4)","v":9},{"$f":"COUNTIF($AH:$AH,$AW$4)","v":3},{"$f":"COUNTIF($AH:$AH,$AX$4)","v":1},16,"P38",18.75,56.25,18.75,6.25]
[null,null,null,null,null,null,null,null,null,null,null,null,null,null,null,null,null,null,null,null,null,null,null,null,null,null,null,null,null,null,null,null,null,null,null,null,null,null,null,null,null,null,null,null,null,null,{"$f":"COUNTIF($AI:$AI,$AU$4)","v":4},{"$f":"COUNTIF($AI:$AI,$AV$4)","v":1},{"$f":"COUNTIF($AI:$AI,$AW$4)","v":7},{"$f":"COUNTIF($AI:$AI,$AX$4)","v":4},16,"P39",25,6.25,43.75,25]
[null,null,null,null,null,null,null,null,null,null,null,null,null,null,null,null,null,null,null,null,null,null,null,null,null,null,null,null,null,null,null,null,null,null,null,null,null,null,null,null,null,null,null,null,null,null,{"$f":"COUNTIF($AJ:$AJ,$AU$4)","v":5},{"$f":"COUNTIF($AJ:$AJ,$AV$4)","v":3},{"$f":"COUNTIF($AJ:$AJ,$AW$4)","v":6},{"$f":"COUNTIF($AJ:$AJ,$AX$4)","v":1},15,"P40",33.333333333333336,20,40,6.666666666666667]
[null,null,null,null,null,null,null,null,null,null,null,null,null,null,null,null,null,null,null,null,null,null,null,null,null,null,null,null,null,null,null,null,null,null,null,null,null,null,null,null,null,null,null,null,null,null,{"$f":"COUNTIF($AK:$AK,$AU$4)","v":4},{"$f":"COUNTIF($AK:$AK,$AV$4)","v":7},{"$f":"COUNTIF($AK:$AK,$AW$4)","v":3},{"$f":"COUNTIF($AK:$AK,$AX$4)","v":2},16,"P41",25,43.75,18.75,12.5]
[null,null,null,null,null,null,null,null,null,null,null,null,null,null,null,null,null,null,null,null,null,null,null,null,null,null,null,null,null,null,null,null,null,null,null,null,null,null,null,null,null,null,null,null,null,null,{"$f":"COUNTIF($AL:$AL,$AU$4)","v":7},{"$f":"COUNTIF($AL:$AL,$AV$4)","v":1},{"$f":"COUNTIF($AL:$AL,$AW$4)","v":4},{"$f":"COUNTIF($AL:$AL,$AX$4)","v":4},16,"P42",43.75,6.25,25,25]
[null,null,null,null,null,null,null,null,null,null,null,null,null,null,null,null,null,null,null,null,null,null,null,null,null,null,null,null,null,null,null,null,null,null,null,null,null,null,null,null,null,null,null,null,null,null,{"$f":"COUNTIF($AM:$AM,$AU$4)","v":7},{"$f":"COUNTIF($AM:$AM,$AV$4)","v":4},{"$f":"COUNTIF($AM:$AM,$AW$4)","v":2},{"$f":"COUNTIF($AM:$AM,$AX$4)","v":3},16,"P43",43.75,25,12.5,18.75]
[null,null,null,null,null,null,null,null,null,null,null,null,null,null,null,null,null,null,null,null,null,null,null,null,null,null,null,null,null,null,null,null,null,null,null,null,null,null,null,null,null,null,null,null,null,null,{"$f":"COUNTIF($AN:$AN,$AU$4)","v":4},{"$f":"COUNTIF($AN:$AN,$AV$4)","v":3},{"$f":"COUNTIF($AN:$AN,$AW$4)","v":5},{"$f":"COUNTIF($AN:$AN,$AX$4)","v":3},15,"P44",26.666666666666668,20,33.333333333333336,20]
[null,null,null,null,null,null,null,null,null,null,null,null,null,null,null,null,null,null,null,null,null,null,null,null,null,null,null,null,null,null,null,null,null,null,null,null,null,null,null,null,null,null,null,null,null,null,{"$f":"COUNTIF($AO:$AO,$AU$4)","v":4},{"$f":"COUNTIF($AO:$AO,$AV$4)","v":4},{"$f":"COUNTIF($AO:$AO,$AW$4)","v":7},{"$f":"COUNTIF($AO:$AO,$AX$4)","v":1},16,"P45",25,25,43.75,6.25]
[null,null,null,null,null,null,null,null,null,null,null,null,null,null,null,null,null,null,null,null,null,null,null,null,null,null,null,null,null,null,null,null,null,null,null,null,null,null,null,null,null,null,null,null,null,null,{"$f":"COUNTIF($AP:$AP,$AU$4)","v":4},{"$f":"COUNTIF($AP:$AP,$AV$4)","v":2},{"$f":"COUNTIF($AP:$AP,$AW$4)","v":8},{"$f":"COUNTIF($AP:$AP,$AX$4)","v":2},16,"P46",25,12.5,50,12.5]
[null,null,null,null,null,null,null,null,null,null,null,null,null,null,null,null,null,null,null,null,null,null,null,null,null,null,null,null,null,null,null,null,null,null,null,null,null,null,null,null,null,null,null,null,null,null,{"$f":"COUNTIF($AQ:$AQ,$AU$4)","v":8},{"$f":"COUNTIF($AQ:$AQ,$AV$4)","v":2},{"$f":"COUNTIF($AQ:$AQ,$AW$4)","v":2},{"$f":"COUNTIF($AQ:$AQ,$AX$4)","v":4},16,"P47",50,12.5,12.5,25]
[null,null,null,null,null,null,null,null,null,null,null,null,null,null,null,null,null,null,null,null,null,null,null,null,null,null,null,null,null,null,null,null,null,null,null,null,null,null,null,null,null,null,null,null,null,null,{"$f":"COUNTIF($AR:$AR,$AU$4)","v":2},{"$f":"COUNTIF($AR:$AR,$AV$4)","v":2},{"$f":"COUNTIF($AR:$AR,$AW$4)","v":5},{"$f":"COUNTIF($AR:$AR,$AX$4)","v":7},16,"P49",12.5,12.5,31.25,43.75]
[null,null,null,null,null,null,null,null,null,null,null,null,null,null,null,null,null,null,null,null,null,null,null,null,null,null,null,null,null,null,null,null,null,null,null,null,null,null,null,null,null,null,null,null,null,null,{"$f":"COUNTIF($AS:$AS,$AU$4)","v":3},{"$f":"COUNTIF($AS:$AS,$AV$4)","v":5},{"$f":"COUNTIF($AS:$AS,$AW$4)","v":2},{"$f":"COUNTIF($AS:$AS,$AX$4)","v":6},16,"P50",18.75,31.25,12.5,37.5]
[]
[]
[]
[]
[]
[]
[]
[]
[]
[]
[]
[]
[]
[]
[]
[]
[]
[]
[]
[]
[]
[]
[]
[]
[]
[]
[]
[]
[]
[null,null,null,null,null,null,null,null,null,null,null,null,null,null,null,null,null,null,null,null,null,null,null,null,null,null,null,null,null,null,null,null,null,null,null,null,null,null,null,null,null,null,null,null,null,null,null,null,"F"]

{"sheet":"INDICE_REACT_LyC","index":24,"n_rows":6,"n_cols":11,"rows_kept":6,"cut":false,"hidden":true,"merged":[[4,0,16,0],[4,2,16,2],[4,4,16,4],[4,6,16,6],[4,8,16,8]]}
["UNIDADES DE DIAGNÓSTICO",null,null,null,null,null,null,"E",null,null,"E"]
[null,"LENGUAJE Y COMUNICACIÓN"]
[]
[null,"COMPRENSIÓN LECTORA",null,"COMPRENSIÓN LECTORA",null,"COMPRENSIÓN LECTORA",null,"REFLEXIÓN SOBRE LA LENGUA",null,"REFLEXIÓN SOBRE LA LENGUA"]
[1,"EXTRACCIÓN DE LA INFORMACIÓN Y COMPRENSIÓN",2," DESARROLLO DE UNA INTERPRETACIÓN",3," ANÁLISIS DE LA ESTRUCTURA TEXTUAL",4,"CONVENCIONALIDADES LINGÜÍSTICAS",5,"REFLEXIÓN SOBRE EL SISTEMA DE LA LENGUA"]
[null,"REACTIVOS",null,"REACTIVOS",null,"REACTIVOS",null,"REACTIVOS",null,"REACTIVOS"]

{"sheet":"P1_3","index":25,"n_rows":1,"n_cols":15,"rows_kept":1,"cut":false,"hidden":true,"merged":[]}
[null,null,null,null,null,null,null,null,null,null,null,null,null,null,"E"]

{"sheet":"P4_5_6","index":26,"n_rows":1,"n_cols":17,"rows_kept":1,"cut":false,"hidden":true,"merged":[]}
[null,null,null,null,null,null,null,null,null,null,null,null,null,null,null,null,"E"]

{"sheet":"P7_8_9_10","index":27,"n_rows":1,"n_cols":17,"rows_kept":1,"cut":false,"hidden":true,"merged":[]}
[null,null,null,null,null,null,null,null,null,null,null,null,null,null,null,null,"E"]

{"sheet":"P11_12_13","index":28,"n_rows":1,"n_cols":16,"rows_kept":1,"cut":false,"hidden":true,"merged":[]}
[null,null,null,null,null,null,null,null,null,null,null,null,null,null,null,"E"]

{"sheet":"P14_15","index":29,"n_rows":1,"n_cols":18,"rows_kept":1,"cut":false,"hidden":true,"merged":[]}
[null,null,null,null,null,null,null,null,null,null,null,null,null,null,null,null,null,"E"]

{"sheet":"P16_17_18_19","index":30,"n_rows":1,"n_cols":16,"rows_kept":1,"cut":false,"hidden":true,"merged":[]}
[null,null,null,null,null,null,null,null,null,null,null,null,null,null,null,"E"]

{"sheet":"P20_21","index":31,"n_rows":1,"n_cols":17,"rows_kept":1,"cut":false,"hidden":true,"merged":[]}
[null,null,null,null,null,null,null,null,null,null,null,null,null,null,null,null,"E"]

{"sheet":"P22","index":32,"n_rows":1,"n_cols":17,"rows_kept":1,"cut":false,"hidden":true,"merged":[]}
[null,null,null,null,null,null,null,null,null,null,null,null,null,null,null,null,"E"]

{"sheet":"P23_24_25","index":33,"n_rows":1,"n_cols":17,"rows_kept":1,"cut":false,"hidden":true,"merged":[]}
[null,null,null,null,null,null,null,null,null,null,null,null,null,null,null,null,"E"]

{"sheet":"P_26_27_28","index":34,"n_rows":1,"n_cols":17,"rows_kept":1,"cut":false,"hidden":true,"merged":[]}
[null,null,null,null,null,null,null,null,null,null,null,null,null,null,null,null,"E"]

{"sheet":"P_29","index":35,"n_rows":1,"n_cols":17,"rows_kept":1,"cut":false,"hidden":true,"merged":[]}
[null,null,null,null,null,null,null,null,null,null,null,null,null,null,null,null,"E"]

{"sheet":"P31_33_34_35","index":36,"n_rows":1,"n_cols":17,"rows_kept":1,"cut":false,"hidden":true,"merged":[]}
[null,null,null,null,null,null,null,null,null,null,null,null,null,null,null,null,"E"]

{"sheet":"P_36_37_38","index":37,"n_rows":1,"n_cols":17,"rows_kept":1,"cut":false,"hidden":true,"merged":[]}
[null,null,null,null,null,null,null,null,null,null,null,null,null,null,null,null,"E"]

{"sheet":"P39_40_41_42","index":38,"n_rows":1,"n_cols":17,"rows_kept":1,"cut":false,"hidden":true,"merged":[]}
[null,null,null,null,null,null,null,null,null,null,null,null,null,null,null,null,"E"]

{"sheet":"P43_44_45_46_47","index":39,"n_rows":1,"n_cols":17,"rows_kept":1,"cut":false,"hidden":true,"merged":[]}
[null,null,null,null,null,null,null,null,null,null,null,null,null,null,null,null,"E"]

{"sheet":"P_49_50","index":40,"n_rows":1,"n_cols":18,"rows_kept":1,"cut":false,"hidden":true,"merged":[]}
[null,null,null,null,null,null,null,null,null,null,null,null,null,null,null,null,null,"E"]

{"sheet":"REAC_MAT","index":41,"n_rows":54,"n_cols":66,"rows_kept":54,"cut":false,"hidden":true,"merged":[[1,56,2,60],[1,50,2,55],[53,56,55,59]]}
[null,null,null,null,null,null,null,null,null,null,null,null,null,null,null,null,null,null,null,null,null,null,null,null,null,null,null,null,null,null,null,null,null,null,null,null,null,null,null,null,null,null,null,null,null,null,null,null,"NOMBRE_CT","CCT"]
[null,null,null,null,null,null,null,null,null,null,null,null,null,null,null,null,null,null,null,null,null,null,null,null,null,null,null,null,null,null,null,null,null,null,null,null,null,null,null,null,null,null,null,null,null,null,null,null,"MANUELA MEDINA 2225",null,"CANTIDAD DE ESTUDIANTES QUE SE DECIDIERON POR CADA UNA DE LAS RESPUESTAS",null,null,null,null,null,"PORCENTAJE DE RESPUESTAS PARA CADA OPCIÓN DEL REACTIVO",null,null,null,null,"F",null,null,null,"E"]
["MAT_R_1","MAT_R_3","MAT_R_4","MAT_R_5","MAT_R_6","MAT_R_7","MAT_R_8","MAT_R_9","MAT_R_10","MAT_R_11","MAT_R_12","MAT_R_13","MAT_R_14","MAT_R_15","MAT_R_16","MAT_R_17","MAT_R_18","MAT_R_19","MAT_R_20","MAT_R_21","MAT_R_22","MAT_R_23","MAT_R_24","MAT_R_25","MAT_R_27","MAT_R_28","MAT_R_29","MAT_R_30","MAT_R_31","MAT_R_32","MAT_R_33","MAT_R_34","MAT_R_35","MAT_R_36","MAT_R_37","MAT_R_38","MAT_R_39","MAT_R_40","MAT_R_41","MAT_R_42","MAT_R_43","MAT_R_44","MAT_R_45","MAT_R_46","MAT_R_47","MAT_R_48","MAT_R_49","MAT_R_50","08EPR0147H"]
[1,1,2,1,1,3,1,2,3,4,1,2,2,3,2,2,1,1,2,3,4,2,1,2,1,2,4,2,3,1,3,4,2,1,1,1,2,2,4,1,1,3,3,3,3,1,1,3,null,null,1,2,3,4,"Total","SELECCIONE AQUÍ EL REACTIVO DESEADO","A","B","C","D","TOTAL"]
[1,1,3,3,4,3,1,2,1,3,2,2,1,3,1,3,1,2,2,4,3,1,4,2,1,4,1,4,3,1,1,2,1,2,3,1,3,1,3,1,2,3,4,1,3,1,1,3,null,null,{"$f":"COUNTIF($A:$A,$AY$4)","v":9},{"$f":"COUNTIF($A:$A,$AZ$4)","v":1},{"$f":"COUNTIF($A:$A,$BA$4)","v":1},{"$f":"COUNTIF($A:$A,$BB$4)","v":5},{"$f":"SUM(AY5:BB5)","v":16},"p1",{"$f":"(AY5*100)/BC5","v":56.25},{"$f":"(AZ5*100)/BC5","v":6.25},{"$f":"(BA5*100)/BC5","v":6.25},{"$f":"(BB5*100)/BC5","v":31.25},{"$f":"SUM(BE5:BH5)","v":100}]
[1,1,4,1,4,3,4,2,1,3,2,1,4,1,1,3,1,2,1,4,3,1,1,2,1,1,2,2,3,2,3,4,3,1,1,2,1,3,3,1,3,1,1,2,1,4,2,2,null,null,{"$f":"COUNTIF($B:$B,$AY$4)","v":3},{"$f":"COUNTIF($B:$B,$AZ$4)","v":2},{"$f":"COUNTIF($B:$B,$BA$4)","v":9},{"$f":"COUNTIF($B:$B,$BB$4)","v":2},{"$f":"SUM(AY6:BB6)","v":16},"P3",{"$f":"(AY6*100)/BC6","v":18.75},{"$f":"(AZ6*100)/BC6","v":12.5},{"$f":"(BA6*100)/BC6","v":56.25},{"$f":"(BB6*100)/BC6","v":12.5},{"$f":"SUM(BE6:BH6)","v":100}]
[1,2,3,1,4,3,2,2,2,3,2,2,4,1,4,1,2,2,2,3,1,3,1,2,3,1,2,3,2,3,4,4,3,1,1,3,4,1,4,4,4,4,1,3,2,2,1,4,null,null,{"$f":"COUNTIF($C:$C,$AY$4)","v":4},{"$f":"COUNTIF($C:$C,$AZ$4)","v":4},{"$f":"COUNTIF($C:$C,$BA$4)","v":4},{"$f":"COUNTIF($C:$C,$BB$4)","v":4},16,"P4",25,25,25,25,100]
[1,3,2,1,1,3,2,2,4,4,3,1,2,2,1,3,4,2,3,4,3,4,2,1,2,2,1,4,2,1,1,1,3,2,1,1,3,2,3,1,4,2,4,2,2,1,4,3,null,null,{"$f":"COUNTIF($D:$D,$AY$4)","v":14},{"$f":"COUNTIF($D:$D,$AZ$4)","v":1},{"$f":"COUNTIF($D:$D,$BA$4)","v":1},{"$f":"COUNTIF($D:$D,$BB$4)","v":0},16,"P5",87.5,6.25,6.25,0,100]
[1,3,2,1,1,3,4,2,3,4,3,1,4,1,1,3,4,2,3,4,3,1,1,2,2,2,1,4,1,3,3,4,2,1,1,4,4,1,4,3,4,1,2,3,2,4,1,4,null,null,{"$f":"COUNTIF($E:$E,$AY$4)","v":5},{"$f":"COUNTIF($E:$E,$AZ$4)","v":1},{"$f":"COUNTIF($E:$E,$BA$4)","v":4},{"$f":"COUNTIF($E:$E,$BB$4)","v":6},16,"P6",31.25,6.25,25,37.5,100]
[1,3,4,1,1,4,1,4,2,4,3,1,2,1,1,3,1,1,2,3,4,1,2,4,1,2,2,1,1,1,2,1,2,1,1,1,3,2,1,3,1,3,1,1,2,1,4,2,null,null,{"$f":"COUNTIF($F:$F,$AY$4)","v":2},{"$f":"COUNTIF($F:$F,$AZ$4)","v":0},{"$f":"COUNTIF($F:$F,$BA$4)","v":8},{"$f":"COUNTIF($F:$F,$BB$4)","v":6},16,"P7",12.5,0,50,37.5,100]
[1,4,1,1,3,4,4,2,4,3,2,2,4,1,2,3,1,2,3,4,2,1,1,2,1,4,2,4,1,2,4,4,1,2,4,2,4,4,1,2,2,4,1,1,4,2,3,3,null,null,{"$f":"COUNTIF($G:$G,$AY$4)","v":3},{"$f":"COUNTIF($G:$G,$AZ$4)","v":7},{"$f":"COUNTIF($G:$G,$BA$4)","v":0},{"$f":"COUNTIF($G:$G,$BB$4)","v":6},16,"P8",18.75,43.75,0,37.5,100]
[1,4,3,1,2,4,2,4,3,4,1,2,1,2,2,2,3,2,3,2,2,4,2,4,1,2,4,3,4,1,1,4,1,2,1,4,1,3,3,4,4,3,1,3,3,1,1,4,null,null,{"$f":"COUNTIF($H:$H,$AY$4)","v":0},{"$f":"COUNTIF($H:$H,$AZ$4)","v":13},{"$f":"COUNTIF($H:$H,$BA$4)","v":0},{"$f":"COUNTIF($H:$H,BB$4)","v":3},16,"P9",0,81.25,0,18.75,100]
[2,3,1,2,3,3,2,2,1,2,2,2,1,1,4,3,2,2,3,3,1,3,8,4,2,1,4,2,4,3,2,1,1,4,1,2,3,1,2,2,1,3,1,4,1,3,2,3,null,null,{"$f":"COUNTIF($I:$I,$AY$4)","v":3},{"$f":"COUNTIF($I:$I,$AZ$4)","v":3},{"$f":"COUNTIF($I:$I,$BA$4)","v":8},{"$f":"COUNTIF($I:$I,$BB$4)","v":2},16,"P10",18.75,18.75,50,12.5,100]
[3,3,2,1,3,1,4,2,3,3,2,4,2,3,2,1,1,3,1,4,3,3,1,2,3,1,3,4,1,4,1,4,2,4,2,3,3,4,1,4,1,3,2,3,3,4,2,2,null,null,{"$f":"COUNTIF($J:$J,$AY$4)","v":0},{"$f":"COUNTIF($J:$J,$AZ$4)","v":2},{"$f":"COUNTIF($J:$J,$BA$4)","v":8},{"$f":"COUNTIF($J:$J,$BB$4)","v":6},16,"P11",0,12.5,50,37.5,100]
[4,2,4,1,3,1,2,4,2,3,3,2,1,4,4,3,3,2,2,4,4,2,3,2,1,3,1,2,2,2,3,4,3,1,1,2,3,4,1,3,3,1,2,4,1,3,3,1,null,null,{"$f":"COUNTIF($K:$K,$AY$4)","v":3},{"$f":"COUNTIF($K:$K,$AZ$4)","v":8},{"$f":"COUNTIF($K:$K,$BA$4)","v":4},{"$f":"COUNTIF($K:$K,$BB$4)","v":1},16,"P12",18.75,50,25,6.25,100]
[4,3,1,1,4,3,2,2,3,2,1,1,2,1,4,3,1,3,3,4,3,1,1,2,3,1,4,4,3,1,3,4,2,1,1,2,3,4,2,3,2,1,1,3,2,4,2,4,null,null,{"$f":"COUNTIF($L:$L,$AY$4)","v":6},{"$f":"COUNTIF($L:$L,$AZ$4)","v":8},{"$f":"COUNTIF($L:$L,$BA$4)","v":0},{"$f":"COUNTIF($L:$L,$BB$4)","v":2},16,"P13",37.5,50,0,12.5,100]
[4,3,1,1,4,4,4,2,3,4,2,1,3,1,4,3,2,2,2,4,3,1,4,3,2,1,2,2,3,2,3,4,3,1,1,1,2,4,2,2,3,1,4,2,4,2,1,4,null,null,{"$f":"COUNTIF($M:$M,$AY$4)","v":5},{"$f":"COUNTIF($M:$M,$AZ$4)","v":6},{"$f":"COUNTIF($M:$M,$BA$4)","v":1},{"$f":"COUNTIF($M:$M,BB$4)","v":4},16,"P14",31.25,37.5,6.25,25,100]
[4,3,3,1,4,4,2,2,3,3,2,2,2,1,4,3,1,3,2,3,4,3,4,3,2,3,1,2,3,1,1,4,2,2,2,4,1,1,3,4,2,3,3,3,2,1,2,3,null,null,{"$f":"COUNTIF($N:$N,$AY$4)","v":9},{"$f":"COUNTIF($N:$N,$AZ$4)","v":2},{"$f":"COUNTIF($N:$N,$BA$4)","v":3},{"$f":"COUNTIF($N:$N,$BB$4)","v":2},16,"P15",56.25,12.5,18.75,12.5,100]
[4,3,4,1,1,4,4,2,3,3,4,4,1,4,2,3,1,2,1,4,2,1,4,2,2,3,4,2,3,2,3,4,1,2,3,4,2,2,1,4,4,1,2,4,3,2,2,4,null,null,{"$f":"COUNTIF($O:$O,$AY$4)","v":5},{"$f":"COUNTIF($O:$O,$AZ$4)","v":5},{"$f":"COUNTIF($O:$O,$BA$4)","v":0},{"$f":"COUNTIF($O:$O,$BB$4)","v":6},16,"P16",31.25,31.25,0,37.5,100]
[8,8,8,8,8,8,8,8,8,8,8,8,8,8,8,8,8,8,8,8,8,8,8,8,8,8,8,8,8,8,8,8,8,8,8,8,8,8,8,8,8,8,8,8,8,8,8,8,null,null,{"$f":"COUNTIF($P:$P,$AY$4)","v":2},{"$f":"COUNTIF($P:$P,$AZ$4)","v":2},{"$f":"COUNTIF($P:$P,$BA$4)","v":12},{"$f":"COUNTIF($P:$P,$BB$4)","v":0},16,"P17",12.5,12.5,75,0,100]
[null,null,null,null,null,null,null,null,null,null,null,null,null,null,null,null,null,null,null,null,null,null,null,null,null,null,null,null,null,null,null,null,null,null,null,null,null,null,null,null,null,null,null,null,null,null,null,null,null,null,{"$f":"COUNTIF($Q:$Q,$AY$4)","v":9},{"$f":"COUNTIF($Q:$Q,$AZ$4)","v":3},{"$f":"COUNTIF($Q:$Q,$BA$4)","v":2},{"$f":"COUNTIF($Q:$Q,$BB$4)","v":2},16,"P18",56.25,18.75,12.5,12.5,100]
[null,null,null,null,null,null,null,null,null,null,null,null,null,null,null,null,null,null,null,null,null,null,null,null,null,null,null,null,null,null,null,null,null,null,null,null,null,null,null,null,null,null,null,null,null,null,null,null,null,null,{"$f":"COUNTIF($R:$R,$AY$4)","v":2},{"$f":"COUNTIF($R:$R,$AZ$4)","v":11},{"$f":"COUNTIF($R:$R,$BA$4)","v":3},{"$f":"COUNTIF($R:$R,$BB$4)","v":0},16,"P19",12.5,68.75,18.75,0,100]
[null,null,null,null,null,null,null,null,null,null,null,null,null,null,null,null,null,null,null,null,null,null,null,null,null,null,null,null,null,null,null,null,null,null,null,null,null,null,null,null,null,null,null,null,null,null,null,null,null,null,{"$f":"COUNTIF($S:$S,$AY$4)","v":3},{"$f":"COUNTIF($S:$S,$AZ$4)","v":7},{"$f":"COUNTIF($S:$S,$BA$4)","v":6},{"$f":"COUNTIF($S:$S,$BB$4)","v":0},16,"P20",18.75,43.75,37.5,0,100]
[null,null,null,null,null,null,null,null,null,null,null,null,null,null,null,null,null,null,null,null,null,null,null,null,null,null,null,null,null,null,null,null,null,null,null,null,null,null,null,null,null,null,null,null,null,null,null,null,null,null,{"$f":"COUNTIF($T:$T,$AY$4)","v":0},{"$f":"COUNTIF($T:$T,$AZ$4)","v":1},{"$f":"COUNTIF($T:$T,$BA$4)","v":5},{"$f":"COUNTIF($T:$T,$BB$4)","v":10},16,"P21",0,6.25,31.25,62.5,100]
[null,null,null,null,null,null,null,null,null,null,null,null,null,null,null,null,null,null,null,null,null,null,null,null,null,null,null,null,null,null,null,null,null,null,null,null,null,null,null,null,null,null,null,null,null,null,null,null,null,null,{"$f":"COUNTIF($U:$U,$AY$4)","v":2},{"$f":"COUNTIF($U:$U,$AZ$4)","v":3},{"$f":"COUNTIF($U:$U,$BA$4)","v":7},{"$f":"COUNTIF($U:$U,$BB$4)","v":4},16,"P22",12.5,18.75,43.75,25,100]
[null,null,null,null,null,null,null,null,null,null,null,null,null,null,null,null,null,null,null,null,null,null,null,null,null,null,null,null,null,null,null,null,null,null,null,null,null,null,null,null,null,null,null,null,null,null,null,null,null,null,{"$f":"COUNTIF($V:$V,$AY$4)","v":8},{"$f":"COUNTIF($V:$V,$AZ$4)","v":2},{"$f":"COUNTIF($V:$V,$BA$4)","v":4},{"$f":"COUNTIF($V:$V,$BB$4)","v":2},16,"P23",50,12.5,25,12.5,100]
[null,null,null,null,null,null,null,null,null,null,null,null,null,null,null,null,null,null,null,null,null,null,null,null,null,null,null,null,null,null,null,null,null,null,null,null,null,null,null,null,null,null,null,null,null,null,null,null,null,null,{"$f":"COUNTIF($W:$W,$AY$4)","v":7},{"$f":"COUNTIF($W:$W,$AZ$4)","v":3},{"$f":"COUNTIF($W:$W,$BA$4)","v":1},{"$f":"COUNTIF($W:$W,$BB$4)","v":4},15,"P24",46.666666666666664,20,6.666666666666667,26.666666666666668,100]
[null,null,null,null,null,null,null,null,null,null,null,null,null,null,null,null,null,null,null,null,null,null,null,null,null,null,null,null,null,null,null,null,null,null,null,null,null,null,null,null,null,null,null,null,null,null,null,null,null,null,{"$f":"COUNTIF($X:$X,$AY$4)","v":1},{"$f":"COUNTIF($X:$X,$AZ$4)","v":10},{"$f":"COUNTIF($X:$X,$BA$4)","v":2},{"$f":"COUNTIF($X:$X,$BB$4)","v":3},16,"P25",6.25,62.5,12.5,18.75,100]
[null,null,null,null,null,null,null,null,null,null,null,null,null,null,null,null,null,null,null,null,null,null,null,null,null,null,null,null,null,null,null,null,null,null,null,null,null,null,null,null,null,null,null,null,null,null,null,null,null,null,{"$f":"COUNTIF($Y:$Y,$AY$4)","v":7},{"$f":"COUNTIF($Y:$Y,$AZ$4)","v":6},{"$f":"COUNTIF($Y:$Y,$BA$4)","v":3},{"$f":"COUNTIF($Y:$Y,$BB$4)","v":0},16,"P27",43.75,37.5,18.75,0,100]
[null,null,null,null,null,null,null,null,null,null,null,null,null,null,null,null,null,null,null,null,null,null,null,null,null,null,null,null,null,null,null,null,null,null,null,null,null,null,null,null,null,null,null,null,null,null,null,null,null,null,{"$f":"COUNTIF($Z:$Z,$AY$4)","v":6},{"$f":"COUNTIF($Z:$Z,$AZ$4)","v":5},{"$f":"COUNTIF($Z:$Z,$BA$4)","v":3},{"$f":"COUNTIF($Z:$Z,$BB$4)","v":2},16,"P28",37.5,31.25,18.75,12.5,100]
[null,null,null,null,null,null,null,null,null,null,null,null,null,null,null,null,null,null,null,null,null,null,null,null,null,null,null,null,null,null,null,null,null,null,null,null,null,null,null,null,null,null,null,null,null,null,null,null,null,null,{"$f":"COUNTIF($AA:$AA,$AY$4)","v":5},{"$f":"COUNTIF($AA:$AA,$AZ$4)","v":5},{"$f":"COUNTIF($AA:$AA,$BA$4)","v":1},{"$f":"COUNTIF($AA:$AA,$BB$4)","v":5},16,"P29",31.25,31.25,6.25,31.25,100]
[null,null,null,null,null,null,null,null,null,null,null,null,null,null,null,null,null,null,null,null,null,null,null,null,null,null,null,null,null,null,null,null,null,null,null,null,null,null,null,null,null,null,null,null,null,null,null,null,null,null,{"$f":"COUNTIF($AB:$AB,$AY$4)","v":1},{"$f":"COUNTIF($AB:$AB,$AZ$4)","v":7},{"$f":"COUNTIF($AB:$AB,$BA$4)","v":2},{"$f":"COUNTIF($AB:$AB,$BB$4)","v":6},16,"P30",6.25,43.75,12.5,37.5,100]
[null,null,null,null,null,null,null,null,null,null,null,null,null,null,null,null,null,null,null,null,null,null,null,null,null,null,null,null,null,null,null,null,null,null,null,null,null,null,null,null,null,null,null,null,null,null,null,null,null,null,{"$f":"COUNTIF($AC:$AC,$AY$4)","v":4},{"$f":"COUNTIF($AC:$AC,$AZ$4)","v":3},{"$f":"COUNTIF($AC:$AC,$BA$4)","v":7},{"$f":"COUNTIF($AC:$AC,$BB$4)","v":2},16,"P31",25,18.75,43.75,12.5,100]
[null,null,null,null,null,null,null,null,null,null,null,null,null,null,null,null,null,null,null,null,null,null,null,null,null,null,null,null,null,null,null,null,null,null,null,null,null,null,null,null,null,null,null,null,null,null,null,null,null,null,{"$f":"COUNTIF($AD:$AD,$AY$4)","v":7},{"$f":"COUNTIF($AD:$AD,$AZ$4)","v":5},{"$f":"COUNTIF($AD:$AD,$BA$4)","v":3},{"$f":"COUNTIF($AD:$AD,$BB$4)","v":1},16,"P32",43.75,31.25,18.75,6.25,100]
[null,null,null,null,null,null,null,null,null,null,null,null,null,null,null,null,null,null,null,null,null,null,null,null,null,null,null,null,null,null,null,null,null,null,null,null,null,null,null,null,null,null,null,null,null,null,null,null,null,null,{"$f":"COUNTIF($AE:$AE,$AY$4)","v":5},{"$f":"COUNTIF($AE:$AE,$AZ$4)","v":2},{"$f":"COUNTIF($AE:$AE,$BA$4)","v":7},{"$f":"COUNTIF($AE:$AE,$BB$4)","v":2},16,"P33",31.25,12.5,43.75,12.5,100]
[null,null,null,null,null,null,null,null,null,null,null,null,null,null,null,null,null,null,null,null,null,null,null,null,null,null,null,null,null,null,null,null,null,null,null,null,null,null,null,null,null,null,null,null,null,null,null,null,null,null,{"$f":"COUNTIF($AF:$AF,$AY$4)","v":3},{"$f":"COUNTIF($AF:$AF,$AZ$4)","v":1},{"$f":"COUNTIF($AF:$AF,$BA$4)","v":0},{"$f":"COUNTIF($AF:$AF,$BB$4)","v":12},16,"P34",18.75,6.25,0,75,100]
[null,null,null,null,null,null,null,null,null,null,null,null,null,null,null,null,null,null,null,null,null,null,null,null,null,null,null,null,null,null,null,null,null,null,null,null,null,null,null,null,null,null,null,null,null,null,null,null,null,null,{"$f":"COUNTIF($AG:$AG,$AY$4)","v":5},{"$f":"COUNTIF($AG:$AG,$AZ$4)","v":6},{"$f":"COUNTIF($AG:$AG,$BA$4)","v":5},{"$f":"COUNTIF($AG:$AG,$BB$4)","v":0},16,"P35",31.25,37.5,31.25,0,100]
[null,null,null,null,null,null,null,null,null,null,null,null,null,null,null,null,null,null,null,null,null,null,null,null,null,null,null,null,null,null,null,null,null,null,null,null,null,null,null,null,null,null,null,null,null,null,null,null,null,null,{"$f":"COUNTIF($AH:$AH,$AY$4)","v":8},{"$f":"COUNTIF($AH:$AH,$AZ$4)","v":6},{"$f":"COUNTIF($AH:$AH,$BA$4)","v":0},{"$f":"COUNTIF($AH:$AH,$BB$4)","v":2},16,"P36",50,37.5,0,12.5,100]
[null,null,null,null,null,null,null,null,null,null,null,null,null,null,null,null,null,null,null,null,null,null,null,null,null,null,null,null,null,null,null,null,null,null,null,null,null,null,null,null,null,null,null,null,null,null,null,null,null,null,{"$f":"COUNTIF($AI:$AI,$AY$4)","v":11},{"$f":"COUNTIF($AI:$AI,$AZ$4)","v":2},{"$f":"COUNTIF($AI:$AI,$BA$4)","v":2},{"$f":"COUNTIF($AI:$AI,$BB$4)","v":1},16,"P37",68.75,12.5,12.5,6.25,100]
[null,null,null,null,null,null,null,null,null,null,null,null,null,null,null,null,null,null,null,null,null,null,null,null,null,null,null,null,null,null,null,null,null,null,null,null,null,null,null,null,null,null,null,null,null,null,null,null,null,null,{"$f":"COUNTIF($AJ:$AJ,$AY$4)","v":5},{"$f":"COUNTIF($AJ:$AJ,$AZ$4)","v":5},{"$f":"COUNTIF($AJ:$AJ,$BA$4)","v":2},{"$f":"COUNTIF($AJ:$AJ,$BB$4)","v":4},16,"P38",31.25,31.25,12.5,25,100]
[null,null,null,null,null,null,null,null,null,null,null,null,null,null,null,null,null,null,null,null,null,null,null,null,null,null,null,null,null,null,null,null,null,null,null,null,null,null,null,null,null,null,null,null,null,null,null,null,null,null,{"$f":"COUNTIF($AK:$AK,$AY$4)","v":3},{"$f":"COUNTIF($AK:$AK,$AZ$4)","v":3},{"$f":"COUNTIF($AK:$AK,$BA$4)","v":7},{"$f":"COUNTIF($AK:$AK,$BB$4)","v":3},16,"P39",18.75,18.75,43.75,18.75,100]
[null,null,null,null,null,null,null,null,null,null,null,null,null,null,null,null,null,null,null,null,null,null,null,null,null,null,null,null,null,null,null,null,null,null,null,null,null,null,null,null,null,null,null,null,null,null,null,null,null,null,{"$f":"COUNTIF($AL:$AL,$AY$4)","v":5},{"$f":"COUNTIF($AL:$AL,$AZ$4)","v":4},{"$f":"COUNTIF($AL:$AL,$BA$4)","v":2},{"$f":"COUNTIF($AL:$AL,$BB$4)","v":5},16,"P40",31.25,25,12.5,31.25,100]
[null,null,null,null,null,null,null,null,null,null,null,null,null,null,null,null,null,null,null,null,null,null,null,null,null,null,null,null,null,null,null,null,null,null,null,null,null,null,null,null,null,null,null,null,null,null,null,null,null,null,{"$f":"COUNTIF($AM:$AM,$AY$4)","v":5},{"$f":"COUNTIF($AM:$AM,$AZ$4)","v":3},{"$f":"COUNTIF($AM:$AM,$BA$4)","v":5},{"$f":"COUNTIF($AM:$AM,$BB$4)","v":3},16,"P41",31.25,18.75,31.25,18.75,100]
[null,null,null,null,null,null,null,null,null,null,null,null,null,null,null,null,null,null,null,null,null,null,null,null,null,null,null,null,null,null,null,null,null,null,null,null,null,null,null,null,null,null,null,null,null,null,null,null,null,null,{"$f":"COUNTIF($AN:$AN,$AY$4)","v":4},{"$f":"COUNTIF($AN:$AN,$AZ$4)","v":3},{"$f":"COUNTIF($AN:$AN,$BA$4)","v":4},{"$f":"COUNTIF($AN:$AN,$BB$4)","v":5},16,"P42",25,18.75,25,31.25,100]
[null,null,null,null,null,null,null,null,null,null,null,null,null,null,null,null,null,null,null,null,null,null,null,null,null,null,null,null,null,null,null,null,null,null,null,null,null,null,null,null,null,null,null,null,null,null,null,null,null,null,{"$f":"COUNTIF($AO:$AO,$AY$4)","v":4},{"$f":"COUNTIF($AO:$AO,$AZ$4)","v":4},{"$f":"COUNTIF($AO:$AO,$BA$4)","v":3},{"$f":"COUNTIF($AO:$AO,$BB$4)","v":5},16,"P43",25,25,18.75,31.25,100]
[null,null,null,null,null,null,null,null,null,null,null,null,null,null,null,null,null,null,null,null,null,null,null,null,null,null,null,null,null,null,null,null,null,null,null,null,null,null,null,null,null,null,null,null,null,null,null,null,null,null,{"$f":"COUNTIF($AP:$AP,$AY$4)","v":6},{"$f":"COUNTIF($AP:$AP,$AZ$4)","v":1},{"$f":"COUNTIF($AP:$AP,$BA$4)","v":7},{"$f":"COUNTIF($AP:$AP,$BB$4)","v":2},16,"P44",37.5,6.25,43.75,12.5,100]
[null,null,null,null,null,null,null,null,null,null,null,null,null,null,null,null,null,null,null,null,null,null,null,null,null,null,null,null,null,null,null,null,null,null,null,null,null,null,null,null,null,null,null,null,null,null,null,null,null,null,{"$f":"COUNTIF($AQ:$AQ,$AY$4)","v":7},{"$f":"COUNTIF($AQ:$AQ,$AZ$4)","v":4},{"$f":"COUNTIF($AQ:$AQ,$BA$4)","v":2},{"$f":"COUNTIF($AQ:$AQ,$BB$4)","v":3},16,"P45",43.75,25,12.5,18.75,100]
[null,null,null,null,null,null,null,null,null,null,null,null,null,null,null,null,null,null,null,null,null,null,null,null,null,null,null,null,null,null,null,null,null,null,null,null,null,null,null,null,null,null,null,null,null,null,null,null,null,null,{"$f":"COUNTIF($AR:$AR,$AY$4)","v":3},{"$f":"COUNTIF($AR:$AR,$AZ$4)","v":3},{"$f":"COUNTIF($AR:$AR,$BA$4)","v":7},{"$f":"COUNTIF($AR:$AR,$BB$4)","v":3},16,"P46",18.75,18.75,43.75,18.75,100]
[null,null,null,null,null,null,null,null,null,null,null,null,null,null,null,null,null,null,null,null,null,null,null,null,null,null,null,null,null,null,null,null,null,null,null,null,null,null,null,null,null,null,null,null,null,null,null,null,null,null,{"$f":"COUNTIF($AS:$AS,$AY$4)","v":3},{"$f":"COUNTIF($AS:$AS,$AZ$4)","v":6},{"$f":"COUNTIF($AS:$AS,$BA$4)","v":5},{"$f":"COUNTIF($AS:$AS,$BB$4)","v":2},16,"P47",18.75,37.5,31.25,12.5,100]
[null,null,null,null,null,null,null,null,null,null,null,null,null,null,null,null,null,null,null,null,null,null,null,null,null,null,null,null,null,null,null,null,null,null,null,null,null,null,null,null,null,null,null,null,null,null,null,null,null,null,{"$f":"COUNTIF($AT:$AT,$AY$4)","v":6},{"$f":"COUNTIF($AT:$AT,$AZ$4)","v":4},{"$f":"COUNTIF($AT:$AT,$BA$4)","v":2},{"$f":"COUNTIF($AT:$AT,$BB$4)","v":4},16,"P48",37.5,25,12.5,25,100]
[null,null,null,null,null,null,null,null,null,null,null,null,null,null,null,null,null,null,null,null,null,null,null,null,null,null,null,null,null,null,null,null,null,null,null,null,null,null,null,null,null,null,null,null,null,null,null,null,null,null,{"$f":"COUNTIF($AU:$AU,$AY$4)","v":6},{"$f":"COUNTIF($AU:$AU,$AZ$4)","v":6},{"$f":"COUNTIF($AU:$AU,$BA$4)","v":2},{"$f":"COUNTIF($AU:$AU,$BB$4)","v":2},16,"P49",37.5,37.5,12.5,12.5,100]
[null,null,null,null,null,null,null,null,null,null,null,null,null,null,null,null,null,null,null,null,null,null,null,null,null,null,null,null,null,null,null,null,null,null,null,null,null,null,null,null,null,null,null,null,null,null,null,null,null,null,{"$f":"COUNTIF($AV:$AV,$AY$4)","v":1},{"$f":"COUNTIF($AV:$AV,$AZ$4)","v":3},{"$f":"COUNTIF($AV:$AV,$BA$4)","v":6},{"$f":"COUNTIF($AV:$AV,$BB$4)","v":6},16,"P50",6.25,18.75,37.5,37.5,100]
[]
[null,null,null,null,null,null,null,null,null,null,null,null,null,null,null,null,null,null,null,null,null,null,null,null,null,null,null,null,null,null,null,null,null,null,null,null,null,null,null,null,null,null,null,null,null,null,null,null,null,null,null,null,null,null,null,null,"LOS RECUADROS EN COLOR VERDE INDICAN QUE ES LA RESPUESTA CORRECTA"]

{"sheet":"ÍNDICE_REACT_MAT","index":42,"n_rows":26,"n_cols":11,"rows_kept":26,"cut":false,"hidden":true,"merged":[[0,0,1,17],[3,5,3,7]]}
["REACTIVOS POR CADA UNIDAD DE DIAGNÓSTICO EN MATEMÁTICAS"]
[]
[null,null,"Manejo de la información",null,null,"     Forma, Espacio y medida",null,null,null,"Sentido numérico y pensamiento algebraico"]
[null,null,"REACTIVOS",null,null,"REACTIVOS",null,null,null,"REACTIVOS"]
[]
[]
[]
[]
[]
[]
[]
[]
[]
[]
[]
[]
[]
[]
[]
[]
[]
[]
[]
[]
[]
[null,null,null,"E",null,null,null,null,null,null,"E"]

{"sheet":"MAT_P1","index":43,"n_rows":5,"n_cols":12,"rows_kept":5,"cut":false,"hidden":true,"merged":[]}
[]
[]
[]
[]
[null,null,null,null,null,null,null,null,null,null,null,"E"]

{"sheet":"MAT_P2_3_4","index":44,"n_rows":3,"n_cols":13,"rows_kept":3,"cut":false,"hidden":true,"merged":[]}
[]
[]
[null,null,null,null,null,null,null,null,null,null,null,null,"E"]

{"sheet":"MAT_P_5","index":45,"n_rows":4,"n_cols":12,"rows_kept":4,"cut":false,"hidden":true,"merged":[]}
[]
[]
[]
[null,null,null,null,null,null,null,null,null,null,null,"E"]

{"sheet":"MAT_P6_7","index":46,"n_rows":3,"n_cols":12,"rows_kept":3,"cut":false,"hidden":true,"merged":[]}
[]
[]
[null,null,null,null,null,null,null,null,null,null,null,"E"]

{"sheet":"MAT_P8_9","index":47,"n_rows":3,"n_cols":13,"rows_kept":3,"cut":false,"hidden":true,"merged":[]}
[]
[]
[null,null,null,null,null,null,null,null,null,null,null,null,"E"]

{"sheet":"MAT_P10_11_12","index":48,"n_rows":4,"n_cols":13,"rows_kept":4,"cut":false,"hidden":true,"merged":[]}
[]
[]
[]
[null,null,null,null,null,null,null,null,null,null,null,null,"E"]

{"sheet":"MAT_P13_14_15","index":49,"n_rows":4,"n_cols":13,"rows_kept":4,"cut":false,"hidden":true,"merged":[]}
[]
[]
[]
[null,null,null,null,null,null,null,null,null,null,null,null,"E"]

{"sheet":"MAT_P16_17_18","index":50,"n_rows":3,"n_cols":13,"rows_kept":3,"cut":false,"hidden":true,"merged":[]}
[]
[]
[null,null,null,null,null,null,null,null,null,null,null,null,"E"]

{"sheet":"MAT_P19_20_21_22","index":51,"n_rows":4,"n_cols":13,"rows_kept":4,"cut":false,"hidden":true,"merged":[]}
[]
[]
[]
[null,null,null,null,null,null,null,null,null,null,null,null,"E"]

{"sheet":"MAT_P_23_24_25","index":52,"n_rows":4,"n_cols":13,"rows_kept":4,"cut":false,"hidden":true,"merged":[]}
[]
[]
[]
[null,null,null,null,null,null,null,null,null,null,null,null,"E"]

{"sheet":"MAT_P26_27_28","index":53,"n_rows":4,"n_cols":12,"rows_kept":4,"cut":false,"hidden":true,"merged":[]}
[]
[]
[]
[null,null,null,null,null,null,null,null,null,null,null,"E"]

{"sheet":"MAT_P29_30","index":54,"n_rows":4,"n_cols":13,"rows_kept":4,"cut":false,"hidden":true,"merged":[]}
[]
[]
[]
[null,null,null,null,null,null,null,null,null,null,null,null,"E"]

{"sheet":"MAT_31_32","index":55,"n_rows":4,"n_cols":13,"rows_kept":4,"cut":false,"hidden":true,"merged":[]}
[]
[]
[]
[null,null,null,null,null,null,null,null,null,null,null,null,"E"]

{"sheet":"MAT_P33_34","index":56,"n_rows":4,"n_cols":13,"rows_kept":4,"cut":false,"hidden":true,"merged":[]}
[]
[]
[]
[null,null,null,null,null,null,null,null,null,null,null,null,"E"]

{"sheet":"MAT_P35_36","index":57,"n_rows":4,"n_cols":13,"rows_kept":4,"cut":false,"hidden":true,"merged":[]}
[]
[]
[]
[null,null,null,null,null,null,null,null,null,null,null,null,"E"]

{"sheet":"MAT_P37","index":58,"n_rows":4,"n_cols":12,"rows_kept":4,"cut":false,"hidden":true,"merged":[]}
[]
[]
[]
[null,null,null,null,null,null,null,null,null,null,null,"E"]

{"sheet":"MAT_P38_39_40_41","index":59,"n_rows":3,"n_cols":12,"rows_kept":3,"cut":false,"hidden":true,"merged":[]}
[]
[]
[null,null,null,null,null,null,null,null,null,null,null,"E"]

{"sheet":"MAT_42_43_44","index":60,"n_rows":4,"n_cols":13,"rows_kept":4,"cut":false,"hidden":true,"merged":[]}
[]
[]
[]
[null,null,null,null,null,null,null,null,null,null,null,null,"E"]

{"sheet":"MAT_P45_46_47_48","index":61,"n_rows":4,"n_cols":12,"rows_kept":4,"cut":false,"hidden":true,"merged":[]}
[]
[]
[]
[null,null,null,null,null,null,null,null,null,null,null,"E"]

{"sheet":"MAT_P49_50","index":62,"n_rows":4,"n_cols":13,"rows_kept":4,"cut":false,"hidden":true,"merged":[]}
[]
[]
[]
[null,null,null,null,null,null,null,null,null,null,null,null,"E"]

{"sheet":"PLANEACIÓN","index":63,"n_rows":300,"n_cols":34,"rows_kept":300,"cut":false,"hidden":true,"merged":[[287,5,305,8],[287,9,305,12],[287,13,305,16],[287,17,305,20],[287,21,305,24],[287,25,305,28],[287,29,305,32],[287,33,305,36],[286,5,286,36],[267,5,285,8],[267,9,285,12],[267,13,285,16],[267,17,285,20],[267,21,285,24],[267,25,285,28],[267,29,285,32],[267,33,285,36],[0,0,1,7],[266,5,266,36],[247,5,265,8],[247,9,265,12],[247,13,265,16],[247,17,265,20],[247,21,265,24],[247,25,265,28],[247,29,265,32],[247,33,265,36],[246,5,246,36],[227,5,245,8],[227,9,245,12],[227,13,245,16],[227,17,245,20],[227,21,245,24],[227,25,245,28],[227,29,245,32],[227,33,245,36],[226,5,226,36],[207,5,225,8],[207,9,225,12],[207,13,225,16],[207,17,225,20],[207,21,225,24],[207,25,225,28],[207,29,225,32],[207,33,225,36],[206,5,206,36],[187,5,205,8],[187,9,205,12],[187,13,205,16],[187,17,205,20],[187,21,205,24],[187,25,205,28],[187,29,205,32],[187,33,205,36],[186,5,186,36],[167,5,185,8],[167,9,185,12],[167,13,185,16],[167,17,185,20],[167,21,185,24],[167,25,185,28],[167,29,185,32],[167,33,185,36],[166,5,166,36],[147,5,165,8],[147,9,165,12],[147,13,165,16],[147,17,165,20],[147,21,165,24],[147,25,165,28],[147,29,165,32],[147,33,165,36],[146,5,146,36],[127,5,145,8],[127,9,145,12],[127,13,145,16],[127,17,145,20],[127,21,145,24],[127,25,145,28],[127,29,145,32],[127,33,145,36],[126,5,126,36],[107,5,125,8],[107,9,125,12],[107,13,125,16],[107,17,125,20],[107,21,125,24],[107,25,125,28],[107,29,125,32],[107,33,125,36],[106,5,106,36],[87,5,105,8],[87,9,105,12],[87,13,105,16],[87,17,105,20],[87,21,105,24],[87,25,105,28],[87,29,105,32],[87,33,105,36],[86,5,86,36],[67,5,85,8],[67,9,85,12],[67,13,85,16],[67,17,85,20],[67,21,85,24],[67,25,85,28],[67,29,85,32],[67,33,85,36],[66,5,66,36],[47,5,65,8],[47,9,65,12],[47,13,65,16],[47,17,65,20],[47,21,65,24],[47,25,65,28],[47,29,65,32],[47,33,65,36],[4,5,4,12],[7,5,25,8],[7,29,25,32],[7,33,25,36],[3,5,3,36],[4,29,4,36],[5,29,5,32],[5,33,5,36],[46,5,46,36],[27,5,45,8],[27,9,45,12],[27,13,45,16],[27,17,45,20],[27,21,45,24],[27,25,45,28],[27,29,45,32],[27,33,45,36],[32,4,34,4],[6,5,6,36],[6,0,6,3],[7,0,45,3],[12,4,14,4],[3,0,3,3],[2,0,2,3],[4,0,4,3],[7,17,25,20],[7,9,25,12],[7,13,25,16],[2,4,2,36],[4,4,5,4],[4,21,4,28],[5,21,5,24],[5,25,5,28],[7,21,25,24],[7,25,25,28],[26,5,26,36],[4,13,4,20],[5,13,5,16],[5,17,5,20],[5,5,5,8],[5,9,5,12]]}
["PLANEACIÓN CON BASE EN RESULTADOS",null,null,null,null,null,null,null,null,null,"E"]
[]
["ZONA ESCOLAR No.",null,null,null,"TABLA DE MEJORA ACADÉMICA"]
["DESEMPEÑO DE LA ZONA ESCOLAR",null,null,null,null,"DESEMPEÑO POR ESCUELA"]
["PORCENTAJE DE ESTUDIANTES DE LA ZONA ESCOLAR EN CADA NIVEL DE DESEMPEÑO EN PLANEA 2018",null,null,null,"NIVEL DE DESEMPEÑO DE LA ESCUELA ","FORTALEZAS Y DEBILIDADES ACADÉMICAS CON BASE EN LOS RESULTADOS DE PLANEA 2018",null,null,null,null,null,null,null,"TEMÁTICAS PARA REFORZAR EN LA CURRÍCULA",null,null,null,null,null,null,null,"SUGERENCIAS DE ESTRATEGIAS PARA EL REFORZAMIENTO DE CADA TEMÁTICA",null,null,null,null,null,null,null,"NECESIDADES INDISPENSABLES DE CAPACITACIÓN DEL DOCENTE PARA EL REFORZAMIENTO DE CADA TEMÁTICA"]
["I=","II=","III=","IV=",null,"LENGUAJE Y COMUNICACIÓN",null,null,null,"MATEMÁTICAS",null,null,null,"LENGUAJE Y COMUNICACIÓN",null,null,null,"MATEMÁTICAS",null,null,null,"LENGUAJE Y COMUNICACIÓN",null,null,null,"MATEMÁTICAS",null,null,null,"LENGUAJE Y COMUNICACIÓN",null,null,null,"MATEMÁTICAS"]
["DIAGNÓSTICO DE LA ZONA ESCOLAR",null,null,null,"ESCUELA 1","NOMBRE"]
["ESCRIBA AQUÍ SUS COMENTARIOS SOBRE EL DIAGNÓSTICO DE LA ZONA ESCOLAR DE LA CUAL ES RESPONSABLE",null,null,null,"Escriba los porcentajes de estudiantes en cada nivel de desempeño de acuerdo a PLANEA 2018 en LENGUAJE Y COMUNICACIÓN"]
[null,null,null,null,"IV ="]
[null,null,null,null,"III ="]
[null,null,null,null,"II ="]
[null,null,null,null,"I ="]
[]
[]
[]
[null,null,null,null,"Escriba los porcentajes de estudiantes en cada nivel de desempeño de acuerdo a PLANEA 2018 en MATEMÁTICAS"]
[null,null,null,null,"IV ="]
[null,null,null,null,"III ="]
[null,null,null,null,"II ="]
[null,null,null,null,"I ="]
[]
[]
[]
[]
[]
[]
[null,null,null,null,"ESCUELA 2","NOMBRE"]
[null,null,null,null,"Escriba los porcentajes de estudiantes en cada nivel de desempeño de acuerdo a PLANEA 2018 en LENGUAJE Y COMUNICACIÓN"]
[null,null,null,null,"IV ="]
[null,null,null,null,"III ="]
[null,null,null,null,"II ="]
[null,null,null,null,"I ="]
[]
[]
[]
[null,null,null,null,"Escriba los porcentajes de estudiantes en cada nivel de desempeño de acuerdo a PLANEA 2018 en MATEMÁTICAS"]
[null,null,null,null,"IV ="]
[null,null,null,null,"III ="]
[null,null,null,null,"II ="]
[null,null,null,null,"I ="]
[]
[]
[]
[]
[]
[]
[null,null,null,null,"ESCUELA 3","NOMBRE"]
[null,null,null,null,"Escriba los porcentajes de estudiantes en cada nivel de desempeño de acuerdo a PLANEA 2018 en LENGUAJE Y COMUNICACIÓN"]
[null,null,null,null,"IV ="]
[null,null,null,null,"III ="]
[null,null,null,null,"II ="]
[null,null,null,null,"I ="]
[]
[]
[]
[null,null,null,null,"Escriba los porcentajes de estudiantes en cada nivel de desempeño de acuerdo a PLANEA 2018 en MATEMÁTICAS"]
[null,null,null,null,"IV ="]
[null,null,null,null,"III ="]
[null,null,null,null,"II ="]
[null,null,null,null,"I ="]
[]
[]
[]
[]
[]
[]
[null,null,null,null,"ESCUELA 4","NOMBRE"]
[null,null,null,null,"Escriba los porcentajes de estudiantes en cada nivel de desempeño de acuerdo a PLANEA 2018 en LENGUAJE Y COMUNICACIÓN"]
[null,null,null,null,"IV ="]
[null,null,null,null,"III ="]
[null,null,null,null,"II ="]
[null,null,null,null,"I ="]
[]
[]
[]
[null,null,null,null,"Escriba los porcentajes de estudiantes en cada nivel de desempeño de acuerdo a PLANEA 2018 en MATEMÁTICAS"]
[null,null,null,null,"IV ="]
[null,null,null,null,"III ="]
[null,null,null,null,"II ="]
[null,null,null,null,"I ="]
[]
[]
[]
[]
[]
[]
[null,null,null,null,"ESCUELA 5","NOMBRE"]
[null,null,null,null,"Escriba los porcentajes de estudiantes en cada nivel de desempeño de acuerdo a PLANEA 2018 en LENGUAJE Y COMUNICACIÓN"]
[null,null,null,null,"IV ="]
[null,null,null,null,"III ="]
[null,null,null,null,"II ="]
[null,null,null,null,"I ="]
[]
[]
[]
[null,null,null,null,"Escriba los porcentajes de estudiantes en cada nivel de desempeño de acuerdo a PLANEA 2018 en MATEMÁTICAS"]
[null,null,null,null,"IV ="]
[null,null,null,null,"III ="]
[null,null,null,null,"II ="]
[null,null,null,null,"I ="]
[]
[]
[]
[]
[]
[]
[null,null,null,null,"ESCUELA 6","NOMBRE"]
[null,null,null,null,"Escriba los porcentajes de estudiantes en cada nivel de desempeño de acuerdo a PLANEA 2018 en LENGUAJE Y COMUNICACIÓN"]
[null,null,null,null,"IV ="]
[null,null,null,null,"III ="]
[null,null,null,null,"II ="]
[null,null,null,null,"I ="]
[]
[]
[]
[null,null,null,null,"Escriba los porcentajes de estudiantes en cada nivel de desempeño de acuerdo a PLANEA 2018 en MATEMÁTICAS"]
[null,null,null,null,"IV ="]
[null,null,null,null,"III ="]
[null,null,null,null,"II ="]
[null,null,null,null,"I ="]
[]
[]
[]
[]
[]
[]
[null,null,null,null,"ESCUELA 7","NOMBRE"]
[null,null,null,null,"Escriba los porcentajes de estudiantes en cada nivel de desempeño de acuerdo a PLANEA 2018 en LENGUAJE Y COMUNICACIÓN"]
[null,null,null,null,"IV ="]
[null,null,null,null,"III ="]
[null,null,null,null,"II ="]
[null,null,null,null,"I ="]
[]
[]
[]
[null,null,null,null,"Escriba los porcentajes de estudiantes en cada nivel de desempeño de acuerdo a PLANEA 2018 en MATEMÁTICAS"]
[null,null,null,null,"IV ="]
[null,null,null,null,"III ="]
[null,null,null,null,"II ="]
[null,null,null,null,"I ="]
[]
[]
[]
[]
[]
[]
[null,null,null,null,"ESCUELA 8","NOMBRE"]
[null,null,null,null,"Escriba los porcentajes de estudiantes en cada nivel de desempeño de acuerdo a PLANEA 2018 en LENGUAJE Y COMUNICACIÓN"]
[null,null,null,null,"IV ="]
[null,null,null,null,"III ="]
[null,null,null,null,"II ="]
[null,null,null,null,"I ="]
[]
[]
[]
[null,null,null,null,"Escriba los porcentajes de estudiantes en cada nivel de desempeño de acuerdo a PLANEA 2018 en MATEMÁTICAS"]
[null,null,null,null,"IV ="]
[null,null,null,null,"III ="]
[null,null,null,null,"II ="]
[null,null,null,null,"I ="]
[]
[]
[]
[]
[]
[]
[null,null,null,null,"ESCUELA 9","NOMBRE"]
[null,null,null,null,"Escriba los porcentajes de estudiantes en cada nivel de desempeño de acuerdo a PLANEA 2018 en LENGUAJE Y COMUNICACIÓN"]
[null,null,null,null,"IV ="]
[null,null,null,null,"III ="]
[null,null,null,null,"II ="]
[null,null,null,null,"I ="]
[]
[]
[]
[null,null,null,null,"Escriba los porcentajes de estudiantes en cada nivel de desempeño de acuerdo a PLANEA 2018 en MATEMÁTICAS"]
[null,null,null,null,"IV ="]
[null,null,null,null,"III ="]
[null,null,null,null,"II ="]
[null,null,null,null,"I ="]
[]
[]
[]
[]
[]
[]
[null,null,null,null,"ESCUELA 10","NOMBRE"]
[null,null,null,null,"Escriba los porcentajes de estudiantes en cada nivel de desempeño de acuerdo a PLANEA 2018 en LENGUAJE Y COMUNICACIÓN"]
[null,null,null,null,"IV ="]
[null,null,null,null,"III ="]
[null,null,null,null,"II ="]
[null,null,null,null,"I ="]
[]
[]
[]
[null,null,null,null,"Escriba los porcentajes de estudiantes en cada nivel de desempeño de acuerdo a PLANEA 2018 en MATEMÁTICAS"]
[null,null,null,null,"IV ="]
[null,null,null,null,"III ="]
[null,null,null,null,"II ="]
[null,null,null,null,"I ="]
[]
[]
[]
[]
[]
[]
[null,null,null,null,"ESCUELA 11","NOMBRE"]
[null,null,null,null,"Escriba los porcentajes de estudiantes en cada nivel de desempeño de acuerdo a PLANEA 2018 en LENGUAJE Y COMUNICACIÓN"]
[null,null,null,null,"IV ="]
[null,null,null,null,"III ="]
[null,null,null,null,"II ="]
[null,null,null,null,"I ="]
[]
[]
[]
[null,null,null,null,"Escriba los porcentajes de estudiantes en cada nivel de desempeño de acuerdo a PLANEA 2018 en MATEMÁTICAS"]
[null,null,null,null,"IV ="]
[null,null,null,null,"III ="]
[null,null,null,null,"II ="]
[null,null,null,null,"I ="]
[]
[]
[]
[]
[]
[]
[null,null,null,null,"ESCUELA 12","NOMBRE"]
[null,null,null,null,"Escriba los porcentajes de estudiantes en cada nivel de desempeño de acuerdo a PLANEA 2018 en LENGUAJE Y COMUNICACIÓN"]
[null,null,null,null,"IV ="]
[null,null,null,null,"III ="]
[null,null,null,null,"II ="]
[null,null,null,null,"I ="]
[]
[]
[]
[null,null,null,null,"Escriba los porcentajes de estudiantes en cada nivel de desempeño de acuerdo a PLANEA 2018 en MATEMÁTICAS"]
[null,null,null,null,"IV ="]
[null,null,null,null,"III ="]
[null,null,null,null,"II ="]
[null,null,null,null,"I ="]
[]
[]
[]
[]
[]
[]
[null,null,null,null,"ESCUELA 13","NOMBRE"]
[null,null,null,null,"Escriba los porcentajes de estudiantes en cada nivel de desempeño de acuerdo a PLANEA 2018 en LENGUAJE Y COMUNICACIÓN"]
[null,null,null,null,"IV ="]
[null,null,null,null,"III ="]
[null,null,null,null,"II ="]
[null,null,null,null,"I ="]
[]
[]
[]
[null,null,null,null,"Escriba los porcentajes de estudiantes en cada nivel de desempeño de acuerdo a PLANEA 2018 en MATEMÁTICAS"]
[null,null,null,null,"IV ="]
[null,null,null,null,"III ="]
[null,null,null,null,"II ="]
[null,null,null,null,"I ="]
[]
[]
[]
[]
[]
[]
[null,null,null,null,"ESCUELA 14","NOMBRE"]
[null,null,null,null,"Escriba los porcentajes de estudiantes en cada nivel de desempeño de acuerdo a PLANEA 2018 en LENGUAJE Y COMUNICACIÓN"]
[null,null,null,null,"IV ="]
[null,null,null,null,"III ="]
[null,null,null,null,"II ="]
[null,null,null,null,"I ="]
[]
[]
[]
[null,null,null,null,"Escriba los porcentajes de estudiantes en cada nivel de desempeño de acuerdo a PLANEA 2018 en MATEMÁTICAS"]
[null,null,null,null,"IV ="]
[null,null,null,null,"III ="]
[null,null,null,null,"II ="]
[null,null,null,null,"I ="]
[]
[]
[]
[]
[]
[]
[null,null,null,null,"ESCUELA 15","NOMBRE"]
[null,null,null,null,"Escriba los porcentajes de estudiantes en cada nivel de desempeño de acuerdo a PLANEA 2018 en LENGUAJE Y COMUNICACIÓN"]
[null,null,null,null,"IV ="]
[null,null,null,null,"III ="]
[null,null,null,null,"II ="]
[null,null,null,null,"I ="]
[]
[]
[]
[null,null,null,null,"Escriba los porcentajes de estudiantes en cada nivel de desempeño de acuerdo a PLANEA 2018 en MATEMÁTICAS"]
[null,null,null,null,"IV ="]
[null,null,null,null,"III ="]
[null,null,null,null,"II ="]
[null,null,null,null,"I ="]

{"sheet":"AGRADECIMIENTO","index":64,"n_rows":0,"n_cols":0,"rows_kept":0,"cut":false,"hidden":true,"merged":[[4,0,19,1]]}

{"sheet":"DIRECTORIO","index":65,"n_rows":0,"n_cols":0,"rows_kept":0,"cut":false,"hidden":true,"merged":[[2,4,2,9]]}